Workbook

Sheet الرئيسية
A1: بسم الله الرحمن الرحيم | D1: ادارة | E1: ….................. | J1: مديرية التربية و التعليم | N1: شيت كنترول الصف الثانى | AA1: شعبة الادارة
D2: مدرسة | E2: ….................. | J2: بمحافظة | L2: …….. | N2: للعام الدراسى | Q2: 2019/2018 | AA2: شعبة التسويق
AA3: شعبة التأمين
I4: اضغط على زر تعليمات لمعرفة طريقة الاستخدام : - | AA4: شعبة القانون
A5: مدير إدارة المدرسة الاستاذ / | AA5: كل الشعب
A6: مدير المدرسة الاستاذ ..... /
A7: رئيس الكنترول الاستاذ ..../
A8: مسئول الكنترول الاستاذ .../
A9: تاريخ حساب السن ........... / | E9: 2021-10-01

Sheet تعليمات
A1: بسم الله الرحمن الرحيم | G1: تعليمات و إرشادات | L1: كل الخلايا الملونة بها معادلات و العبث بها بفقد البرنامج اهم مميزاته
A2: و الحمد لله رب العالمين و الصلاة و السلام على اشرف المرسلين سيدنا محمد و على آله وصحبه وسلم
A3: اما بعد :
A4: الى اخوتى و احبتى العاملين في مجال الكنترول بالمدارس التجارية نظام الثلاث سنوات
A5: اليكم الشيت كنترول للصف الثانى التجارى ( ذو الاربع شعب ) يمكنك استخدام شعبة و احدة فقط او اى عدد منها كما شئت
A6: بداية يمكنكم الاستغناء عن التعليمات الآتية اذا كان تعداد المدرسة صغير و لا تحتوى على شعب متعددة و سيعمل معك البرنامج فيما تبقى بمنتهى الكفاءة
A7: وهذه ترتيبات و تعليمات الاستخدام : - ( عذرا فالتعليمات طويلة نوعا ما نظرا لاهميتها القصوى)
B9: المرحلة الأولى :
A10: 1 - البداية في ورقة الرئيسية ملء جميع البيانات الخاصة بالمحافظة و الإدارة التعليمية و اسم المدرسة و العام الدراسى و تاريخ حساب سن الطالب اما باقى البيانات فهى اختيارية
A11: 2 - الذهاب مباشرة الى كل الشعب المتوافرة للمدرسة و إتمام البيانات التالية جميعها دون نقصان او زيادة في الاعمدة المخصصة لها قبل الشروع في اى عمل آخر
B12: ا - اسم الطالب | D12: ب - فصل الطالب | F12: ج - تاريخ الميلاد | H12: د - ديانة الطالب | J12: هـ - النوع ( بنين - بنات و ليس ذكر - انثى )
D13: و - الفئة ( انتظام - خدمات ) | G13: م - لا يتم تسجيل اى بيانات أخرى في شيتات الشعب
D14: ن - الحالة ( يكتفى بكلمة باقى للبنين - باقية للبنات و لاتوجد ضرورة لكلمة مستجد -مستجدة)
B16: ******* لا داعى لتسطير اى ورقة فالتسطير يتم تلقائيا
A17: 3 - الذهاب الى ورقة الاعدادات
B18: ا - تم ترتيب الخطوات كما سوف ترى ( الخطوة الأولى - الثانية ) عليك اتباع الترتيب حتى تحصل على نتائج جيدة
B20: الخطوة الأولى :
B21: يمكنك التغيير بين المعايير المختلفة لاجراء عملية الفرز الشامل على اساسها ( بنين - بنات - انتظام - خدمات ) من الخلايا E7 و E8
B22: اختر اسم الشعبة من الخلية G8 - بها قائمة منسدلة - كما هو واضح في شيت الاعدادات ثم اضغط الزر "اضغط للفرز العام للشعبة" في كل مرة مع تغيير الشعبة و انتظر حتى تتم العملية بنجاح
B23: اضغط زر اعداد الشعب بيتوافر لديك اعداد كل شعبة مقابل اسمها ( للاستعلام فقط )
B25: الخطوة الثانية :
B26: ا - في العمود التالى F قم بكتابة الأرقام المتفق عليها بالنسبة للفترة الصباحية و اترك الباقى للبرنامج
B27: ب - اضغط زر " اضغط لتوزيع الفترات "
B29: الخطوة الثالثة :
B30: اضغط الزر المكتوب عليه : "اضغط لتعبئة الجداول " | G30: سيقوم الكود بناءا على الخطوات السابقة بتعبئة الاعمدة الخاصة بأعداد كل شريحة من كل شعبة
B31: املأ العمود S و العمود Z بأول رقم جلوس بما تم الاتفاق عليه مع السادة المنوطين بالامر في السابق و كذلك عدد اللجان المقترحة في العمود W و العمود AD حسب رؤية القائمين على هذا الامر امام كل شريحة
B32: سيقوم البرنامج بوضع رقم اول لجنة و رقم آخر لجنة في الاعمدة المخصصة لذلك
B33: اعود و اكرر الحذر كل الحذر من الاقتراب من الاعمدة التي تحتوى معادلات
B34: الضغط على زر : "توزيع ارقام الجلوس على الشعب" و قد يستغرق وقتا بعض الشئ
B35: سيقوم الكود بالمرور على كل شعبة من الشعب المتاحة و توزيع ارقام الجلوس حسب الجداول السابقة بمنتهى الدقة
B36: هنا ينتهى العمل بورقة الاعدادات و ان كان هناك أمور مرتبطة بها في الأوراق الأخرى و لكن دون الرجوع الى ورقة الاعدادات مرةاخرى . لذا الرجاء إخفاء هذه الورقة ( الاعدادات ) بعد نهاية الخطوة الرابعة
B37: لا يمكن الحصول على اخطارات ارقام الجلوس في الورقة المسماة ارقام الجلوس الا بعد اجراء الخطوات السابقة
B38: ----------------------------------------------------------------------------------------------------------------------
B40: المرحلة الثانية :
B41: في الورقة المسماة اعدادات اللجان
B42: اكتب أسماء الفصول او المقرات المتاحة لآداء التلاميذ الامتحان فيها ( الصباحية في العمود "K" - المسائية في العمود "T" ) و اترك الباقى للبرنامج
B43: اذا اردت الاستفادة من كامل مزايا هذه الورقة عليك اختيار توزيع آلى من القائمة المنسدلة
B44: في حالة اختيار توزيع يدوى من الخلية D3 او الخلية S3 لن يعمل الكود بهذه الخاصية لكل فترة على حدة الا الزر الثالث
B45: اضغط زر توزيع لجان الفترة الصباحية ثم زر توزيع لجان الفترة المسائية
B46: اما قوائم اللجان فهى سهلة الاستخدام و لا تحتاج الى شرح يكفى الاختيار من القوائم المنسدلة بين صباحى و مسائى -- وأرقام اللجان
B47: -----------------------------------------------------------------------------------------------------------------------
B49: المرحلة الثالثة :
B50: في شيتات الخاصة بالشعب قبل عملية الفرز يتم عمل الأرقام السرية بإحدى الطريقتين : -
B51: 1 - وضع السرى يدويا كما خطط له من قبل القائمين على العمل في عمود السرى بالشيت مباشرة
B52: 2 - او الذهاب الى ورقة السرى كالآتى :
B53: ا - الضغط أولا على زر اضغط لاستدعاء البيانات فيقوم البرنامج باستعاء جميع بيانات ارقم الجلوس حسب كل شعبة
B54: ب - ثم نقوم بتوزيع الأرقام السرية المقترحة يدويا في الجدول المقابل ( يقبل السرى التنازلى )
B55: ج - بعد ذلك نقوم بالضغط على زر فرز سرى و بعد انتهاء عملية الفرز نقوم باخفاء الاعمد من A الى L كما هو متبع مع الشيتات
B56: الان أصبحت الشيتات جاهزة لرصد الدرجات لاى فترة كانت
B57: لا تنسى في عمود الحالة من كتابة ( باقى - باقية ) و لا داعى ل ( مستجد - مستجدة )
B58: في حالة وجود طلاب مسيحين يجب كتابة كلمة ( مسيحى - مسيحية ) لان ذلك سيظهر في ورقة اللجان اثناء امتحان مادة التربية الدينية
B59: -----------------------------------------------------------------------------------------------------------------------
B61: المرحلة الرابعة :
B62: و هي تخص شهادات نصف العام و آخر العام و الاختيار من القائمة المنسدلة فقط اسم الشعبة
B63: -----------------------------------------------------------------------------------------------------------------------
B65: المرحلة الخامسة :
B66: وهى الخاصة بأوائل الطلبة يمكنك التبديل بين الشعب و التبديل بين الفترات باستخدام القوائم المنسدلة
B67: يمكنك الاختيار بالشعبة و كذلك الأوائل على مستوى كل الشعب مجتمعين ( جرب بنفسك و ستعرف الفرق )
B68: ينطبق هذا الامر على أوائل آخر العام
B69: أوائل آخر العام للطلاب الناجحين فقط لذلك لن تحصل على نتيجة الا بعد عملية ترحيل الناجحين
B70: -----------------------------------------------------------------------------------------------------------------------
B72: المرحلة السادسة :
B73: و هي تخص آخر العام
B74: - ملحوظة هامة بالنسبة لشهاد ة آخر العام و هي نادرة بالنسبة للطلاب الحاصلين على ملحق في مادة رغم درجاتهم اكبر من درجة النجاح و سترى اسم المادة في الخلية المخصصة لمواد الرسوب
B75: و السبب هو عدم حصول الطالب على ربع الدرجة في امتحان آخر العام في هذه الحالة يجب على مسئول الكنترول وضع دائرة يدويا بالقلم الأحمر ( بالشهادة المطبوعة ) على درجة المادة و ذكر السبب في خلية مادة الرسوب
B76: و هو ( عدم الحصول على ربع الدرجة )
B77: - بالنسبة للورقة المسماة " رفع " يمكن في هذه الورقة معرفة الأوراق المحتاجة الى درجات رفع يتم تحديدها في الورقة بالارقام السرية ( و رؤية الورقة على الطبيعة و تجربتها افضل من اى شرح )
B78: - يوجد أيضا ورقة تسمى " رصد " لمتابعة العدد الذى تم رصده سواء درجات اعمال سنة او درجات نصف العام او درجات آخر العام و متابعة الغياب أيضا
B79: - توجد العديد من الأوراق التي يسهل التعامل معها و لها العديد من المزايا يستحسن التعرف عليها بأنفسكم
B80: -----------------------------------------------------------------------------------------------------------------------
B82: المرحلة السابعة :
B83: بالنسبة للدور الثانى
B84: 1 - بعد عملية الترحيل لا نفعل اى شيء في شيت الملاحق الا بعد امتحان الدور الثانى فقط نقوم بكتابة درجة امتحان الدور الثانى في الخلية التي تعلو مجموع درجة مادة الرسوب
B85: 2 - يوجد شيت لاستدعاة طلاب الدور الثانى كل مادة على حدة و المواد المشتركة بين الشعب دفعة واحدة و يتم ترقيم الجلوس و المقار يدويا
B86: لان الطالب الواحد قد يكون له اكثر من رقم جلوس في حال تعدد مواد تخلفه
B87: حسب رؤية القائمين على الامر فالبعض يفضل ان يمتحن الطالب في الدور الثانى بنفس رقم جلوس الدور الأول
B88: 3 - توجد شيت مخصص لادراج درجات الدور الثانى يسمى مساعد إدارة - مساعد تسويق ........... وهكذا لكل شعبة
B89: 4 - في هذا الشيت نقوم بالضغط على زر استدعاء مواد الرسوب فيمتلئ الشيت ببيانات الطلاب و بياناتهم
B90: 5 - في هذا الشيت يتم تبديل الدرجة الجديدة بدلا من الدرجة القديمة و هكذا لباقى مواد الرسوب لجميع طلاب الشعبة
B91: و نفس الدرجة الجديدة توضع فوق درجة مجموع المادة في شيت الملاحق لتظهر شكلا عند طبع شيت الملاحق ( كما اسلفت في رقم 1 )
B92: 6 - بعد الانتهاء من جميع عمليات الرصد نضغط زر نتيجة الدور الثانى فسيظهر الطلاب الناجحون من الطلاب الراسبون سواء لهم حق الإعادة ام لا
B93: 7 - الضغط على زر ترحيل النتيجة لتظهر النتائج في شيت الدور الثانى الذى سوف يتم طبعه
B94: 8 - توجد ورقة خاصة لشهادات الدور الثانى كما يوجد كشف خاص للطلاب الراسبون
C95: هذا و الله ولى التوفيق
D96: مستعد لاى استفسار على منتدى اوفيسنا او منتدى اكاديمية الصقر
E97: و السلام عليكم ورحمته و بركاته
G98: اخيكم / إبراهيم الحداد

Sheet اعدادات
J1: إعدادات ترقيم ارقام الجلوس آليا | Q1: ="للعام الدراسى"&" "&الرئيسية!$Q$2 -> للعام الدراسى 2019/2018 | AF1: لا تستخدم تلك الوقة قبل ملء بيانات الطلاب في ورقات الشعب المختلفة
Z2: بعد تعبئة الجدول اضغط الور التالى | AF2: تستخدم تلك الورقة في حالة اذا كان عدد الطلاب كبيرا جدا و عدد الشعب و الفئات
AF3: و فترات توقيت الامتحانات متعدد ة
C4: الخطوة الأولى : اعدادات معايير الفرز و اجراء عملية الفرز | M4: الخطوة الثانية :الضغط على الزر التالى : | AF4: اما غير ذلك فيفضل و ضع ارقام الجلوس يدويا في شيتات الشعب المختلفة
D5: اختر معايير الفرز التي تريدها ثم اضغط الزر المخصص للفرز | M5: ثم اكمل البيانات اللازمة بالجدول | Q5: الفــــــــترة الصباحية | X5: الفــــــــــترة المسائية
C6: أسس الفرز | D6: معايير الفرز | E6: اختر من القائمة | F6: العدد المتوافر | M6: م | N6: الشعبة | O6: النوع | P6: الفئة | Q6: الفترة | R6: عدد الشريحة | S6: اول رقم جلوس | T6: آخر رقم جلوس | U6: من لجنة رقم | V6: الى لجنة رقم | W6: عدد اللجان | X6: الفترة | Y6: عدد الشريحة | Z6: اول رقم جلوس | AA6: آخر رقم جلوس | AB6: من لجنة رقم | AC6: الى لجنة رقم | AD6: عدد اللجان
D7: المعيار الأول | E7: بنين | F7: 82 | G7: اختر الشعبة
D8: المعيار الثانى | E8: انتظام | G8: شعبة الادارة | M8: 1 | N8: شعبة الإدارة | O8: بنات | P8: انتظام | Q8: صباحى | R8: 125 | S8: 101 | T8: =IF(AND(R8>0,S8>0),R8+S8-1,"") -> 225 | U8: =IF(W8>0,1,"") -> 1 | V8: =IF(W8>0,SUM($W$8:W8),"") -> 5 | W8: 5 | X8: مسائى | Y8: 0 | AA8: =IF(AND(Y8>0,Z8>0),Y8+Z8-1,"") ->  | AB8: =IF(AD8>0,1,"") ->  | AC8: =IF(AD8>0,SUM($AD$8:AD8),"") -> 
E9: اجمالى الشعبة | G9: 320 | M9: 2 | N9: شعبة الإدارة | O9: بنات | P9: خدمات | Q9: صباحى | R9: 76 | S9: 251 | T9: 326 | U9: =IF(W9>0,SUM($W$8:W8)+1,"") -> 6 | V9: =IF(W9>0,SUM($W$8:W9),"") -> 9 | W9: 4 | X9: مسائى | Y9: 0 | AB9: =IF(AD9>0,SUM($AD$8:AD8)+1,"") ->  | AC9: =IF(AD9>0,SUM($AD$8:AD9),"") -> 
D10: الخطوة الثانية : | M10: 3 | N10: شعبة الإدارة | O10: بنين | P10: انتظام | Q10: صباحى | R10: 0 | U10: =IF(W10>0,SUM($W$8:W9)+1,"") ->  | V10: =IF(W10>0,SUM($W$8:W10),"") ->  | X10: مسائى | Y10: 82 | Z10: 1001 | AA10: 1082 | AB10: =IF(AD10>0,SUM($AD$8:AD9)+1,"") -> 1 | AC10: =IF(AD10>0,SUM($AD$8:AD10),"") -> 4 | AD10: 4
D11: قم بتعبة عمود الصباحى حسب الخطة ثم اضغط الزر التالى | M11: 4 | N11: شعبة الإدارة | O11: بنين | P11: خدمات | Q11: صباحى | R11: 0 | U11: =IF(W11>0,SUM($W$8:W10)+1,"") ->  | V11: =IF(W11>0,SUM($W$8:W11),"") ->  | X11: مسائى | Y11: 37 | Z11: 1101 | AA11: 1137 | AB11: =IF(AD11>0,SUM($AD$8:AD10)+1,"") -> 5 | AC11: =IF(AD11>0,SUM($AD$8:AD11),"") -> 6 | AD11: 2
D12: الشعبة | E12: اجمالى | F12: صباحى | G12: مسائى | M12: 1 | N12: شعبة التسويق | O12: بنات | P12: انتظام | Q12: صباحى | R12: 126 | S12: 351 | T12: 476 | U12: =IF(W12>0,SUM($W$8:W11)+1,"") -> 10 | V12: =IF(W12>0,SUM($W$8:W12),"") -> 15 | W12: 6 | X12: مسائى | Y12: 0 | AB12: =IF(AD12>0,SUM($AD$8:AD11)+1,"") ->  | AC12: =IF(AD12>0,SUM($AD$8:AD12),"") -> 
D13: شعبة الإدارة | E13: 320 | F13: 201 | G13: =IF(E13="","",E13-F13) -> 119 | M13: 2 | N13: شعبة التسويق | O13: بنات | P13: خدمات | Q13: صباحى | R13: 53 | S13: 501 | T13: 553 | U13: =IF(W13>0,SUM($W$8:W12)+1,"") -> 16 | V13: =IF(W13>0,SUM($W$8:W13),"") -> 18 | W13: 3 | X13: مسائى | Y13: 26 | Z13: 1151 | AA13: 1176 | AB13: =IF(AD13>0,SUM($AD$8:AD12)+1,"") -> 7 | AC13: =IF(AD13>0,SUM($AD$8:AD13),"") -> 8 | AD13: 2
D14: شعبة التسويق | E14: 320 | F14: 179 | G14: =IF(E14="","",E14-F14) -> 141 | M14: 3 | N14: شعبة التسويق | O14: بنين | P14: انتظام | Q14: صباحى | R14: 0 | U14: =IF(W14>0,SUM($W$8:W13)+1,"") ->  | V14: =IF(W14>0,SUM($W$8:W14),"") ->  | X14: مسائى | Y14: 81 | Z14: 1201 | AA14: 1281 | AB14: =IF(AD14>0,SUM($AD$8:AD13)+1,"") -> 9 | AC14: =IF(AD14>0,SUM($AD$8:AD14),"") -> 12 | AD14: 4
D15: شعبة التأمين | E15: 320 | F15: 153 | G15: =IF(E15="","",E15-F15) -> 167 | M15: 4 | N15: شعبة التسويق | O15: بنين | P15: خدمات | Q15: صباحى | R15: 0 | U15: =IF(W15>0,SUM($W$8:W14)+1,"") ->  | V15: =IF(W15>0,SUM($W$8:W15),"") ->  | X15: مسائى | Y15: 34 | Z15: 1301 | AA15: 1334 | AB15: =IF(AD15>0,SUM($AD$8:AD14)+1,"") -> 13 | AC15: =IF(AD15>0,SUM($AD$8:AD15),"") -> 14 | AD15: 2
D16: شعبة القانون | E16: 320 | F16: 164 | G16: =IF(E16="","",E16-F16) -> 156 | M16: 1 | N16: شعبة التأمين | O16: بنات | P16: انتظام | Q16: صباحى | R16: 123 | S16: 561 | T16: 683 | U16: =IF(W16>0,SUM($W$8:W15)+1,"") -> 19 | V16: =IF(W16>0,SUM($W$8:W16),"") -> 24 | W16: 6 | X16: مسائى | Y16: 0 | AB16: =IF(AD16>0,SUM($AD$8:AD15)+1,"") ->  | AC16: =IF(AD16>0,SUM($AD$8:AD16),"") -> 
M17: 2 | N17: شعبة التأمين | O17: بنات | P17: خدمات | Q17: صباحى | R17: 30 | S17: 701 | T17: 730 | U17: =IF(W17>0,SUM($W$8:W16)+1,"") -> 25 | V17: =IF(W17>0,SUM($W$8:W17),"") -> 26 | W17: 2 | X17: مسائى | Y17: 47 | Z17: 1351 | AA17: 1397 | AB17: =IF(AD17>0,SUM($AD$8:AD16)+1,"") -> 15 | AC17: =IF(AD17>0,SUM($AD$8:AD17),"") -> 16 | AD17: 2
M18: 3 | N18: شعبة التأمين | O18: بنين | P18: انتظام | Q18: صباحى | R18: 0 | U18: =IF(W18>0,SUM($W$8:W17)+1,"") ->  | V18: =IF(W18>0,SUM($W$8:W18),"") ->  | X18: مسائى | Y18: 83 | Z18: 1401 | AA18: 1483 | AB18: =IF(AD18>0,SUM($AD$8:AD17)+1,"") -> 17 | AC18: =IF(AD18>0,SUM($AD$8:AD18),"") -> 20 | AD18: 4
M19: 4 | N19: شعبة التأمين | O19: بنين | P19: خدمات | Q19: صباحى | R19: 0 | U19: =IF(W19>0,SUM($W$8:W18)+1,"") ->  | V19: =IF(W19>0,SUM($W$8:W19),"") ->  | X19: مسائى | Y19: 37 | Z19: 1501 | AA19: 1537 | AB19: =IF(AD19>0,SUM($AD$8:AD18)+1,"") -> 21 | AC19: =IF(AD19>0,SUM($AD$8:AD19),"") -> 22 | AD19: 2
M20: 1 | N20: شعبة القانون | O20: بنات | P20: انتظام | Q20: صباحى | R20: 126 | S20: 751 | T20: 876 | U20: =IF(W20>0,SUM($W$8:W19)+1,"") -> 27 | V20: =IF(W20>0,SUM($W$8:W20),"") -> 32 | W20: 6 | X20: مسائى | Y20: 0 | AB20: =IF(AD20>0,SUM($AD$8:AD19)+1,"") ->  | AC20: =IF(AD20>0,SUM($AD$8:AD20),"") -> 
M21: 2 | N21: شعبة القانون | O21: بنات | P21: خدمات | Q21: صباحى | R21: 38 | S21: 901 | T21: 938 | U21: =IF(W21>0,SUM($W$8:W20)+1,"") -> 33 | V21: =IF(W21>0,SUM($W$8:W21),"") -> 34 | W21: 2 | X21: مسائى | Y21: 36 | Z21: 1551 | AA21: 1586 | AB21: =IF(AD21>0,SUM($AD$8:AD20)+1,"") -> 23 | AC21: =IF(AD21>0,SUM($AD$8:AD21),"") -> 24 | AD21: 2
M22: 3 | N22: شعبة القانون | O22: بنين | P22: انتظام | Q22: صباحى | R22: 0 | U22: =IF(W22>0,SUM($W$8:W21)+1,"") ->  | V22: =IF(W22>0,SUM($W$8:W22),"") ->  | X22: مسائى | Y22: 85 | Z22: 1601 | AA22: 1685 | AB22: =IF(AD22>0,SUM($AD$8:AD21)+1,"") -> 25 | AC22: =IF(AD22>0,SUM($AD$8:AD22),"") -> 28 | AD22: 4
M23: 4 | N23: شعبة القانون | O23: بنين | P23: خدمات | Q23: صباحى | R23: 0 | U23: =IF(W23>0,SUM($W$8:W22)+1,"") ->  | V23: =IF(W23>0,SUM($W$8:W23),"") ->  | X23: مسائى | Y23: 35 | Z23: 1701 | AA23: 1735 | AB23: =IF(AD23>0,SUM($AD$8:AD22)+1,"") -> 29 | AC23: =IF(AD23>0,SUM($AD$8:AD23),"") -> 30 | AD23: 2

Sheet اعدادات اللجان
A1: حتى يتسنى لك الاستفادة من مميزات هذه الورقة ( آليا ) لابد من استيفاء جميع الخطوات في كل شيتات الشعب و ورقة الاعدادات و الا فالاستخدام اليدوى فقط
C2: اختر نوع التوزيع للفترة الصباحية | H2: اعداد و توزيع اللجان على الفترتين | R2: اختر نوع التوزيع للفترة المسائية
D3: توزيع آلى | S3: توزيع آلى
E5: لجان الفترة الصباحية | N5: لجان الفترة المسائية | U5: اضغط الزر التالى ثم اخرج من الورقة تماما
D6: لجنة | E6: من | F6: الى | G6: العدد | H6: الشعبة | I6: النوع | J6: الفئة | K6: لجان صباحى | M6: لجنة | N6: من | O6: الى | P6: العدد | Q6: الشعبة | R6: النوع | S6: الفئة | T6: لجان مسائى
D7: 1 | E7: 101 | F7: 125 | G7: 25 | H7: شعبة الإدارة | I7: بنات | J7: انتظام | K7: 1/3 | M7: 1 | N7: 1001 | O7: 1021 | P7: 21 | Q7: شعبة الإدارة | R7: بنين | S7: انتظام | T7: 11/3
D8: 2 | E8: 126 | F8: 150 | G8: 25 | H8: شعبة الإدارة | I8: بنات | J8: انتظام | K8: 2/3 | M8: 2 | N8: 1022 | O8: 1042 | P8: 21 | Q8: شعبة الإدارة | R8: بنين | S8: انتظام | T8: 12/3
D9: 3 | E9: 151 | F9: 175 | G9: 25 | H9: شعبة الإدارة | I9: بنات | J9: انتظام | K9: 3/3 | M9: 3 | N9: 1043 | O9: 1063 | P9: 20 | Q9: شعبة الإدارة | R9: بنين | S9: انتظام | T9: 13/3
D10: 4 | E10: 176 | F10: 200 | G10: 25 | H10: شعبة الإدارة | I10: بنات | J10: انتظام | K10: 4/3 | M10: 4 | N10: 1063 | O10: 1083 | P10: 20 | Q10: شعبة الإدارة | R10: بنين | S10: انتظام | T10: 14/3
D11: 5 | E11: 201 | F11: 225 | G11: 25 | H11: شعبة الإدارة | I11: بنات | J11: انتظام | K11: 5/3 | M11: 5 | N11: 1101 | O11: 1118 | P11: 18 | Q11: شعبة الإدارة | R11: بنين | S11: خدمات | T11: 15/3
D12: 6 | E12: 251 | F12: 269 | G12: 19 | H12: شعبة الإدارة | I12: بنات | J12: خدمات | K12: 6/3 | M12: 6 | N12: 1119 | O12: 1136 | P12: 17 | Q12: شعبة الإدارة | R12: بنين | S12: خدمات | T12: 13/2
D13: 7 | E13: 270 | F13: 288 | G13: 19 | H13: شعبة الإدارة | I13: بنات | J13: خدمات | K13: 7/3 | M13: 7 | N13: 1151 | O13: 1163 | P13: 13 | Q13: شعبة التسويق | R13: بنات | S13: خدمات | T13: 14/2
D14: 8 | E14: 289 | F14: 307 | G14: 19 | H14: شعبة الإدارة | I14: بنات | J14: خدمات | K14: 8/3 | M14: 8 | N14: 1164 | O14: 1176 | P14: 13 | Q14: شعبة التسويق | R14: بنات | S14: خدمات | T14: 15/2
D15: 9 | E15: 308 | F15: 326 | G15: 19 | H15: شعبة الإدارة | I15: بنات | J15: خدمات | K15: 9/3 | M15: 9 | N15: 1201 | O15: 1221 | P15: 21 | Q15: شعبة التسويق | R15: بنين | S15: انتظام | T15: 16/2
D16: 10 | E16: 351 | F16: 371 | G16: 21 | H16: شعبة التسويق | I16: بنات | J16: انتظام | K16: 10/3 | M16: 10 | N16: 1222 | O16: 1242 | P16: 20 | Q16: شعبة التسويق | R16: بنين | S16: انتظام | T16: 17/2
D17: 11 | E17: 372 | F17: 392 | G17: 21 | H17: شعبة التسويق | I17: بنات | J17: انتظام | K17: 1/2 | M17: 11 | N17: 1242 | O17: 1262 | P17: 20 | Q17: شعبة التسويق | R17: بنين | S17: انتظام | T17: 13/1
D18: 12 | E18: 393 | F18: 413 | G18: 21 | H18: شعبة التسويق | I18: بنات | J18: انتظام | K18: 2/2 | M18: 12 | N18: 1262 | O18: 1282 | P18: 20 | Q18: شعبة التسويق | R18: بنين | S18: انتظام | T18: 14/1
D19: 13 | E19: 414 | F19: 434 | G19: 21 | H19: شعبة التسويق | I19: بنات | J19: انتظام | K19: 3/2 | M19: 13 | N19: 1301 | O19: 1317 | P19: 17 | Q19: شعبة التسويق | R19: بنين | S19: خدمات | T19: 15/1
D20: 14 | E20: 435 | F20: 455 | G20: 21 | H20: شعبة التسويق | I20: بنات | J20: انتظام | K20: 4/2 | M20: 14 | N20: 1318 | O20: 1334 | P20: 17 | Q20: شعبة التسويق | R20: بنين | S20: خدمات | T20: 16/1
D21: 15 | E21: 456 | F21: 476 | G21: 21 | H21: شعبة التسويق | I21: بنات | J21: انتظام | K21: 5/2 | M21: 15 | N21: 1351 | O21: 1374 | P21: 24 | Q21: شعبة التأمين | R21: بنات | S21: خدمات | T21: 17/1
D22: 16 | E22: 501 | F22: 518 | G22: 18 | H22: شعبة التسويق | I22: بنات | J22: خدمات | K22: 6/2 | M22: 16 | N22: 1375 | O22: 1398 | P22: 23 | Q22: شعبة التأمين | R22: بنات | S22: خدمات | T22: 18/1
D23: 17 | E23: 519 | F23: 536 | G23: 18 | H23: شعبة التسويق | I23: بنات | J23: خدمات | K23: 7/2 | M23: 17 | N23: 1401 | O23: 1421 | P23: 21 | Q23: شعبة التأمين | R23: بنين | S23: انتظام | T23: 19/1
D24: 18 | E24: 537 | F24: 553 | G24: 17 | H24: شعبة التسويق | I24: بنات | J24: خدمات | K24: 8/2 | M24: 18 | N24: 1422 | O24: 1442 | P24: 21 | Q24: شعبة التأمين | R24: بنين | S24: انتظام | T24: 20/1
D25: 19 | E25: 561 | F25: 581 | G25: 21 | H25: شعبة التأمين | I25: بنات | J25: انتظام | K25: 9/2 | M25: 19 | N25: 1443 | O25: 1463 | P25: 21 | Q25: شعبة التأمين | R25: بنين | S25: انتظام | T25: 21/1
D26: 20 | E26: 582 | F26: 602 | G26: 21 | H26: شعبة التأمين | I26: بنات | J26: انتظام | K26: 10/2 | M26: 20 | N26: 1464 | O26: 1484 | P26: 20 | Q26: شعبة التأمين | R26: بنين | S26: انتظام | T26: 22/1
D27: 21 | E27: 603 | F27: 623 | G27: 21 | H27: شعبة التأمين | I27: بنات | J27: انتظام | K27: 11/2 | M27: 21 | N27: 1501 | O27: 1519 | P27: 19 | Q27: شعبة التأمين | R27: بنين | S27: خدمات | T27: 23/1
D28: 22 | E28: 624 | F28: 643 | G28: 20 | H28: شعبة التأمين | I28: بنات | J28: انتظام | K28: 12/2 | M28: 22 | N28: 1520 | O28: 1538 | P28: 18 | Q28: شعبة التأمين | R28: بنين | S28: خدمات | T28: 24/1
D29: 23 | E29: 644 | F29: 663 | G29: 20 | H29: شعبة التأمين | I29: بنات | J29: انتظام | K29: 1/1 | M29: 23 | N29: 1551 | O29: 1568 | P29: 18 | Q29: شعبة القانون | R29: بنات | S29: خدمات | T29: 25/1
D30: 24 | E30: 664 | F30: 683 | G30: 20 | H30: شعبة التأمين | I30: بنات | J30: انتظام | K30: 2/1 | M30: 24 | N30: 1569 | O30: 1586 | P30: 18 | Q30: شعبة القانون | R30: بنات | S30: خدمات | T30: 26/1
D31: 25 | E31: 701 | F31: 715 | G31: 15 | H31: شعبة التأمين | I31: بنات | J31: خدمات | K31: 3/1 | M31: 25 | N31: 1601 | O31: 1622 | P31: 22 | Q31: شعبة القانون | R31: بنين | S31: انتظام | T31: 27/2
D32: 26 | E32: 716 | F32: 730 | G32: 15 | H32: شعبة التأمين | I32: بنات | J32: خدمات | K32: 4/1 | M32: 26 | N32: 1623 | O32: 1644 | P32: 21 | Q32: شعبة القانون | R32: بنين | S32: انتظام | T32: 28/1
D33: 27 | E33: 751 | F33: 771 | G33: 21 | H33: شعبة القانون | I33: بنات | J33: انتظام | K33: 5/1 | M33: 27 | N33: 1644 | O33: 1665 | P33: 21 | Q33: شعبة القانون | R33: بنين | S33: انتظام | T33: 29/1
D34: 28 | E34: 772 | F34: 792 | G34: 21 | H34: شعبة القانون | I34: بنات | J34: انتظام | K34: 6/1 | M34: 28 | N34: 1665 | O34: 1686 | P34: 21 | Q34: شعبة القانون | R34: بنين | S34: انتظام | T34: 30/1
D35: 29 | E35: 793 | F35: 813 | G35: 21 | H35: شعبة القانون | I35: بنات | J35: انتظام | K35: 7/1 | M35: 29 | N35: 1701 | O35: 1718 | P35: 18 | Q35: شعبة القانون | R35: بنين | S35: خدمات | T35: 31/1
D36: 30 | E36: 814 | F36: 834 | G36: 21 | H36: شعبة القانون | I36: بنات | J36: انتظام | K36: 8/1 | M36: 30 | N36: 1719 | O36: 1736 | P36: 17 | Q36: شعبة القانون | R36: بنين | S36: خدمات | T36: 32/1
D37: 31 | E37: 835 | F37: 855 | G37: 21 | H37: شعبة القانون | I37: بنات | J37: انتظام | K37: 9/1 | M37: 31
D38: 32 | E38: 856 | F38: 876 | G38: 21 | H38: شعبة القانون | I38: بنات | J38: انتظام | K38: 10/1 | M38: 32
D39: 33 | E39: 901 | F39: 919 | G39: 19 | H39: شعبة القانون | I39: بنات | J39: خدمات | K39: 11/1 | M39: 33
D40: 34 | E40: 920 | F40: 938 | G40: 19 | H40: شعبة القانون | I40: بنات | J40: خدمات | K40: 12/1 | M40: 34
D41: 35 | M41: 35
D42: 36 | M42: 36
D43: 37 | M43: 37
D44: 38 | M44: 38
D45: 39 | M45: 39
D46: 40 | M46: 40
D47: 41 | M47: 41
D48: 42 | M48: 42
D49: 43 | M49: 43
D50: 44 | M50: 44
D51: 45 | M51: 45
D52: 46 | M52: 46
D53: 47 | M53: 47
D54: 48 | M54: 48
D55: 49 | M55: 49
D56: 50 | M56: 50

Sheet لجان
C1: ادارة | D1: =الرئيسية!$E1 -> ….................. | F1: لجنة : | G1: 1 | I1: ادارة | J1: =الرئيسية!$E1 -> ….................. | L1: لجنة : | M1: =IF($G$1="","",$G$1+1) -> 2
C2: مدرسة | D2: =الرئيسية!$E2 -> ….................. | F2: المقر : | I2: مدرسة | J2: =الرئيسية!$E2 -> ….................. | L2: المقر :
C3: الصف الثانى - | I3: الصف الثانى -
C4: من : | F4: الى : | I4: من : | L4: الى :
C5: العدد : | E5: ="للعام الدراسى"&" "&الرئيسية!$Q$2 -> للعام الدراسى 2019/2018 | F5: الفترة : | I5: العدد : | K5: ="للعام الدراسى"&" "&الرئيسية!$Q$2 -> للعام الدراسى 2019/2018 | L5: الفترة : | P5: الفترة
C6: مسلسل | D6: جلوس | E6: الاســـــــــــــــــــــــم | F6: فصل | G6: ملاحظات | I6: مسلسل | J6: جلوس | K6: الاســـــــــــــــــــــــم | L6: فصل | M6: ملاحظات | P6: صباحى
C36: كنترول الصف الثانى | F36: رئيس الكنترول | I36: كنترول الصف الثانى | L36: رئيس الكنترول
C91: 85 | D91: 1001 | E91: ابتسام دسوقى جلال عابدين | F91: 2018-01-02
C92: 86 | D92: 1002 | E92: اسراء احمد مصطفى محمد احمد | F92: 2018-04-02
C93: 87 | D93: 1003 | E93: اسراء اشرف مصطفى شحات | F93: 2018-05-02
C94: 88 | D94: 1004 | E94: اسراء عبيد الله محمد عبد الله | F94: 2018-05-02
C95: 89 | D95: 1005 | E95: اسراء محمد بدرى سلامة | F95: 2018-01-02
C96: 90 | D96: 1006 | E96: اسراء محمود احمد بسطاوى | F96: 2018-02-02
C97: 91 | D97: 1007 | E97: اسراء محمود محمد ابراهيم | F97: 2018-01-02
C98: 92 | D98: 1008 | E98: اسراء مصطفى محمود محمد | F98: 2018-01-02
C99: 93 | D99: 1009 | E99: اسماء احمد سيد ابو المجد | F99: 2018-05-02
C100: 94 | D100: 1010 | E100: اسماء جمال نوبى شحات | F100: 2018-03-02
C101: 95 | D101: 1011 | E101: اسماء سليمان احمد سليم | F101: 2018-01-02
C102: 96 | D102: 1012 | E102: اسماء صبرى احمد الامين | F102: 2018-05-02
C103: 97 | D103: 1013 | E103: اسماء محسوب سيد محمد | F103: 2018-02-02
C104: 98 | D104: 1014 | E104: الزهراء ناصر عبد العال عبد الرحيم | F104: 2018-07-02
C105: 99 | D105: 1015 | E105: الشيماء محمود عباس محمد | F105: 2018-01-02
C106: 100 | D106: 1016 | E106: امال محمود سيد ابو المجد | F106: 2018-05-02
C107: 101 | D107: 1017 | E107: امانى ادريس محمد رسلان | F107: 2018-03-02
C108: 102 | D108: 1018 | E108: امانى يحيى محمد احمد | F108: 2018-05-02
C109: 103 | D109: 1019 | E109: امل ثابت عبداللاه جهلان | F109: 2018-06-02
C110: 104 | D110: 1020 | E110: امل عبد الحميد شحاتة احمد | F110: 2018-03-02
C111: 105 | D111: 1021 | E111: اميرة جمال يوسف محمد | F111: 2018-02-02

Sheet سرى
F1: بيانات يستدل بها عند توزيع السرى | O1: توزيع السرى على جميع الشعب دفعة واحدة
E2: أولا : | M2: ثانيا : | N2: املأ الجداول التالية حسب الشعب المتوافرة ثم اضغط الزر التالى
E3: شعبة الادارة | N3: توزيع السرى الادارة يدويا
E4: بيانات جلوس شعبة الادارة | N4: مجموعة | O4: جلوس | Q4: سرى | S4: العدد حسب الجلوس | T4: العدد حسب السرى | U4: كشف أخطاء التوزيع
O5: من | P5: الى | Q5: من | R5: الى
D6: الصفة | E6: صباحى | G6: العدد | H6: مسائى | J6: العدد | K6: اجمالى | N6: 1 | O6: 101 | P6: 165 | Q6: 501 | R6: 565 | S6: =IF(OR(O6="",P6=""),"",P6-O6+1) -> 65 | T6: =IF(OR(Q6="",R6=""),"",IF(Q6<R6,R6-Q6+1,IF(Q6>R6,Q6-R6+1))) -> 65 | U6: =IF(AND(S6<>"",T6<>""),IF(S6<>T6,"خطأ","بدون أخطاء"),"") -> بدون أخطاء
E7: من | F7: الى | H7: من | I7: الى | N7: 2 | O7: 166 | P7: 225 | Q7: 625 | R7: 566 | S7: 60 | T7: =IF(OR(Q7="",R7=""),"",IF(Q7<R7,R7-Q7+1,IF(Q7>R7,Q7-R7+1))) -> 60 | U7: =IF(AND(S7<>"",T7<>""),IF(S7<>T7,"خطأ","بدون أخطاء"),"") -> بدون أخطاء
D8: بنات انتظام | E8: 101 | F8: 225 | G8: 125 | J8: 0 | N8: 3 | O8: 251 | P8: 288 | Q8: 626 | R8: 663 | S8: 38 | T8: 38 | U8: بدون أخطاء
D9: بنات خدمات | E9: 251 | F9: 328 | G9: 78 | J9: 0 | N9: 4 | O9: 289 | P9: 328 | Q9: 664 | R9: 703 | S9: 40 | T9: 40 | U9: بدون أخطاء
D10: بنين انتظام | G10: 0 | H10: 1001 | I10: 1082 | J10: 82 | N10: 5 | O10: 1001 | P10: 1042 | Q10: 704 | R10: 745 | S10: 42 | T10: 42 | U10: بدون أخطاء
D11: بنين خدمات | G11: 0 | H11: 1101 | I11: 1135 | J11: 35 | N11: 6 | O11: 1043 | P11: 1082 | Q11: 785 | R11: 746 | S11: 40 | T11: 40 | U11: بدون أخطاء
E12: مجموع | G12: =SUM(G8:G11) -> 203 | H12: مجموع | J12: =SUM(J8:J11) -> 117 | K12: =SUM(G12,J12) -> 320 | N12: 7 | O12: 1101 | P12: 1135 | Q12: 786 | R12: 820 | S12: 35 | T12: 35 | U12: بدون أخطاء
N13: 8
N14: 9
N15: 10
E17: شعبة التسويق | N17: توزيع السرى التسويق يدويا
E18: بيانات جلوس شعبة التأمين | N18: مجموعة | O18: جلوس | Q18: سرى | S18: العدد حسب الجلوس | T18: العدد حسب السرى | U18: كشف أخطاء التوزيع
O19: من | P19: الى | Q19: من | R19: الى
D20: الصفة | E20: صباحى | G20: العدد | H20: مسائى | J20: العدد | K20: اجمالى | N20: 1 | O20: 351 | P20: 426 | Q20: 1251 | R20: 1326 | S20: =IF(OR(O20="",P20=""),"",P20-O20+1) -> 76 | T20: =IF(OR(Q20="",R20=""),"",IF(Q20<R20,R20-Q20+1,IF(Q20>R20,Q20-R20+1))) -> 76 | U20: =IF(AND(S20<>"",T20<>""),IF(S20<>T20,"خطأ","بدون أخطاء"),"") -> بدون أخطاء
E21: من | F21: الى | H21: من | I21: الى | N21: 2 | O21: 427 | P21: 476 | Q21: 1376 | R21: 1327 | S21: 50 | T21: =IF(OR(Q21="",R21=""),"",IF(Q21<R21,R21-Q21+1,IF(Q21>R21,Q21-R21+1))) -> 50 | U21: =IF(AND(S21<>"",T21<>""),IF(S21<>T21,"خطأ","بدون أخطاء"),"") -> بدون أخطاء
D22: بنات انتظام | E22: 351 | F22: 476 | G22: 126 | J22: 0 | N22: 3 | O22: 501 | P22: 553 | Q22: 1377 | R22: 1429 | S22: 53 | T22: 53 | U22: بدون أخطاء
D23: بنات خدمات | E23: 501 | F23: 553 | G23: 53 | H23: 1151 | I23: 1176 | J23: 26 | N23: 4 | O23: 1151 | P23: 1176 | Q23: 1430 | R23: 1455 | S23: 26 | T23: 26 | U23: بدون أخطاء
D24: بنين انتظام | G24: 0 | H24: 1201 | I24: 1281 | J24: 81 | N24: 5 | O24: 1201 | P24: 1241 | Q24: 1465 | R24: 1505 | S24: 41 | T24: 41 | U24: بدون أخطاء
D25: بنين خدمات | G25: 0 | H25: 1301 | I25: 1334 | J25: 34 | N25: 6 | O25: 1242 | P25: 1281 | Q25: 1545 | R25: 1506 | S25: 40 | T25: 40 | U25: بدون أخطاء
E26: مجموع | G26: =SUM(G22:G25) -> 179 | H26: مجموع | J26: =SUM(J22:J25) -> 141 | K26: =SUM(G26,J26) -> 320 | N26: 7 | O26: 1301 | P26: 1334 | Q26: 1546 | R26: 1579 | S26: 34 | T26: 34 | U26: بدون أخطاء
N27: 8
N28: 9
N29: 10
E31: شعبة التأمين | N31: توزيع السرى التأمين يدويا
E32: بيانات جلوس شعبة التأمين | N32: مجموعة | O32: جلوس | Q32: سرى | S32: العدد حسب الجلوس | T32: العدد حسب السرى | U32: كشف أخطاء التوزيع
O33: من | P33: الى | Q33: من | R33: الى
D34: الصفة | E34: صباحى | G34: العدد | H34: مسائى | J34: العدد | K34: اجمالى | N34: 1 | O34: 561 | P34: 611 | Q34: 101 | R34: 151 | S34: =IF(OR(O34="",P34=""),"",P34-O34+1) -> 51 | T34: =IF(OR(Q34="",R34=""),"",IF(Q34<R34,R34-Q34+1,IF(Q34>R34,Q34-R34+1))) -> 51 | U34: =IF(AND(S34<>"",T34<>""),IF(S34<>T34,"خطأ","بدون أخطاء"),"") -> بدون أخطاء
E35: من | F35: الى | H35: من | I35: الى | N35: 2 | O35: 612 | P35: 683 | Q35: 223 | R35: 152 | S35: 72 | T35: =IF(OR(Q35="",R35=""),"",IF(Q35<R35,R35-Q35+1,IF(Q35>R35,Q35-R35+1))) -> 72 | U35: =IF(AND(S35<>"",T35<>""),IF(S35<>T35,"خطأ","بدون أخطاء"),"") -> بدون أخطاء
D36: بنات انتظام | E36: 561 | F36: 683 | G36: 123 | J36: 0 | N36: 3 | O36: 701 | P36: 730 | Q36: 224 | R36: 253 | S36: 30 | T36: 30 | U36: بدون أخطاء
D37: بنات خدمات | E37: 701 | F37: 730 | G37: 30 | H37: 1351 | I37: 1397 | J37: 47 | N37: 4 | O37: 1351 | P37: 1397 | Q37: 254 | R37: 300 | S37: 47 | T37: 47 | U37: بدون أخطاء
D38: بنين انتظام | G38: 0 | H38: 1401 | I38: 1483 | J38: 83 | N38: 5 | O38: 1401 | P38: 1442 | Q38: 342 | R38: 301 | S38: 42 | T38: 42 | U38: بدون أخطاء
D39: بنين خدمات | G39: 0 | H39: 1501 | I39: 1537 | J39: 37 | N39: 6 | O39: 1443 | P39: 1483 | Q39: 343 | R39: 383 | S39: 41 | T39: 41 | U39: بدون أخطاء
E40: مجموع | G40: =SUM(G36:G39) -> 153 | H40: مجموع | J40: =SUM(J36:J39) -> 167 | K40: =SUM(G40,J40) -> 320 | N40: 7 | O40: 1501 | P40: 1537 | Q40: 384 | R40: 420 | S40: 37 | T40: 37 | U40: بدون أخطاء
N41: 8
N42: 9
N43: 10
E45: شعبة القانون | N45: توزيع السرى القانون يدويا
E46: بيانات جلوس شعبة القانون | N46: مجموعة | O46: جلوس | Q46: سرى | S46: العدد حسب الجلوس | T46: العدد حسب السرى | U46: كشف أخطاء التوزيع
O47: من | P47: الى | Q47: من | R47: الى
D48: الصفة | E48: صباحى | G48: العدد | H48: مسائى | J48: العدد | K48: اجمالى | N48: 1 | O48: 751 | P48: 814 | Q48: 901 | R48: 964 | S48: =IF(OR(O48="",P48=""),"",P48-O48+1) -> 64 | T48: =IF(OR(Q48="",R48=""),"",IF(Q48<R48,R48-Q48+1,IF(Q48>R48,Q48-R48+1))) -> 64 | U48: =IF(AND(S48<>"",T48<>""),IF(S48<>T48,"خطأ","بدون أخطاء"),"") -> بدون أخطاء
E49: من | F49: الى | H49: من | I49: الى | N49: 2 | O49: 815 | P49: 876 | Q49: 1026 | R49: 965 | S49: 62 | T49: =IF(OR(Q49="",R49=""),"",IF(Q49<R49,R49-Q49+1,IF(Q49>R49,Q49-R49+1))) -> 62 | U49: =IF(AND(S49<>"",T49<>""),IF(S49<>T49,"خطأ","بدون أخطاء"),"") -> بدون أخطاء
D50: بنات انتظام | E50: 751 | F50: 876 | G50: 126 | J50: 0 | N50: 3 | O50: 901 | P50: 938 | Q50: 1027 | R50: 1064 | S50: 38 | T50: 38 | U50: بدون أخطاء
D51: بنات خدمات | E51: 901 | F51: 938 | G51: 38 | H51: 1551 | I51: 1586 | J51: 36 | N51: 4 | O51: 1551 | P51: 1586 | Q51: 1065 | R51: 1100 | S51: 36 | T51: 36 | U51: بدون أخطاء
D52: بنين انتظام | G52: 0 | H52: 1601 | I52: 1685 | J52: 85 | N52: 5 | O52: 1601 | P52: 1643 | Q52: 1143 | R52: 1101 | S52: 43 | T52: 43 | U52: بدون أخطاء
D53: بنين خدمات | G53: 0 | H53: 1701 | I53: 1735 | J53: 35 | N53: 6 | O53: 1644 | P53: 1685 | Q53: 1144 | R53: 1185 | S53: 42 | T53: 42 | U53: بدون أخطاء
E54: مجموع | G54: =SUM(G50:G53) -> 164 | H54: مجموع | J54: =SUM(J50:J53) -> 156 | K54: =SUM(G54,J54) -> 320 | N54: 7 | O54: 1701 | P54: 1735 | Q54: 1186 | R54: 1220 | S54: 35 | T54: 35 | U54: بدون أخطاء
N55: 8
N56: 9
N57: 10

Sheet ارقام الجلوس
D1: ارقام جلوس الصف الثانى لعام | G1: =الرئيسية!$Q$2 -> 2019/2018 | N1: ورقة : | O1: 1 | Q1: اختر الشعبة من القائمة
E2: جميع الشعب | R2: شعبة الادارة
E4: اخطار برقم الجلوس | H4: صباحى | L4: اخطار برقم الجلوس | O4: صباحى
C5: ="مدرسة "&الرئيسية!$E$2 -> مدرسة ….................. | G5: رقم الجلوس / | H5: 101 | J5: ="مدرسة "&الرئيسية!$E$2 -> مدرسة ….................. | N5: رقم الجلوس / | O5: 107
C6: الاسم / | D6: ابتسام محمد على حسن | G6: رقم اللجنة / | H6: 1 | J6: الاسم / | K6: اسماء جمال محمد على | N6: رقم اللجنة / | O6: 1
C7: الفصل / | D7: 2/2 | G7: مقر اللجنة / | H7: 1/3 | J7: الفصل / | K7: 3/2 | N7: مقر اللجنة / | O7: 1/3
E9: اخطار برقم الجلوس | H9: صباحى | L9: اخطار برقم الجلوس | O9: صباحى
C10: ="مدرسة "&الرئيسية!$E$2 -> مدرسة ….................. | G10: رقم الجلوس / | H10: 102 | J10: ="مدرسة "&الرئيسية!$E$2 -> مدرسة ….................. | N10: رقم الجلوس / | O10: 108
C11: الاسم / | D11: احلام ناصر سنوسى القاضى | G11: رقم اللجنة / | H11: 1 | J11: الاسم / | K11: اسماء صلاح محمد ناصر | N11: رقم اللجنة / | O11: 1
C12: الفصل / | D12: 2/2 | G12: مقر اللجنة / | H12: 1/3 | J12: الفصل / | K12: 2/2 | N12: مقر اللجنة / | O12: 1/3
E14: اخطار برقم الجلوس | H14: صباحى | L14: اخطار برقم الجلوس | O14: صباحى
C15: ="مدرسة "&الرئيسية!$E$2 -> مدرسة ….................. | G15: رقم الجلوس / | H15: 103 | J15: ="مدرسة "&الرئيسية!$E$2 -> مدرسة ….................. | N15: رقم الجلوس / | O15: 109
C16: الاسم / | D16: اسراء جابر رمضان ابراهيم | G16: رقم اللجنة / | H16: 1 | J16: الاسم / | K16: الشيماء سعيد محمد عمر | N16: رقم اللجنة / | O16: 1
C17: الفصل / | D17: 3/2 | G17: مقر اللجنة / | H17: 1/3 | J17: الفصل / | K17: 3/2 | N17: مقر اللجنة / | O17: 1/3
E19: اخطار برقم الجلوس | H19: صباحى | L19: اخطار برقم الجلوس | O19: صباحى
C20: ="مدرسة "&الرئيسية!$E$2 -> مدرسة ….................. | G20: رقم الجلوس / | H20: 104 | J20: ="مدرسة "&الرئيسية!$E$2 -> مدرسة ….................. | N20: رقم الجلوس / | O20: 110
C21: الاسم / | D21: اسراء عبدالسلام احمد على | G21: رقم اللجنة / | H21: 1 | J21: الاسم / | K21: الهام محمود عبدالموجود محمد | N21: رقم اللجنة / | O21: 1
C22: الفصل / | D22: 1/2 | G22: مقر اللجنة / | H22: 1/3 | J22: الفصل / | K22: 2/2 | N22: مقر اللجنة / | O22: 1/3
E24: اخطار برقم الجلوس | H24: صباحى | L24: اخطار برقم الجلوس | O24: صباحى
C25: ="مدرسة "&الرئيسية!$E$2 -> مدرسة ….................. | G25: رقم الجلوس / | H25: 105 | J25: ="مدرسة "&الرئيسية!$E$2 -> مدرسة ….................. | N25: رقم الجلوس / | O25: 111
C26: الاسم / | D26: اسراء عرفة امين عبادى | G26: رقم اللجنة / | H26: 1 | J26: الاسم / | K26: امل عباس ابراهيم على | N26: رقم اللجنة / | O26: 1
C27: الفصل / | D27: 3/2 | G27: مقر اللجنة / | H27: 1/3 | J27: الفصل / | K27: 2/2 | N27: مقر اللجنة / | O27: 1/3
E29: اخطار برقم الجلوس | H29: صباحى | L29: اخطار برقم الجلوس | O29: صباحى
C30: ="مدرسة "&الرئيسية!$E$2 -> مدرسة ….................. | G30: رقم الجلوس / | H30: 106 | J30: ="مدرسة "&الرئيسية!$E$2 -> مدرسة ….................. | N30: رقم الجلوس / | O30: 112
C31: الاسم / | D31: اسراء قناوى احمد حسن | G31: رقم اللجنة / | H31: 1 | J31: الاسم / | K31: اميره محمد شرقاوى محمد | N31: رقم اللجنة / | O31: 1
C32: الفصل / | D32: 1/2 | G32: مقر اللجنة / | H32: 1/3 | J32: الفصل / | K32: 2/2 | N32: مقر اللجنة / | O32: 1/3

Sheet رفع
C1: خاص برفع درجات مواد | G1: =M1 -> شعبة التسويق | J1: معايير البحث | K1: اختر الشعبة : | M1: شعبة التسويق | O1: عدد الاوراق
K2: اختر المادة : | M2: لغة عربية | O2: =MAX(D7:D20) -> 3 | P2: ورقــــة
K3: الدرجة المطلوبة : | M3: 3
D5: مسلسل | E5: رقم الجلوس | F5: رقم سرى | G5: الدرجة | H5: عدد مواد الرسوب | AA5: يرجى عدم العبث بهذه البيانات حتى لا يتعطل الكود
AA6: شعبة الادارة | AB6: شعبة التسويق | AC6: شعبة التأمين | AD6: شعبة القانون
D7: 1 | E7: 440 | F7: 1363 | G7: 22 | H7: 1 | AA7: لغة عربية | AB7: لغة عربية | AC7: لغة عربية | AD7: لغة عربية
D8: 2 | E8: 470 | F8: 1333 | G8: 22 | H8: 1 | AA8: لغة انجليزية | AB8: لغة انجليزية | AC8: لغة انجليزية | AD8: لغة انجليزية
D9: 3 | E9: 1324 | F9: 1569 | G9: 22 | H9: 1 | AA9: لغة فرنسية | AB9: لغة فرنسية | AC9: لغة فرنسية | AD9: لغة فرنسية
AA10: حاسب آلى | AB10: حاسب آلى | AC10: علم النفس | AD10: علم نفس
AA11: محاسبة مالية | AB11: اعمال وساطة | AC11: حاسب آلى | AD11: حاسب آلى
AA12: احصاء | AB12: دعاية واعلان | AC12: محاسبة مالية | AD12: اعمال وساطة
AA13: رياضة مالية | AB13: اقتصاد | AC13: سكرتارية عربية | AD13: احصاء
AA14: اقتصاد | AB14: سكرتارية اجنبية | AC14: تأمين بحرى | AD14: قانون تجارى
AA15: سكرتارية عربية | AB15: رياضة مالية | AC15: تأمين حوادث | AD15: قانون مدنى
AA16: سكرتارية اجنبية | AB16: سوق اوراق مالية | AC16: تأمين حريق | AD16: قانون عقوبات
AA17: ادارة مشروعات | AB17: محاسبة | AC17: الرياضة المالية | AD17: قانون مرافعات
AA18: ادارة مخازن | AB18: تسويق | AC18: الاقتصاد | AD18: محاسبة مالية
AA19: تربية دينية | AB19: تربية دينية | AC19: تربية دينية | AD19: تربية دينية
AA20: مواطنة وحقوق انسان | AB20: مواطنة وحقوق انسان | AC20: مواطنة وحقوق انسان | AD20: مواطنة وحقوق انسان

Sheet شعبة الادارة
B1: بسم الله الرحمن الرحيم | AA1: شيت كنترول للعام الدراسى | AJ1: =الرئيسية!$Q$2 -> 2019/2018 | CY1: ناجح | CZ1: دورثان | DA1: راسب | DB1: مجموع
C2: ="ادارة" & " " &الرئيسية!E1 -> ادارة ….................. | AD2: الصف الثانى - | AH2: شعبة الادارة | CW2: بنات | CX2: انتظام | CY2: =COUNTIFS($I$10:$I$700,$CW2,$J$10:$J$700,$CX2,$BY$10:$BY$700,CY$1&"*") -> 98 | CZ2: =COUNTIFS($I$10:$I$700,$CW2,$J$10:$J$700,$CX2,$BY$10:$BY$700,CZ$1&"*") -> 19 | DA2: 8 | DB2: =SUM($CY2:$DA2) -> 125
C3: ="مدرسة"&" " &الرئيسية!E2 -> مدرسة ….................. | AE3: الشيت العام | CJ3: اكتب اسماء المواد كما ستظهر فى الشهادة | CW3: بنات | CX3: خدمات | CY3: =COUNTIFS($I$10:$I$700,$CW3,$J$10:$J$700,$CX3,$BY$10:$BY$700,CY$1&"*") -> 65 | CZ3: 10 | DA3: 1 | DB3: =SUM($CY3:$DA3) -> 76
CW4: بنين | CX4: انتظام | CY4: 71 | CZ4: 9 | DA4: 2 | DB4: 82
A5: مسلسل | B5: البيانات الاساسية | M5: السرى | N5: لغة عربية | R5: لغة انجليزية | V5: لغة فرنسية | Z5: حاسب آلى | AI5: محاسبة مالية | AM5: احصاء | AQ5: رياضة مالية | AU5: اقتصاد | AY5: سكرتارية عربية | BC5: سكرتارية اجنبية | BG5: ادارة مشروعات | BK5: ادارة مخازن | BO5: مجموع نصف العام | BP5: مجموع كلى | BQ5: تربية دينية | BU5: مواطنة وحقوق انسان | BY5: نتيجة | BZ5: مواد الرسوب | CA5: عدد مواد الرسوب | CB5: اللجنة و مقرها | CF5: لغة عربية | CG5: لغة انجليزية | CH5: لغة فرنسية | CI5: حاسب الى | CJ5: محاسبة مالية | CK5: احصاء | CL5: رياضة مالية | CM5: اقتصاد | CN5: سكرتارية عربية | CO5: سكرتارية اجنبية | CP5: ادارة مشروعات | CQ5: ادارة مخازن | CR5: مجموع كلى | CS5: تربية دينية | CT5: مواطنة وحقوق انسان | CU5: مواد لا تستوجب الرسوب | CV5: مواد الرســــوب | CW5: بنين | CX5: خدمات | CY5: 34 | CZ5: 3 | DA5: 0 | DB5: 37
B6: رقم جلوس | C6: الاســــــــــــــم | D6: الفصــــــــــل | E6: تاريخ الميلاد | F6: سن الطالب في تاريخ | G6: الجنسية | H6: الديانة | I6: النوع | J6: الفئة | K6: الفترة | L6: الحالــــــــة | N6: اعمال السنة | O6: نصف العام | P6: آخر العام | Q6: المجموع | R6: اعمال السنة | S6: نصف العام | T6: آخر العام | U6: المجموع | V6: اعمال السنة | W6: نصف العام | X6: آخر العام | Y6: المجموع | Z6: اعمال السنة | AB6: نصف العام | AD6: آخر العام | AF6: مجموع تحريرى | AG6: مجموع عملى | AH6: مجموع حاسب | AI6: اعمال السنة | AJ6: نصف العام | AK6: آخر العام | AL6: المجموع | AM6: اعمال السنة | AN6: نصف العام | AO6: آخر العام | AP6: المجموع | AQ6: اعمال السنة | AR6: نصف العام | AS6: آخر العام | AT6: المجموع | AU6: اعمال السنة | AV6: نصف العام | AW6: آخر العام | AX6: المجموع | AY6: اعمال السنة | AZ6: نصف العام | BA6: آخر العام | BB6: المجموع | BC6: اعمال السنة | BD6: نصف العام | BE6: آخر العام | BF6: المجموع | BG6: اعمال السنة | BH6: نصف العام | BI6: آخر العام | BJ6: المجموع | BK6: اعمال السنة | BL6: نصف العام | BM6: آخر العام | BN6: المجموع | BQ6: اعمال السنة | BR6: نصف العام | BS6: آخر العام | BT6: المجموع | BU6: اعمال السنة | BV6: نصف العام | BW6: آخر العام | BX6: المجموع | CF6: تفريغ مـــــواد الرسوب - تفريغ مـــــواد الرسوب - تفريغ مـــــواد الرسوب - تفريغ مـــــواد الرسوب | CY6: =SUM(CY2:CY5) -> 268 | CZ6: =SUM(CZ2:CZ5) -> 41 | DA6: 11 | DB6: 320
Z7: تحريرى | AA7: عملى | AB7: تحريرى | AC7: عملى | AD7: تحريرى | AE7: عملى
F8: =الرئيسية!$E$9 -> 2021-10-01 | M8: عظمى | N8: 10 | O8: 20 | P8: 20 | Q8: 50 | R8: 10 | S8: 20 | T8: 20 | U8: 50 | V8: 6 | W8: 12 | X8: 12 | Y8: 30 | Z8: 6 | AA8: 4 | AB8: 12 | AC8: 8 | AD8: 12 | AE8: 8 | AF8: 30 | AG8: 20 | AH8: 50 | AI8: 10 | AJ8: 20 | AK8: 20 | AL8: 50 | AM8: 10 | AN8: 20 | AO8: 20 | AP8: 50 | AQ8: 10 | AR8: 20 | AS8: 20 | AT8: 50 | AU8: 10 | AV8: 20 | AW8: 20 | AX8: 50 | AY8: 10 | AZ8: 20 | BA8: 20 | BB8: 50 | BC8: 10 | BD8: 20 | BE8: 20 | BF8: 50 | BG8: 10 | BH8: 20 | BI8: 20 | BJ8: 50 | BK8: 10 | BL8: 20 | BM8: 20 | BN8: 50 | BO8: 232 | BP8: 580 | BQ8: 4 | BR8: 8 | BS8: 8 | BT8: 20 | BU8: 4 | BV8: 8 | BW8: 8 | BX8: 20 | CB8: لجنة | CC8: مقر | CU8: دين و مواطنة | CV8: باقى المواد
M9: صغرى | N9: 0 | O9: 0 | P9: 5 | Q9: 25 | R9: 0 | S9: 0 | T9: 5 | U9: 25 | V9: 0 | W9: 0 | X9: 3 | Y9: 9 | Z9: 0 | AA9: 0 | AB9: 0 | AC9: 0 | AD9: 3 | AE9: 2 | AF9: 15 | AG9: 10 | AH9: 25 | AI9: 0 | AJ9: 0 | AK9: 5 | AL9: 25 | AM9: 0 | AN9: 0 | AO9: 5 | AP9: 25 | AQ9: 0 | AR9: 0 | AS9: 5 | AT9: 25 | AU9: 0 | AV9: 0 | AW9: 5 | AX9: 25 | AY9: 0 | AZ9: 0 | BA9: 5 | BB9: 25 | BC9: 0 | BD9: 0 | BE9: 5 | BF9: 25 | BG9: 0 | BH9: 0 | BI9: 5 | BJ9: 25 | BK9: 0 | BL9: 0 | BM9: 5 | BN9: 25 | BO9: 0 | BP9: 290 | BQ9: 0 | BR9: 0 | BS9: 2 | BT9: 10 | BU9: 0 | BV9: 0 | BW9: 2 | BX9: 10
A10: 1 | B10: 101 | C10: ابتسام محمد على حسن | D10: 2/2 | E10: 2005-10-01 | F10: 00 - 00 - 16 | I10: بنات | J10: انتظام | K10: صباحى | M10: 501 | N10: 9 | O10: 13 | P10: 11 | Q10: =IF($C10="","",IF(P10="غ","غ",SUM(N10,O10,P10))) -> 33 | R10: 7 | S10: 9 | T10: 11 | U10: =IF($C10="","",IF(T10="غ","غ",SUM(R10,S10,T10))) -> 27 | V10: 3 | W10: 10 | X10: 6 | Y10: =IF($C10="","",IF(X10="غ","غ",SUM(V10,W10,X10))) -> 19 | Z10: 3 | AA10: 3 | AB10: 7 | AC10: 8 | AD10: 9 | AE10: 8 | AF10: =IF($C10="","",IF(AD10="غ","غ",SUM(Z10,AB10,AD10))) -> 19 | AG10: =IF($C10="","",IF(AE10="غ","غ",SUM(AA10,AC10,AE10))) -> 19 | AH10: =IF($C10="","",IF(OR(AF10="غ",AG10="غ"),"غ",SUM(AF10,AG10))) -> 38 | AI10: 7 | AJ10: 11 | AK10: 8 | AL10: =IF($C10="","",IF(AK10="غ","غ",SUM(AI10,AJ10,AK10))) -> 26 | AM10: 7 | AN10: 19 | AO10: 9 | AP10: =IF($C10="","",IF(AO10="غ","غ",SUM(AM10,AN10,AO10))) -> 35 | AQ10: 6 | AR10: 11 | AS10: 15 | AT10: =IF($C10="","",IF(AS10="غ","غ",SUM(AQ10,AR10,AS10))) -> 32 | AU10: 5 | AV10: 12 | AW10: 8 | AX10: =IF($C10="","",IF(AW10="غ","غ",SUM(AU10,AV10,AW10))) -> 25 | AY10: 8 | AZ10: 14 | BA10: 15 | BB10: =IF($C10="","",IF(BA10="غ","غ",SUM(AY10,AZ10,BA10))) -> 37 | BC10: 10 | BD10: 11 | BE10: 12 | BF10: =IF($C10="","",IF(BE10="غ","غ",SUM(BC10,BD10,BE10))) -> 33 | BG10: 7 | BH10: 13 | BI10: 18 | BJ10: =IF($C10="","",IF(BI10="غ","غ",SUM(BG10,BH10,BI10))) -> 38 | BK10: 9 | BL10: 17 | BM10: 16 | BN10: =IF($C10="","",SUM(BK10,BL10,BM10)) -> 42 | BO10: =IF($C10="","",SUM(O10,S10,W10,AJ10,AN10,AR10,AV10,AZ10,BD10,BH10,BL10,AB10,AC10)) -> 155 | BP10: =IF($C10="","",SUM(Q10,U10,Y10,AL10,AP10,AT10,AX10,BB10,BF10,BJ10,BN10,AH10)) -> 385 | BQ10: 3 | BR10: 6 | BS10: 6 | BT10: =IF($C10="","",IF(BS10="غ","غ",SUM(BQ10,BR10,BS10))) -> 15 | BU10: 3 | BV10: 7 | BW10: 5 | BX10: =IF($C10="","",IF(BW10="غ","غ",SUM(BU10,BV10,BW10))) -> 15 | BY10: =IF(I10="","",IF(I10="بنات",IF(CA10=0,"ناجحة",IF(CV10>2,"راسبة","دورثان")),IF(I10="بنين",IF(CA10=0,"ناجح",IF(CV10>2,"راسب","دورثان"))))) -> ناجحة | BZ10: =IF(AND($L10="باقية",$BY10="راسبة"),"وليس لها حق الاعادة",IF(AND($L10<>"باقية",$BY10="راسبة"),"و لها حق الاعادة",IF(AND($L10="باقى",$BY10="راسب"),"وليس له حق الاعادة",IF(AND($L10<>"باقى",$BY10="راسب"),"و له حق الاعادة",IF($BY10="ناجحة","و منقولة للصف الثانى",IF($BY10="ناجح","و منقول للصف الثانى",IF($BY10="دورثان","فى : "&CONCATENATE(CF10,CG10,CH10,CI10,CJ10,CK10,CL10,CM10,CN10,CO10,CP10,CQ10,CS10,CT10,CR10),CONCATENATE(CF10,CG10,CH10,CI10,CJ10,CK10,CL10,CM10,CN10,CO10,CP10,CQ10,CS10,CT10,CR10)))))))) -> و منقولة للصف الثانى | CA10: =IFERROR(CU10+CV10,"") -> 0 | CB10: 1 | CC10: 1/3 | CF10: =IF($C10="","",IF(OR(P10<$P$9,P10="غ",Q10<$Q$9),$CF$5&" - ","")) ->  | CG10: =IF($C10="","",IF(OR(T10<$T$9,T10="غ",U10<$U$9),$CG$5&" - ","")) ->  | CH10: =IF($C10="","",IF(OR(X10<$X$9,X10="غ",Y10<$Y$9),CH$5&" - ","")) ->  | CI10: =IF($C10="","",IF(OR(AF10<$AF$9,AF10="غ",AG10<$AG$9,AG10="غ",AH10<$AH$9),CI$5&" - ","")) ->  | CJ10: =IF($C10="","",IF(OR(AK10<$AK$9,AK10="غ",AL10<$AL$9),CJ$5&" - ","")) ->  | CK10: =IF($C10="","",IF(OR(AO10<$AO$9,AO10="غ",AP10<$AP$9),CK$5&" - ","")) ->  | CL10: =IF($C10="","",IF(OR(AS10<$AS$9,AS10="غ",AT10<$AT$9),CL$5&" - ","")) ->  | CM10: =IF($C10="","",IF(OR(AW10<$AW$9,AW10="غ",AX10<$AX$9),CM$5&" - ","")) ->  | CN10: =IF($C10="","",IF(OR(BA10<$BA$9,BA10="غ",BB10<$BB$9),CN$5&" - ","")) ->  | CO10: =IF($C10="","",IF(OR(BE10<$BE$9,BE10="غ",BF10<$BF$9),CO$5&" - ","")) ->  | CP10: =IF($C10="","",IF(OR(BI10<$BI$9,BI10="غ",BJ10<$BJ$9),CP$5&" - ","")) ->  | CQ10: =IF($C10="","",IF(OR(BM10<$BM$9,BM10="غ",BN10<$BN$9),CQ$5&" - ","")) ->  | CR10: =IF($C10="","",IF(BP10<$BP$9,CR$5,"")) ->  | CS10: =IF($C10="","",IF(OR(BS10<$BS$9,BS10="غ",BT10<$BT$9),CS$5&" - ","")) ->  | CT10: =IF($C10="","",IF(OR(BW10<$BW$9,BW10="غ",BX10<$BX$9),CT$5&" - ","")) ->  | CU10: =IF($C10="","",COUNTIF($CR10:$CT10,"?*")) -> 0 | CV10: =IF($C10="","",COUNTIF($CF10:$CQ10,"?*")) -> 0
A11: 2 | B11: 102 | C11: احلام ناصر سنوسى القاضى | D11: 2/2 | E11: 2005-10-02 | F11: 29 - 11 - 15 | I11: بنات | J11: انتظام | K11: صباحى | L11: باقية | M11: 502 | N11: 6 | O11: 10 | P11: 16 | Q11: 32 | R11: 6 | S11: 19 | T11: 10 | U11: 35 | V11: 3 | W11: 5 | X11: 9 | Y11: 17 | Z11: 5 | AA11: 4 | AB11: 11 | AC11: 7 | AD11: 12 | AE11: 4 | AF11: 28 | AG11: 15 | AH11: 43 | AI11: 5 | AJ11: 8 | AK11: 20 | AL11: 33 | AM11: 10 | AN11: 11 | AO11: 13 | AP11: 34 | AQ11: 5 | AR11: 10 | AS11: 15 | AT11: 30 | AU11: 6 | AV11: 8 | AW11: غ | AX11: غ | AY11: 6 | AZ11: 13 | BA11: 17 | BB11: 36 | BC11: 8 | BD11: 15 | BE11: 18 | BF11: 41 | BG11: 5 | BH11: 14 | BI11: 12 | BJ11: 31 | BK11: 6 | BL11: 18 | BM11: 20 | BN11: 44 | BO11: 149 | BP11: 376 | BQ11: 3 | BR11: 5 | BS11: 6 | BT11: 14 | BU11: 3 | BV11: 8 | BW11: 8 | BX11: 19 | BY11: دورثان | BZ11: فى : اقتصاد - | CA11: 1 | CB11: 1 | CC11: 1/3 | CM11: اقتصاد - | CU11: 0 | CV11: 1
A12: 3 | B12: 103 | C12: اسراء جابر رمضان ابراهيم | D12: 3/2 | E12: 2005-10-03 | F12: 28 - 11 - 15 | I12: بنات | J12: انتظام | K12: صباحى | M12: 503 | N12: 6 | O12: 11 | P12: 19 | Q12: 36 | R12: 6 | S12: 19 | T12: 10 | U12: 35 | V12: 4 | W12: 9 | X12: 5 | Y12: 18 | Z12: 5 | AA12: 4 | AB12: 8 | AC12: 7 | AD12: 9 | AE12: 4 | AF12: 22 | AG12: 15 | AH12: 37 | AI12: 8 | AJ12: 12 | AK12: 14 | AL12: 34 | AM12: 6 | AN12: 19 | AO12: 14 | AP12: 39 | AQ12: 10 | AR12: 16 | AS12: 20 | AT12: 46 | AU12: 10 | AV12: 17 | AW12: 14 | AX12: 41 | AY12: 9 | AZ12: 18 | BA12: 13 | BB12: 40 | BC12: 10 | BD12: 14 | BE12: 8 | BF12: 32 | BG12: 5 | BH12: 10 | BI12: 8 | BJ12: 23 | BK12: 10 | BL12: 12 | BM12: 18 | BN12: 40 | BO12: 172 | BP12: 421 | BQ12: 4 | BR12: 7 | BS12: 5 | BT12: 16 | BU12: 4 | BV12: 8 | BW12: 5 | BX12: 17 | BY12: دورثان | BZ12: فى : ادارة مشروعات - | CA12: 1 | CB12: 1 | CC12: 1/3 | CP12: ادارة مشروعات - | CU12: 0 | CV12: 1
A13: 4 | B13: 104 | C13: اسراء عبدالسلام احمد على | D13: 1/2 | E13: 2005-10-04 | F13: 27 - 11 - 15 | I13: بنات | J13: انتظام | K13: صباحى | M13: 504 | N13: 9 | O13: 8 | P13: 5 | Q13: 22 | R13: 9 | S13: 17 | T13: 8 | U13: 34 | V13: 6 | W13: 5 | X13: 10 | Y13: 21 | Z13: 3 | AA13: 3 | AB13: 12 | AC13: 7 | AD13: 8 | AE13: 5 | AF13: 23 | AG13: 15 | AH13: 38 | AI13: 8 | AJ13: 17 | AK13: 19 | AL13: 44 | AM13: 9 | AN13: 16 | AO13: 8 | AP13: 33 | AQ13: 6 | AR13: 10 | AS13: 17 | AT13: 33 | AU13: 9 | AV13: 14 | AW13: 18 | AX13: 41 | AY13: 5 | AZ13: 9 | BA13: 5 | BB13: 19 | BC13: 9 | BD13: 17 | BE13: 15 | BF13: 41 | BG13: 5 | BH13: 7 | BI13: 10 | BJ13: 22 | BK13: 8 | BL13: 8 | BM13: 19 | BN13: 35 | BO13: 147 | BP13: 383 | BQ13: 3 | BR13: 5 | BS13: 8 | BT13: 16 | BU13: 4 | BV13: 4 | BW13: 5 | BX13: 13 | BY13: راسبة | BZ13: و لها حق الاعادة | CA13: 3 | CB13: 1 | CC13: 1/3 | CF13: لغة عربية - | CN13: سكرتارية عربية - | CP13: ادارة مشروعات - | CU13: 0 | CV13: 3
A14: 5 | B14: 105 | C14: اسراء عرفة امين عبادى | D14: 3/2 | E14: 2005-10-05 | F14: 26 - 11 - 15 | I14: بنات | J14: انتظام | K14: صباحى | L14: باقية | M14: 505 | N14: 8 | O14: 12 | P14: 20 | Q14: 40 | R14: 8 | S14: 19 | T14: 12 | U14: 39 | V14: 6 | W14: 6 | X14: 5 | Y14: 17 | Z14: 3 | AA14: 3 | AB14: 10 | AC14: 6 | AD14: 12 | AE14: 8 | AF14: 25 | AG14: 17 | AH14: 42 | AI14: 8 | AJ14: 8 | AK14: 20 | AL14: 36 | AM14: 8 | AN14: 15 | AO14: 11 | AP14: 34 | AQ14: 8 | AR14: 20 | AS14: 8 | AT14: 36 | AU14: 10 | AV14: 20 | AW14: 10 | AX14: 40 | AY14: 8 | AZ14: 11 | BA14: 16 | BB14: 35 | BC14: 7 | BD14: 18 | BE14: 11 | BF14: 36 | BG14: غ | BH14: 11 | BI14: غ | BJ14: غ | BK14: 5 | BL14: 17 | BM14: 17 | BN14: 39 | BO14: 173 | BP14: 394 | BQ14: 3 | BR14: 7 | BS14: 7 | BT14: 17 | BU14: 3 | BV14: 5 | BW14: 8 | BX14: 16 | BY14: دورثان | BZ14: فى : ادارة مشروعات - | CA14: 1 | CB14: 1 | CC14: 1/3 | CP14: ادارة مشروعات - | CU14: 0 | CV14: 1
A15: 6 | B15: 106 | C15: اسراء قناوى احمد حسن | D15: 1/2 | E15: 2005-10-06 | F15: 25 - 11 - 15 | I15: بنات | J15: انتظام | K15: صباحى | M15: 506 | N15: 9 | O15: 14 | P15: 15 | Q15: 38 | R15: 5 | S15: 15 | T15: 13 | U15: 33 | V15: 6 | W15: 9 | X15: 9 | Y15: 24 | Z15: 6 | AA15: 3 | AB15: 7 | AC15: 8 | AD15: 9 | AE15: 8 | AF15: 22 | AG15: 19 | AH15: 41 | AI15: 5 | AJ15: 17 | AK15: 14 | AL15: 36 | AM15: 9 | AN15: 16 | AO15: 9 | AP15: 34 | AQ15: 9 | AR15: 16 | AS15: 16 | AT15: 41 | AU15: 7 | AV15: 16 | AW15: 13 | AX15: 36 | AY15: 9 | AZ15: 9 | BA15: 13 | BB15: 31 | BC15: 7 | BD15: 17 | BE15: 13 | BF15: 37 | BG15: 10 | BH15: 13 | BI15: 15 | BJ15: 38 | BK15: 10 | BL15: 16 | BM15: 17 | BN15: 43 | BO15: 173 | BP15: 432 | BQ15: 3 | BR15: 5 | BS15: 4 | BT15: 12 | BU15: 3 | BV15: 7 | BW15: 7 | BX15: 17 | BY15: ناجحة | BZ15: و منقولة للصف الثانى | CA15: 0 | CB15: 1 | CC15: 1/3 | CU15: 0 | CV15: 0
A16: 7 | B16: 107 | C16: اسماء جمال محمد على | D16: 3/2 | E16: 2005-10-07 | F16: 24 - 11 - 15 | I16: بنات | J16: انتظام | K16: صباحى | M16: 507 | N16: 5 | O16: 16 | P16: 14 | Q16: 35 | R16: 7 | S16: 19 | T16: 11 | U16: 37 | V16: 3 | W16: 8 | X16: 11 | Y16: 22 | Z16: 5 | AA16: 4 | AB16: 6 | AC16: 4 | AD16: 5 | AE16: 7 | AF16: 16 | AG16: 15 | AH16: 31 | AI16: 7 | AJ16: 18 | AK16: 8 | AL16: 33 | AM16: 10 | AN16: 10 | AO16: 18 | AP16: 38 | AQ16: 7 | AR16: 19 | AS16: 13 | AT16: 39 | AU16: 6 | AV16: 18 | AW16: 16 | AX16: 40 | AY16: 5 | AZ16: 12 | BA16: 12 | BB16: 29 | BC16: 8 | BD16: 20 | BE16: 10 | BF16: 38 | BG16: 5 | BH16: 12 | BI16: 10 | BJ16: 27 | BK16: 5 | BL16: 20 | BM16: 13 | BN16: 38 | BO16: 182 | BP16: 407 | BQ16: 3 | BR16: 4 | BS16: 7 | BT16: 14 | BU16: 3 | BV16: 7 | BW16: 5 | BX16: 15 | BY16: ناجحة | BZ16: و منقولة للصف الثانى | CA16: 0 | CB16: 1 | CC16: 1/3 | CU16: 0 | CV16: 0
A17: 8 | B17: 108 | C17: اسماء صلاح محمد ناصر | D17: 2/2 | E17: 2005-10-08 | F17: 23 - 11 - 15 | I17: بنات | J17: انتظام | K17: صباحى | M17: 508 | N17: 5 | O17: 19 | P17: 13 | Q17: 37 | R17: 7 | S17: 16 | T17: 18 | U17: 41 | V17: 3 | W17: 11 | X17: 8 | Y17: 22 | Z17: 4 | AA17: 4 | AB17: 10 | AC17: 6 | AD17: 11 | AE17: 4 | AF17: 25 | AG17: 14 | AH17: 39 | AI17: 10 | AJ17: 19 | AK17: 10 | AL17: 39 | AM17: 7 | AN17: 17 | AO17: 14 | AP17: 38 | AQ17: 6 | AR17: 17 | AS17: 9 | AT17: 32 | AU17: 5 | AV17: 8 | AW17: 19 | AX17: 32 | AY17: 10 | AZ17: 9 | BA17: 19 | BB17: 38 | BC17: 8 | BD17: 13 | BE17: 18 | BF17: 39 | BG17: 10 | BH17: 11 | BI17: 18 | BJ17: 39 | BK17: 7 | BL17: 10 | BM17: 10 | BN17: 27 | BO17: 166 | BP17: 423 | BQ17: 4 | BR17: 8 | BS17: 5 | BT17: 17 | BU17: 3 | BV17: 7 | BW17: 4 | BX17: 14 | BY17: ناجحة | BZ17: و منقولة للصف الثانى | CA17: 0 | CB17: 1 | CC17: 1/3 | CU17: 0 | CV17: 0
A18: 9 | B18: 109 | C18: الشيماء سعيد محمد عمر | D18: 3/2 | E18: 2005-10-09 | F18: 22 - 11 - 15 | I18: بنات | J18: انتظام | K18: صباحى | M18: 509 | N18: 8 | O18: 12 | P18: 20 | Q18: 40 | R18: 10 | S18: 12 | T18: 11 | U18: 33 | V18: 5 | W18: 8 | X18: 10 | Y18: 23 | Z18: 4 | AA18: 3 | AB18: 5 | AC18: 5 | AD18: 9 | AE18: 4 | AF18: 18 | AG18: 12 | AH18: 30 | AI18: 10 | AJ18: 18 | AK18: 18 | AL18: 46 | AM18: 9 | AN18: 9 | AO18: 17 | AP18: 35 | AQ18: 7 | AR18: 8 | AS18: 10 | AT18: 25 | AU18: 9 | AV18: 13 | AW18: 18 | AX18: 40 | AY18: 9 | AZ18: 11 | BA18: 15 | BB18: 35 | BC18: 5 | BD18: 13 | BE18: 12 | BF18: 30 | BG18: 8 | BH18: 13 | BI18: 8 | BJ18: 29 | BK18: 7 | BL18: 13 | BM18: 12 | BN18: 32 | BO18: 140 | BP18: 398 | BQ18: 4 | BR18: 8 | BS18: 7 | BT18: 19 | BU18: 4 | BV18: 6 | BW18: 6 | BX18: 16 | BY18: ناجحة | BZ18: و منقولة للصف الثانى | CA18: 0 | CB18: 1 | CC18: 1/3 | CU18: 0 | CV18: 0
A19: 10 | B19: 110 | C19: الهام محمود عبدالموجود محمد | D19: 2/2 | E19: 2005-10-10 | F19: 21 - 11 - 15 | I19: بنات | J19: انتظام | K19: صباحى | M19: 510 | N19: 5 | O19: 11 | P19: 15 | Q19: 31 | R19: 10 | S19: 8 | T19: 8 | U19: 26 | V19: 6 | W19: 10 | X19: 10 | Y19: 26 | Z19: 3 | AA19: 4 | AB19: 12 | AC19: 6 | AD19: 8 | AE19: 4 | AF19: 23 | AG19: 14 | AH19: 37 | AI19: 7 | AJ19: 12 | AK19: 18 | AL19: 37 | AM19: 5 | AN19: 16 | AO19: 16 | AP19: 37 | AQ19: 10 | AR19: 19 | AS19: 8 | AT19: 37 | AU19: 6 | AV19: 9 | AW19: 17 | AX19: 32 | AY19: 7 | AZ19: 17 | BA19: 11 | BB19: 35 | BC19: 8 | BD19: 19 | BE19: 14 | BF19: 41 | BG19: 10 | BH19: 16 | BI19: 19 | BJ19: 45 | BK19: 9 | BL19: 18 | BM19: 19 | BN19: 46 | BO19: 173 | BP19: 430 | BQ19: 3 | BR19: 8 | BS19: 6 | BT19: 17 | BU19: 3 | BV19: 8 | BW19: 8 | BX19: 19 | BY19: ناجحة | BZ19: و منقولة للصف الثانى | CA19: 0 | CB19: 1 | CC19: 1/3 | CU19: 0 | CV19: 0
A20: 11 | B20: 111 | C20: امل عباس ابراهيم على | D20: 2/2 | E20: 2005-10-11 | F20: 20 - 11 - 15 | I20: بنات | J20: انتظام | K20: صباحى | M20: 511 | N20: 8 | O20: 16 | P20: 18 | Q20: 42 | R20: 9 | S20: 9 | T20: 11 | U20: 29 | V20: 5 | W20: 8 | X20: 6 | Y20: 19 | Z20: 4 | AA20: 3 | AB20: 5 | AC20: 4 | AD20: 12 | AE20: 7 | AF20: 21 | AG20: 14 | AH20: 35 | AI20: 6 | AJ20: 15 | AK20: 14 | AL20: 35 | AM20: 7 | AN20: 18 | AO20: 11 | AP20: 36 | AQ20: 9 | AR20: 13 | AS20: 10 | AT20: 32 | AU20: 8 | AV20: 19 | AW20: 18 | AX20: 45 | AY20: 5 | AZ20: 16 | BA20: 20 | BB20: 41 | BC20: 8 | BD20: 17 | BE20: 10 | BF20: 35 | BG20: 8 | BH20: 19 | BI20: 17 | BJ20: 44 | BK20: 10 | BL20: 10 | BM20: 14 | BN20: 34 | BO20: 169 | BP20: 427 | BQ20: 3 | BR20: 7 | BS20: 7 | BT20: 17 | BU20: 4 | BV20: 5 | BW20: 8 | BX20: 17 | BY20: ناجحة | BZ20: و منقولة للصف الثانى | CA20: 0 | CB20: 1 | CC20: 1/3 | CU20: 0 | CV20: 0
A21: 12 | B21: 112 | C21: اميره محمد شرقاوى محمد | D21: 2/2 | E21: 2005-10-12 | F21: 19 - 11 - 15 | I21: بنات | J21: انتظام | K21: صباحى | M21: 512 | N21: 9 | O21: 15 | P21: 18 | Q21: 42 | R21: 8 | S21: 13 | T21: 11 | U21: 32 | V21: 3 | W21: 8 | X21: 7 | Y21: 18 | Z21: 5 | AA21: 4 | AB21: 9 | AC21: 8 | AD21: 7 | AE21: 8 | AF21: 21 | AG21: 20 | AH21: 41 | AI21: 5 | AJ21: 15 | AK21: 15 | AL21: 35 | AM21: 5 | AN21: 13 | AO21: 14 | AP21: 32 | AQ21: 6 | AR21: 8 | AS21: 16 | AT21: 30 | AU21: 6 | AV21: 12 | AW21: 18 | AX21: 36 | AY21: 5 | AZ21: 11 | BA21: 12 | BB21: 28 | BC21: 7 | BD21: 12 | BE21: 12 | BF21: 31 | BG21: 8 | BH21: 15 | BI21: 16 | BJ21: 39 | BK21: 10 | BL21: 20 | BM21: 14 | BN21: 44 | BO21: 159 | BP21: 408 | BQ21: 4 | BR21: 8 | BS21: 5 | BT21: 17 | BU21: 4 | BV21: 5 | BW21: 6 | BX21: 15 | BY21: ناجحة | BZ21: و منقولة للصف الثانى | CA21: 0 | CB21: 1 | CC21: 1/3 | CU21: 0 | CV21: 0
A22: 13 | B22: 113 | C22: اميمه عبدالمطلب ركابى | D22: 1/2 | E22: 2005-10-13 | F22: 18 - 11 - 15 | I22: بنات | J22: انتظام | K22: صباحى | M22: 513 | N22: 8 | O22: 9 | P22: 19 | Q22: 36 | R22: 8 | S22: 17 | T22: 20 | U22: 45 | V22: 4 | W22: 6 | X22: 7 | Y22: 17 | Z22: 5 | AA22: 3 | AB22: 5 | AC22: 4 | AD22: 5 | AE22: 6 | AF22: 15 | AG22: 13 | AH22: 28 | AI22: 8 | AJ22: 10 | AK22: 15 | AL22: 33 | AM22: غ | AN22: غ | AO22: غ | AP22: غ | AQ22: 6 | AR22: 13 | AS22: 15 | AT22: 34 | AU22: 6 | AV22: 20 | AW22: 14 | AX22: 40 | AY22: 7 | AZ22: 19 | BA22: 14 | BB22: 40 | BC22: 9 | BD22: 15 | BE22: 10 | BF22: 34 | BG22: 7 | BH22: 18 | BI22: 10 | BJ22: 35 | BK22: 6 | BL22: 10 | BM22: 11 | BN22: 27 | BO22: 146 | BP22: 369 | BQ22: 4 | BR22: 6 | BS22: 8 | BT22: 18 | BU22: 4 | BV22: 7 | BW22: 7 | BX22: 18 | BY22: دورثان | BZ22: فى : احصاء - | CA22: 1 | CB22: 1 | CC22: 1/3 | CK22: احصاء - | CU22: 0 | CV22: 1
A23: 14 | B23: 114 | C23: ايمان ابراهيم محمود جلال | D23: 3/2 | E23: 2005-10-14 | F23: 17 - 11 - 15 | I23: بنات | J23: انتظام | K23: صباحى | M23: 514 | N23: 5 | O23: 17 | P23: 17 | Q23: 39 | R23: 10 | S23: 9 | T23: 9 | U23: 28 | V23: 4 | W23: 7 | X23: 9 | Y23: 20 | Z23: 3 | AA23: 3 | AB23: 9 | AC23: 8 | AD23: 7 | AE23: 6 | AF23: 19 | AG23: 17 | AH23: 36 | AI23: 7 | AJ23: 18 | AK23: 13 | AL23: 38 | AM23: 6 | AN23: 12 | AO23: 17 | AP23: 35 | AQ23: 9 | AR23: 14 | AS23: 9 | AT23: 32 | AU23: 10 | AV23: 18 | AW23: 14 | AX23: 42 | AY23: 5 | AZ23: 18 | BA23: 11 | BB23: 34 | BC23: 6 | BD23: 11 | BE23: 17 | BF23: 34 | BG23: 8 | BH23: 14 | BI23: 16 | BJ23: 38 | BK23: 9 | BL23: 17 | BM23: 19 | BN23: 45 | BO23: 172 | BP23: 421 | BQ23: 4 | BR23: 5 | BS23: 4 | BT23: 13 | BU23: 3 | BV23: 6 | BW23: 7 | BX23: 16 | BY23: ناجحة | BZ23: و منقولة للصف الثانى | CA23: 0 | CB23: 1 | CC23: 1/3 | CU23: 0 | CV23: 0
A24: 15 | B24: 115 | C24: ايمان حجاج ثابت عبادى | D24: 3/2 | E24: 2005-10-15 | F24: 16 - 11 - 15 | I24: بنات | J24: انتظام | K24: صباحى | M24: 515 | N24: 10 | O24: 18 | P24: 18 | Q24: 46 | R24: 9 | S24: 14 | T24: 12 | U24: 35 | V24: 5 | W24: 5 | X24: 6 | Y24: 16 | Z24: 6 | AA24: 4 | AB24: 9 | AC24: 5 | AD24: 7 | AE24: 5 | AF24: 22 | AG24: 14 | AH24: 36 | AI24: 8 | AJ24: 10 | AK24: 8 | AL24: 26 | AM24: 10 | AN24: 11 | AO24: 8 | AP24: 29 | AQ24: 10 | AR24: 18 | AS24: 13 | AT24: 41 | AU24: 9 | AV24: 20 | AW24: 19 | AX24: 48 | AY24: 6 | AZ24: 18 | BA24: 18 | BB24: 42 | BC24: 7 | BD24: 12 | BE24: 9 | BF24: 28 | BG24: 9 | BH24: 10 | BI24: 12 | BJ24: 31 | BK24: 10 | BL24: 18 | BM24: 20 | BN24: 48 | BO24: 168 | BP24: 426 | BQ24: 3 | BR24: 4 | BS24: 6 | BT24: 13 | BU24: 3 | BV24: 8 | BW24: 7 | BX24: 18 | BY24: ناجحة | BZ24: و منقولة للصف الثانى | CA24: 0 | CB24: 1 | CC24: 1/3 | CU24: 0 | CV24: 0
A25: 16 | B25: 116 | C25: ايمان عبده لطفى سعيد | D25: 1/2 | E25: 2005-10-16 | F25: 15 - 11 - 15 | I25: بنات | J25: انتظام | K25: صباحى | L25: باقية | M25: 516 | N25: 5 | O25: 10 | P25: 14 | Q25: 29 | R25: 10 | S25: 14 | T25: 12 | U25: 36 | V25: 3 | W25: 10 | X25: 8 | Y25: 21 | Z25: 6 | AA25: 4 | AB25: 6 | AC25: 5 | AD25: 10 | AE25: 8 | AF25: 22 | AG25: 17 | AH25: 39 | AI25: 5 | AJ25: 16 | AK25: 8 | AL25: 29 | AM25: 7 | AN25: 19 | AO25: 10 | AP25: 36 | AQ25: 10 | AR25: 17 | AS25: 20 | AT25: 47 | AU25: 8 | AV25: 17 | AW25: 13 | AX25: 38 | AY25: 8 | AZ25: 18 | BA25: 19 | BB25: 45 | BC25: 10 | BD25: 14 | BE25: 17 | BF25: 41 | BG25: 7 | BH25: 11 | BI25: 8 | BJ25: 26 | BK25: 8 | BL25: 15 | BM25: 12 | BN25: 35 | BO25: 172 | BP25: 422 | BQ25: 4 | BR25: 4 | BS25: 6 | BT25: 14 | BU25: 3 | BV25: 8 | BW25: 6 | BX25: 17 | BY25: ناجحة | BZ25: و منقولة للصف الثانى | CA25: 0 | CB25: 1 | CC25: 1/3 | CU25: 0 | CV25: 0
A26: 17 | B26: 117 | C26: ايه عبدالرحيم جبريل على | D26: 3/2 | E26: 2005-10-17 | F26: 14 - 11 - 15 | I26: بنات | J26: انتظام | K26: صباحى | M26: 517 | N26: 8 | O26: 16 | P26: 19 | Q26: 43 | R26: 10 | S26: 14 | T26: 10 | U26: 34 | V26: 5 | W26: 8 | X26: 5 | Y26: 18 | Z26: 6 | AA26: 3 | AB26: 11 | AC26: 6 | AD26: 8 | AE26: 4 | AF26: 25 | AG26: 13 | AH26: 38 | AI26: 10 | AJ26: 17 | AK26: 18 | AL26: 45 | AM26: 8 | AN26: 11 | AO26: 11 | AP26: 30 | AQ26: 9 | AR26: 15 | AS26: 10 | AT26: 34 | AU26: 5 | AV26: 9 | AW26: 15 | AX26: 29 | AY26: 6 | AZ26: 19 | BA26: 14 | BB26: 39 | BC26: 9 | BD26: 17 | BE26: 9 | BF26: 35 | BG26: 6 | BH26: 14 | BI26: 17 | BJ26: 37 | BK26: 8 | BL26: 14 | BM26: 18 | BN26: 40 | BO26: 171 | BP26: 422 | BQ26: 4 | BR26: 8 | BS26: 8 | BT26: 20 | BU26: 4 | BV26: 4 | BW26: 6 | BX26: 14 | BY26: ناجحة | BZ26: و منقولة للصف الثانى | CA26: 0 | CB26: 1 | CC26: 1/3 | CU26: 0 | CV26: 0
A27: 18 | B27: 118 | C27: ايه محمد على محمد | D27: 1/2 | E27: 2005-10-18 | F27: 13 - 11 - 15 | I27: بنات | J27: انتظام | K27: صباحى | M27: 518 | N27: 10 | O27: 13 | P27: 8 | Q27: 31 | R27: 5 | S27: 14 | T27: 17 | U27: 36 | V27: 5 | W27: 10 | X27: 9 | Y27: 24 | Z27: 5 | AA27: 3 | AB27: 8 | AC27: 8 | AD27: 6 | AE27: 6 | AF27: 19 | AG27: 17 | AH27: 36 | AI27: 6 | AJ27: 12 | AK27: 10 | AL27: 28 | AM27: 7 | AN27: 16 | AO27: 14 | AP27: 37 | AQ27: 6 | AR27: 18 | AS27: 19 | AT27: 43 | AU27: 7 | AV27: 15 | AW27: 11 | AX27: 33 | AY27: 8 | AZ27: 20 | BA27: 19 | BB27: 47 | BC27: 9 | BD27: 8 | BE27: 16 | BF27: 33 | BG27: 10 | BH27: 18 | BI27: 15 | BJ27: 43 | BK27: 7 | BL27: 16 | BM27: 16 | BN27: 39 | BO27: 176 | BP27: 430 | BQ27: 3 | BR27: 6 | BS27: 4 | BT27: 13 | BU27: 4 | BV27: 5 | BW27: 5 | BX27: 14 | BY27: ناجحة | BZ27: و منقولة للصف الثانى | CA27: 0 | CB27: 1 | CC27: 1/3 | CU27: 0 | CV27: 0
A28: 19 | B28: 119 | C28: بدور سيد بدرى حفنى | D28: 2/2 | E28: 2005-10-19 | F28: 12 - 11 - 15 | I28: بنات | J28: انتظام | K28: صباحى | M28: 519 | N28: 5 | O28: 9 | P28: 10 | Q28: 24 | R28: 7 | S28: 8 | T28: 17 | U28: 32 | V28: 3 | W28: 8 | X28: 5 | Y28: 16 | Z28: 3 | AA28: 4 | AB28: 9 | AC28: 7 | AD28: 9 | AE28: 7 | AF28: 21 | AG28: 18 | AH28: 39 | AI28: 7 | AJ28: 14 | AK28: 18 | AL28: 39 | AM28: 8 | AN28: 18 | AO28: 20 | AP28: 46 | AQ28: 6 | AR28: 9 | AS28: 12 | AT28: 27 | AU28: 8 | AV28: 19 | AW28: 14 | AX28: 41 | AY28: 6 | AZ28: 8 | BA28: 17 | BB28: 31 | BC28: 6 | BD28: 8 | BE28: 13 | BF28: 27 | BG28: 10 | BH28: 12 | BI28: 18 | BJ28: 40 | BK28: 7 | BL28: 18 | BM28: 18 | BN28: 43 | BO28: 147 | BP28: 405 | BQ28: 3 | BR28: 5 | BS28: 5 | BT28: 13 | BU28: 4 | BV28: 6 | BW28: 6 | BX28: 16 | BY28: دورثان | BZ28: فى : لغة عربية - | CA28: 1 | CB28: 1 | CC28: 1/3 | CF28: لغة عربية - | CU28: 0 | CV28: 1
A29: 20 | B29: 120 | C29: بسمه ياسر صالح محمد | D29: 1/2 | E29: 2005-10-20 | F29: 11 - 11 - 15 | I29: بنات | J29: انتظام | K29: صباحى | M29: 520 | N29: 7 | O29: 19 | P29: 14 | Q29: 40 | R29: 6 | S29: 17 | T29: 9 | U29: 32 | V29: 6 | W29: 5 | X29: 11 | Y29: 22 | Z29: 5 | AA29: 4 | AB29: 8 | AC29: 5 | AD29: 12 | AE29: 6 | AF29: 25 | AG29: 15 | AH29: 40 | AI29: 9 | AJ29: 13 | AK29: 14 | AL29: 36 | AM29: 9 | AN29: 17 | AO29: 19 | AP29: 45 | AQ29: 9 | AR29: 9 | AS29: 10 | AT29: 28 | AU29: 7 | AV29: 8 | AW29: 10 | AX29: 25 | AY29: 8 | AZ29: 17 | BA29: 13 | BB29: 38 | BC29: 9 | BD29: 18 | BE29: 18 | BF29: 45 | BG29: 6 | BH29: 9 | BI29: 14 | BJ29: 29 | BK29: 7 | BL29: 15 | BM29: 14 | BN29: 36 | BO29: 160 | BP29: 416 | BQ29: 4 | BR29: 6 | BS29: 6 | BT29: 16 | BU29: 3 | BV29: 8 | BW29: 8 | BX29: 19 | BY29: ناجحة | BZ29: و منقولة للصف الثانى | CA29: 0 | CB29: 1 | CC29: 1/3 | CU29: 0 | CV29: 0
A30: 21 | B30: 121 | C30: جميله احمد محمد حفنى | D30: 1/2 | E30: 2005-10-21 | F30: 10 - 11 - 15 | I30: بنات | J30: انتظام | K30: صباحى | M30: 521 | N30: 5 | O30: 20 | P30: 10 | Q30: 35 | R30: 10 | S30: 8 | T30: 13 | U30: 31 | V30: 3 | W30: 8 | X30: 11 | Y30: 22 | Z30: 3 | AA30: 4 | AB30: 6 | AC30: 7 | AD30: 7 | AE30: 5 | AF30: 16 | AG30: 16 | AH30: 32 | AI30: 9 | AJ30: 19 | AK30: 20 | AL30: 48 | AM30: 10 | AN30: 16 | AO30: 17 | AP30: 43 | AQ30: 6 | AR30: 20 | AS30: 19 | AT30: 45 | AU30: 8 | AV30: 9 | AW30: 17 | AX30: 34 | AY30: 8 | AZ30: 9 | BA30: 20 | BB30: 37 | BC30: 8 | BD30: 19 | BE30: 16 | BF30: 43 | BG30: 6 | BH30: 18 | BI30: 13 | BJ30: 37 | BK30: 5 | BL30: 8 | BM30: 16 | BN30: 29 | BO30: 167 | BP30: 436 | BQ30: 4 | BR30: 8 | BS30: 5 | BT30: 17 | BU30: 4 | BV30: 5 | BW30: 4 | BX30: 13 | BY30: ناجحة | BZ30: و منقولة للصف الثانى | CA30: 0 | CB30: 1 | CC30: 1/3 | CU30: 0 | CV30: 0
A31: 22 | B31: 122 | C31: جهاد محمود مصطفى محمد | D31: 1/2 | E31: 2005-10-22 | F31: 09 - 11 - 15 | I31: بنات | J31: انتظام | K31: صباحى | M31: 522 | N31: 7 | O31: 16 | P31: 19 | Q31: 42 | R31: 9 | S31: 20 | T31: 16 | U31: 45 | V31: 3 | W31: 8 | X31: 9 | Y31: 20 | Z31: 3 | AA31: 4 | AB31: 9 | AC31: 4 | AD31: 5 | AE31: 6 | AF31: 17 | AG31: 14 | AH31: 31 | AI31: 6 | AJ31: 10 | AK31: 19 | AL31: 35 | AM31: 8 | AN31: 18 | AO31: 15 | AP31: 41 | AQ31: 10 | AR31: 17 | AS31: 10 | AT31: 37 | AU31: 10 | AV31: 11 | AW31: 18 | AX31: 39 | AY31: 10 | AZ31: 15 | BA31: 12 | BB31: 37 | BC31: 7 | BD31: 18 | BE31: 9 | BF31: 34 | BG31: 7 | BH31: 11 | BI31: 15 | BJ31: 33 | BK31: 7 | BL31: 14 | BM31: 9 | BN31: 30 | BO31: 171 | BP31: 424 | BQ31: 3 | BR31: 6 | BS31: 5 | BT31: 14 | BU31: 3 | BV31: 5 | BW31: 5 | BX31: 13 | BY31: ناجحة | BZ31: و منقولة للصف الثانى | CA31: 0 | CB31: 1 | CC31: 1/3 | CU31: 0 | CV31: 0
A32: 23 | B32: 123 | C32: حسناء شاذلى سلطان موسى | D32: 3/2 | E32: 2005-10-23 | F32: 08 - 11 - 15 | I32: بنات | J32: انتظام | K32: صباحى | M32: 523 | N32: 9 | O32: 9 | P32: 12 | Q32: 30 | R32: 5 | S32: 19 | T32: 19 | U32: 43 | V32: 5 | W32: 8 | X32: 10 | Y32: 23 | Z32: 4 | AA32: 4 | AB32: 12 | AC32: 7 | AD32: 6 | AE32: 6 | AF32: 22 | AG32: 17 | AH32: 39 | AI32: 9 | AJ32: 8 | AK32: 9 | AL32: 26 | AM32: 5 | AN32: 20 | AO32: 19 | AP32: 44 | AQ32: 9 | AR32: 9 | AS32: 8 | AT32: 26 | AU32: 8 | AV32: 9 | AW32: 12 | AX32: 29 | AY32: 5 | AZ32: 17 | BA32: 10 | BB32: 32 | BC32: 8 | BD32: 17 | BE32: 15 | BF32: 40 | BG32: 8 | BH32: 17 | BI32: 14 | BJ32: 39 | BK32: 10 | BL32: 11 | BM32: 14 | BN32: 35 | BO32: 163 | BP32: 406 | BQ32: 3 | BR32: 8 | BS32: 6 | BT32: 17 | BU32: 4 | BV32: 8 | BW32: 7 | BX32: 19 | BY32: ناجحة | BZ32: و منقولة للصف الثانى | CA32: 0 | CB32: 1 | CC32: 1/3 | CU32: 0 | CV32: 0
A33: 24 | B33: 124 | C33: خلود عبدالله احمد محمد | D33: 2/2 | E33: 2005-10-24 | F33: 07 - 11 - 15 | I33: بنات | J33: انتظام | K33: صباحى | M33: 524 | N33: 7 | O33: 20 | P33: 13 | Q33: 40 | R33: 8 | S33: 9 | T33: 12 | U33: 29 | V33: 5 | W33: 7 | X33: 12 | Y33: 24 | Z33: 6 | AA33: 4 | AB33: 12 | AC33: 5 | AD33: 9 | AE33: 6 | AF33: 27 | AG33: 15 | AH33: 42 | AI33: 8 | AJ33: 20 | AK33: 20 | AL33: 48 | AM33: 8 | AN33: 17 | AO33: 12 | AP33: 37 | AQ33: 8 | AR33: 13 | AS33: 19 | AT33: 40 | AU33: 8 | AV33: 16 | AW33: 11 | AX33: 35 | AY33: 5 | AZ33: 14 | BA33: 19 | BB33: 38 | BC33: 9 | BD33: 13 | BE33: 9 | BF33: 31 | BG33: 10 | BH33: 8 | BI33: 20 | BJ33: 38 | BK33: 6 | BL33: 8 | BM33: 12 | BN33: 26 | BO33: 162 | BP33: 428 | BQ33: 4 | BR33: 7 | BS33: 6 | BT33: 17 | BU33: 3 | BV33: 8 | BW33: 4 | BX33: 15 | BY33: ناجحة | BZ33: و منقولة للصف الثانى | CA33: 0 | CB33: 1 | CC33: 1/3 | CU33: 0 | CV33: 0
A34: 25 | B34: 125 | C34: داليا حسين مصطفى احمد | D34: 3/2 | E34: 2005-10-25 | F34: 06 - 11 - 15 | I34: بنات | J34: انتظام | K34: صباحى | M34: 525 | N34: 7 | O34: 15 | P34: 19 | Q34: 41 | R34: 9 | S34: 20 | T34: 18 | U34: 47 | V34: 3 | W34: 5 | X34: 10 | Y34: 18 | Z34: 4 | AA34: 3 | AB34: 6 | AC34: 7 | AD34: 11 | AE34: 5 | AF34: 21 | AG34: 15 | AH34: 36 | AI34: 6 | AJ34: 13 | AK34: 11 | AL34: 30 | AM34: 5 | AN34: 18 | AO34: 17 | AP34: 40 | AQ34: 8 | AR34: 12 | AS34: 9 | AT34: 29 | AU34: 7 | AV34: 3 | AW34: 7 | AX34: 17 | AY34: 6 | AZ34: 18 | BA34: 11 | BB34: 35 | BC34: 10 | BD34: 5 | BE34: 6 | BF34: 21 | BG34: 7 | BH34: 15 | BI34: 20 | BJ34: 42 | BK34: 8 | BL34: 6 | BM34: 5 | BN34: 19 | BO34: 143 | BP34: 375 | BQ34: 3 | BR34: 7 | BS34: 7 | BT34: 17 | BU34: 4 | BV34: 7 | BW34: 6 | BX34: 17 | BY34: راسبة | BZ34: و لها حق الاعادة | CA34: 3 | CB34: 1 | CC34: 1/3 | CM34: اقتصاد - | CO34: سكرتارية اجنبية - | CQ34: ادارة مخازن - | CU34: 0 | CV34: 3
A35: 26 | B35: 126 | C35: دعاء ابوالحسن محمد سعيد | D35: 3/2 | E35: 2005-10-26 | F35: 05 - 11 - 15 | I35: بنات | J35: انتظام | K35: صباحى | M35: 526 | N35: 8 | O35: 13 | P35: 20 | Q35: 41 | R35: 6 | S35: 11 | T35: 11 | U35: 28 | V35: 5 | W35: 10 | X35: 7 | Y35: 22 | Z35: 6 | AA35: 4 | AB35: 10 | AC35: 8 | AD35: 6 | AE35: 8 | AF35: 22 | AG35: 20 | AH35: 42 | AI35: 9 | AJ35: 12 | AK35: 16 | AL35: 37 | AM35: 8 | AN35: 17 | AO35: 17 | AP35: 42 | AQ35: 6 | AR35: 11 | AS35: 19 | AT35: 36 | AU35: 8 | AV35: 9 | AW35: 17 | AX35: 34 | AY35: 6 | AZ35: 14 | BA35: 15 | BB35: 35 | BC35: 6 | BD35: 16 | BE35: 14 | BF35: 36 | BG35: 10 | BH35: 12 | BI35: 12 | BJ35: 34 | BK35: 8 | BL35: 20 | BM35: 11 | BN35: 39 | BO35: 163 | BP35: 426 | BQ35: 4 | BR35: 5 | BS35: 6 | BT35: 15 | BU35: 3 | BV35: 6 | BW35: 7 | BX35: 16 | BY35: ناجحة | BZ35: و منقولة للصف الثانى | CA35: 0 | CB35: 2 | CC35: 2/3 | CU35: 0 | CV35: 0
A36: 27 | B36: 127 | C36: دعاء احمد السيد يونس | D36: 2/2 | E36: 2005-10-27 | F36: 04 - 11 - 15 | I36: بنات | J36: انتظام | K36: صباحى | M36: 527 | N36: 10 | O36: 9 | P36: 16 | Q36: 35 | R36: 9 | S36: 13 | T36: 14 | U36: 36 | V36: 3 | W36: 7 | X36: 8 | Y36: 18 | Z36: 3 | AA36: 4 | AB36: 10 | AC36: 4 | AD36: 8 | AE36: 5 | AF36: 21 | AG36: 13 | AH36: 34 | AI36: 7 | AJ36: 12 | AK36: 15 | AL36: 34 | AM36: 6 | AN36: 16 | AO36: 8 | AP36: 30 | AQ36: 10 | AR36: 14 | AS36: 9 | AT36: 33 | AU36: 9 | AV36: 15 | AW36: 14 | AX36: 38 | AY36: 9 | AZ36: 12 | BA36: 15 | BB36: 36 | BC36: 9 | BD36: 14 | BE36: 14 | BF36: 37 | BG36: 7 | BH36: 15 | BI36: 9 | BJ36: 31 | BK36: 10 | BL36: 8 | BM36: 14 | BN36: 32 | BO36: 149 | BP36: 394 | BQ36: 3 | BR36: 7 | BS36: 5 | BT36: 15 | BU36: 3 | BV36: 7 | BW36: 5 | BX36: 15 | BY36: ناجحة | BZ36: و منقولة للصف الثانى | CA36: 0 | CB36: 2 | CC36: 2/3 | CU36: 0 | CV36: 0
A37: 28 | B37: 128 | C37: دعاء عبد الرحمن مصطفى سعدى | D37: 3/2 | E37: 2005-10-28 | F37: 03 - 11 - 15 | I37: بنات | J37: انتظام | K37: صباحى | M37: 528 | N37: 6 | O37: 8 | P37: 16 | Q37: 30 | R37: 10 | S37: 9 | T37: 20 | U37: 39 | V37: 3 | W37: 7 | X37: 12 | Y37: 22 | Z37: 4 | AA37: 4 | AB37: 6 | AC37: 5 | AD37: 5 | AE37: 4 | AF37: 15 | AG37: 13 | AH37: 28 | AI37: 8 | AJ37: 12 | AK37: 18 | AL37: 38 | AM37: 9 | AN37: 14 | AO37: 12 | AP37: 35 | AQ37: 6 | AR37: 19 | AS37: 12 | AT37: 37 | AU37: 7 | AV37: 11 | AW37: 14 | AX37: 32 | AY37: 7 | AZ37: 18 | BA37: 11 | BB37: 36 | BC37: 6 | BD37: 18 | BE37: 12 | BF37: 36 | BG37: 10 | BH37: 9 | BI37: 12 | BJ37: 31 | BK37: 6 | BL37: 14 | BM37: 11 | BN37: 31 | BO37: 150 | BP37: 395 | BQ37: 4 | BR37: 4 | BS37: 7 | BT37: 15 | BU37: 3 | BV37: 7 | BW37: 5 | BX37: 15 | BY37: ناجحة | BZ37: و منقولة للصف الثانى | CA37: 0 | CB37: 2 | CC37: 2/3 | CU37: 0 | CV37: 0
A38: 29 | B38: 129 | C38: دعاء محمود رمضان محمود | D38: 3/2 | E38: 2005-10-29 | F38: 02 - 11 - 15 | I38: بنات | J38: انتظام | K38: صباحى | M38: 529 | N38: 8 | O38: 18 | P38: 14 | Q38: 40 | R38: 8 | S38: 17 | T38: 13 | U38: 38 | V38: 4 | W38: 10 | X38: 9 | Y38: 23 | Z38: 3 | AA38: 4 | AB38: 11 | AC38: 4 | AD38: 6 | AE38: 8 | AF38: 20 | AG38: 16 | AH38: 36 | AI38: 7 | AJ38: 19 | AK38: 13 | AL38: 39 | AM38: 8 | AN38: 17 | AO38: 15 | AP38: 40 | AQ38: 8 | AR38: 20 | AS38: 11 | AT38: 39 | AU38: 8 | AV38: 11 | AW38: 9 | AX38: 28 | AY38: 7 | AZ38: 20 | BA38: 13 | BB38: 40 | BC38: 5 | BD38: 12 | BE38: 9 | BF38: 26 | BG38: 6 | BH38: 13 | BI38: 11 | BJ38: 30 | BK38: 6 | BL38: 9 | BM38: 14 | BN38: 29 | BO38: 181 | BP38: 408 | BQ38: 4 | BR38: 7 | BS38: 7 | BT38: 18 | BU38: 3 | BV38: 5 | BW38: 6 | BX38: 14 | BY38: ناجحة | BZ38: و منقولة للصف الثانى | CA38: 0 | CB38: 2 | CC38: 2/3 | CU38: 0 | CV38: 0
A39: 30 | B39: 130 | C39: دنيا مرعى عبدالفتاح فؤاد | D39: 3/2 | E39: 2005-10-30 | F39: 01 - 11 - 15 | I39: بنات | J39: انتظام | K39: صباحى | M39: 530 | N39: 7 | O39: 20 | P39: 15 | Q39: 42 | R39: 10 | S39: 11 | T39: 15 | U39: 36 | V39: 5 | W39: 11 | X39: 8 | Y39: 24 | Z39: 6 | AA39: 3 | AB39: 12 | AC39: 5 | AD39: 12 | AE39: 7 | AF39: 30 | AG39: 15 | AH39: 45 | AI39: 6 | AJ39: 11 | AK39: 15 | AL39: 32 | AM39: 6 | AN39: 9 | AO39: 11 | AP39: 26 | AQ39: 5 | AR39: 11 | AS39: 14 | AT39: 30 | AU39: 6 | AV39: 17 | AW39: 12 | AX39: 35 | AY39: 6 | AZ39: 9 | BA39: 20 | BB39: 35 | BC39: 8 | BD39: 18 | BE39: 8 | BF39: 34 | BG39: 9 | BH39: 17 | BI39: 16 | BJ39: 42 | BK39: 10 | BL39: 9 | BM39: 8 | BN39: 27 | BO39: 160 | BP39: 408 | BQ39: 4 | BR39: 6 | BS39: 6 | BT39: 16 | BU39: 3 | BV39: 5 | BW39: 6 | BX39: 14 | BY39: ناجحة | BZ39: و منقولة للصف الثانى | CA39: 0 | CB39: 2 | CC39: 2/3 | CU39: 0 | CV39: 0
A40: 31 | B40: 131 | C40: دينا عبدالسلام عبدالصبور محمد | D40: 1/2 | E40: 2005-10-31 | F40: 00 - 11 - 15 | I40: بنات | J40: انتظام | K40: صباحى | M40: 531 | N40: 5 | O40: 11 | P40: 12 | Q40: 28 | R40: 9 | S40: 15 | T40: 15 | U40: 39 | V40: 5 | W40: 5 | X40: 9 | Y40: 19 | Z40: 3 | AA40: 4 | AB40: 5 | AC40: 5 | AD40: 10 | AE40: 6 | AF40: 18 | AG40: 15 | AH40: 33 | AI40: 5 | AJ40: 8 | AK40: 10 | AL40: 23 | AM40: 5 | AN40: 8 | AO40: 9 | AP40: 22 | AQ40: 5 | AR40: 17 | AS40: 15 | AT40: 37 | AU40: 5 | AV40: 15 | AW40: 19 | AX40: 39 | AY40: 5 | AZ40: 14 | BA40: 18 | BB40: 37 | BC40: 7 | BD40: 20 | BE40: 14 | BF40: 41 | BG40: 7 | BH40: 9 | BI40: 9 | BJ40: 25 | BK40: 7 | BL40: 6 | BM40: 8 | BN40: 21 | BO40: 138 | BP40: 364 | BQ40: 3 | BR40: 7 | BS40: 5 | BT40: 15 | BU40: 3 | BV40: 7 | BW40: 5 | BX40: 15 | BY40: راسبة | BZ40: و لها حق الاعادة | CA40: 3 | CB40: 2 | CC40: 2/3 | CJ40: محاسبة مالية - | CK40: احصاء - | CQ40: ادارة مخازن - | CU40: 0 | CV40: 3
A41: 32 | B41: 132 | C41: دينا محمد حسن ركابى | D41: 2/2 | E41: 2005-11-01 | F41: 00 - 11 - 15 | I41: بنات | J41: انتظام | K41: صباحى | L41: باقية | M41: 532 | N41: 7 | O41: 18 | P41: 20 | Q41: 45 | R41: 9 | S41: 9 | T41: 10 | U41: 28 | V41: 4 | W41: 12 | X41: 10 | Y41: 26 | Z41: 3 | AA41: 3 | AB41: 5 | AC41: 5 | AD41: 9 | AE41: 4 | AF41: 17 | AG41: 12 | AH41: 29 | AI41: 9 | AJ41: 10 | AK41: 11 | AL41: 30 | AM41: 7 | AN41: 8 | AO41: 8 | AP41: 23 | AQ41: 9 | AR41: 12 | AS41: 9 | AT41: 30 | AU41: 6 | AV41: 8 | AW41: 15 | AX41: 29 | AY41: 10 | AZ41: 10 | BA41: 9 | BB41: 29 | BC41: 5 | BD41: 8 | BE41: 14 | BF41: 27 | BG41: 5 | BH41: 17 | BI41: 9 | BJ41: 31 | BK41: 7 | BL41: 9 | BM41: 12 | BN41: 28 | BO41: 131 | BP41: 355 | BQ41: 4 | BR41: 6 | BS41: 7 | BT41: 17 | BU41: 4 | BV41: 8 | BW41: 8 | BX41: 20 | BY41: دورثان | BZ41: فى : احصاء - | CA41: 1 | CB41: 2 | CC41: 2/3 | CK41: احصاء - | CU41: 0 | CV41: 1
A42: 33 | B42: 133 | C42: راندا عبده جابر مرسى | D42: 3/2 | E42: 2005-11-02 | F42: 29 - 10 - 15 | I42: بنات | J42: انتظام | K42: صباحى | M42: 533 | N42: 9 | O42: 9 | P42: 19 | Q42: 37 | R42: 6 | S42: 16 | T42: 13 | U42: 35 | V42: 4 | W42: 6 | X42: 6 | Y42: 16 | Z42: 3 | AA42: 4 | AB42: 8 | AC42: 8 | AD42: 11 | AE42: 4 | AF42: 22 | AG42: 16 | AH42: 38 | AI42: 8 | AJ42: 20 | AK42: 14 | AL42: 42 | AM42: 6 | AN42: 12 | AO42: 10 | AP42: 28 | AQ42: 5 | AR42: 15 | AS42: 15 | AT42: 35 | AU42: 6 | AV42: 13 | AW42: 10 | AX42: 29 | AY42: 7 | AZ42: 15 | BA42: 8 | BB42: 30 | BC42: 7 | BD42: 18 | BE42: 15 | BF42: 40 | BG42: 7 | BH42: 13 | BI42: 8 | BJ42: 28 | BK42: 8 | BL42: 12 | BM42: 11 | BN42: 31 | BO42: 165 | BP42: 389 | BQ42: 3 | BR42: 4 | BS42: 8 | BT42: 15 | BU42: 3 | BV42: 5 | BW42: 6 | BX42: 14 | BY42: ناجحة | BZ42: و منقولة للصف الثانى | CA42: 0 | CB42: 2 | CC42: 2/3 | CU42: 0 | CV42: 0
A43: 34 | B43: 134 | C43: راندا ناصر احمد محمود | D43: 1/2 | E43: 2005-11-03 | F43: 28 - 10 - 15 | I43: بنات | J43: انتظام | K43: صباحى | M43: 534 | N43: 9 | O43: 16 | P43: 20 | Q43: 45 | R43: 9 | S43: 15 | T43: 8 | U43: 32 | V43: 3 | W43: 9 | X43: 7 | Y43: 19 | Z43: 3 | AA43: 4 | AB43: 7 | AC43: 7 | AD43: 5 | AE43: 5 | AF43: 15 | AG43: 16 | AH43: 31 | AI43: 6 | AJ43: 9 | AK43: 17 | AL43: 32 | AM43: 8 | AN43: 10 | AO43: 14 | AP43: 32 | AQ43: 9 | AR43: 12 | AS43: 12 | AT43: 33 | AU43: 7 | AV43: 18 | AW43: 8 | AX43: 33 | AY43: 10 | AZ43: 11 | BA43: 15 | BB43: 36 | BC43: 7 | BD43: 13 | BE43: 13 | BF43: 33 | BG43: 5 | BH43: 9 | BI43: 17 | BJ43: 31 | BK43: 5 | BL43: 17 | BM43: 9 | BN43: 31 | BO43: 153 | BP43: 388 | BQ43: 3 | BR43: 5 | BS43: 5 | BT43: 13 | BU43: 4 | BV43: 6 | BW43: 7 | BX43: 17 | BY43: ناجحة | BZ43: و منقولة للصف الثانى | CA43: 0 | CB43: 2 | CC43: 2/3 | CU43: 0 | CV43: 0
A44: 35 | B44: 135 | C44: رانيا ربيع صغير حسن | D44: 1/2 | E44: 2005-11-04 | F44: 27 - 10 - 15 | I44: بنات | J44: انتظام | K44: صباحى | M44: 535 | N44: 10 | O44: 14 | P44: 19 | Q44: 43 | R44: 7 | S44: 19 | T44: 14 | U44: 40 | V44: 3 | W44: 9 | X44: 11 | Y44: 23 | Z44: 6 | AA44: 4 | AB44: 10 | AC44: 8 | AD44: 9 | AE44: 8 | AF44: 25 | AG44: 20 | AH44: 45 | AI44: 6 | AJ44: 15 | AK44: 20 | AL44: 41 | AM44: 10 | AN44: 18 | AO44: 10 | AP44: 38 | AQ44: 8 | AR44: 10 | AS44: 18 | AT44: 36 | AU44: 10 | AV44: 20 | AW44: 12 | AX44: 42 | AY44: 10 | AZ44: 12 | BA44: 8 | BB44: 30 | BC44: 10 | BD44: 9 | BE44: 13 | BF44: 32 | BG44: 5 | BH44: 15 | BI44: 10 | BJ44: 30 | BK44: 9 | BL44: 11 | BM44: 18 | BN44: 38 | BO44: 170 | BP44: 438 | BQ44: 4 | BR44: 8 | BS44: 5 | BT44: 17 | BU44: 4 | BV44: 7 | BW44: 4 | BX44: 15 | BY44: ناجحة | BZ44: و منقولة للصف الثانى | CA44: 0 | CB44: 2 | CC44: 2/3 | CU44: 0 | CV44: 0
A45: 36 | B45: 136 | C45: رانيا رمضان محمود سليم | D45: 1/2 | E45: 2005-11-05 | F45: 26 - 10 - 15 | I45: بنات | J45: انتظام | K45: صباحى | M45: 536 | N45: 7 | O45: 9 | P45: 11 | Q45: 27 | R45: 7 | S45: 13 | T45: 16 | U45: 36 | V45: 6 | W45: 12 | X45: 10 | Y45: 28 | Z45: 6 | AA45: 4 | AB45: 5 | AC45: 5 | AD45: 7 | AE45: 8 | AF45: 18 | AG45: 17 | AH45: 35 | AI45: 8 | AJ45: 20 | AK45: 20 | AL45: 48 | AM45: 7 | AN45: 20 | AO45: 8 | AP45: 35 | AQ45: 8 | AR45: 13 | AS45: 8 | AT45: 29 | AU45: 8 | AV45: 20 | AW45: 17 | AX45: 45 | AY45: 6 | AZ45: 12 | BA45: 13 | BB45: 31 | BC45: 5 | BD45: 19 | BE45: 17 | BF45: 41 | BG45: 7 | BH45: 12 | BI45: 19 | BJ45: 38 | BK45: 8 | BL45: 15 | BM45: 19 | BN45: 42 | BO45: 175 | BP45: 435 | BQ45: 3 | BR45: 6 | BS45: 6 | BT45: 15 | BU45: 3 | BV45: 6 | BW45: 7 | BX45: 16 | BY45: ناجحة | BZ45: و منقولة للصف الثانى | CA45: 0 | CB45: 2 | CC45: 2/3 | CU45: 0 | CV45: 0
A46: 37 | B46: 137 | C46: رحاب حسب الله سليمان قرين | D46: 2/2 | E46: 2005-11-06 | F46: 25 - 10 - 15 | I46: بنات | J46: انتظام | K46: صباحى | M46: 537 | N46: 5 | O46: 13 | P46: 13 | Q46: 31 | R46: 5 | S46: 19 | T46: 9 | U46: 33 | V46: 4 | W46: 11 | X46: 6 | Y46: 21 | Z46: 6 | AA46: 3 | AB46: 11 | AC46: 8 | AD46: 5 | AE46: 8 | AF46: 22 | AG46: 19 | AH46: 41 | AI46: 10 | AJ46: 18 | AK46: 11 | AL46: 39 | AM46: 8 | AN46: 20 | AO46: 12 | AP46: 40 | AQ46: 8 | AR46: 15 | AS46: 16 | AT46: 39 | AU46: 5 | AV46: 19 | AW46: 19 | AX46: 43 | AY46: 6 | AZ46: 12 | BA46: 19 | BB46: 37 | BC46: 5 | BD46: 17 | BE46: 14 | BF46: 36 | BG46: 8 | BH46: 20 | BI46: 17 | BJ46: 45 | BK46: 6 | BL46: 18 | BM46: 19 | BN46: 43 | BO46: 201 | BP46: 448 | BQ46: 4 | BR46: 6 | BS46: 6 | BT46: 16 | BU46: 3 | BV46: 7 | BW46: 5 | BX46: 15 | BY46: ناجحة | BZ46: و منقولة للصف الثانى | CA46: 0 | CB46: 2 | CC46: 2/3 | CU46: 0 | CV46: 0
A47: 38 | B47: 138 | C47: رحاب عبدالكريم محمود احمد | D47: 1/2 | E47: 2005-11-07 | F47: 24 - 10 - 15 | I47: بنات | J47: انتظام | K47: صباحى | M47: 538 | N47: 5 | O47: 5 | P47: 5 | Q47: 15 | R47: 8 | S47: 17 | T47: 19 | U47: 44 | V47: 6 | W47: 5 | X47: 12 | Y47: 23 | Z47: 6 | AA47: 3 | AB47: 8 | AC47: 4 | AD47: 12 | AE47: 6 | AF47: 26 | AG47: 13 | AH47: 39 | AI47: 5 | AJ47: 6 | AK47: 7 | AL47: 18 | AM47: 9 | AN47: 14 | AO47: 16 | AP47: 39 | AQ47: 5 | AR47: 4 | AS47: 6 | AT47: 15 | AU47: 7 | AV47: 17 | AW47: 19 | AX47: 43 | AY47: 10 | AZ47: 9 | BA47: 15 | BB47: 34 | BC47: 9 | BD47: 14 | BE47: 8 | BF47: 31 | BG47: 8 | BH47: 17 | BI47: 11 | BJ47: 36 | BK47: 8 | BL47: 8 | BM47: 14 | BN47: 30 | BO47: 128 | BP47: 367 | BQ47: 4 | BR47: 5 | BS47: 6 | BT47: 15 | BU47: 4 | BV47: 5 | BW47: 5 | BX47: 14 | BY47: راسبة | BZ47: و لها حق الاعادة | CA47: 3 | CB47: 2 | CC47: 2/3 | CF47: لغة عربية - | CJ47: محاسبة مالية - | CL47: رياضة مالية - | CU47: 0 | CV47: 3
A48: 39 | B48: 139 | C48: رحاب محمد صديق محمد | D48: 2/2 | E48: 2005-11-08 | F48: 23 - 10 - 15 | I48: بنات | J48: انتظام | K48: صباحى | M48: 539 | N48: 10 | O48: 19 | P48: 15 | Q48: 44 | R48: 6 | S48: 18 | T48: 20 | U48: 44 | V48: 6 | W48: 9 | X48: 12 | Y48: 27 | Z48: 6 | AA48: 4 | AB48: 5 | AC48: 8 | AD48: 9 | AE48: 7 | AF48: 20 | AG48: 19 | AH48: 39 | AI48: 6 | AJ48: 11 | AK48: 17 | AL48: 34 | AM48: 7 | AN48: 18 | AO48: 9 | AP48: 34 | AQ48: 10 | AR48: 10 | AS48: 17 | AT48: 37 | AU48: 7 | AV48: 10 | AW48: 11 | AX48: 28 | AY48: 8 | AZ48: 14 | BA48: 14 | BB48: 36 | BC48: 8 | BD48: 8 | BE48: 16 | BF48: 32 | BG48: 9 | BH48: 10 | BI48: 14 | BJ48: 33 | BK48: 5 | BL48: 9 | BM48: 19 | BN48: 33 | BO48: 149 | BP48: 421 | BQ48: 4 | BR48: 7 | BS48: 4 | BT48: 15 | BU48: 4 | BV48: 6 | BW48: 8 | BX48: 18 | BY48: ناجحة | BZ48: و منقولة للصف الثانى | CA48: 0 | CB48: 2 | CC48: 2/3 | CU48: 0 | CV48: 0
A49: 40 | B49: 140 | C49: رحاب محمود سمان | D49: 1/2 | E49: 2005-11-09 | F49: 22 - 10 - 15 | I49: بنات | J49: انتظام | K49: صباحى | L49: باقية | M49: 540 | N49: 7 | O49: 9 | P49: 17 | Q49: 33 | R49: 10 | S49: 18 | T49: 20 | U49: 48 | V49: 6 | W49: 12 | X49: 12 | Y49: 30 | Z49: 4 | AA49: 4 | AB49: 9 | AC49: 5 | AD49: 8 | AE49: 8 | AF49: 21 | AG49: 17 | AH49: 38 | AI49: 8 | AJ49: 11 | AK49: 13 | AL49: 32 | AM49: 8 | AN49: 12 | AO49: 20 | AP49: 40 | AQ49: 8 | AR49: 8 | AS49: 11 | AT49: 27 | AU49: 8 | AV49: 19 | AW49: 12 | AX49: 39 | AY49: 8 | AZ49: 14 | BA49: 14 | BB49: 36 | BC49: 10 | BD49: 12 | BE49: 17 | BF49: 39 | BG49: 5 | BH49: 11 | BI49: 18 | BJ49: 34 | BK49: 7 | BL49: 10 | BM49: 11 | BN49: 28 | BO49: 150 | BP49: 424 | BQ49: 3 | BR49: 4 | BS49: 7 | BT49: 14 | BU49: 4 | BV49: 6 | BW49: 5 | BX49: 15 | BY49: ناجحة | BZ49: و منقولة للصف الثانى | CA49: 0 | CB49: 2 | CC49: 2/3 | CU49: 0 | CV49: 0
A50: 41 | B50: 141 | C50: رحمه رمضان محمود عبدالمعبود | D50: 1/2 | E50: 2005-11-10 | F50: 21 - 10 - 15 | I50: بنات | J50: انتظام | K50: صباحى | M50: 541 | N50: 6 | O50: 17 | P50: 10 | Q50: 33 | R50: 8 | S50: 12 | T50: 18 | U50: 38 | V50: 3 | W50: 8 | X50: 6 | Y50: 17 | Z50: 4 | AA50: 4 | AB50: 7 | AC50: 4 | AD50: 7 | AE50: 5 | AF50: 18 | AG50: 13 | AH50: 31 | AI50: 6 | AJ50: 16 | AK50: 18 | AL50: 40 | AM50: 7 | AN50: 20 | AO50: 15 | AP50: 42 | AQ50: 9 | AR50: 13 | AS50: 13 | AT50: 35 | AU50: 10 | AV50: 17 | AW50: 10 | AX50: 37 | AY50: 5 | AZ50: 9 | BA50: 14 | BB50: 28 | BC50: 5 | BD50: 16 | BE50: 11 | BF50: 32 | BG50: 6 | BH50: 15 | BI50: 11 | BJ50: 32 | BK50: 6 | BL50: 18 | BM50: 16 | BN50: 40 | BO50: 172 | BP50: 405 | BQ50: 4 | BR50: 8 | BS50: 7 | BT50: 19 | BU50: 4 | BV50: 4 | BW50: 7 | BX50: 15 | BY50: ناجحة | BZ50: و منقولة للصف الثانى | CA50: 0 | CB50: 2 | CC50: 2/3 | CU50: 0 | CV50: 0
A51: 42 | B51: 142 | C51: ريم حسين محمود عبيد | D51: 1/2 | E51: 2005-11-11 | F51: 20 - 10 - 15 | I51: بنات | J51: انتظام | K51: صباحى | M51: 542 | N51: 6 | O51: 18 | P51: 19 | Q51: 43 | R51: 5 | S51: 20 | T51: 12 | U51: 37 | V51: 5 | W51: 11 | X51: 12 | Y51: 28 | Z51: 5 | AA51: 4 | AB51: 12 | AC51: 8 | AD51: 11 | AE51: 4 | AF51: 28 | AG51: 16 | AH51: 44 | AI51: 7 | AJ51: 10 | AK51: 15 | AL51: 32 | AM51: 9 | AN51: 15 | AO51: 12 | AP51: 36 | AQ51: 8 | AR51: 11 | AS51: 16 | AT51: 35 | AU51: 10 | AV51: 18 | AW51: 20 | AX51: 48 | AY51: 8 | AZ51: 17 | BA51: 20 | BB51: 45 | BC51: 9 | BD51: 8 | BE51: 10 | BF51: 27 | BG51: 9 | BH51: 16 | BI51: 9 | BJ51: 34 | BK51: 5 | BL51: 17 | BM51: 14 | BN51: 36 | BO51: 181 | BP51: 445 | BQ51: 4 | BR51: 8 | BS51: 6 | BT51: 18 | BU51: 3 | BV51: 8 | BW51: 4 | BX51: 15 | BY51: ناجحة | BZ51: و منقولة للصف الثانى | CA51: 0 | CB51: 2 | CC51: 2/3 | CU51: 0 | CV51: 0
A52: 43 | B52: 143 | C52: ريهام رمضان متولى محمود | D52: 2/2 | E52: 2005-11-12 | F52: 19 - 10 - 15 | I52: بنات | J52: انتظام | K52: صباحى | M52: 543 | N52: 8 | O52: 10 | P52: 8 | Q52: 26 | R52: 8 | S52: 12 | T52: 9 | U52: 29 | V52: 5 | W52: 10 | X52: 11 | Y52: 26 | Z52: 6 | AA52: 3 | AB52: 10 | AC52: 8 | AD52: 11 | AE52: 6 | AF52: 27 | AG52: 17 | AH52: 44 | AI52: 5 | AJ52: 15 | AK52: 10 | AL52: 30 | AM52: 5 | AN52: 8 | AO52: 12 | AP52: 25 | AQ52: 6 | AR52: 19 | AS52: 16 | AT52: 41 | AU52: 9 | AV52: 20 | AW52: 13 | AX52: 42 | AY52: 8 | AZ52: 13 | BA52: 19 | BB52: 40 | BC52: 6 | BD52: 10 | BE52: 11 | BF52: 27 | BG52: 8 | BH52: 15 | BI52: 13 | BJ52: 36 | BK52: 5 | BL52: 10 | BM52: 14 | BN52: 29 | BO52: 160 | BP52: 395 | BQ52: 3 | BR52: 6 | BS52: 6 | BT52: 15 | BU52: 3 | BV52: 7 | BW52: 6 | BX52: 16 | BY52: ناجحة | BZ52: و منقولة للصف الثانى | CA52: 0 | CB52: 2 | CC52: 2/3 | CU52: 0 | CV52: 0
A53: 44 | B53: 144 | C53: زينب حسين محمد شمس الدين | D53: 1/2 | E53: 2005-11-13 | F53: 18 - 10 - 15 | I53: بنات | J53: انتظام | K53: صباحى | M53: 544 | N53: 10 | O53: 14 | P53: 18 | Q53: 42 | R53: 9 | S53: 18 | T53: 12 | U53: 39 | V53: 4 | W53: 7 | X53: 12 | Y53: 23 | Z53: 6 | AA53: 3 | AB53: 5 | AC53: 7 | AD53: 10 | AE53: 7 | AF53: 21 | AG53: 17 | AH53: 38 | AI53: 10 | AJ53: 11 | AK53: 16 | AL53: 37 | AM53: 7 | AN53: 12 | AO53: 15 | AP53: 34 | AQ53: 7 | AR53: 14 | AS53: 16 | AT53: 37 | AU53: 5 | AV53: 12 | AW53: 16 | AX53: 33 | AY53: 7 | AZ53: 18 | BA53: 16 | BB53: 41 | BC53: 7 | BD53: 10 | BE53: 10 | BF53: 27 | BG53: 8 | BH53: 10 | BI53: 14 | BJ53: 32 | BK53: 10 | BL53: 12 | BM53: 10 | BN53: 32 | BO53: 150 | BP53: 415 | BQ53: 3 | BR53: 4 | BS53: 8 | BT53: 15 | BU53: 3 | BV53: 4 | BW53: 8 | BX53: 15 | BY53: ناجحة | BZ53: و منقولة للصف الثانى | CA53: 0 | CB53: 2 | CC53: 2/3 | CU53: 0 | CV53: 0
A54: 45 | B54: 145 | C54: ساره احمد عبدالنبى محمد | D54: 1/2 | E54: 2005-11-14 | F54: 17 - 10 - 15 | I54: بنات | J54: انتظام | K54: صباحى | M54: 545 | N54: 6 | O54: 19 | P54: 8 | Q54: 33 | R54: 9 | S54: 15 | T54: 11 | U54: 35 | V54: 5 | W54: 5 | X54: 8 | Y54: 18 | Z54: 4 | AA54: 3 | AB54: 9 | AC54: 5 | AD54: 7 | AE54: 8 | AF54: 20 | AG54: 16 | AH54: 36 | AI54: 7 | AJ54: 16 | AK54: 11 | AL54: 34 | AM54: 7 | AN54: 8 | AO54: 14 | AP54: 29 | AQ54: 8 | AR54: 11 | AS54: 13 | AT54: 32 | AU54: 8 | AV54: 12 | AW54: 20 | AX54: 40 | AY54: 7 | AZ54: 13 | BA54: 18 | BB54: 38 | BC54: 8 | BD54: 14 | BE54: 14 | BF54: 36 | BG54: 9 | BH54: 19 | BI54: 14 | BJ54: 42 | BK54: 7 | BL54: 14 | BM54: 19 | BN54: 40 | BO54: 160 | BP54: 413 | BQ54: 4 | BR54: 5 | BS54: 4 | BT54: 13 | BU54: 4 | BV54: 6 | BW54: 7 | BX54: 17 | BY54: ناجحة | BZ54: و منقولة للصف الثانى | CA54: 0 | CB54: 2 | CC54: 2/3 | CU54: 0 | CV54: 0
A55: 46 | B55: 146 | C55: ساره احمد على سليمان | D55: 2/2 | E55: 2005-11-15 | F55: 16 - 10 - 15 | I55: بنات | J55: انتظام | K55: صباحى | M55: 546 | N55: 9 | O55: 14 | P55: 20 | Q55: 43 | R55: 9 | S55: 18 | T55: 20 | U55: 47 | V55: 5 | W55: 10 | X55: 11 | Y55: 26 | Z55: 6 | AA55: 3 | AB55: 9 | AC55: 5 | AD55: 10 | AE55: 4 | AF55: 25 | AG55: 12 | AH55: 37 | AI55: 6 | AJ55: 6 | AK55: 7 | AL55: 19 | AM55: 5 | AN55: 8 | AO55: 6 | AP55: 19 | AQ55: 10 | AR55: 5 | AS55: 6 | AT55: 21 | AU55: 8 | AV55: 10 | AW55: 19 | AX55: 37 | AY55: 8 | AZ55: 13 | BA55: 20 | BB55: 41 | BC55: 10 | BD55: 20 | BE55: 12 | BF55: 42 | BG55: 7 | BH55: 15 | BI55: 13 | BJ55: 35 | BK55: 9 | BL55: 19 | BM55: 10 | BN55: 38 | BO55: 152 | BP55: 405 | BQ55: 4 | BR55: 8 | BS55: 6 | BT55: 18 | BU55: 4 | BV55: 7 | BW55: 8 | BX55: 19 | BY55: راسبة | BZ55: و لها حق الاعادة | CA55: 3 | CB55: 2 | CC55: 2/3 | CJ55: محاسبة مالية - | CK55: احصاء - | CL55: رياضة مالية - | CU55: 0 | CV55: 3
A56: 47 | B56: 147 | C56: سيمون رزيقى شحاته ميخائيل | D56: 2/2 | E56: 2005-11-16 | F56: 15 - 10 - 15 | I56: بنات | J56: انتظام | K56: صباحى | M56: 547 | N56: 5 | O56: 19 | P56: 15 | Q56: 39 | R56: 5 | S56: 12 | T56: 19 | U56: 36 | V56: 3 | W56: 7 | X56: 9 | Y56: 19 | Z56: 3 | AA56: 4 | AB56: 11 | AC56: 8 | AD56: 7 | AE56: 6 | AF56: 21 | AG56: 18 | AH56: 39 | AI56: 7 | AJ56: 11 | AK56: 9 | AL56: 27 | AM56: 9 | AN56: 11 | AO56: 9 | AP56: 29 | AQ56: 8 | AR56: 9 | AS56: 11 | AT56: 28 | AU56: 5 | AV56: 17 | AW56: 13 | AX56: 35 | AY56: 9 | AZ56: 17 | BA56: 9 | BB56: 35 | BC56: 8 | BD56: 8 | BE56: 17 | BF56: 33 | BG56: 9 | BH56: 11 | BI56: 8 | BJ56: 28 | BK56: 8 | BL56: 10 | BM56: 9 | BN56: 27 | BO56: 151 | BP56: 375 | BQ56: 3 | BR56: 5 | BS56: 5 | BT56: 13 | BU56: 3 | BV56: 4 | BW56: 7 | BX56: 14 | BY56: ناجحة | BZ56: و منقولة للصف الثانى | CA56: 0 | CB56: 2 | CC56: 2/3 | CU56: 0 | CV56: 0
A57: 48 | B57: 148 | C57: شروق شاذلى صبرى ابوالوفا | D57: 2/2 | E57: 2005-11-17 | F57: 14 - 10 - 15 | I57: بنات | J57: انتظام | K57: صباحى | M57: 548 | N57: 9 | O57: 11 | P57: 11 | Q57: 31 | R57: 10 | S57: 18 | T57: 18 | U57: 46 | V57: 3 | W57: 7 | X57: 12 | Y57: 22 | Z57: 5 | AA57: 3 | AB57: 5 | AC57: 6 | AD57: 9 | AE57: 4 | AF57: 19 | AG57: 13 | AH57: 32 | AI57: 5 | AJ57: 15 | AK57: 16 | AL57: 36 | AM57: 6 | AN57: 9 | AO57: 16 | AP57: 31 | AQ57: 7 | AR57: 14 | AS57: 20 | AT57: 41 | AU57: 5 | AV57: 19 | AW57: 9 | AX57: 33 | AY57: 6 | AZ57: 20 | BA57: 9 | BB57: 35 | BC57: 6 | BD57: 13 | BE57: 20 | BF57: 39 | BG57: 10 | BH57: 8 | BI57: 10 | BJ57: 28 | BK57: 6 | BL57: 12 | BM57: 17 | BN57: 35 | BO57: 157 | BP57: 409 | BQ57: 3 | BR57: 7 | BS57: 4 | BT57: 14 | BU57: 3 | BV57: 5 | BW57: 5 | BX57: 13 | BY57: ناجحة | BZ57: و منقولة للصف الثانى | CA57: 0 | CB57: 2 | CC57: 2/3 | CU57: 0 | CV57: 0
A58: 49 | B58: 149 | C58: شيماء عبداللطيف على عبداللطيف | D58: 2/2 | E58: 2005-11-18 | F58: 13 - 10 - 15 | I58: بنات | J58: انتظام | K58: صباحى | M58: 549 | N58: 10 | O58: 17 | P58: 20 | Q58: 47 | R58: 8 | S58: 20 | T58: 13 | U58: 41 | V58: 6 | W58: 11 | X58: 5 | Y58: 22 | Z58: 5 | AA58: 4 | AB58: 10 | AC58: 5 | AD58: 6 | AE58: 7 | AF58: 21 | AG58: 16 | AH58: 37 | AI58: 10 | AJ58: 18 | AK58: 14 | AL58: 42 | AM58: 10 | AN58: 10 | AO58: 13 | AP58: 33 | AQ58: 8 | AR58: 10 | AS58: 17 | AT58: 35 | AU58: 6 | AV58: 11 | AW58: 13 | AX58: 30 | AY58: 6 | AZ58: 19 | BA58: 17 | BB58: 42 | BC58: 7 | BD58: 20 | BE58: 9 | BF58: 36 | BG58: 10 | BH58: 12 | BI58: 13 | BJ58: 35 | BK58: 8 | BL58: 16 | BM58: 8 | BN58: 32 | BO58: 179 | BP58: 432 | BQ58: 4 | BR58: 5 | BS58: 8 | BT58: 17 | BU58: 3 | BV58: 5 | BW58: 7 | BX58: 15 | BY58: ناجحة | BZ58: و منقولة للصف الثانى | CA58: 0 | CB58: 2 | CC58: 2/3 | CU58: 0 | CV58: 0
A59: 50 | B59: 150 | C59: شيماء فرج محمود عبدالله | D59: 2/2 | E59: 2005-11-19 | F59: 12 - 10 - 15 | I59: بنات | J59: انتظام | K59: صباحى | M59: 550 | N59: 10 | O59: 9 | P59: 11 | Q59: 30 | R59: 7 | S59: 10 | T59: 13 | U59: 30 | V59: 3 | W59: 5 | X59: 5 | Y59: 13 | Z59: 4 | AA59: 3 | AB59: 12 | AC59: 4 | AD59: 11 | AE59: 6 | AF59: 27 | AG59: 13 | AH59: 40 | AI59: 10 | AJ59: 13 | AK59: 17 | AL59: 40 | AM59: 9 | AN59: 19 | AO59: 14 | AP59: 42 | AQ59: 5 | AR59: 11 | AS59: 9 | AT59: 25 | AU59: 7 | AV59: 11 | AW59: 17 | AX59: 35 | AY59: 7 | AZ59: 15 | BA59: 15 | BB59: 37 | BC59: 9 | BD59: 17 | BE59: 14 | BF59: 40 | BG59: 7 | BH59: 11 | BI59: 17 | BJ59: 35 | BK59: 6 | BL59: 13 | BM59: 19 | BN59: 38 | BO59: 150 | BP59: 405 | BQ59: 4 | BR59: 4 | BS59: 5 | BT59: 13 | BU59: 4 | BV59: 8 | BW59: 6 | BX59: 18 | BY59: ناجحة | BZ59: و منقولة للصف الثانى | CA59: 0 | CB59: 2 | CC59: 2/3 | CU59: 0 | CV59: 0
A60: 51 | B60: 151 | C60: شيماء مصطفى احمد محمد | D60: 3/2 | E60: 2005-11-20 | F60: 11 - 10 - 15 | I60: بنات | J60: انتظام | K60: صباحى | M60: 551 | N60: 10 | O60: 12 | P60: 14 | Q60: 36 | R60: 7 | S60: 16 | T60: 13 | U60: 36 | V60: 5 | W60: 5 | X60: 5 | Y60: 15 | Z60: 6 | AA60: 4 | AB60: 8 | AC60: 6 | AD60: 6 | AE60: 5 | AF60: 20 | AG60: 15 | AH60: 35 | AI60: 7 | AJ60: 12 | AK60: 10 | AL60: 29 | AM60: 5 | AN60: 18 | AO60: 18 | AP60: 41 | AQ60: 7 | AR60: 18 | AS60: 18 | AT60: 43 | AU60: 9 | AV60: 14 | AW60: 10 | AX60: 33 | AY60: 9 | AZ60: 16 | BA60: 18 | BB60: 43 | BC60: 7 | BD60: 10 | BE60: 12 | BF60: 29 | BG60: 9 | BH60: 18 | BI60: 18 | BJ60: 45 | BK60: 7 | BL60: 10 | BM60: 16 | BN60: 33 | BO60: 163 | BP60: 418 | BQ60: 3 | BR60: 8 | BS60: 4 | BT60: 15 | BU60: 3 | BV60: 7 | BW60: 7 | BX60: 17 | BY60: ناجحة | BZ60: و منقولة للصف الثانى | CA60: 0 | CB60: 3 | CC60: 3/3 | CU60: 0 | CV60: 0
A61: 52 | B61: 152 | C61: صفاء جمال محمود محمد | D61: 3/2 | E61: 2005-11-21 | F61: 10 - 10 - 15 | I61: بنات | J61: انتظام | K61: صباحى | M61: 552 | N61: 7 | O61: 9 | P61: 8 | Q61: 24 | R61: 7 | S61: 16 | T61: 11 | U61: 34 | V61: 6 | W61: 12 | X61: 7 | Y61: 25 | Z61: 4 | AA61: 3 | AB61: 8 | AC61: 6 | AD61: 12 | AE61: 8 | AF61: 24 | AG61: 17 | AH61: 41 | AI61: 9 | AJ61: 10 | AK61: 15 | AL61: 34 | AM61: 7 | AN61: 11 | AO61: 12 | AP61: 30 | AQ61: 10 | AR61: 19 | AS61: 12 | AT61: 41 | AU61: 6 | AV61: 12 | AW61: 14 | AX61: 32 | AY61: 9 | AZ61: 10 | BA61: 18 | BB61: 37 | BC61: 5 | BD61: 14 | BE61: 17 | BF61: 36 | BG61: 9 | BH61: 12 | BI61: 10 | BJ61: 31 | BK61: 10 | BL61: 11 | BM61: 14 | BN61: 35 | BO61: 150 | BP61: 400 | BQ61: 3 | BR61: 6 | BS61: 4 | BT61: 13 | BU61: 4 | BV61: 4 | BW61: 8 | BX61: 16 | BY61: دورثان | BZ61: فى : لغة عربية - | CA61: 1 | CB61: 3 | CC61: 3/3 | CF61: لغة عربية - | CU61: 0 | CV61: 1
A62: 53 | B62: 153 | C62: صفاء رضوان صالح محمد | D62: 3/2 | E62: 2005-11-22 | F62: 09 - 10 - 15 | I62: بنات | J62: انتظام | K62: صباحى | M62: 553 | N62: 9 | O62: 20 | P62: 8 | Q62: 37 | R62: 10 | S62: 11 | T62: 13 | U62: 34 | V62: 3 | W62: 10 | X62: 9 | Y62: 22 | Z62: 5 | AA62: 4 | AB62: 8 | AC62: 7 | AD62: 5 | AE62: 7 | AF62: 18 | AG62: 18 | AH62: 36 | AI62: 7 | AJ62: 20 | AK62: 11 | AL62: 38 | AM62: 7 | AN62: 19 | AO62: 8 | AP62: 34 | AQ62: 10 | AR62: 10 | AS62: 13 | AT62: 33 | AU62: 7 | AV62: 18 | AW62: 10 | AX62: 35 | AY62: 10 | AZ62: 12 | BA62: 14 | BB62: 36 | BC62: 8 | BD62: 20 | BE62: 12 | BF62: 40 | BG62: 9 | BH62: 13 | BI62: 17 | BJ62: 39 | BK62: 7 | BL62: 16 | BM62: 19 | BN62: 42 | BO62: 184 | BP62: 426 | BQ62: 4 | BR62: 5 | BS62: 8 | BT62: 17 | BU62: 4 | BV62: 6 | BW62: 4 | BX62: 14 | BY62: ناجحة | BZ62: و منقولة للصف الثانى | CA62: 0 | CB62: 3 | CC62: 3/3 | CU62: 0 | CV62: 0
A63: 54 | B63: 154 | C63: صفاء شاذلى حسين احمد | D63: 3/2 | E63: 2005-11-23 | F63: 08 - 10 - 15 | I63: بنات | J63: انتظام | K63: صباحى | M63: 554 | N63: 10 | O63: 13 | P63: 14 | Q63: 37 | R63: 6 | S63: 15 | T63: 19 | U63: 40 | V63: 4 | W63: 5 | X63: 10 | Y63: 19 | Z63: 6 | AA63: 4 | AB63: 5 | AC63: 6 | AD63: 8 | AE63: 7 | AF63: 19 | AG63: 17 | AH63: 36 | AI63: 5 | AJ63: 19 | AK63: 11 | AL63: 35 | AM63: 9 | AN63: 17 | AO63: 8 | AP63: 34 | AQ63: 8 | AR63: 8 | AS63: 19 | AT63: 35 | AU63: 10 | AV63: 10 | AW63: 19 | AX63: 39 | AY63: 10 | AZ63: 10 | BA63: 11 | BB63: 31 | BC63: 8 | BD63: 13 | BE63: 20 | BF63: 41 | BG63: 6 | BH63: 18 | BI63: 12 | BJ63: 36 | BK63: 9 | BL63: 9 | BM63: 16 | BN63: 34 | BO63: 148 | BP63: 417 | BQ63: 3 | BR63: 4 | BS63: 6 | BT63: 13 | BU63: 3 | BV63: 8 | BW63: 4 | BX63: 15 | BY63: ناجحة | BZ63: و منقولة للصف الثانى | CA63: 0 | CB63: 3 | CC63: 3/3 | CU63: 0 | CV63: 0
A64: 55 | B64: 155 | C64: ضحى محمد عيد مهلل | D64: 1/2 | E64: 2005-11-24 | F64: 07 - 10 - 15 | I64: بنات | J64: انتظام | K64: صباحى | M64: 555 | N64: 8 | O64: 10 | P64: 10 | Q64: 28 | R64: 10 | S64: 13 | T64: 9 | U64: 32 | V64: 5 | W64: 8 | X64: 10 | Y64: 23 | Z64: 6 | AA64: 4 | AB64: 6 | AC64: 4 | AD64: 9 | AE64: 4 | AF64: 21 | AG64: 12 | AH64: 33 | AI64: 9 | AJ64: 19 | AK64: 18 | AL64: 46 | AM64: 6 | AN64: 13 | AO64: 9 | AP64: 28 | AQ64: 5 | AR64: 11 | AS64: 9 | AT64: 25 | AU64: 10 | AV64: 11 | AW64: 15 | AX64: 36 | AY64: 7 | AZ64: 14 | BA64: 16 | BB64: 37 | BC64: 9 | BD64: 10 | BE64: 8 | BF64: 27 | BG64: 9 | BH64: 16 | BI64: 13 | BJ64: 38 | BK64: 8 | BL64: 8 | BM64: 11 | BN64: 27 | BO64: 143 | BP64: 380 | BQ64: 3 | BR64: 5 | BS64: 8 | BT64: 16 | BU64: 3 | BV64: 8 | BW64: 6 | BX64: 17 | BY64: ناجحة | BZ64: و منقولة للصف الثانى | CA64: 0 | CB64: 3 | CC64: 3/3 | CU64: 0 | CV64: 0
A65: 56 | B65: 156 | C65: ضحى محمود احمد حافظ | D65: 3/2 | E65: 2005-11-25 | F65: 06 - 10 - 15 | I65: بنات | J65: انتظام | K65: صباحى | M65: 556 | N65: 7 | O65: 17 | P65: 12 | Q65: 36 | R65: 8 | S65: 12 | T65: 10 | U65: 30 | V65: 5 | W65: 8 | X65: 10 | Y65: 23 | Z65: 3 | AA65: 4 | AB65: 6 | AC65: 6 | AD65: 5 | AE65: 6 | AF65: 14 | AG65: 16 | AH65: 30 | AI65: 10 | AJ65: 9 | AK65: 20 | AL65: 39 | AM65: 5 | AN65: 10 | AO65: 15 | AP65: 30 | AQ65: 5 | AR65: 17 | AS65: 18 | AT65: 40 | AU65: 6 | AV65: 15 | AW65: 14 | AX65: 35 | AY65: 5 | AZ65: 13 | BA65: 19 | BB65: 37 | BC65: 8 | BD65: 11 | BE65: 9 | BF65: 28 | BG65: 6 | BH65: 17 | BI65: 11 | BJ65: 34 | BK65: 8 | BL65: 11 | BM65: 17 | BN65: 36 | BO65: 152 | BP65: 398 | BQ65: 3 | BR65: 5 | BS65: 4 | BT65: 12 | BU65: 3 | BV65: 4 | BW65: 5 | BX65: 12 | BY65: دورثان | BZ65: فى : حاسب الى - | CA65: 1 | CB65: 3 | CC65: 3/3 | CI65: حاسب الى - | CU65: 0 | CV65: 1
A66: 57 | B66: 157 | C66: عائشه امير حسين عبدالكريم | D66: 3/2 | E66: 2005-11-26 | F66: 05 - 10 - 15 | I66: بنات | J66: انتظام | K66: صباحى | M66: 557 | N66: 7 | O66: 9 | P66: 9 | Q66: 25 | R66: 5 | S66: 12 | T66: 14 | U66: 31 | V66: 3 | W66: 12 | X66: 11 | Y66: 26 | Z66: 5 | AA66: 3 | AB66: 12 | AC66: 8 | AD66: 5 | AE66: 6 | AF66: 22 | AG66: 17 | AH66: 39 | AI66: 9 | AJ66: 20 | AK66: 17 | AL66: 46 | AM66: 5 | AN66: 11 | AO66: 17 | AP66: 33 | AQ66: 6 | AR66: 8 | AS66: 11 | AT66: 25 | AU66: 8 | AV66: 8 | AW66: 15 | AX66: 31 | AY66: 10 | AZ66: 17 | BA66: 18 | BB66: 45 | BC66: 7 | BD66: 12 | BE66: 18 | BF66: 37 | BG66: 7 | BH66: 17 | BI66: 12 | BJ66: 36 | BK66: 5 | BL66: 17 | BM66: 19 | BN66: 41 | BO66: 163 | BP66: 415 | BQ66: 3 | BR66: 6 | BS66: 6 | BT66: 15 | BU66: 4 | BV66: 4 | BW66: 7 | BX66: 15 | BY66: ناجحة | BZ66: و منقولة للصف الثانى | CA66: 0 | CB66: 3 | CC66: 3/3 | CU66: 0 | CV66: 0
A67: 58 | B67: 158 | C67: عبير ربيع سعد محمد | D67: 1/2 | E67: 2005-11-27 | F67: 04 - 10 - 15 | I67: بنات | J67: انتظام | K67: صباحى | M67: 558 | N67: 5 | O67: 13 | P67: 10 | Q67: 28 | R67: 7 | S67: 17 | T67: 20 | U67: 44 | V67: 4 | W67: 10 | X67: 9 | Y67: 23 | Z67: 6 | AA67: 4 | AB67: 5 | AC67: 7 | AD67: 11 | AE67: 8 | AF67: 22 | AG67: 19 | AH67: 41 | AI67: 9 | AJ67: 11 | AK67: 18 | AL67: 38 | AM67: 5 | AN67: 13 | AO67: 17 | AP67: 35 | AQ67: 7 | AR67: 14 | AS67: 19 | AT67: 40 | AU67: 5 | AV67: 16 | AW67: 14 | AX67: 35 | AY67: 6 | AZ67: 20 | BA67: 11 | BB67: 37 | BC67: 5 | BD67: 17 | BE67: 8 | BF67: 30 | BG67: 5 | BH67: 11 | BI67: 10 | BJ67: 26 | BK67: 10 | BL67: 14 | BM67: 18 | BN67: 42 | BO67: 168 | BP67: 419 | BQ67: 4 | BR67: 7 | BS67: 7 | BT67: 18 | BU67: 4 | BV67: 5 | BW67: 4 | BX67: 13 | BY67: ناجحة | BZ67: و منقولة للصف الثانى | CA67: 0 | CB67: 3 | CC67: 3/3 | CU67: 0 | CV67: 0
A68: 59 | B68: 159 | C68: عبيراحمد عبدالظاهر محمود | D68: 2/2 | E68: 2005-11-28 | F68: 03 - 10 - 15 | I68: بنات | J68: انتظام | K68: صباحى | M68: 559 | N68: 7 | O68: 8 | P68: 5 | Q68: 20 | R68: 9 | S68: 13 | T68: 19 | U68: 41 | V68: 6 | W68: 5 | X68: 12 | Y68: 23 | Z68: 4 | AA68: 4 | AB68: 9 | AC68: 5 | AD68: 11 | AE68: 4 | AF68: 24 | AG68: 13 | AH68: 37 | AI68: 7 | AJ68: 13 | AK68: 20 | AL68: 40 | AM68: 6 | AN68: 6 | AO68: 7 | AP68: 19 | AQ68: 9 | AR68: 8 | AS68: 5 | AT68: 22 | AU68: 9 | AV68: 18 | AW68: 13 | AX68: 40 | AY68: 6 | AZ68: 12 | BA68: 18 | BB68: 36 | BC68: 10 | BD68: 18 | BE68: 9 | BF68: 37 | BG68: 5 | BH68: 8 | BI68: 10 | BJ68: 23 | BK68: 8 | BL68: 13 | BM68: 18 | BN68: 39 | BO68: 136 | BP68: 377 | BQ68: 4 | BR68: 7 | BS68: 4 | BT68: 15 | BU68: 3 | BV68: 7 | BW68: 5 | BX68: 15 | BY68: راسبة | BZ68: و لها حق الاعادة | CA68: 4 | CB68: 3 | CC68: 3/3 | CF68: لغة عربية - | CK68: احصاء - | CL68: رياضة مالية - | CP68: ادارة مشروعات - | CU68: 0 | CV68: 4
A69: 60 | B69: 160 | C69: عزه هاشم محمد الطاهر | D69: 2/2 | E69: 2005-11-29 | F69: 02 - 10 - 15 | I69: بنات | J69: انتظام | K69: صباحى | M69: 560 | N69: 10 | O69: 14 | P69: 11 | Q69: 35 | R69: 8 | S69: 18 | T69: 17 | U69: 43 | V69: 5 | W69: 6 | X69: 12 | Y69: 23 | Z69: 3 | AA69: 4 | AB69: 11 | AC69: 7 | AD69: 6 | AE69: 4 | AF69: 20 | AG69: 15 | AH69: 35 | AI69: 6 | AJ69: 13 | AK69: 8 | AL69: 27 | AM69: 9 | AN69: 11 | AO69: 9 | AP69: 29 | AQ69: 5 | AR69: 11 | AS69: 13 | AT69: 29 | AU69: 9 | AV69: 18 | AW69: 18 | AX69: 45 | AY69: 8 | AZ69: 19 | BA69: 14 | BB69: 41 | BC69: 5 | BD69: 19 | BE69: 19 | BF69: 43 | BG69: 6 | BH69: 8 | BI69: 10 | BJ69: 24 | BK69: 9 | BL69: 13 | BM69: 10 | BN69: 32 | BO69: 168 | BP69: 406 | BQ69: 3 | BR69: 4 | BS69: 4 | BT69: 11 | BU69: 4 | BV69: 8 | BW69: 8 | BX69: 20 | BY69: دورثان | BZ69: فى : ادارة مشروعات - | CA69: 1 | CB69: 3 | CC69: 3/3 | CP69: ادارة مشروعات - | CU69: 0 | CV69: 1
A70: 61 | B70: 161 | C70: عطور خالد محمود عبدالحميد | D70: 3/2 | E70: 2005-11-30 | F70: 01 - 10 - 15 | I70: بنات | J70: انتظام | K70: صباحى | M70: 561 | N70: 7 | O70: 11 | P70: 16 | Q70: 34 | R70: 8 | S70: 8 | T70: 14 | U70: 30 | V70: 3 | W70: 6 | X70: 7 | Y70: 16 | Z70: 5 | AA70: 3 | AB70: 11 | AC70: 8 | AD70: 7 | AE70: 5 | AF70: 23 | AG70: 16 | AH70: 39 | AI70: 5 | AJ70: 9 | AK70: 16 | AL70: 30 | AM70: 7 | AN70: 16 | AO70: 20 | AP70: 43 | AQ70: 10 | AR70: 16 | AS70: 16 | AT70: 42 | AU70: 6 | AV70: 19 | AW70: 8 | AX70: 33 | AY70: 5 | AZ70: 14 | BA70: 8 | BB70: 27 | BC70: 9 | BD70: 9 | BE70: 8 | BF70: 26 | BG70: 5 | BH70: 18 | BI70: 17 | BJ70: 40 | BK70: 6 | BL70: 11 | BM70: 10 | BN70: 27 | BO70: 156 | BP70: 387 | BQ70: 3 | BR70: 8 | BS70: 4 | BT70: 15 | BU70: 4 | BV70: 8 | BW70: 5 | BX70: 17 | BY70: ناجحة | BZ70: و منقولة للصف الثانى | CA70: 0 | CB70: 3 | CC70: 3/3 | CU70: 0 | CV70: 0
A71: 62 | B71: 162 | C71: علا عبدالناصرعبدالمنعم محمد | D71: 1/2 | E71: 2005-12-01 | F71: 00 - 10 - 15 | I71: بنات | J71: انتظام | K71: صباحى | M71: 562 | N71: 10 | O71: 13 | P71: 8 | Q71: 31 | R71: 9 | S71: 10 | T71: 17 | U71: 36 | V71: 4 | W71: 8 | X71: 6 | Y71: 18 | Z71: 4 | AA71: 3 | AB71: 9 | AC71: 8 | AD71: 9 | AE71: 6 | AF71: 22 | AG71: 17 | AH71: 39 | AI71: 10 | AJ71: 17 | AK71: 15 | AL71: 42 | AM71: 6 | AN71: 13 | AO71: 20 | AP71: 39 | AQ71: 6 | AR71: 13 | AS71: 18 | AT71: 37 | AU71: 8 | AV71: 19 | AW71: 13 | AX71: 40 | AY71: 9 | AZ71: 13 | BA71: 16 | BB71: 38 | BC71: 7 | BD71: 12 | BE71: 12 | BF71: 31 | BG71: 7 | BH71: 9 | BI71: 9 | BJ71: 25 | BK71: 6 | BL71: 9 | BM71: 16 | BN71: 31 | BO71: 153 | BP71: 407 | BQ71: 3 | BR71: 4 | BS71: 6 | BT71: 13 | BU71: 3 | BV71: 8 | BW71: 7 | BX71: 18 | BY71: ناجحة | BZ71: و منقولة للصف الثانى | CA71: 0 | CB71: 3 | CC71: 3/3 | CU71: 0 | CV71: 0
A72: 63 | B72: 163 | C72: علياء حسن عيد على | D72: 3/2 | E72: 2005-12-02 | F72: 29 - 09 - 15 | I72: بنات | J72: انتظام | K72: صباحى | L72: باقية | M72: 563 | N72: 7 | O72: 19 | P72: 15 | Q72: 41 | R72: 10 | S72: 18 | T72: 13 | U72: 41 | V72: 3 | W72: 11 | X72: 12 | Y72: 26 | Z72: 5 | AA72: 3 | AB72: 12 | AC72: 7 | AD72: 11 | AE72: 5 | AF72: 28 | AG72: 15 | AH72: 43 | AI72: 6 | AJ72: 20 | AK72: 10 | AL72: 36 | AM72: 8 | AN72: 19 | AO72: 11 | AP72: 38 | AQ72: 9 | AR72: 11 | AS72: 17 | AT72: 37 | AU72: 7 | AV72: 16 | AW72: 14 | AX72: 37 | AY72: 10 | AZ72: 20 | BA72: 10 | BB72: 40 | BC72: 5 | BD72: 13 | BE72: 15 | BF72: 33 | BG72: 9 | BH72: 16 | BI72: 15 | BJ72: 40 | BK72: 5 | BL72: 17 | BM72: 20 | BN72: 42 | BO72: 199 | BP72: 454 | BQ72: 4 | BR72: 6 | BS72: 5 | BT72: 15 | BU72: 3 | BV72: 4 | BW72: 8 | BX72: 15 | BY72: ناجحة | BZ72: و منقولة للصف الثانى | CA72: 0 | CB72: 3 | CC72: 3/3 | CU72: 0 | CV72: 0
A73: 64 | B73: 164 | C73: علياء حمدى محمد سليمان | D73: 2/2 | E73: 2005-12-03 | F73: 28 - 09 - 15 | I73: بنات | J73: انتظام | K73: صباحى | M73: 564 | N73: 8 | O73: 11 | P73: 8 | Q73: 27 | R73: 9 | S73: 10 | T73: 8 | U73: 27 | V73: 4 | W73: 5 | X73: 9 | Y73: 18 | Z73: 5 | AA73: 3 | AB73: 9 | AC73: 5 | AD73: 7 | AE73: 5 | AF73: 21 | AG73: 13 | AH73: 34 | AI73: 7 | AJ73: 10 | AK73: 12 | AL73: 29 | AM73: 10 | AN73: 11 | AO73: 13 | AP73: 34 | AQ73: 6 | AR73: 9 | AS73: 11 | AT73: 26 | AU73: 5 | AV73: 13 | AW73: 9 | AX73: 27 | AY73: 10 | AZ73: 9 | BA73: 11 | BB73: 30 | BC73: 5 | BD73: 19 | BE73: 9 | BF73: 33 | BG73: 7 | BH73: 14 | BI73: 15 | BJ73: 36 | BK73: 6 | BL73: 18 | BM73: 17 | BN73: 41 | BO73: 143 | BP73: 362 | BQ73: 3 | BR73: 5 | BS73: 4 | BT73: 12 | BU73: 4 | BV73: 6 | BW73: 7 | BX73: 17 | BY73: ناجحة | BZ73: و منقولة للصف الثانى | CA73: 0 | CB73: 3 | CC73: 3/3 | CU73: 0 | CV73: 0
A74: 65 | B74: 165 | C74: علياء ناصر على صادق | D74: 1/2 | E74: 2005-12-04 | F74: 27 - 09 - 15 | I74: بنات | J74: انتظام | K74: صباحى | M74: 565 | N74: 10 | O74: 14 | P74: 16 | Q74: =IF($C74="","",IF(P74="غ","غ",SUM(N74,O74,P74))) -> 40 | R74: 10 | S74: 10 | T74: 11 | U74: =IF($C74="","",IF(T74="غ","غ",SUM(R74,S74,T74))) -> 31 | V74: 3 | W74: 12 | X74: 5 | Y74: =IF($C74="","",IF(X74="غ","غ",SUM(V74,W74,X74))) -> 20 | Z74: 6 | AA74: 3 | AB74: 11 | AC74: 4 | AD74: 8 | AE74: 5 | AF74: =IF($C74="","",IF(AD74="غ","غ",SUM(Z74,AB74,AD74))) -> 25 | AG74: =IF($C74="","",IF(AE74="غ","غ",SUM(AA74,AC74,AE74))) -> 12 | AH74: =IF($C74="","",IF(OR(AF74="غ",AG74="غ"),"غ",SUM(AF74,AG74))) -> 37 | AI74: 10 | AJ74: 9 | AK74: 14 | AL74: =IF($C74="","",IF(AK74="غ","غ",SUM(AI74,AJ74,AK74))) -> 33 | AM74: 10 | AN74: 16 | AO74: 19 | AP74: =IF($C74="","",IF(AO74="غ","غ",SUM(AM74,AN74,AO74))) -> 45 | AQ74: 7 | AR74: 9 | AS74: 15 | AT74: =IF($C74="","",IF(AS74="غ","غ",SUM(AQ74,AR74,AS74))) -> 31 | AU74: 7 | AV74: 17 | AW74: 11 | AX74: =IF($C74="","",IF(AW74="غ","غ",SUM(AU74,AV74,AW74))) -> 35 | AY74: 8 | AZ74: 14 | BA74: 11 | BB74: =IF($C74="","",IF(BA74="غ","غ",SUM(AY74,AZ74,BA74))) -> 33 | BC74: 5 | BD74: 13 | BE74: 11 | BF74: =IF($C74="","",IF(BE74="غ","غ",SUM(BC74,BD74,BE74))) -> 29 | BG74: 6 | BH74: 20 | BI74: 11 | BJ74: =IF($C74="","",IF(BI74="غ","غ",SUM(BG74,BH74,BI74))) -> 37 | BK74: 5 | BL74: 14 | BM74: 10 | BN74: =IF($C74="","",SUM(BK74,BL74,BM74)) -> 29 | BO74: =IF($C74="","",SUM(O74,S74,W74,AJ74,AN74,AR74,AV74,AZ74,BD74,BH74,BL74,AB74,AC74)) -> 163 | BP74: =IF($C74="","",SUM(Q74,U74,Y74,AL74,AP74,AT74,AX74,BB74,BF74,BJ74,BN74,AH74)) -> 400 | BQ74: 3 | BR74: 4 | BS74: 5 | BT74: =IF($C74="","",IF(BS74="غ","غ",SUM(BQ74,BR74,BS74))) -> 12 | BU74: 3 | BV74: 4 | BW74: 7 | BX74: =IF($C74="","",IF(BW74="غ","غ",SUM(BU74,BV74,BW74))) -> 14 | BY74: =IF(I74="","",IF(I74="بنات",IF(CA74=0,"ناجحة",IF(CV74>2,"راسبة","دورثان")),IF(I74="بنين",IF(CA74=0,"ناجح",IF(CV74>2,"راسب","دورثان"))))) -> ناجحة | BZ74: =IF(AND($L74="باقية",$BY74="راسبة"),"وليس لها حق الاعادة",IF(AND($L74<>"باقية",$BY74="راسبة"),"و لها حق الاعادة",IF(AND($L74="باقى",$BY74="راسب"),"وليس له حق الاعادة",IF(AND($L74<>"باقى",$BY74="راسب"),"و له حق الاعادة",IF($BY74="ناجحة","و منقولة للصف الثانى",IF($BY74="ناجح","و منقول للصف الثانى",IF($BY74="دورثان","فى : "&CONCATENATE(CF74,CG74,CH74,CI74,CJ74,CK74,CL74,CM74,CN74,CO74,CP74,CQ74,CS74,CT74,CR74),CONCATENATE(CF74,CG74,CH74,CI74,CJ74,CK74,CL74,CM74,CN74,CO74,CP74,CQ74,CS74,CT74,CR74)))))))) -> و منقولة للصف الثانى | CA74: =IFERROR(CU74+CV74,"") -> 0 | CB74: 3 | CC74: 3/3 | CF74: =IF($C74="","",IF(OR(P74<$P$9,P74="غ",Q74<$Q$9),$CF$5&" - ","")) ->  | CG74: =IF($C74="","",IF(OR(T74<$T$9,T74="غ",U74<$U$9),$CG$5&" - ","")) ->  | CH74: =IF($C74="","",IF(OR(X74<$X$9,X74="غ",Y74<$Y$9),CH$5&" - ","")) ->  | CI74: =IF($C74="","",IF(OR(AF74<$AF$9,AF74="غ",AG74<$AG$9,AG74="غ",AH74<$AH$9),CI$5&" - ","")) ->  | CJ74: =IF($C74="","",IF(OR(AK74<$AK$9,AK74="غ",AL74<$AL$9),CJ$5&" - ","")) ->  | CK74: =IF($C74="","",IF(OR(AO74<$AO$9,AO74="غ",AP74<$AP$9),CK$5&" - ","")) ->  | CL74: =IF($C74="","",IF(OR(AS74<$AS$9,AS74="غ",AT74<$AT$9),CL$5&" - ","")) ->  | CM74: =IF($C74="","",IF(OR(AW74<$AW$9,AW74="غ",AX74<$AX$9),CM$5&" - ","")) ->  | CN74: =IF($C74="","",IF(OR(BA74<$BA$9,BA74="غ",BB74<$BB$9),CN$5&" - ","")) ->  | CO74: =IF($C74="","",IF(OR(BE74<$BE$9,BE74="غ",BF74<$BF$9),CO$5&" - ","")) ->  | CP74: =IF($C74="","",IF(OR(BI74<$BI$9,BI74="غ",BJ74<$BJ$9),CP$5&" - ","")) ->  | CQ74: =IF($C74="","",IF(OR(BM74<$BM$9,BM74="غ",BN74<$BN$9),CQ$5&" - ","")) ->  | CR74: =IF($C74="","",IF(BP74<$BP$9,CR$5,"")) ->  | CS74: =IF($C74="","",IF(OR(BS74<$BS$9,BS74="غ",BT74<$BT$9),CS$5&" - ","")) ->  | CT74: =IF($C74="","",IF(OR(BW74<$BW$9,BW74="غ",BX74<$BX$9),CT$5&" - ","")) ->  | CU74: =IF($C74="","",COUNTIF($CR74:$CT74,"?*")) -> 0 | CV74: =IF($C74="","",COUNTIF($CF74:$CQ74,"?*")) -> 0
A75: 66 | B75: 166 | C75: عليه جمال جعفر يوسف | D75: 1/2 | E75: 2005-12-05 | F75: 26 - 09 - 15 | I75: بنات | J75: انتظام | K75: صباحى | M75: 625 | N75: 5 | O75: 8 | P75: 11 | Q75: 24 | R75: 8 | S75: 11 | T75: 10 | U75: 29 | V75: 6 | W75: 9 | X75: 10 | Y75: 25 | Z75: 4 | AA75: 4 | AB75: 11 | AC75: 6 | AD75: 7 | AE75: 7 | AF75: 22 | AG75: 17 | AH75: 39 | AI75: 9 | AJ75: 20 | AK75: 11 | AL75: 40 | AM75: 6 | AN75: 17 | AO75: 11 | AP75: 34 | AQ75: 5 | AR75: 11 | AS75: 13 | AT75: 29 | AU75: 5 | AV75: 12 | AW75: 12 | AX75: 29 | AY75: 9 | AZ75: 10 | BA75: 14 | BB75: 33 | BC75: 5 | BD75: 20 | BE75: 10 | BF75: 35 | BG75: 5 | BH75: 19 | BI75: 18 | BJ75: 42 | BK75: 7 | BL75: 9 | BM75: 11 | BN75: 27 | BO75: 163 | BP75: 386 | BQ75: 3 | BR75: 5 | BS75: 8 | BT75: 16 | BU75: 3 | BV75: 6 | BW75: 6 | BX75: 15 | BY75: دورثان | BZ75: فى : لغة عربية - | CA75: 1 | CB75: 3 | CC75: 3/3 | CF75: لغة عربية - | CU75: 0 | CV75: 1
A76: 67 | B76: 167 | C76: غادة احمد عبداللاه محمود | D76: 1/2 | E76: 2005-12-06 | F76: 25 - 09 - 15 | I76: بنات | J76: انتظام | K76: صباحى | M76: 624 | N76: 9 | O76: 15 | P76: 17 | Q76: 41 | R76: 5 | S76: 10 | T76: 9 | U76: 24 | V76: 5 | W76: 12 | X76: 8 | Y76: 25 | Z76: 5 | AA76: 4 | AB76: 7 | AC76: 5 | AD76: 10 | AE76: 6 | AF76: 22 | AG76: 15 | AH76: 37 | AI76: 9 | AJ76: 18 | AK76: 15 | AL76: 42 | AM76: 7 | AN76: 20 | AO76: 17 | AP76: 44 | AQ76: 5 | AR76: 11 | AS76: 12 | AT76: 28 | AU76: 5 | AV76: 11 | AW76: 17 | AX76: 33 | AY76: 5 | AZ76: 14 | BA76: 16 | BB76: 35 | BC76: 8 | BD76: 12 | BE76: 11 | BF76: 31 | BG76: 7 | BH76: 10 | BI76: 18 | BJ76: 35 | BK76: 6 | BL76: 11 | BM76: 12 | BN76: 29 | BO76: 156 | BP76: 404 | BQ76: 3 | BR76: 7 | BS76: 4 | BT76: 14 | BU76: 4 | BV76: 4 | BW76: 6 | BX76: 14 | BY76: دورثان | BZ76: فى : لغة انجليزية - | CA76: 1 | CB76: 3 | CC76: 3/3 | CG76: لغة انجليزية - | CU76: 0 | CV76: 1
A77: 68 | B77: 168 | C77: غاده حسن مصطفى احمد | D77: 1/2 | E77: 2005-12-07 | F77: 24 - 09 - 15 | I77: بنات | J77: انتظام | K77: صباحى | M77: 623 | N77: 8 | O77: 15 | P77: 18 | Q77: 41 | R77: 6 | S77: 16 | T77: 10 | U77: 32 | V77: 4 | W77: 11 | X77: 8 | Y77: 23 | Z77: 4 | AA77: 3 | AB77: 6 | AC77: 7 | AD77: 7 | AE77: 8 | AF77: 17 | AG77: 18 | AH77: 35 | AI77: 5 | AJ77: 8 | AK77: 10 | AL77: 23 | AM77: 7 | AN77: 14 | AO77: 8 | AP77: 29 | AQ77: 5 | AR77: 16 | AS77: 11 | AT77: 32 | AU77: 9 | AV77: 10 | AW77: 17 | AX77: 36 | AY77: 10 | AZ77: 8 | BA77: 12 | BB77: 30 | BC77: 7 | BD77: 17 | BE77: 13 | BF77: 37 | BG77: 10 | BH77: 14 | BI77: 19 | BJ77: 43 | BK77: 9 | BL77: 14 | BM77: 16 | BN77: 39 | BO77: 156 | BP77: 400 | BQ77: 3 | BR77: 8 | BS77: 4 | BT77: 15 | BU77: 4 | BV77: 5 | BW77: 4 | BX77: 13 | BY77: دورثان | BZ77: فى : محاسبة مالية - | CA77: 1 | CB77: 3 | CC77: 3/3 | CJ77: محاسبة مالية - | CU77: 0 | CV77: 1
A78: 69 | B78: 169 | C78: غاده محمود احمد عباس | D78: 2/2 | E78: 2005-12-08 | F78: 23 - 09 - 15 | I78: بنات | J78: انتظام | K78: صباحى | M78: 622 | N78: 9 | O78: 10 | P78: 19 | Q78: 38 | R78: 5 | S78: 15 | T78: 10 | U78: 30 | V78: 5 | W78: 11 | X78: 10 | Y78: 26 | Z78: 3 | AA78: 3 | AB78: 8 | AC78: 5 | AD78: 8 | AE78: 5 | AF78: 19 | AG78: 13 | AH78: 32 | AI78: 7 | AJ78: 13 | AK78: 20 | AL78: 40 | AM78: 8 | AN78: 10 | AO78: 16 | AP78: 34 | AQ78: 5 | AR78: 8 | AS78: 17 | AT78: 30 | AU78: 8 | AV78: 12 | AW78: 10 | AX78: 30 | AY78: 6 | AZ78: 18 | BA78: 8 | BB78: 32 | BC78: 9 | BD78: 17 | BE78: 9 | BF78: 35 | BG78: 9 | BH78: 8 | BI78: 13 | BJ78: 30 | BK78: 6 | BL78: 20 | BM78: 20 | BN78: 46 | BO78: 155 | BP78: 403 | BQ78: 3 | BR78: 8 | BS78: 5 | BT78: 16 | BU78: 3 | BV78: 8 | BW78: 6 | BX78: 17 | BY78: ناجحة | BZ78: و منقولة للصف الثانى | CA78: 0 | CB78: 3 | CC78: 3/3 | CU78: 0 | CV78: 0
A79: 70 | B79: 170 | C79: فاطمه بربش احمد حسن | D79: 1/2 | E79: 2005-12-09 | F79: 22 - 09 - 15 | I79: بنات | J79: انتظام | K79: صباحى | M79: 621 | N79: 8 | O79: 19 | P79: 16 | Q79: 43 | R79: 7 | S79: 19 | T79: 11 | U79: 37 | V79: 3 | W79: 10 | X79: 12 | Y79: 25 | Z79: 4 | AA79: 3 | AB79: 12 | AC79: 5 | AD79: 8 | AE79: 6 | AF79: 24 | AG79: 14 | AH79: 38 | AI79: 10 | AJ79: 18 | AK79: 17 | AL79: 45 | AM79: 9 | AN79: 4 | AO79: 5 | AP79: 18 | AQ79: 10 | AR79: 12 | AS79: 16 | AT79: 38 | AU79: 8 | AV79: 10 | AW79: 5 | AX79: 23 | AY79: 8 | AZ79: 18 | BA79: 17 | BB79: 43 | BC79: 7 | BD79: 6 | BE79: 7 | BF79: 20 | BG79: 7 | BH79: 20 | BI79: 12 | BJ79: 39 | BK79: 8 | BL79: 9 | BM79: 8 | BN79: 25 | BO79: 162 | BP79: 394 | BQ79: 4 | BR79: 7 | BS79: 7 | BT79: 18 | BU79: 3 | BV79: 5 | BW79: 8 | BX79: 16 | BY79: راسبة | BZ79: و لها حق الاعادة | CA79: 3 | CB79: 3 | CC79: 3/3 | CK79: احصاء - | CM79: اقتصاد - | CO79: سكرتارية اجنبية - | CU79: 0 | CV79: 3
A80: 71 | B80: 171 | C80: فاطمه عبدالوهاب سيد مهدى | D80: 3/2 | E80: 2005-12-10 | F80: 21 - 09 - 15 | I80: بنات | J80: انتظام | K80: صباحى | M80: 620 | N80: 5 | O80: 13 | P80: 13 | Q80: 31 | R80: 9 | S80: 13 | T80: 17 | U80: 39 | V80: 3 | W80: 8 | X80: 12 | Y80: 23 | Z80: 4 | AA80: 3 | AB80: 5 | AC80: 4 | AD80: 10 | AE80: 6 | AF80: 19 | AG80: 13 | AH80: 32 | AI80: 9 | AJ80: 16 | AK80: 12 | AL80: 37 | AM80: 7 | AN80: 17 | AO80: 13 | AP80: 37 | AQ80: 9 | AR80: 13 | AS80: 11 | AT80: 33 | AU80: 5 | AV80: 17 | AW80: 19 | AX80: 41 | AY80: 9 | AZ80: 14 | BA80: 8 | BB80: 31 | BC80: 5 | BD80: 17 | BE80: 15 | BF80: 37 | BG80: 5 | BH80: 12 | BI80: 18 | BJ80: 35 | BK80: 6 | BL80: 8 | BM80: 11 | BN80: 25 | BO80: 157 | BP80: 401 | BQ80: 4 | BR80: 5 | BS80: 8 | BT80: 17 | BU80: 4 | BV80: 5 | BW80: 5 | BX80: 14 | BY80: ناجحة | BZ80: و منقولة للصف الثانى | CA80: 0 | CB80: 3 | CC80: 3/3 | CU80: 0 | CV80: 0
A81: 72 | B81: 172 | C81: فاطمه عراقى محمود النوبى | D81: 3/2 | E81: 2005-12-11 | F81: 20 - 09 - 15 | I81: بنات | J81: انتظام | K81: صباحى | M81: 619 | N81: 7 | O81: 19 | P81: 12 | Q81: 38 | R81: 9 | S81: 20 | T81: 9 | U81: 38 | V81: 5 | W81: 7 | X81: 5 | Y81: 17 | Z81: 3 | AA81: 4 | AB81: 12 | AC81: 8 | AD81: 5 | AE81: 4 | AF81: 20 | AG81: 16 | AH81: 36 | AI81: 7 | AJ81: 10 | AK81: 18 | AL81: 35 | AM81: 5 | AN81: 19 | AO81: 9 | AP81: 33 | AQ81: 5 | AR81: 19 | AS81: 17 | AT81: 41 | AU81: 8 | AV81: 20 | AW81: 9 | AX81: 37 | AY81: 9 | AZ81: 19 | BA81: 19 | BB81: 47 | BC81: 8 | BD81: 10 | BE81: 20 | BF81: 38 | BG81: 6 | BH81: 8 | BI81: 19 | BJ81: 33 | BK81: 5 | BL81: 19 | BM81: 17 | BN81: 41 | BO81: 190 | BP81: 434 | BQ81: 3 | BR81: 5 | BS81: 7 | BT81: 15 | BU81: 4 | BV81: 4 | BW81: 4 | BX81: 12 | BY81: ناجحة | BZ81: و منقولة للصف الثانى | CA81: 0 | CB81: 3 | CC81: 3/3 | CU81: 0 | CV81: 0
A82: 73 | B82: 173 | C82: فاطمه فوزى عديسى محمود | D82: 2/2 | E82: 2005-12-12 | F82: 19 - 09 - 15 | I82: بنات | J82: انتظام | K82: صباحى | M82: 618 | N82: 7 | O82: 17 | P82: 8 | Q82: 32 | R82: 9 | S82: 19 | T82: 18 | U82: 46 | V82: 4 | W82: 7 | X82: 7 | Y82: 18 | Z82: 5 | AA82: 4 | AB82: 8 | AC82: 7 | AD82: 6 | AE82: 4 | AF82: 19 | AG82: 15 | AH82: 34 | AI82: 10 | AJ82: 19 | AK82: 20 | AL82: 49 | AM82: 7 | AN82: 20 | AO82: 10 | AP82: 37 | AQ82: 6 | AR82: 11 | AS82: 13 | AT82: 30 | AU82: 6 | AV82: 19 | AW82: 12 | AX82: 37 | AY82: 10 | AZ82: 19 | BA82: 16 | BB82: 45 | BC82: 5 | BD82: 18 | BE82: 16 | BF82: 39 | BG82: 10 | BH82: 19 | BI82: 13 | BJ82: 42 | BK82: 10 | BL82: 17 | BM82: 20 | BN82: 47 | BO82: 200 | BP82: 456 | BQ82: 3 | BR82: 6 | BS82: 6 | BT82: 15 | BU82: 3 | BV82: 5 | BW82: 7 | BX82: 15 | BY82: ناجحة | BZ82: و منقولة للصف الثانى | CA82: 0 | CB82: 3 | CC82: 3/3 | CU82: 0 | CV82: 0
A83: 74 | B83: 174 | C83: فاطمه محمود محمد احمد | D83: 3/2 | E83: 2005-12-13 | F83: 18 - 09 - 15 | I83: بنات | J83: انتظام | K83: صباحى | M83: 617 | N83: 7 | O83: 12 | P83: 15 | Q83: 34 | R83: 7 | S83: 18 | T83: 16 | U83: 41 | V83: 4 | W83: 11 | X83: 8 | Y83: 23 | Z83: 6 | AA83: 3 | AB83: 11 | AC83: 5 | AD83: 6 | AE83: 7 | AF83: 23 | AG83: 15 | AH83: 38 | AI83: 8 | AJ83: 17 | AK83: 13 | AL83: 38 | AM83: 6 | AN83: 10 | AO83: 17 | AP83: 33 | AQ83: 6 | AR83: 14 | AS83: 8 | AT83: 28 | AU83: 7 | AV83: 13 | AW83: 12 | AX83: 32 | AY83: 10 | AZ83: 10 | BA83: 12 | BB83: 32 | BC83: 9 | BD83: 15 | BE83: 9 | BF83: 33 | BG83: 8 | BH83: 20 | BI83: 18 | BJ83: 46 | BK83: 5 | BL83: 19 | BM83: 18 | BN83: 42 | BO83: 175 | BP83: 420 | BQ83: 3 | BR83: 8 | BS83: 7 | BT83: 18 | BU83: 3 | BV83: 7 | BW83: 8 | BX83: 18 | BY83: ناجحة | BZ83: و منقولة للصف الثانى | CA83: 0 | CB83: 3 | CC83: 3/3 | CU83: 0 | CV83: 0
A84: 75 | B84: 175 | C84: فاطمه محمود محمد محمود | D84: 1/2 | E84: 2005-12-14 | F84: 17 - 09 - 15 | I84: بنات | J84: انتظام | K84: صباحى | M84: 616 | N84: 8 | O84: 9 | P84: 9 | Q84: 26 | R84: 7 | S84: 19 | T84: 19 | U84: 45 | V84: 3 | W84: 9 | X84: 9 | Y84: 21 | Z84: 6 | AA84: 4 | AB84: 5 | AC84: 8 | AD84: 5 | AE84: 6 | AF84: 16 | AG84: 18 | AH84: 34 | AI84: 10 | AJ84: 10 | AK84: 19 | AL84: 39 | AM84: 8 | AN84: 11 | AO84: 15 | AP84: 34 | AQ84: 10 | AR84: 11 | AS84: 12 | AT84: 33 | AU84: 8 | AV84: 20 | AW84: 15 | AX84: 43 | AY84: 6 | AZ84: 12 | BA84: 17 | BB84: 35 | BC84: 6 | BD84: 19 | BE84: 9 | BF84: 34 | BG84: 10 | BH84: 17 | BI84: 18 | BJ84: 45 | BK84: 6 | BL84: 19 | BM84: 18 | BN84: 43 | BO84: 169 | BP84: 432 | BQ84: 3 | BR84: 5 | BS84: 7 | BT84: 15 | BU84: 3 | BV84: 4 | BW84: 5 | BX84: 12 | BY84: ناجحة | BZ84: و منقولة للصف الثانى | CA84: 0 | CB84: 3 | CC84: 3/3 | CU84: 0 | CV84: 0
A85: 76 | B85: 176 | C85: فدوه رجب محمد جمعه | D85: 1/2 | E85: 2005-12-15 | F85: 16 - 09 - 15 | I85: بنات | J85: انتظام | K85: صباحى | M85: 615 | N85: 7 | O85: 10 | P85: 12 | Q85: 29 | R85: 9 | S85: 17 | T85: 16 | U85: 42 | V85: 3 | W85: 11 | X85: 5 | Y85: 19 | Z85: 6 | AA85: 3 | AB85: 5 | AC85: 7 | AD85: 6 | AE85: 5 | AF85: 17 | AG85: 15 | AH85: 32 | AI85: 10 | AJ85: 11 | AK85: 9 | AL85: 30 | AM85: 8 | AN85: 13 | AO85: 9 | AP85: 30 | AQ85: 9 | AR85: 19 | AS85: 16 | AT85: 44 | AU85: 7 | AV85: 18 | AW85: 15 | AX85: 40 | AY85: 8 | AZ85: 20 | BA85: 14 | BB85: 42 | BC85: 7 | BD85: 9 | BE85: 11 | BF85: 27 | BG85: 5 | BH85: 19 | BI85: 20 | BJ85: 44 | BK85: 7 | BL85: 11 | BM85: 18 | BN85: 36 | BO85: 170 | BP85: 415 | BQ85: 3 | BR85: 7 | BS85: 8 | BT85: 18 | BU85: 3 | BV85: 8 | BW85: 4 | BX85: 15 | BY85: ناجحة | BZ85: و منقولة للصف الثانى | CA85: 0 | CB85: 4 | CC85: 4/3 | CU85: 0 | CV85: 0
A86: 77 | B86: 177 | C86: فرحه خميس قاسم محمد | D86: 1/2 | E86: 2005-12-16 | F86: 15 - 09 - 15 | I86: بنات | J86: انتظام | K86: صباحى | M86: 614 | N86: 10 | O86: 8 | P86: 9 | Q86: 27 | R86: 10 | S86: 17 | T86: 11 | U86: 38 | V86: 6 | W86: 5 | X86: 6 | Y86: 17 | Z86: 4 | AA86: 3 | AB86: 7 | AC86: 5 | AD86: 8 | AE86: 8 | AF86: 19 | AG86: 16 | AH86: 35 | AI86: 6 | AJ86: 13 | AK86: 16 | AL86: 35 | AM86: 5 | AN86: 15 | AO86: 11 | AP86: 31 | AQ86: 8 | AR86: 16 | AS86: 18 | AT86: 42 | AU86: 5 | AV86: 19 | AW86: 11 | AX86: 35 | AY86: 7 | AZ86: 12 | BA86: 8 | BB86: 27 | BC86: 8 | BD86: 12 | BE86: 12 | BF86: 32 | BG86: 6 | BH86: 16 | BI86: 14 | BJ86: 36 | BK86: 7 | BL86: 10 | BM86: 16 | BN86: 33 | BO86: 155 | BP86: 388 | BQ86: 3 | BR86: 6 | BS86: 5 | BT86: 14 | BU86: 4 | BV86: 4 | BW86: 7 | BX86: 15 | BY86: ناجحة | BZ86: و منقولة للصف الثانى | CA86: 0 | CB86: 4 | CC86: 4/3 | CU86: 0 | CV86: 0
A87: 78 | B87: 178 | C87: فرحه دسوقى مكى محمود | D87: 3/2 | E87: 2005-12-17 | F87: 14 - 09 - 15 | I87: بنات | J87: انتظام | K87: صباحى | M87: 613 | N87: 10 | O87: 18 | P87: 9 | Q87: 37 | R87: 8 | S87: 14 | T87: 19 | U87: 41 | V87: 5 | W87: 10 | X87: 12 | Y87: 27 | Z87: 6 | AA87: 4 | AB87: 8 | AC87: 5 | AD87: 10 | AE87: 7 | AF87: 24 | AG87: 16 | AH87: 40 | AI87: 10 | AJ87: 16 | AK87: 9 | AL87: 35 | AM87: 7 | AN87: 12 | AO87: 19 | AP87: 38 | AQ87: 6 | AR87: 19 | AS87: 15 | AT87: 40 | AU87: 6 | AV87: 15 | AW87: 13 | AX87: 34 | AY87: 8 | AZ87: 10 | BA87: 18 | BB87: 36 | BC87: 8 | BD87: 16 | BE87: 18 | BF87: 42 | BG87: 8 | BH87: 17 | BI87: 16 | BJ87: 41 | BK87: 10 | BL87: 13 | BM87: 12 | BN87: 35 | BO87: 173 | BP87: 446 | BQ87: 4 | BR87: 4 | BS87: 4 | BT87: 12 | BU87: 3 | BV87: 7 | BW87: 5 | BX87: 15 | BY87: ناجحة | BZ87: و منقولة للصف الثانى | CA87: 0 | CB87: 4 | CC87: 4/3 | CU87: 0 | CV87: 0
A88: 79 | B88: 179 | C88: فرحه محمود طايع محمود | D88: 3/2 | E88: 2005-12-18 | F88: 13 - 09 - 15 | I88: بنات | J88: انتظام | K88: صباحى | M88: 612 | N88: 10 | O88: 14 | P88: 17 | Q88: 41 | R88: 8 | S88: 11 | T88: 17 | U88: 36 | V88: 5 | W88: 10 | X88: 6 | Y88: 21 | Z88: 4 | AA88: 3 | AB88: 11 | AC88: 5 | AD88: 7 | AE88: 7 | AF88: 22 | AG88: 15 | AH88: 37 | AI88: 5 | AJ88: 12 | AK88: 10 | AL88: 27 | AM88: 6 | AN88: 20 | AO88: 9 | AP88: 35 | AQ88: 5 | AR88: 9 | AS88: 12 | AT88: 26 | AU88: 7 | AV88: 17 | AW88: 11 | AX88: 35 | AY88: 8 | AZ88: 10 | BA88: 12 | BB88: 30 | BC88: 9 | BD88: 10 | BE88: 18 | BF88: 37 | BG88: 10 | BH88: 20 | BI88: 16 | BJ88: 46 | BK88: 5 | BL88: 14 | BM88: 14 | BN88: 33 | BO88: 163 | BP88: 404 | BQ88: 3 | BR88: 6 | BS88: 8 | BT88: 17 | BU88: 4 | BV88: 7 | BW88: 8 | BX88: 19 | BY88: ناجحة | BZ88: و منقولة للصف الثانى | CA88: 0 | CB88: 4 | CC88: 4/3 | CU88: 0 | CV88: 0
A89: 80 | B89: 180 | C89: كرستين نصرى عيد عبيد | D89: 2/2 | E89: 2005-12-19 | F89: 12 - 09 - 15 | I89: بنات | J89: انتظام | K89: صباحى | M89: 611 | N89: 5 | O89: 11 | P89: 19 | Q89: 35 | R89: 8 | S89: 17 | T89: 18 | U89: 43 | V89: 5 | W89: 12 | X89: 8 | Y89: 25 | Z89: 6 | AA89: 3 | AB89: 5 | AC89: 7 | AD89: 12 | AE89: 6 | AF89: 23 | AG89: 16 | AH89: 39 | AI89: 6 | AJ89: 17 | AK89: 10 | AL89: 33 | AM89: 6 | AN89: 14 | AO89: 20 | AP89: 40 | AQ89: 6 | AR89: 10 | AS89: 12 | AT89: 28 | AU89: 8 | AV89: 15 | AW89: 19 | AX89: 42 | AY89: 10 | AZ89: 10 | BA89: 8 | BB89: 28 | BC89: 10 | BD89: 10 | BE89: 12 | BF89: 32 | BG89: 9 | BH89: 19 | BI89: 13 | BJ89: 41 | BK89: 6 | BL89: 17 | BM89: 10 | BN89: 33 | BO89: 164 | BP89: 419 | BQ89: 4 | BR89: 6 | BS89: 5 | BT89: 15 | BU89: 3 | BV89: 5 | BW89: 8 | BX89: 16 | BY89: ناجحة | BZ89: و منقولة للصف الثانى | CA89: 0 | CB89: 4 | CC89: 4/3 | CU89: 0 | CV89: 0
A90: 81 | B90: 181 | C90: ماجده عبدالمطلب دياب مصطفى | D90: 2/2 | E90: 2005-12-20 | F90: 11 - 09 - 15 | I90: بنات | J90: انتظام | K90: صباحى | M90: 610 | N90: 9 | O90: 17 | P90: 16 | Q90: 42 | R90: 8 | S90: 11 | T90: 17 | U90: 36 | V90: 3 | W90: 9 | X90: 12 | Y90: 24 | Z90: 4 | AA90: 4 | AB90: 12 | AC90: 8 | AD90: 9 | AE90: 6 | AF90: 25 | AG90: 18 | AH90: 43 | AI90: 10 | AJ90: 14 | AK90: 8 | AL90: 32 | AM90: 8 | AN90: 16 | AO90: 9 | AP90: 33 | AQ90: 10 | AR90: 9 | AS90: 10 | AT90: 29 | AU90: 6 | AV90: 11 | AW90: 8 | AX90: 25 | AY90: 10 | AZ90: 12 | BA90: 19 | BB90: 41 | BC90: 8 | BD90: 20 | BE90: 15 | BF90: 43 | BG90: 9 | BH90: 17 | BI90: 10 | BJ90: 36 | BK90: 5 | BL90: 19 | BM90: 16 | BN90: 40 | BO90: 175 | BP90: 424 | BQ90: 4 | BR90: 5 | BS90: 7 | BT90: 16 | BU90: 4 | BV90: 5 | BW90: 4 | BX90: 13 | BY90: ناجحة | BZ90: و منقولة للصف الثانى | CA90: 0 | CB90: 4 | CC90: 4/3 | CU90: 0 | CV90: 0
A91: 82 | B91: 182 | C91: مارى حكيم محارب ابادير | D91: 2/2 | E91: 2005-12-21 | F91: 10 - 09 - 15 | G91: مسيحية | I91: بنات | J91: انتظام | K91: صباحى | M91: 609 | N91: 5 | O91: 15 | P91: 14 | Q91: 34 | R91: 9 | S91: 14 | T91: 14 | U91: 37 | V91: 3 | W91: 12 | X91: 11 | Y91: 26 | Z91: 4 | AA91: 4 | AB91: 7 | AC91: 7 | AD91: 11 | AE91: 4 | AF91: 22 | AG91: 15 | AH91: 37 | AI91: 6 | AJ91: 20 | AK91: 12 | AL91: 38 | AM91: 8 | AN91: 17 | AO91: 9 | AP91: 34 | AQ91: 7 | AR91: 13 | AS91: 20 | AT91: 40 | AU91: 9 | AV91: 8 | AW91: 19 | AX91: 36 | AY91: 10 | AZ91: 18 | BA91: 12 | BB91: 40 | BC91: 10 | BD91: 9 | BE91: 16 | BF91: 35 | BG91: 10 | BH91: 14 | BI91: 13 | BJ91: 37 | BK91: 10 | BL91: 14 | BM91: 11 | BN91: 35 | BO91: 168 | BP91: 429 | BQ91: 4 | BR91: 5 | BS91: 6 | BT91: 15 | BU91: 4 | BV91: 7 | BW91: 5 | BX91: 16 | BY91: ناجحة | BZ91: و منقولة للصف الثانى | CA91: 0 | CB91: 4 | CC91: 4/3 | CU91: 0 | CV91: 0
A92: 83 | B92: 183 | C92: مارينا رومانى ناثان مسعد | D92: 3/2 | E92: 2005-12-22 | F92: 09 - 09 - 15 | G92: مسيحية | I92: بنات | J92: انتظام | K92: صباحى | M92: 608 | N92: 10 | O92: 14 | P92: 20 | Q92: 44 | R92: 7 | S92: 16 | T92: 17 | U92: 40 | V92: 3 | W92: 8 | X92: 7 | Y92: 18 | Z92: 4 | AA92: 4 | AB92: 10 | AC92: 8 | AD92: 11 | AE92: 7 | AF92: 25 | AG92: 19 | AH92: 44 | AI92: 5 | AJ92: 11 | AK92: 15 | AL92: 31 | AM92: 7 | AN92: 20 | AO92: 12 | AP92: 39 | AQ92: 7 | AR92: 10 | AS92: 8 | AT92: 25 | AU92: 10 | AV92: 9 | AW92: 9 | AX92: 28 | AY92: 9 | AZ92: 11 | BA92: 9 | BB92: 29 | BC92: 7 | BD92: 16 | BE92: 15 | BF92: 38 | BG92: 7 | BH92: 14 | BI92: 17 | BJ92: 38 | BK92: 7 | BL92: 11 | BM92: 19 | BN92: 37 | BO92: 158 | BP92: 411 | BQ92: 4 | BR92: 4 | BS92: 4 | BT92: 12 | BU92: 3 | BV92: 5 | BW92: 5 | BX92: 13 | BY92: ناجحة | BZ92: و منقولة للصف الثانى | CA92: 0 | CB92: 4 | CC92: 4/3 | CU92: 0 | CV92: 0
A93: 84 | B93: 184 | C93: مبروكه فتحى ياسين حموده | D93: 3/2 | E93: 2005-12-23 | F93: 08 - 09 - 15 | I93: بنات | J93: انتظام | K93: صباحى | M93: 607 | N93: 5 | O93: 8 | P93: 15 | Q93: 28 | R93: 8 | S93: 15 | T93: 18 | U93: 41 | V93: 6 | W93: 12 | X93: 8 | Y93: 26 | Z93: 5 | AA93: 4 | AB93: 8 | AC93: 8 | AD93: 11 | AE93: 6 | AF93: 24 | AG93: 18 | AH93: 42 | AI93: 5 | AJ93: 11 | AK93: 19 | AL93: 35 | AM93: 5 | AN93: 11 | AO93: 16 | AP93: 32 | AQ93: 5 | AR93: 20 | AS93: 9 | AT93: 34 | AU93: 7 | AV93: 16 | AW93: 19 | AX93: 42 | AY93: 10 | AZ93: 14 | BA93: 8 | BB93: 32 | BC93: 5 | BD93: 12 | BE93: 11 | BF93: 28 | BG93: 5 | BH93: 12 | BI93: 11 | BJ93: 28 | BK93: 10 | BL93: 15 | BM93: 10 | BN93: 35 | BO93: 162 | BP93: 403 | BQ93: 3 | BR93: 7 | BS93: 5 | BT93: 15 | BU93: 4 | BV93: 7 | BW93: 7 | BX93: 18 | BY93: ناجحة | BZ93: و منقولة للصف الثانى | CA93: 0 | CB93: 4 | CC93: 4/3 | CU93: 0 | CV93: 0
A94: 85 | B94: 185 | C94: مروه احمد ركابى احمد | D94: 3/2 | E94: 2005-12-24 | F94: 07 - 09 - 15 | I94: بنات | J94: انتظام | K94: صباحى | M94: 606 | N94: 8 | O94: 18 | P94: 13 | Q94: 39 | R94: 6 | S94: 15 | T94: 13 | U94: 34 | V94: 3 | W94: 7 | X94: 7 | Y94: 17 | Z94: 3 | AA94: 3 | AB94: 9 | AC94: 8 | AD94: 10 | AE94: 5 | AF94: 22 | AG94: 16 | AH94: 38 | AI94: 9 | AJ94: 9 | AK94: 12 | AL94: 30 | AM94: 7 | AN94: 15 | AO94: 20 | AP94: 42 | AQ94: 5 | AR94: 17 | AS94: 16 | AT94: 38 | AU94: 9 | AV94: 14 | AW94: 9 | AX94: 32 | AY94: 7 | AZ94: 8 | BA94: 17 | BB94: 32 | BC94: 6 | BD94: 12 | BE94: 15 | BF94: 33 | BG94: 7 | BH94: 19 | BI94: 12 | BJ94: 38 | BK94: 10 | BL94: 8 | BM94: 11 | BN94: 29 | BO94: 159 | BP94: 402 | BQ94: 4 | BR94: 6 | BS94: 7 | BT94: 17 | BU94: 4 | BV94: 4 | BW94: 7 | BX94: 15 | BY94: ناجحة | BZ94: و منقولة للصف الثانى | CA94: 0 | CB94: 4 | CC94: 4/3 | CU94: 0 | CV94: 0
A95: 86 | B95: 186 | C95: مروه عياد عوض بشاره | D95: 2/2 | E95: 2005-12-25 | F95: 06 - 09 - 15 | I95: بنات | J95: انتظام | K95: صباحى | M95: 605 | N95: 9 | O95: 12 | P95: 17 | Q95: 38 | R95: 5 | S95: 15 | T95: 9 | U95: 29 | V95: 3 | W95: 12 | X95: 5 | Y95: 20 | Z95: 4 | AA95: 3 | AB95: 11 | AC95: 6 | AD95: 10 | AE95: 8 | AF95: 25 | AG95: 17 | AH95: 42 | AI95: 10 | AJ95: 15 | AK95: 11 | AL95: 36 | AM95: 8 | AN95: 19 | AO95: 10 | AP95: 37 | AQ95: 8 | AR95: 9 | AS95: 15 | AT95: 32 | AU95: 5 | AV95: 12 | AW95: 18 | AX95: 35 | AY95: 5 | AZ95: 9 | BA95: 11 | BB95: 25 | BC95: 6 | BD95: 15 | BE95: 12 | BF95: 33 | BG95: 10 | BH95: 20 | BI95: 8 | BJ95: 38 | BK95: 5 | BL95: 19 | BM95: 12 | BN95: 36 | BO95: 174 | BP95: 401 | BQ95: 3 | BR95: 8 | BS95: 4 | BT95: 15 | BU95: 4 | BV95: 8 | BW95: 6 | BX95: 18 | BY95: ناجحة | BZ95: و منقولة للصف الثانى | CA95: 0 | CB95: 4 | CC95: 4/3 | CU95: 0 | CV95: 0
A96: 87 | B96: 187 | C96: مروه محمد ابوزيد سيد | D96: 3/2 | E96: 2005-12-26 | F96: 05 - 09 - 15 | I96: بنات | J96: انتظام | K96: صباحى | M96: 604 | N96: 9 | O96: 18 | P96: 10 | Q96: 37 | R96: 6 | S96: 19 | T96: 9 | U96: 34 | V96: 6 | W96: 9 | X96: 7 | Y96: 22 | Z96: 4 | AA96: 3 | AB96: 5 | AC96: 4 | AD96: 9 | AE96: 4 | AF96: 18 | AG96: 11 | AH96: 29 | AI96: 6 | AJ96: 16 | AK96: 14 | AL96: 36 | AM96: 8 | AN96: 19 | AO96: 18 | AP96: 45 | AQ96: 5 | AR96: 9 | AS96: 18 | AT96: 32 | AU96: 8 | AV96: 16 | AW96: 8 | AX96: 32 | AY96: 10 | AZ96: 10 | BA96: 17 | BB96: 37 | BC96: 7 | BD96: 13 | BE96: 18 | BF96: 38 | BG96: 5 | BH96: 10 | BI96: 13 | BJ96: 28 | BK96: 6 | BL96: 9 | BM96: 10 | BN96: 25 | BO96: 157 | BP96: 395 | BQ96: 4 | BR96: 8 | BS96: 7 | BT96: 19 | BU96: 3 | BV96: 4 | BW96: 7 | BX96: 14 | BY96: ناجحة | BZ96: و منقولة للصف الثانى | CA96: 0 | CB96: 4 | CC96: 4/3 | CU96: 0 | CV96: 0
A97: 88 | B97: 188 | C97: مروه محمد حسن احمد | D97: 2/2 | E97: 2005-12-27 | F97: 04 - 09 - 15 | I97: بنات | J97: انتظام | K97: صباحى | M97: 603 | N97: 10 | O97: 9 | P97: 14 | Q97: 33 | R97: 7 | S97: 10 | T97: 9 | U97: 26 | V97: 5 | W97: 12 | X97: 9 | Y97: 26 | Z97: 6 | AA97: 3 | AB97: 9 | AC97: 5 | AD97: 10 | AE97: 4 | AF97: 25 | AG97: 12 | AH97: 37 | AI97: 5 | AJ97: 20 | AK97: 15 | AL97: 40 | AM97: 9 | AN97: 12 | AO97: 20 | AP97: 41 | AQ97: 5 | AR97: 11 | AS97: 12 | AT97: 28 | AU97: 6 | AV97: 9 | AW97: 20 | AX97: 35 | AY97: 10 | AZ97: 20 | BA97: 16 | BB97: 46 | BC97: 7 | BD97: 16 | BE97: 13 | BF97: 36 | BG97: 6 | BH97: 15 | BI97: 11 | BJ97: 32 | BK97: 9 | BL97: 19 | BM97: 13 | BN97: 41 | BO97: 167 | BP97: 421 | BQ97: 4 | BR97: 5 | BS97: 4 | BT97: 13 | BU97: 4 | BV97: 8 | BW97: 4 | BX97: 16 | BY97: ناجحة | BZ97: و منقولة للصف الثانى | CA97: 0 | CB97: 4 | CC97: 4/3 | CU97: 0 | CV97: 0
A98: 89 | B98: 189 | C98: مريم ابراهيم اديب شحاته | D98: 2/2 | E98: 2005-12-28 | F98: 03 - 09 - 15 | I98: بنات | J98: انتظام | K98: صباحى | M98: 602 | N98: 7 | O98: 3 | P98: 5 | Q98: 15 | R98: 6 | S98: 7 | T98: 5 | U98: 18 | V98: 5 | W98: 3 | X98: 6 | Y98: 14 | Z98: 5 | AA98: 3 | AB98: 9 | AC98: 6 | AD98: 9 | AE98: 5 | AF98: 23 | AG98: 14 | AH98: 37 | AI98: 8 | AJ98: 4 | AK98: 8 | AL98: 20 | AM98: 6 | AN98: 7 | AO98: 8 | AP98: 21 | AQ98: 8 | AR98: 9 | AS98: 12 | AT98: 29 | AU98: 8 | AV98: 16 | AW98: 8 | AX98: 32 | AY98: 5 | AZ98: 13 | BA98: 10 | BB98: 28 | BC98: 6 | BD98: 19 | BE98: 14 | BF98: 39 | BG98: 7 | BH98: 20 | BI98: 15 | BJ98: 42 | BK98: 6 | BL98: 8 | BM98: 8 | BN98: 22 | BO98: 124 | BP98: 317 | BQ98: 4 | BR98: 8 | BS98: 4 | BT98: 16 | BU98: 3 | BV98: 5 | BW98: 5 | BX98: 13 | BY98: راسبة | BZ98: و لها حق الاعادة | CA98: 5 | CB98: 4 | CC98: 4/3 | CF98: لغة عربية - | CG98: لغة انجليزية - | CJ98: محاسبة مالية - | CK98: احصاء - | CQ98: ادارة مخازن - | CU98: 0 | CV98: 5
A99: 90 | B99: 190 | C99: مريم جابر ضوى عبدالجليل | D99: 2/2 | E99: 2005-12-29 | F99: 02 - 09 - 15 | I99: بنات | J99: انتظام | K99: صباحى | M99: 601 | N99: 10 | O99: 11 | P99: 19 | Q99: 40 | R99: 10 | S99: 12 | T99: 8 | U99: 30 | V99: 5 | W99: 7 | X99: 12 | Y99: 24 | Z99: 5 | AA99: 3 | AB99: 7 | AC99: 4 | AD99: 10 | AE99: 8 | AF99: 22 | AG99: 15 | AH99: 37 | AI99: 10 | AJ99: 9 | AK99: 13 | AL99: 32 | AM99: 9 | AN99: 13 | AO99: 14 | AP99: 36 | AQ99: 10 | AR99: 13 | AS99: 20 | AT99: 43 | AU99: 9 | AV99: 14 | AW99: 19 | AX99: 42 | AY99: 5 | AZ99: 9 | BA99: 15 | BB99: 29 | BC99: 10 | BD99: 14 | BE99: 18 | BF99: 42 | BG99: 8 | BH99: 16 | BI99: 16 | BJ99: 40 | BK99: 10 | BL99: 20 | BM99: 13 | BN99: 43 | BO99: 149 | BP99: 438 | BQ99: 3 | BR99: 5 | BS99: 4 | BT99: 12 | BU99: 4 | BV99: 6 | BW99: 4 | BX99: 14 | BY99: ناجحة | BZ99: و منقولة للصف الثانى | CA99: 0 | CB99: 4 | CC99: 4/3 | CU99: 0 | CV99: 0
A100: 91 | B100: 191 | C100: مريم شحاته احمد ابوالحمد | D100: 3/2 | E100: 2005-12-30 | F100: 01 - 09 - 15 | I100: بنات | J100: انتظام | K100: صباحى | M100: 600 | N100: 8 | O100: 13 | P100: 14 | Q100: 35 | R100: 6 | S100: 18 | T100: 18 | U100: 42 | V100: 5 | W100: 12 | X100: 6 | Y100: 23 | Z100: 4 | AA100: 3 | AB100: 10 | AC100: 7 | AD100: 12 | AE100: 4 | AF100: 26 | AG100: 14 | AH100: 40 | AI100: 5 | AJ100: 12 | AK100: 13 | AL100: 30 | AM100: 8 | AN100: 18 | AO100: 18 | AP100: 44 | AQ100: 8 | AR100: 8 | AS100: 20 | AT100: 36 | AU100: 10 | AV100: 11 | AW100: 8 | AX100: 29 | AY100: 10 | AZ100: 19 | BA100: 9 | BB100: 38 | BC100: 6 | BD100: 8 | BE100: 17 | BF100: 31 | BG100: 9 | BH100: 16 | BI100: 13 | BJ100: 38 | BK100: 10 | BL100: 16 | BM100: 18 | BN100: 44 | BO100: 168 | BP100: 430 | BQ100: 4 | BR100: 7 | BS100: 4 | BT100: 15 | BU100: 3 | BV100: 4 | BW100: 6 | BX100: 13 | BY100: ناجحة | BZ100: و منقولة للصف الثانى | CA100: 0 | CB100: 4 | CC100: 4/3 | CU100: 0 | CV100: 0
A101: 92 | B101: 192 | C101: مريم محمد على بصرى | D101: 3/2 | E101: 2005-12-31 | F101: 00 - 09 - 15 | I101: بنات | J101: انتظام | K101: صباحى | M101: 599 | N101: 7 | O101: 16 | P101: 14 | Q101: 37 | R101: 7 | S101: 15 | T101: 17 | U101: 39 | V101: 6 | W101: 12 | X101: 6 | Y101: 24 | Z101: 3 | AA101: 3 | AB101: 6 | AC101: 8 | AD101: 12 | AE101: 8 | AF101: 21 | AG101: 19 | AH101: 40 | AI101: 5 | AJ101: 8 | AK101: 16 | AL101: 29 | AM101: 7 | AN101: 17 | AO101: 17 | AP101: 41 | AQ101: 5 | AR101: 19 | AS101: 17 | AT101: 41 | AU101: 6 | AV101: 17 | AW101: 9 | AX101: 32 | AY101: 8 | AZ101: 15 | BA101: 18 | BB101: 41 | BC101: 10 | BD101: 14 | BE101: 11 | BF101: 35 | BG101: 5 | BH101: 19 | BI101: 14 | BJ101: 38 | BK101: 8 | BL101: 8 | BM101: 14 | BN101: 30 | BO101: 174 | BP101: 427 | BQ101: 3 | BR101: 5 | BS101: 7 | BT101: 15 | BU101: 4 | BV101: 6 | BW101: 8 | BX101: 18 | BY101: ناجحة | BZ101: و منقولة للصف الثانى | CA101: 0 | CB101: 4 | CC101: 4/3 | CU101: 0 | CV101: 0
A102: 93 | B102: 193 | C102: مريم وجيه غطاس اسكاروس | D102: 2/2 | E102: 2006-01-01 | F102: 00 - 09 - 15 | G102: مسيحية | I102: بنات | J102: انتظام | K102: صباحى | M102: 598 | N102: 9 | O102: 17 | P102: 17 | Q102: 43 | R102: 7 | S102: 11 | T102: 9 | U102: 27 | V102: 4 | W102: 8 | X102: 10 | Y102: 22 | Z102: 3 | AA102: 4 | AB102: 8 | AC102: 7 | AD102: 9 | AE102: 5 | AF102: 20 | AG102: 16 | AH102: 36 | AI102: 7 | AJ102: 18 | AK102: 16 | AL102: 41 | AM102: 9 | AN102: 11 | AO102: 20 | AP102: 40 | AQ102: 5 | AR102: 12 | AS102: 9 | AT102: 26 | AU102: 8 | AV102: 16 | AW102: 11 | AX102: 35 | AY102: 7 | AZ102: 14 | BA102: 10 | BB102: 31 | BC102: 7 | BD102: 14 | BE102: 18 | BF102: 39 | BG102: 8 | BH102: 8 | BI102: 12 | BJ102: 28 | BK102: 8 | BL102: 9 | BM102: 15 | BN102: 32 | BO102: 153 | BP102: 400 | BQ102: 3 | BR102: 8 | BS102: 5 | BT102: 16 | BU102: 4 | BV102: 5 | BW102: 5 | BX102: 14 | BY102: ناجحة | BZ102: و منقولة للصف الثانى | CA102: 0 | CB102: 4 | CC102: 4/3 | CU102: 0 | CV102: 0
A103: 94 | B103: 194 | C103: منى احمد ناصر احمد | D103: 1/2 | E103: 2006-01-02 | F103: 29 - 08 - 15 | I103: بنات | J103: انتظام | K103: صباحى | M103: 597 | N103: 9 | O103: 15 | P103: 15 | Q103: 39 | R103: 8 | S103: 9 | T103: 13 | U103: 30 | V103: 3 | W103: 10 | X103: 7 | Y103: 20 | Z103: 3 | AA103: 3 | AB103: 10 | AC103: 7 | AD103: 9 | AE103: 6 | AF103: 22 | AG103: 16 | AH103: 38 | AI103: 10 | AJ103: 14 | AK103: 17 | AL103: 41 | AM103: 5 | AN103: 14 | AO103: 11 | AP103: 30 | AQ103: 8 | AR103: 15 | AS103: 20 | AT103: 43 | AU103: 5 | AV103: 15 | AW103: 14 | AX103: 34 | AY103: 5 | AZ103: 18 | BA103: 12 | BB103: 35 | BC103: 9 | BD103: 13 | BE103: 13 | BF103: 35 | BG103: 6 | BH103: 20 | BI103: 12 | BJ103: 38 | BK103: 5 | BL103: 8 | BM103: 10 | BN103: 23 | BO103: 168 | BP103: 406 | BQ103: 4 | BR103: 7 | BS103: 5 | BT103: 16 | BU103: 4 | BV103: 4 | BW103: 6 | BX103: 14 | BY103: دورثان | BZ103: فى : ادارة مخازن - | CA103: 1 | CB103: 4 | CC103: 4/3 | CQ103: ادارة مخازن - | CU103: 0 | CV103: 1
A104: 95 | B104: 195 | C104: منى جامع ابراهيم حسين | D104: 2/2 | E104: 2006-01-03 | F104: 28 - 08 - 15 | I104: بنات | J104: انتظام | K104: صباحى | M104: 596 | N104: 7 | O104: 14 | P104: 12 | Q104: 33 | R104: 6 | S104: 14 | T104: 15 | U104: 35 | V104: 4 | W104: 10 | X104: 9 | Y104: 23 | Z104: 4 | AA104: 4 | AB104: 6 | AC104: 7 | AD104: 5 | AE104: 8 | AF104: 15 | AG104: 19 | AH104: 34 | AI104: 8 | AJ104: 12 | AK104: 13 | AL104: 33 | AM104: 5 | AN104: 11 | AO104: 16 | AP104: 32 | AQ104: 8 | AR104: 15 | AS104: 20 | AT104: 43 | AU104: 5 | AV104: 19 | AW104: 13 | AX104: 37 | AY104: 9 | AZ104: 16 | BA104: 14 | BB104: 39 | BC104: 5 | BD104: 17 | BE104: 11 | BF104: 33 | BG104: 8 | BH104: 15 | BI104: 9 | BJ104: 32 | BK104: 8 | BL104: 8 | BM104: 14 | BN104: 30 | BO104: 164 | BP104: 404 | BQ104: 3 | BR104: 7 | BS104: 8 | BT104: 18 | BU104: 3 | BV104: 7 | BW104: 6 | BX104: 16 | BY104: ناجحة | BZ104: و منقولة للصف الثانى | CA104: 0 | CB104: 4 | CC104: 4/3 | CU104: 0 | CV104: 0
A105: 96 | B105: 196 | C105: منى سالم سيد احمد | D105: 2/2 | E105: 2006-01-04 | F105: 27 - 08 - 15 | I105: بنات | J105: انتظام | K105: صباحى | M105: 595 | N105: 5 | O105: 8 | P105: 18 | Q105: 31 | R105: 10 | S105: 8 | T105: 20 | U105: 38 | V105: 5 | W105: 9 | X105: 6 | Y105: 20 | Z105: 5 | AA105: 3 | AB105: 11 | AC105: 8 | AD105: 6 | AE105: 6 | AF105: 22 | AG105: 17 | AH105: 39 | AI105: 7 | AJ105: 16 | AK105: 12 | AL105: 35 | AM105: 10 | AN105: 14 | AO105: 16 | AP105: 40 | AQ105: 10 | AR105: 19 | AS105: 15 | AT105: 44 | AU105: 8 | AV105: 13 | AW105: 12 | AX105: 33 | AY105: 10 | AZ105: 19 | BA105: 13 | BB105: 42 | BC105: 6 | BD105: 18 | BE105: 9 | BF105: 33 | BG105: 7 | BH105: 8 | BI105: 16 | BJ105: 31 | BK105: 10 | BL105: 10 | BM105: 10 | BN105: 30 | BO105: 161 | BP105: 416 | BQ105: 4 | BR105: 7 | BS105: 8 | BT105: 19 | BU105: 3 | BV105: 8 | BW105: 8 | BX105: 19 | BY105: ناجحة | BZ105: و منقولة للصف الثانى | CA105: 0 | CB105: 4 | CC105: 4/3 | CU105: 0 | CV105: 0
A106: 97 | B106: 197 | C106: منى عيد حسين محمد | D106: 1/2 | E106: 2006-01-05 | F106: 26 - 08 - 15 | I106: بنات | J106: انتظام | K106: صباحى | M106: 594 | N106: 10 | O106: 10 | P106: 8 | Q106: 28 | R106: 5 | S106: 11 | T106: 18 | U106: 34 | V106: 5 | W106: 9 | X106: 11 | Y106: 25 | Z106: 3 | AA106: 3 | AB106: 8 | AC106: 6 | AD106: 5 | AE106: 6 | AF106: 16 | AG106: 15 | AH106: 31 | AI106: 9 | AJ106: 12 | AK106: 19 | AL106: 40 | AM106: 8 | AN106: 16 | AO106: 11 | AP106: 35 | AQ106: 10 | AR106: 16 | AS106: 16 | AT106: 42 | AU106: 6 | AV106: 12 | AW106: 11 | AX106: 29 | AY106: 5 | AZ106: 17 | BA106: 12 | BB106: 34 | BC106: 7 | BD106: 20 | BE106: 15 | BF106: 42 | BG106: 8 | BH106: 15 | BI106: 10 | BJ106: 33 | BK106: 8 | BL106: 10 | BM106: 11 | BN106: 29 | BO106: 162 | BP106: 402 | BQ106: 4 | BR106: 7 | BS106: 8 | BT106: 19 | BU106: 4 | BV106: 5 | BW106: 6 | BX106: 15 | BY106: ناجحة | BZ106: و منقولة للصف الثانى | CA106: 0 | CB106: 4 | CC106: 4/3 | CU106: 0 | CV106: 0
A107: 98 | B107: 198 | C107: مى مروان عبدالعزيز يوسف | D107: 3/2 | E107: 2006-01-06 | F107: 25 - 08 - 15 | I107: بنات | J107: انتظام | K107: صباحى | M107: 593 | N107: 6 | O107: 9 | P107: 19 | Q107: 34 | R107: 10 | S107: 11 | T107: 13 | U107: 34 | V107: 6 | W107: 10 | X107: 5 | Y107: 21 | Z107: 4 | AA107: 3 | AB107: 7 | AC107: 4 | AD107: 7 | AE107: 5 | AF107: 18 | AG107: 12 | AH107: 30 | AI107: 9 | AJ107: 17 | AK107: 17 | AL107: 43 | AM107: 10 | AN107: 20 | AO107: 13 | AP107: 43 | AQ107: 8 | AR107: 14 | AS107: 19 | AT107: 41 | AU107: 10 | AV107: 18 | AW107: 14 | AX107: 42 | AY107: 10 | AZ107: 20 | BA107: 20 | BB107: 50 | BC107: 7 | BD107: 17 | BE107: 11 | BF107: 35 | BG107: 5 | BH107: 19 | BI107: 18 | BJ107: 42 | BK107: 10 | BL107: 17 | BM107: 18 | BN107: 45 | BO107: 183 | BP107: 460 | BQ107: 4 | BR107: 6 | BS107: 7 | BT107: 17 | BU107: 3 | BV107: 8 | BW107: 7 | BX107: 18 | BY107: ناجحة | BZ107: و منقولة للصف الثانى | CA107: 0 | CB107: 4 | CC107: 4/3 | CU107: 0 | CV107: 0
A108: 99 | B108: 199 | C108: ميرنا سمير وليم ايوب | D108: 3/2 | E108: 2006-01-07 | F108: 24 - 08 - 15 | G108: مسيحية | I108: بنات | J108: انتظام | K108: صباحى | M108: 592 | N108: 5 | O108: 17 | P108: 10 | Q108: 32 | R108: 5 | S108: 9 | T108: 12 | U108: 26 | V108: 6 | W108: 12 | X108: 9 | Y108: 27 | Z108: 4 | AA108: 3 | AB108: 7 | AC108: 7 | AD108: 10 | AE108: 5 | AF108: 21 | AG108: 15 | AH108: 36 | AI108: 7 | AJ108: 15 | AK108: 19 | AL108: 41 | AM108: 10 | AN108: 13 | AO108: 14 | AP108: 37 | AQ108: 8 | AR108: 20 | AS108: 8 | AT108: 36 | AU108: 7 | AV108: 13 | AW108: 13 | AX108: 33 | AY108: 8 | AZ108: 10 | BA108: 17 | BB108: 35 | BC108: 7 | BD108: 15 | BE108: 8 | BF108: 30 | BG108: 5 | BH108: 10 | BI108: 18 | BJ108: 33 | BK108: 10 | BL108: 10 | BM108: 20 | BN108: 40 | BO108: 158 | BP108: 406 | BQ108: 3 | BR108: 8 | BS108: 5 | BT108: 16 | BU108: 4 | BV108: 7 | BW108: 5 | BX108: 16 | BY108: ناجحة | BZ108: و منقولة للصف الثانى | CA108: 0 | CB108: 4 | CC108: 4/3 | CU108: 0 | CV108: 0
A109: 100 | B109: 200 | C109: ميرنا عماد يواقيم موسى | D109: 1/2 | E109: 2006-01-08 | F109: 23 - 08 - 15 | G109: مسيحية | I109: بنات | J109: انتظام | K109: صباحى | M109: 591 | N109: 9 | O109: 16 | P109: 13 | Q109: 38 | R109: 7 | S109: 17 | T109: 17 | U109: 41 | V109: 6 | W109: 5 | X109: 5 | Y109: 16 | Z109: 5 | AA109: 3 | AB109: 8 | AC109: 7 | AD109: 8 | AE109: 6 | AF109: 21 | AG109: 16 | AH109: 37 | AI109: 7 | AJ109: 15 | AK109: 10 | AL109: 32 | AM109: 9 | AN109: 17 | AO109: 13 | AP109: 39 | AQ109: 8 | AR109: 19 | AS109: 15 | AT109: 42 | AU109: 6 | AV109: 8 | AW109: 15 | AX109: 29 | AY109: 10 | AZ109: 19 | BA109: 9 | BB109: 38 | BC109: 5 | BD109: 10 | BE109: 11 | BF109: 26 | BG109: 6 | BH109: 12 | BI109: 16 | BJ109: 34 | BK109: 9 | BL109: 18 | BM109: 20 | BN109: 47 | BO109: 171 | BP109: 419 | BQ109: 4 | BR109: 8 | BS109: 7 | BT109: 19 | BU109: 4 | BV109: 8 | BW109: 7 | BX109: 19 | BY109: ناجحة | BZ109: و منقولة للصف الثانى | CA109: 0 | CB109: 4 | CC109: 4/3 | CU109: 0 | CV109: 0
A110: 101 | B110: 201 | C110: ناديه مصطفى خليفه عبدالعزيز | D110: 3/2 | E110: 2006-01-09 | F110: 22 - 08 - 15 | I110: بنات | J110: انتظام | K110: صباحى | L110: باقية | M110: 590 | N110: 5 | O110: 15 | P110: 15 | Q110: 35 | R110: 5 | S110: 17 | T110: 15 | U110: 37 | V110: 3 | W110: 12 | X110: 7 | Y110: 22 | Z110: 6 | AA110: 3 | AB110: 7 | AC110: 7 | AD110: 10 | AE110: 5 | AF110: 23 | AG110: 15 | AH110: 38 | AI110: 9 | AJ110: 10 | AK110: 13 | AL110: 32 | AM110: 10 | AN110: 13 | AO110: 19 | AP110: 42 | AQ110: 6 | AR110: 11 | AS110: 15 | AT110: 32 | AU110: 10 | AV110: 18 | AW110: 11 | AX110: 39 | AY110: 9 | AZ110: 13 | BA110: 12 | BB110: 34 | BC110: 8 | BD110: 16 | BE110: 12 | BF110: 36 | BG110: 5 | BH110: 12 | BI110: 19 | BJ110: 36 | BK110: 8 | BL110: 15 | BM110: 18 | BN110: 41 | BO110: 166 | BP110: 424 | BQ110: 3 | BR110: 5 | BS110: 5 | BT110: 13 | BU110: 3 | BV110: 8 | BW110: 4 | BX110: 15 | BY110: ناجحة | BZ110: و منقولة للصف الثانى | CA110: 0 | CB110: 5 | CC110: 5/3 | CU110: 0 | CV110: 0
A111: 102 | B111: 202 | C111: ناديه منصور احمد محمد | D111: 2/2 | E111: 2006-01-10 | F111: 21 - 08 - 15 | I111: بنات | J111: انتظام | K111: صباحى | L111: باقية | M111: 589 | N111: 5 | O111: 14 | P111: 9 | Q111: 28 | R111: 7 | S111: 17 | T111: 8 | U111: 32 | V111: 3 | W111: 6 | X111: 8 | Y111: 17 | Z111: 3 | AA111: 4 | AB111: 5 | AC111: 6 | AD111: 6 | AE111: 4 | AF111: 14 | AG111: 14 | AH111: 28 | AI111: 9 | AJ111: 17 | AK111: 15 | AL111: 41 | AM111: 9 | AN111: 17 | AO111: 11 | AP111: 37 | AQ111: 9 | AR111: 11 | AS111: 18 | AT111: 38 | AU111: 9 | AV111: 13 | AW111: 15 | AX111: 37 | AY111: 8 | AZ111: 19 | BA111: 8 | BB111: 35 | BC111: 7 | BD111: 16 | BE111: 11 | BF111: 34 | BG111: 8 | BH111: 11 | BI111: 19 | BJ111: 38 | BK111: 7 | BL111: 13 | BM111: 10 | BN111: 30 | BO111: 165 | BP111: 395 | BQ111: 3 | BR111: 8 | BS111: 6 | BT111: 17 | BU111: 4 | BV111: 4 | BW111: 7 | BX111: 15 | BY111: دورثان | BZ111: فى : حاسب الى - | CA111: 1 | CB111: 5 | CC111: 5/3 | CI111: حاسب الى - | CU111: 0 | CV111: 1
A112: 103 | B112: 203 | C112: ندا عبدالمجيد صابرمحمد | D112: 1/2 | E112: 2006-01-11 | F112: 20 - 08 - 15 | I112: بنات | J112: انتظام | K112: صباحى | M112: 588 | N112: 5 | O112: 19 | P112: 20 | Q112: 44 | R112: 6 | S112: 20 | T112: 8 | U112: 34 | V112: 4 | W112: 5 | X112: 11 | Y112: 20 | Z112: 4 | AA112: 4 | AB112: 12 | AC112: 8 | AD112: 11 | AE112: 6 | AF112: 27 | AG112: 18 | AH112: 45 | AI112: 6 | AJ112: 19 | AK112: 18 | AL112: 43 | AM112: 6 | AN112: 10 | AO112: 12 | AP112: 28 | AQ112: 6 | AR112: 17 | AS112: 10 | AT112: 33 | AU112: 6 | AV112: 18 | AW112: 12 | AX112: 36 | AY112: 9 | AZ112: 12 | BA112: 17 | BB112: 38 | BC112: 5 | BD112: 8 | BE112: 10 | BF112: 23 | BG112: 8 | BH112: 14 | BI112: 14 | BJ112: 36 | BK112: 9 | BL112: 8 | BM112: 16 | BN112: 33 | BO112: 170 | BP112: 413 | BQ112: 3 | BR112: 8 | BS112: 7 | BT112: 18 | BU112: 4 | BV112: 4 | BW112: 5 | BX112: 13 | BY112: دورثان | BZ112: فى : سكرتارية اجنبية - | CA112: 1 | CB112: 5 | CC112: 5/3 | CO112: سكرتارية اجنبية - | CU112: 0 | CV112: 1
A113: 104 | B113: 204 | C113: ندا عمر مصطفى محمد | D113: 1/2 | E113: 2006-01-12 | F113: 19 - 08 - 15 | I113: بنات | J113: انتظام | K113: صباحى | M113: 587 | N113: 9 | O113: 8 | P113: 14 | Q113: 31 | R113: 5 | S113: 14 | T113: 11 | U113: 30 | V113: 4 | W113: 8 | X113: 10 | Y113: 22 | Z113: 3 | AA113: 3 | AB113: 12 | AC113: 4 | AD113: 11 | AE113: 6 | AF113: 26 | AG113: 13 | AH113: 39 | AI113: 7 | AJ113: 13 | AK113: 18 | AL113: 38 | AM113: 8 | AN113: 9 | AO113: 9 | AP113: 26 | AQ113: 8 | AR113: 12 | AS113: 10 | AT113: 30 | AU113: 6 | AV113: 19 | AW113: 11 | AX113: 36 | AY113: 6 | AZ113: 10 | BA113: 18 | BB113: 34 | BC113: 9 | BD113: 16 | BE113: 9 | BF113: 34 | BG113: 7 | BH113: 20 | BI113: 16 | BJ113: 43 | BK113: 10 | BL113: 11 | BM113: 17 | BN113: 38 | BO113: 156 | BP113: 401 | BQ113: 4 | BR113: 7 | BS113: 6 | BT113: 17 | BU113: 3 | BV113: 4 | BW113: 6 | BX113: 13 | BY113: ناجحة | BZ113: و منقولة للصف الثانى | CA113: 0 | CB113: 5 | CC113: 5/3 | CU113: 0 | CV113: 0
A114: 105 | B114: 205 | C114: ندى احمد كامل السيد | D114: 3/2 | E114: 2006-01-13 | F114: 18 - 08 - 15 | I114: بنات | J114: انتظام | K114: صباحى | M114: 586 | N114: 7 | O114: 8 | P114: 5 | Q114: 20 | R114: 8 | S114: 10 | T114: 17 | U114: 35 | V114: 6 | W114: 7 | X114: 12 | Y114: 25 | Z114: 3 | AA114: 3 | AB114: 3 | AC114: 4 | AD114: 5 | AE114: 8 | AF114: 4 | AG114: 15 | AH114: 19 | AI114: 5 | AJ114: 18 | AK114: 11 | AL114: 34 | AM114: 6 | AN114: 12 | AO114: 9 | AP114: 27 | AQ114: 6 | AR114: 11 | AS114: 16 | AT114: 33 | AU114: 5 | AV114: 19 | AW114: 19 | AX114: 43 | AY114: 9 | AZ114: 20 | BA114: 10 | BB114: 39 | BC114: 6 | BD114: 11 | BE114: 12 | BF114: 29 | BG114: 10 | BH114: 18 | BI114: 11 | BJ114: 39 | BK114: 7 | BL114: 16 | BM114: 17 | BN114: 40 | BO114: 157 | BP114: 383 | BQ114: 3 | BR114: 6 | BS114: 6 | BT114: 15 | BU114: 4 | BV114: 6 | BW114: 8 | BX114: 18 | BY114: دورثان | BZ114: فى : لغة عربية - حاسب الى - | CA114: 2 | CB114: 5 | CC114: 5/3 | CF114: لغة عربية - | CI114: حاسب الى - | CU114: 0 | CV114: 2
A115: 106 | B115: 206 | C115: ندى محمد ابراهيم ابوبكر | D115: 2/2 | E115: 2006-01-14 | F115: 17 - 08 - 15 | I115: بنات | J115: انتظام | K115: صباحى | M115: 585 | N115: 6 | O115: 19 | P115: 8 | Q115: 33 | R115: 9 | S115: 11 | T115: 8 | U115: 28 | V115: 6 | W115: 12 | X115: 12 | Y115: 30 | Z115: 4 | AA115: 3 | AB115: 12 | AC115: 4 | AD115: 12 | AE115: 8 | AF115: 28 | AG115: 15 | AH115: 43 | AI115: 6 | AJ115: 14 | AK115: 17 | AL115: 37 | AM115: 10 | AN115: 11 | AO115: 10 | AP115: 31 | AQ115: 6 | AR115: 14 | AS115: 16 | AT115: 36 | AU115: 6 | AV115: 10 | AW115: 12 | AX115: 28 | AY115: 8 | AZ115: 9 | BA115: 16 | BB115: 33 | BC115: 5 | BD115: 14 | BE115: 13 | BF115: 32 | BG115: 10 | BH115: 9 | BI115: 12 | BJ115: 31 | BK115: 9 | BL115: 16 | BM115: 17 | BN115: 42 | BO115: 155 | BP115: 404 | BQ115: 3 | BR115: 6 | BS115: 7 | BT115: 16 | BU115: 4 | BV115: 4 | BW115: 4 | BX115: 12 | BY115: ناجحة | BZ115: و منقولة للصف الثانى | CA115: 0 | CB115: 5 | CC115: 5/3 | CU115: 0 | CV115: 0
A116: 107 | B116: 207 | C116: نرجس عادل ابرهيم عوض | D116: 2/2 | E116: 2006-01-15 | F116: 16 - 08 - 15 | G116: مسيحية | I116: بنات | J116: انتظام | K116: صباحى | M116: 584 | N116: 8 | O116: 8 | P116: 18 | Q116: 34 | R116: 5 | S116: 16 | T116: 20 | U116: 41 | V116: 3 | W116: 5 | X116: 7 | Y116: 15 | Z116: 4 | AA116: 4 | AB116: 10 | AC116: 5 | AD116: 10 | AE116: 6 | AF116: 24 | AG116: 15 | AH116: 39 | AI116: 5 | AJ116: 14 | AK116: 9 | AL116: 28 | AM116: 5 | AN116: 13 | AO116: 20 | AP116: 38 | AQ116: 9 | AR116: 12 | AS116: 15 | AT116: 36 | AU116: 8 | AV116: 20 | AW116: 14 | AX116: 42 | AY116: 6 | AZ116: 18 | BA116: 8 | BB116: 32 | BC116: 5 | BD116: 10 | BE116: 10 | BF116: 25 | BG116: 9 | BH116: 10 | BI116: 14 | BJ116: 33 | BK116: 5 | BL116: 9 | BM116: 17 | BN116: 31 | BO116: 150 | BP116: 394 | BQ116: 4 | BR116: 7 | BS116: 6 | BT116: 17 | BU116: 3 | BV116: 4 | BW116: 7 | BX116: 14 | BY116: ناجحة | BZ116: و منقولة للصف الثانى | CA116: 0 | CB116: 5 | CC116: 5/3 | CU116: 0 | CV116: 0
A117: 108 | B117: 208 | C117: نعمات سيد احمد نجار | D117: 3/2 | E117: 2006-01-16 | F117: 15 - 08 - 15 | I117: بنات | J117: انتظام | K117: صباحى | M117: 583 | N117: 5 | O117: 15 | P117: 9 | Q117: 29 | R117: 9 | S117: 9 | T117: 8 | U117: 26 | V117: 4 | W117: 6 | X117: 6 | Y117: 16 | Z117: 5 | AA117: 4 | AB117: 8 | AC117: 7 | AD117: 7 | AE117: 4 | AF117: 20 | AG117: 15 | AH117: 35 | AI117: 6 | AJ117: 18 | AK117: 13 | AL117: 37 | AM117: 5 | AN117: 10 | AO117: 19 | AP117: 34 | AQ117: 7 | AR117: 15 | AS117: 20 | AT117: 42 | AU117: 9 | AV117: 9 | AW117: 15 | AX117: 33 | AY117: 7 | AZ117: 11 | BA117: 10 | BB117: 28 | BC117: 10 | BD117: 10 | BE117: 12 | BF117: 32 | BG117: 8 | BH117: 9 | BI117: 9 | BJ117: 26 | BK117: 5 | BL117: 16 | BM117: 12 | BN117: 33 | BO117: 143 | BP117: 371 | BQ117: 4 | BR117: 4 | BS117: 6 | BT117: 14 | BU117: 4 | BV117: 6 | BW117: 8 | BX117: 18 | BY117: ناجحة | BZ117: و منقولة للصف الثانى | CA117: 0 | CB117: 5 | CC117: 5/3 | CU117: 0 | CV117: 0
A118: 109 | B118: 209 | C118: نعمه حسن محمد حفنى | D118: 2/2 | E118: 2006-01-17 | F118: 14 - 08 - 15 | I118: بنات | J118: انتظام | K118: صباحى | M118: 582 | N118: 6 | O118: 12 | P118: 14 | Q118: 32 | R118: 9 | S118: 10 | T118: 20 | U118: 39 | V118: 3 | W118: 10 | X118: 7 | Y118: 20 | Z118: 3 | AA118: 4 | AB118: 7 | AC118: 7 | AD118: 10 | AE118: 6 | AF118: 20 | AG118: 17 | AH118: 37 | AI118: 5 | AJ118: 17 | AK118: 11 | AL118: 33 | AM118: 6 | AN118: 11 | AO118: 19 | AP118: 36 | AQ118: 8 | AR118: 14 | AS118: 15 | AT118: 37 | AU118: 9 | AV118: 8 | AW118: 12 | AX118: 29 | AY118: 7 | AZ118: 20 | BA118: 17 | BB118: 44 | BC118: 6 | BD118: 9 | BE118: 12 | BF118: 27 | BG118: 10 | BH118: 11 | BI118: 9 | BJ118: 30 | BK118: 10 | BL118: 18 | BM118: 8 | BN118: 36 | BO118: 154 | BP118: 400 | BQ118: 3 | BR118: 8 | BS118: 4 | BT118: 15 | BU118: 3 | BV118: 6 | BW118: 7 | BX118: 16 | BY118: ناجحة | BZ118: و منقولة للصف الثانى | CA118: 0 | CB118: 5 | CC118: 5/3 | CU118: 0 | CV118: 0
A119: 110 | B119: 210 | C119: نيفين اشرف صابر عطاالله ابراهيم | D119: 1/2 | E119: 2006-01-18 | F119: 13 - 08 - 15 | G119: مسيحية | I119: بنات | J119: انتظام | K119: صباحى | M119: 581 | N119: 10 | O119: 11 | P119: 8 | Q119: 29 | R119: 6 | S119: 20 | T119: 12 | U119: 38 | V119: 4 | W119: 11 | X119: 12 | Y119: 27 | Z119: 3 | AA119: 3 | AB119: 6 | AC119: 4 | AD119: 7 | AE119: 6 | AF119: 16 | AG119: 13 | AH119: 29 | AI119: 5 | AJ119: 11 | AK119: 20 | AL119: 36 | AM119: 7 | AN119: 16 | AO119: 14 | AP119: 37 | AQ119: 10 | AR119: 12 | AS119: 12 | AT119: 34 | AU119: 8 | AV119: 8 | AW119: 9 | AX119: 25 | AY119: 10 | AZ119: 10 | BA119: 10 | BB119: 30 | BC119: 6 | BD119: 17 | BE119: 15 | BF119: 38 | BG119: 8 | BH119: 11 | BI119: 8 | BJ119: 27 | BK119: 10 | BL119: 14 | BM119: 13 | BN119: 37 | BO119: 151 | BP119: 387 | BQ119: 3 | BR119: 6 | BS119: 7 | BT119: 16 | BU119: 3 | BV119: 8 | BW119: 5 | BX119: 16 | BY119: ناجحة | BZ119: و منقولة للصف الثانى | CA119: 0 | CB119: 5 | CC119: 5/3 | CU119: 0 | CV119: 0
A120: 111 | B120: 211 | C120: هاجر عطيه عامر عطيه | D120: 3/2 | E120: 2006-01-19 | F120: 12 - 08 - 15 | I120: بنات | J120: انتظام | K120: صباحى | M120: 580 | N120: 5 | O120: 11 | P120: 17 | Q120: 33 | R120: 9 | S120: 18 | T120: 20 | U120: 47 | V120: 6 | W120: 11 | X120: 8 | Y120: 25 | Z120: 4 | AA120: 4 | AB120: 12 | AC120: 7 | AD120: 8 | AE120: 7 | AF120: 24 | AG120: 18 | AH120: 42 | AI120: 7 | AJ120: 17 | AK120: 10 | AL120: 34 | AM120: 7 | AN120: 16 | AO120: 19 | AP120: 42 | AQ120: 8 | AR120: 11 | AS120: 20 | AT120: 39 | AU120: 8 | AV120: 17 | AW120: 14 | AX120: 39 | AY120: 10 | AZ120: 20 | BA120: 16 | BB120: 46 | BC120: 5 | BD120: 10 | BE120: 12 | BF120: 27 | BG120: 10 | BH120: 20 | BI120: 19 | BJ120: 49 | BK120: 5 | BL120: 8 | BM120: 11 | BN120: 24 | BO120: 178 | BP120: 447 | BQ120: 3 | BR120: 6 | BS120: 5 | BT120: 14 | BU120: 3 | BV120: 5 | BW120: 7 | BX120: 15 | BY120: دورثان | BZ120: فى : ادارة مخازن - | CA120: 1 | CB120: 5 | CC120: 5/3 | CQ120: ادارة مخازن - | CU120: 0 | CV120: 1
A121: 112 | B121: 212 | C121: هاجرعارف العريان ابراهيم | D121: 1/2 | E121: 2006-01-20 | F121: 11 - 08 - 15 | I121: بنات | J121: انتظام | K121: صباحى | M121: 579 | N121: 5 | O121: 8 | P121: 10 | Q121: 23 | R121: 8 | S121: 12 | T121: 15 | U121: 35 | V121: 5 | W121: 9 | X121: 9 | Y121: 23 | Z121: 5 | AA121: 3 | AB121: 10 | AC121: 7 | AD121: 5 | AE121: 5 | AF121: 20 | AG121: 15 | AH121: 35 | AI121: 8 | AJ121: 19 | AK121: 11 | AL121: 38 | AM121: 7 | AN121: 12 | AO121: 13 | AP121: 32 | AQ121: 7 | AR121: 14 | AS121: 10 | AT121: 31 | AU121: 9 | AV121: 9 | AW121: 14 | AX121: 32 | AY121: 5 | AZ121: 10 | BA121: 14 | BB121: 29 | BC121: 7 | BD121: 13 | BE121: 16 | BF121: 36 | BG121: 9 | BH121: 8 | BI121: 16 | BJ121: 33 | BK121: 6 | BL121: 15 | BM121: 17 | BN121: 38 | BO121: 146 | BP121: 385 | BQ121: 3 | BR121: 8 | BS121: 5 | BT121: 16 | BU121: 4 | BV121: 5 | BW121: 6 | BX121: 15 | BY121: دورثان | BZ121: فى : لغة عربية - | CA121: 1 | CB121: 5 | CC121: 5/3 | CF121: لغة عربية - | CU121: 0 | CV121: 1
A122: 113 | B122: 213 | C122: هايدى ربيع بلال مرجان | D122: 3/2 | E122: 2006-01-21 | F122: 10 - 08 - 15 | I122: بنات | J122: انتظام | K122: صباحى | M122: 578 | N122: 10 | O122: 16 | P122: 16 | Q122: 42 | R122: 5 | S122: 13 | T122: 10 | U122: 28 | V122: 6 | W122: 10 | X122: 7 | Y122: 23 | Z122: 5 | AA122: 3 | AB122: 5 | AC122: 4 | AD122: 6 | AE122: 4 | AF122: 16 | AG122: 11 | AH122: 27 | AI122: 6 | AJ122: 9 | AK122: 11 | AL122: 26 | AM122: 8 | AN122: 18 | AO122: 15 | AP122: 41 | AQ122: 7 | AR122: 10 | AS122: 15 | AT122: 32 | AU122: 8 | AV122: 12 | AW122: 18 | AX122: 38 | AY122: 10 | AZ122: 11 | BA122: 8 | BB122: 29 | BC122: 7 | BD122: 19 | BE122: 19 | BF122: 45 | BG122: 6 | BH122: 11 | BI122: 15 | BJ122: 32 | BK122: 6 | BL122: 13 | BM122: 12 | BN122: 31 | BO122: 151 | BP122: 394 | BQ122: 3 | BR122: 8 | BS122: 4 | BT122: 15 | BU122: 4 | BV122: 4 | BW122: 5 | BX122: 13 | BY122: ناجحة | BZ122: و منقولة للصف الثانى | CA122: 0 | CB122: 5 | CC122: 5/3 | CU122: 0 | CV122: 0
A123: 114 | B123: 214 | C123: هايدى سعدالدين صديق مرسى | D123: 3/2 | E123: 2006-01-22 | F123: 09 - 08 - 15 | I123: بنات | J123: انتظام | K123: صباحى | M123: 577 | N123: 8 | O123: 10 | P123: 19 | Q123: 37 | R123: 10 | S123: 17 | T123: 17 | U123: 44 | V123: 3 | W123: 7 | X123: 12 | Y123: 22 | Z123: 5 | AA123: 4 | AB123: 12 | AC123: 5 | AD123: 12 | AE123: 6 | AF123: 29 | AG123: 15 | AH123: 44 | AI123: 5 | AJ123: 9 | AK123: 10 | AL123: 24 | AM123: 5 | AN123: 15 | AO123: 17 | AP123: 37 | AQ123: 6 | AR123: 10 | AS123: 13 | AT123: 29 | AU123: 10 | AV123: 9 | AW123: 8 | AX123: 27 | AY123: 9 | AZ123: 20 | BA123: 16 | BB123: 45 | BC123: 8 | BD123: 19 | BE123: 14 | BF123: 41 | BG123: 8 | BH123: 12 | BI123: 8 | BJ123: 28 | BK123: 5 | BL123: 18 | BM123: 11 | BN123: 34 | BO123: 163 | BP123: 412 | BQ123: 4 | BR123: 6 | BS123: 4 | BT123: 14 | BU123: 3 | BV123: 6 | BW123: 5 | BX123: 14 | BY123: دورثان | BZ123: فى : محاسبة مالية - | CA123: 1 | CB123: 5 | CC123: 5/3 | CJ123: محاسبة مالية - | CU123: 0 | CV123: 1
A124: 115 | B124: 215 | C124: هبه محمد شمس الدين محروس | D124: 3/2 | E124: 2006-01-23 | F124: 08 - 08 - 15 | I124: بنات | J124: انتظام | K124: صباحى | M124: 576 | N124: 5 | O124: 16 | P124: 15 | Q124: 36 | R124: 7 | S124: 14 | T124: 13 | U124: 34 | V124: 4 | W124: 10 | X124: 11 | Y124: 25 | Z124: 6 | AA124: 4 | AB124: 10 | AC124: 8 | AD124: 7 | AE124: 8 | AF124: 23 | AG124: 20 | AH124: 43 | AI124: 9 | AJ124: 11 | AK124: 16 | AL124: 36 | AM124: 7 | AN124: 15 | AO124: 19 | AP124: 41 | AQ124: 9 | AR124: 15 | AS124: 19 | AT124: 43 | AU124: 6 | AV124: 16 | AW124: 16 | AX124: 38 | AY124: 5 | AZ124: 16 | BA124: 10 | BB124: 31 | BC124: 9 | BD124: 10 | BE124: 17 | BF124: 36 | BG124: 10 | BH124: 19 | BI124: 12 | BJ124: 41 | BK124: 9 | BL124: 12 | BM124: 14 | BN124: 35 | BO124: 172 | BP124: 439 | BQ124: 3 | BR124: 8 | BS124: 5 | BT124: 16 | BU124: 3 | BV124: 8 | BW124: 8 | BX124: 19 | BY124: ناجحة | BZ124: و منقولة للصف الثانى | CA124: 0 | CB124: 5 | CC124: 5/3 | CU124: 0 | CV124: 0
A125: 116 | B125: 216 | C125: هدى عبدالناصر احمد عثمان | D125: 1/2 | E125: 2006-01-24 | F125: 07 - 08 - 15 | I125: بنات | J125: انتظام | K125: صباحى | M125: 575 | N125: 10 | O125: 19 | P125: 15 | Q125: 44 | R125: 9 | S125: 8 | T125: 11 | U125: 28 | V125: 5 | W125: 11 | X125: 7 | Y125: 23 | Z125: 3 | AA125: 3 | AB125: 6 | AC125: 8 | AD125: 8 | AE125: 5 | AF125: 17 | AG125: 16 | AH125: 33 | AI125: 10 | AJ125: 9 | AK125: 15 | AL125: 34 | AM125: 10 | AN125: 19 | AO125: 15 | AP125: 44 | AQ125: 6 | AR125: 11 | AS125: 13 | AT125: 30 | AU125: 5 | AV125: 11 | AW125: 10 | AX125: 26 | AY125: 6 | AZ125: 12 | BA125: 9 | BB125: 27 | BC125: 5 | BD125: 12 | BE125: 11 | BF125: 28 | BG125: 8 | BH125: 19 | BI125: 11 | BJ125: 38 | BK125: 7 | BL125: 14 | BM125: 12 | BN125: 33 | BO125: 159 | BP125: 388 | BQ125: 3 | BR125: 6 | BS125: 7 | BT125: 16 | BU125: 4 | BV125: 4 | BW125: 5 | BX125: 13 | BY125: ناجحة | BZ125: و منقولة للصف الثانى | CA125: 0 | CB125: 5 | CC125: 5/3 | CU125: 0 | CV125: 0
A126: 117 | B126: 217 | C126: هدير مجاهد عابدين احمد | D126: 2/2 | E126: 2006-01-25 | F126: 06 - 08 - 15 | I126: بنات | J126: انتظام | K126: صباحى | M126: 574 | N126: 9 | O126: 14 | P126: 9 | Q126: 32 | R126: 7 | S126: 9 | T126: 11 | U126: 27 | V126: 3 | W126: 12 | X126: 8 | Y126: 23 | Z126: 5 | AA126: 3 | AB126: 10 | AC126: 6 | AD126: 8 | AE126: 6 | AF126: 23 | AG126: 15 | AH126: 38 | AI126: 8 | AJ126: 14 | AK126: 19 | AL126: 41 | AM126: 8 | AN126: 15 | AO126: 14 | AP126: 37 | AQ126: 8 | AR126: 16 | AS126: 15 | AT126: 39 | AU126: 10 | AV126: 13 | AW126: 16 | AX126: 39 | AY126: 7 | AZ126: 12 | BA126: 17 | BB126: 36 | BC126: 7 | BD126: 9 | BE126: 14 | BF126: 30 | BG126: 5 | BH126: 12 | BI126: 13 | BJ126: 30 | BK126: 6 | BL126: 11 | BM126: 18 | BN126: 35 | BO126: 153 | BP126: 407 | BQ126: 3 | BR126: 8 | BS126: 4 | BT126: 15 | BU126: 4 | BV126: 4 | BW126: 5 | BX126: 13 | BY126: ناجحة | BZ126: و منقولة للصف الثانى | CA126: 0 | CB126: 5 | CC126: 5/3 | CU126: 0 | CV126: 0
A127: 118 | B127: 218 | C127: هدير محمد سيد عمر | D127: 1/2 | E127: 2006-01-26 | F127: 05 - 08 - 15 | I127: بنات | J127: انتظام | K127: صباحى | M127: 573 | N127: 10 | O127: 14 | P127: 11 | Q127: 35 | R127: 5 | S127: 9 | T127: 20 | U127: 34 | V127: 4 | W127: 6 | X127: 7 | Y127: 17 | Z127: 3 | AA127: 4 | AB127: 9 | AC127: 7 | AD127: 9 | AE127: 6 | AF127: 21 | AG127: 17 | AH127: 38 | AI127: 6 | AJ127: 11 | AK127: 16 | AL127: 33 | AM127: 10 | AN127: 14 | AO127: 17 | AP127: 41 | AQ127: 8 | AR127: 15 | AS127: 8 | AT127: 31 | AU127: 5 | AV127: 20 | AW127: 19 | AX127: 44 | AY127: 8 | AZ127: 13 | BA127: 13 | BB127: 34 | BC127: 5 | BD127: 10 | BE127: 12 | BF127: 27 | BG127: 6 | BH127: 15 | BI127: 20 | BJ127: 41 | BK127: 6 | BL127: 17 | BM127: 16 | BN127: 39 | BO127: 160 | BP127: 414 | BQ127: 3 | BR127: 7 | BS127: 7 | BT127: 17 | BU127: 4 | BV127: 4 | BW127: 8 | BX127: 16 | BY127: ناجحة | BZ127: و منقولة للصف الثانى | CA127: 0 | CB127: 5 | CC127: 5/3 | CU127: 0 | CV127: 0
A128: 119 | B128: 219 | C128: هدير محمود سيد احمد | D128: 1/2 | E128: 2006-01-27 | F128: 04 - 08 - 15 | I128: بنات | J128: انتظام | K128: صباحى | M128: 572 | N128: 5 | O128: 13 | P128: 14 | Q128: 32 | R128: 7 | S128: 15 | T128: 16 | U128: 38 | V128: 6 | W128: 11 | X128: 7 | Y128: 24 | Z128: 3 | AA128: 4 | AB128: 12 | AC128: 4 | AD128: 5 | AE128: 4 | AF128: 20 | AG128: 12 | AH128: 32 | AI128: 10 | AJ128: 13 | AK128: 11 | AL128: 34 | AM128: 10 | AN128: 10 | AO128: 15 | AP128: 35 | AQ128: 7 | AR128: 16 | AS128: 11 | AT128: 34 | AU128: 9 | AV128: 14 | AW128: 14 | AX128: 37 | AY128: 5 | AZ128: 20 | BA128: 20 | BB128: 45 | BC128: 10 | BD128: 17 | BE128: 10 | BF128: 37 | BG128: 7 | BH128: 15 | BI128: 19 | BJ128: 41 | BK128: 6 | BL128: 13 | BM128: 19 | BN128: 38 | BO128: 173 | BP128: 427 | BQ128: 4 | BR128: 5 | BS128: 8 | BT128: 17 | BU128: 4 | BV128: 4 | BW128: 7 | BX128: 15 | BY128: ناجحة | BZ128: و منقولة للصف الثانى | CA128: 0 | CB128: 5 | CC128: 5/3 | CU128: 0 | CV128: 0
A129: 120 | B129: 220 | C129: هدير نجار الامير ابراهيم | D129: 1/2 | E129: 2006-01-28 | F129: 03 - 08 - 15 | I129: بنات | J129: انتظام | K129: صباحى | M129: 571 | N129: 5 | O129: 20 | P129: 11 | Q129: 36 | R129: 10 | S129: 20 | T129: 14 | U129: 44 | V129: 4 | W129: 8 | X129: 7 | Y129: 19 | Z129: 5 | AA129: 3 | AB129: 11 | AC129: 5 | AD129: 10 | AE129: 4 | AF129: 26 | AG129: 12 | AH129: 38 | AI129: 6 | AJ129: 10 | AK129: 18 | AL129: 34 | AM129: 7 | AN129: 15 | AO129: 19 | AP129: 41 | AQ129: 7 | AR129: 12 | AS129: 16 | AT129: 35 | AU129: 7 | AV129: 20 | AW129: 16 | AX129: 43 | AY129: 6 | AZ129: 13 | BA129: 8 | BB129: 27 | BC129: 8 | BD129: 20 | BE129: 18 | BF129: 46 | BG129: 9 | BH129: 8 | BI129: 11 | BJ129: 28 | BK129: 5 | BL129: 19 | BM129: 15 | BN129: 39 | BO129: 181 | BP129: 430 | BQ129: 4 | BR129: 7 | BS129: 4 | BT129: 15 | BU129: 4 | BV129: 8 | BW129: 5 | BX129: 17 | BY129: ناجحة | BZ129: و منقولة للصف الثانى | CA129: 0 | CB129: 5 | CC129: 5/3 | CU129: 0 | CV129: 0
A130: 121 | B130: 221 | C130: هلا عبدالكريم عبدالفضيل عبدالكريم | D130: 3/2 | E130: 2006-01-29 | F130: 02 - 08 - 15 | I130: بنات | J130: انتظام | K130: صباحى | M130: 570 | N130: 7 | O130: 13 | P130: 20 | Q130: 40 | R130: 6 | S130: 14 | T130: 11 | U130: 31 | V130: 3 | W130: 7 | X130: 5 | Y130: 15 | Z130: 5 | AA130: 4 | AB130: 5 | AC130: 8 | AD130: 6 | AE130: 6 | AF130: 16 | AG130: 18 | AH130: 34 | AI130: 9 | AJ130: 20 | AK130: 10 | AL130: 39 | AM130: 10 | AN130: 16 | AO130: 10 | AP130: 36 | AQ130: 6 | AR130: 8 | AS130: 20 | AT130: 34 | AU130: 9 | AV130: 15 | AW130: 20 | AX130: 44 | AY130: 7 | AZ130: 19 | BA130: 8 | BB130: 34 | BC130: 6 | BD130: 8 | BE130: 16 | BF130: 30 | BG130: 5 | BH130: 19 | BI130: 19 | BJ130: 43 | BK130: 5 | BL130: 12 | BM130: 20 | BN130: 37 | BO130: 164 | BP130: 417 | BQ130: 3 | BR130: 8 | BS130: 4 | BT130: 15 | BU130: 4 | BV130: 7 | BW130: 7 | BX130: 18 | BY130: ناجحة | BZ130: و منقولة للصف الثانى | CA130: 0 | CB130: 5 | CC130: 5/3 | CU130: 0 | CV130: 0
A131: 122 | B131: 222 | C131: هناء كمال عبدالفتاح ابوالفضل | D131: 3/2 | E131: 2006-01-30 | F131: 01 - 08 - 15 | I131: بنات | J131: انتظام | K131: صباحى | M131: 569 | N131: 7 | O131: 13 | P131: 10 | Q131: 30 | R131: 9 | S131: 17 | T131: 12 | U131: 38 | V131: 6 | W131: 6 | X131: 5 | Y131: 17 | Z131: 4 | AA131: 4 | AB131: 7 | AC131: 4 | AD131: 7 | AE131: 8 | AF131: 18 | AG131: 16 | AH131: 34 | AI131: 9 | AJ131: 9 | AK131: 18 | AL131: 36 | AM131: 10 | AN131: 12 | AO131: 8 | AP131: 30 | AQ131: 7 | AR131: 13 | AS131: 10 | AT131: 30 | AU131: 9 | AV131: 8 | AW131: 17 | AX131: 34 | AY131: 5 | AZ131: 11 | BA131: 10 | BB131: 26 | BC131: 5 | BD131: 13 | BE131: 10 | BF131: 28 | BG131: 5 | BH131: 11 | BI131: 20 | BJ131: 36 | BK131: 10 | BL131: 9 | BM131: 15 | BN131: 34 | BO131: 133 | BP131: 373 | BQ131: 3 | BR131: 5 | BS131: 7 | BT131: 15 | BU131: 4 | BV131: 4 | BW131: 5 | BX131: 13 | BY131: ناجحة | BZ131: و منقولة للصف الثانى | CA131: 0 | CB131: 5 | CC131: 5/3 | CU131: 0 | CV131: 0
A132: 123 | B132: 223 | C132: هويدا عبدالوهاب محمود محمد | D132: 3/2 | E132: 2006-01-31 | F132: 00 - 08 - 15 | I132: بنات | J132: انتظام | K132: صباحى | M132: 568 | N132: 8 | O132: 14 | P132: 12 | Q132: 34 | R132: 8 | S132: 18 | T132: 9 | U132: 35 | V132: 5 | W132: 10 | X132: 5 | Y132: 20 | Z132: 6 | AA132: 4 | AB132: 9 | AC132: 5 | AD132: 12 | AE132: 4 | AF132: 27 | AG132: 13 | AH132: 40 | AI132: 8 | AJ132: 9 | AK132: 11 | AL132: 28 | AM132: 9 | AN132: 9 | AO132: 12 | AP132: 30 | AQ132: 10 | AR132: 20 | AS132: 11 | AT132: 41 | AU132: 7 | AV132: 13 | AW132: 12 | AX132: 32 | AY132: 9 | AZ132: 14 | BA132: 13 | BB132: 36 | BC132: 5 | BD132: 8 | BE132: 19 | BF132: 32 | BG132: 8 | BH132: 15 | BI132: 13 | BJ132: 36 | BK132: 6 | BL132: 18 | BM132: 17 | BN132: 41 | BO132: 162 | BP132: 405 | BQ132: 4 | BR132: 4 | BS132: 5 | BT132: 13 | BU132: 4 | BV132: 6 | BW132: 4 | BX132: 14 | BY132: ناجحة | BZ132: و منقولة للصف الثانى | CA132: 0 | CB132: 5 | CC132: 5/3 | CU132: 0 | CV132: 0
A133: 124 | B133: 224 | C133: ياسمين جابرضوى عبدالجليل | D133: 1/2 | E133: 2006-02-01 | F133: 00 - 08 - 15 | I133: بنات | J133: انتظام | K133: صباحى | M133: 567 | N133: 8 | O133: 19 | P133: 10 | Q133: 37 | R133: 7 | S133: 10 | T133: 18 | U133: 35 | V133: 4 | W133: 8 | X133: 10 | Y133: 22 | Z133: 5 | AA133: 4 | AB133: 11 | AC133: 5 | AD133: 7 | AE133: 8 | AF133: 23 | AG133: 17 | AH133: 40 | AI133: 6 | AJ133: 14 | AK133: 12 | AL133: 32 | AM133: 10 | AN133: 14 | AO133: 9 | AP133: 33 | AQ133: 7 | AR133: 18 | AS133: 12 | AT133: 37 | AU133: 8 | AV133: 16 | AW133: 18 | AX133: 42 | AY133: 10 | AZ133: 8 | BA133: 19 | BB133: 37 | BC133: 9 | BD133: 10 | BE133: 9 | BF133: 28 | BG133: 10 | BH133: 15 | BI133: 19 | BJ133: 44 | BK133: 10 | BL133: 15 | BM133: 14 | BN133: 39 | BO133: 163 | BP133: 426 | BQ133: 4 | BR133: 4 | BS133: 6 | BT133: 14 | BU133: 4 | BV133: 8 | BW133: 5 | BX133: 17 | BY133: ناجحة | BZ133: و منقولة للصف الثانى | CA133: 0 | CB133: 5 | CC133: 5/3 | CU133: 0 | CV133: 0
A134: 125 | B134: 225 | C134: يوستينا صدقى شحاته معوض | D134: 2/2 | E134: 2006-02-02 | F134: 29 - 07 - 15 | G134: مسيحية | I134: بنات | J134: انتظام | K134: صباحى | M134: 566 | N134: 9 | O134: 11 | P134: 19 | Q134: 39 | R134: 9 | S134: 8 | T134: 17 | U134: 34 | V134: 6 | W134: 7 | X134: 7 | Y134: 20 | Z134: 6 | AA134: 4 | AB134: 8 | AC134: 6 | AD134: 7 | AE134: 6 | AF134: 21 | AG134: 16 | AH134: 37 | AI134: 6 | AJ134: 17 | AK134: 9 | AL134: 32 | AM134: 7 | AN134: 10 | AO134: 17 | AP134: 34 | AQ134: 10 | AR134: 18 | AS134: 17 | AT134: 45 | AU134: 10 | AV134: 8 | AW134: 9 | AX134: 27 | AY134: 9 | AZ134: 10 | BA134: 12 | BB134: 31 | BC134: 6 | BD134: 12 | BE134: 16 | BF134: 34 | BG134: 5 | BH134: 18 | BI134: 20 | BJ134: 43 | BK134: 10 | BL134: 13 | BM134: 14 | BN134: 37 | BO134: 146 | BP134: 413 | BQ134: 3 | BR134: 5 | BS134: 4 | BT134: 12 | BU134: 3 | BV134: 4 | BW134: 4 | BX134: 11 | BY134: ناجحة | BZ134: و منقولة للصف الثانى | CA134: 0 | CB134: 5 | CC134: 5/3 | CU134: 0 | CV134: 0
A135: 126 | B135: 251 | C135: اسراء عبدالحميد محمود احمد | D135: 21/2 | E135: 2006-02-03 | F135: 28 - 07 - 15 | I135: بنات | J135: خدمات | K135: صباحى | M135: 626 | N135: 10 | O135: 11 | P135: 13 | Q135: 34 | R135: 6 | S135: 11 | T135: 16 | U135: 33 | V135: 4 | W135: 6 | X135: 5 | Y135: 15 | Z135: 3 | AA135: 3 | AB135: 6 | AC135: 7 | AD135: 5 | AE135: 6 | AF135: 14 | AG135: 16 | AH135: 30 | AI135: 7 | AJ135: 15 | AK135: 15 | AL135: 37 | AM135: 6 | AN135: 15 | AO135: 8 | AP135: 29 | AQ135: 7 | AR135: 18 | AS135: 18 | AT135: 43 | AU135: 6 | AV135: 19 | AW135: 11 | AX135: 36 | AY135: 6 | AZ135: 19 | BA135: 12 | BB135: 37 | BC135: 9 | BD135: 14 | BE135: 15 | BF135: 38 | BG135: 9 | BH135: 8 | BI135: 15 | BJ135: 32 | BK135: 10 | BL135: 14 | BM135: 13 | BN135: 37 | BO135: 163 | BP135: 401 | BQ135: 3 | BR135: 7 | BS135: 5 | BT135: 15 | BU135: 3 | BV135: 4 | BW135: 6 | BX135: 13 | BY135: دورثان | BZ135: فى : حاسب الى - | CA135: 1 | CB135: 6 | CC135: 6/3 | CI135: حاسب الى - | CU135: 0 | CV135: 1
A136: 127 | B136: 252 | C136: اسراء عبدالسميع محمد احمد | D136: 21/2 | E136: 2006-02-04 | F136: 27 - 07 - 15 | I136: بنات | J136: خدمات | K136: صباحى | M136: 627 | N136: 6 | O136: 12 | P136: 12 | Q136: 30 | R136: 8 | S136: 13 | T136: 9 | U136: 30 | V136: 4 | W136: 5 | X136: 7 | Y136: 16 | Z136: 5 | AA136: 3 | AB136: 11 | AC136: 7 | AD136: 10 | AE136: 6 | AF136: 26 | AG136: 16 | AH136: 42 | AI136: 10 | AJ136: 19 | AK136: 12 | AL136: 41 | AM136: 6 | AN136: 12 | AO136: 18 | AP136: 36 | AQ136: 6 | AR136: 13 | AS136: 13 | AT136: 32 | AU136: 10 | AV136: 8 | AW136: 12 | AX136: 30 | AY136: 8 | AZ136: 20 | BA136: 15 | BB136: 43 | BC136: 9 | BD136: 8 | BE136: 10 | BF136: 27 | BG136: 8 | BH136: 15 | BI136: 13 | BJ136: 36 | BK136: 9 | BL136: 8 | BM136: 13 | BN136: 30 | BO136: 151 | BP136: 393 | BQ136: 4 | BR136: 5 | BS136: 6 | BT136: 15 | BU136: 4 | BV136: 5 | BW136: 7 | BX136: 16 | BY136: ناجحة | BZ136: و منقولة للصف الثانى | CA136: 0 | CB136: 6 | CC136: 6/3 | CU136: 0 | CV136: 0
A137: 128 | B137: 253 | C137: اسراء محمد عبده محمد | D137: 21/2 | E137: 2006-02-05 | F137: 26 - 07 - 15 | I137: بنات | J137: خدمات | K137: صباحى | M137: 628 | N137: 7 | O137: 18 | P137: 13 | Q137: 38 | R137: 5 | S137: 19 | T137: 9 | U137: 33 | V137: 6 | W137: 7 | X137: 8 | Y137: 21 | Z137: 4 | AA137: 3 | AB137: 8 | AC137: 4 | AD137: 5 | AE137: 8 | AF137: 17 | AG137: 15 | AH137: 32 | AI137: 5 | AJ137: 17 | AK137: 12 | AL137: 34 | AM137: 7 | AN137: 18 | AO137: 9 | AP137: 34 | AQ137: 8 | AR137: 17 | AS137: 18 | AT137: 43 | AU137: 8 | AV137: 12 | AW137: 17 | AX137: 37 | AY137: 6 | AZ137: 11 | BA137: 20 | BB137: 37 | BC137: 7 | BD137: 20 | BE137: 15 | BF137: 42 | BG137: 10 | BH137: 15 | BI137: 8 | BJ137: 33 | BK137: 10 | BL137: 17 | BM137: 18 | BN137: 45 | BO137: 183 | BP137: 429 | BQ137: 4 | BR137: 4 | BS137: 6 | BT137: 14 | BU137: 3 | BV137: 4 | BW137: 6 | BX137: 13 | BY137: ناجحة | BZ137: و منقولة للصف الثانى | CA137: 0 | CB137: 6 | CC137: 6/3 | CU137: 0 | CV137: 0
A138: 129 | B138: 254 | C138: اسراء مصطفى محمد صالح | D138: 22/2 | E138: 2006-02-06 | F138: 25 - 07 - 15 | I138: بنات | J138: خدمات | K138: صباحى | M138: 629 | N138: 8 | O138: 19 | P138: 8 | Q138: =IF($C138="","",IF(P138="غ","غ",SUM(N138,O138,P138))) -> 35 | R138: 7 | S138: 18 | T138: 14 | U138: =IF($C138="","",IF(T138="غ","غ",SUM(R138,S138,T138))) -> 39 | V138: 3 | W138: 9 | X138: 8 | Y138: =IF($C138="","",IF(X138="غ","غ",SUM(V138,W138,X138))) -> 20 | Z138: 4 | AA138: 4 | AB138: 8 | AC138: 7 | AD138: 5 | AE138: 4 | AF138: =IF($C138="","",IF(AD138="غ","غ",SUM(Z138,AB138,AD138))) -> 17 | AG138: =IF($C138="","",IF(AE138="غ","غ",SUM(AA138,AC138,AE138))) -> 15 | AH138: =IF($C138="","",IF(OR(AF138="غ",AG138="غ"),"غ",SUM(AF138,AG138))) -> 32 | AI138: 7 | AJ138: 15 | AK138: 17 | AL138: =IF($C138="","",IF(AK138="غ","غ",SUM(AI138,AJ138,AK138))) -> 39 | AM138: 9 | AN138: 20 | AO138: 17 | AP138: =IF($C138="","",IF(AO138="غ","غ",SUM(AM138,AN138,AO138))) -> 46 | AQ138: 6 | AR138: 8 | AS138: 15 | AT138: =IF($C138="","",IF(AS138="غ","غ",SUM(AQ138,AR138,AS138))) -> 29 | AU138: 7 | AV138: 11 | AW138: 10 | AX138: =IF($C138="","",IF(AW138="غ","غ",SUM(AU138,AV138,AW138))) -> 28 | AY138: 6 | AZ138: 19 | BA138: 15 | BB138: =IF($C138="","",IF(BA138="غ","غ",SUM(AY138,AZ138,BA138))) -> 40 | BC138: 6 | BD138: 8 | BE138: 19 | BF138: =IF($C138="","",IF(BE138="غ","غ",SUM(BC138,BD138,BE138))) -> 33 | BG138: 10 | BH138: 13 | BI138: 16 | BJ138: =IF($C138="","",IF(BI138="غ","غ",SUM(BG138,BH138,BI138))) -> 39 | BK138: 9 | BL138: 20 | BM138: 17 | BN138: =IF($C138="","",SUM(BK138,BL138,BM138)) -> 46 | BO138: =IF($C138="","",SUM(O138,S138,W138,AJ138,AN138,AR138,AV138,AZ138,BD138,BH138,BL138,AB138,AC138)) -> 175 | BP138: =IF($C138="","",SUM(Q138,U138,Y138,AL138,AP138,AT138,AX138,BB138,BF138,BJ138,BN138,AH138)) -> 426 | BQ138: 3 | BR138: 8 | BS138: 6 | BT138: =IF($C138="","",IF(BS138="غ","غ",SUM(BQ138,BR138,BS138))) -> 17 | BU138: 3 | BV138: 6 | BW138: 7 | BX138: =IF($C138="","",IF(BW138="غ","غ",SUM(BU138,BV138,BW138))) -> 16 | BY138: =IF(I138="","",IF(I138="بنات",IF(CA138=0,"ناجحة",IF(CV138>2,"راسبة","دورثان")),IF(I138="بنين",IF(CA138=0,"ناجح",IF(CV138>2,"راسب","دورثان"))))) -> ناجحة | BZ138: =IF(AND($L138="باقية",$BY138="راسبة"),"وليس لها حق الاعادة",IF(AND($L138<>"باقية",$BY138="راسبة"),"و لها حق الاعادة",IF(AND($L138="باقى",$BY138="راسب"),"وليس له حق الاعادة",IF(AND($L138<>"باقى",$BY138="راسب"),"و له حق الاعادة",IF($BY138="ناجحة","و منقولة للصف الثانى",IF($BY138="ناجح","و منقول للصف الثانى",IF($BY138="دورثان","فى : "&CONCATENATE(CF138,CG138,CH138,CI138,CJ138,CK138,CL138,CM138,CN138,CO138,CP138,CQ138,CS138,CT138,CR138),CONCATENATE(CF138,CG138,CH138,CI138,CJ138,CK138,CL138,CM138,CN138,CO138,CP138,CQ138,CS138,CT138,CR138)))))))) -> و منقولة للصف الثانى | CA138: =IFERROR(CU138+CV138,"") -> 0 | CB138: 6 | CC138: 6/3 | CF138: =IF($C138="","",IF(OR(P138<$P$9,P138="غ",Q138<$Q$9),$CF$5&" - ","")) ->  | CG138: =IF($C138="","",IF(OR(T138<$T$9,T138="غ",U138<$U$9),$CG$5&" - ","")) ->  | CH138: =IF($C138="","",IF(OR(X138<$X$9,X138="غ",Y138<$Y$9),CH$5&" - ","")) ->  | CI138: =IF($C138="","",IF(OR(AF138<$AF$9,AF138="غ",AG138<$AG$9,AG138="غ",AH138<$AH$9),CI$5&" - ","")) ->  | CJ138: =IF($C138="","",IF(OR(AK138<$AK$9,AK138="غ",AL138<$AL$9),CJ$5&" - ","")) ->  | CK138: =IF($C138="","",IF(OR(AO138<$AO$9,AO138="غ",AP138<$AP$9),CK$5&" - ","")) ->  | CL138: =IF($C138="","",IF(OR(AS138<$AS$9,AS138="غ",AT138<$AT$9),CL$5&" - ","")) ->  | CM138: =IF($C138="","",IF(OR(AW138<$AW$9,AW138="غ",AX138<$AX$9),CM$5&" - ","")) ->  | CN138: =IF($C138="","",IF(OR(BA138<$BA$9,BA138="غ",BB138<$BB$9),CN$5&" - ","")) ->  | CO138: =IF($C138="","",IF(OR(BE138<$BE$9,BE138="غ",BF138<$BF$9),CO$5&" - ","")) ->  | CP138: =IF($C138="","",IF(OR(BI138<$BI$9,BI138="غ",BJ138<$BJ$9),CP$5&" - ","")) ->  | CQ138: =IF($C138="","",IF(OR(BM138<$BM$9,BM138="غ",BN138<$BN$9),CQ$5&" - ","")) ->  | CR138: =IF($C138="","",IF(BP138<$BP$9,CR$5,"")) ->  | CS138: =IF($C138="","",IF(OR(BS138<$BS$9,BS138="غ",BT138<$BT$9),CS$5&" - ","")) ->  | CT138: =IF($C138="","",IF(OR(BW138<$BW$9,BW138="غ",BX138<$BX$9),CT$5&" - ","")) ->  | CU138: =IF($C138="","",COUNTIF($CR138:$CT138,"?*")) -> 0 | CV138: =IF($C138="","",COUNTIF($CF138:$CQ138,"?*")) -> 0
A139: 130 | B139: 255 | C139: اسماء ادريس يوسف محمد | D139: 21/2 | E139: 2006-02-07 | F139: 24 - 07 - 15 | I139: بنات | J139: خدمات | K139: صباحى | M139: 630 | N139: 5 | O139: 20 | P139: 9 | Q139: 34 | R139: 6 | S139: 11 | T139: 13 | U139: 30 | V139: 6 | W139: 8 | X139: 9 | Y139: 23 | Z139: 5 | AA139: 3 | AB139: 7 | AC139: 6 | AD139: 12 | AE139: 8 | AF139: 24 | AG139: 17 | AH139: 41 | AI139: 9 | AJ139: 16 | AK139: 17 | AL139: 42 | AM139: 8 | AN139: 19 | AO139: 14 | AP139: 41 | AQ139: 8 | AR139: 10 | AS139: 9 | AT139: 27 | AU139: 10 | AV139: 11 | AW139: 8 | AX139: 29 | AY139: 7 | AZ139: 12 | BA139: 12 | BB139: 31 | BC139: 6 | BD139: 17 | BE139: 17 | BF139: 40 | BG139: 9 | BH139: 18 | BI139: 19 | BJ139: 46 | BK139: 5 | BL139: 19 | BM139: 9 | BN139: 33 | BO139: 174 | BP139: 417 | BQ139: 3 | BR139: 5 | BS139: 8 | BT139: 16 | BU139: 4 | BV139: 5 | BW139: 6 | BX139: 15 | BY139: ناجحة | BZ139: و منقولة للصف الثانى | CA139: 0 | CB139: 6 | CC139: 6/3 | CU139: 0 | CV139: 0
A140: 131 | B140: 256 | C140: اسماء رمضان عبادى محمود | D140: 22/2 | E140: 2006-02-08 | F140: 23 - 07 - 15 | I140: بنات | J140: خدمات | K140: صباحى | M140: 631 | N140: 10 | O140: 20 | P140: 13 | Q140: 43 | R140: 10 | S140: 17 | T140: 13 | U140: 40 | V140: 5 | W140: 7 | X140: 11 | Y140: 23 | Z140: 6 | AA140: 4 | AB140: 11 | AC140: 4 | AD140: 6 | AE140: 6 | AF140: 23 | AG140: 14 | AH140: 37 | AI140: 8 | AJ140: 14 | AK140: 17 | AL140: 39 | AM140: 5 | AN140: 20 | AO140: 8 | AP140: 33 | AQ140: 5 | AR140: 9 | AS140: 18 | AT140: 32 | AU140: 8 | AV140: 15 | AW140: 10 | AX140: 33 | AY140: 7 | AZ140: 10 | BA140: 13 | BB140: 30 | BC140: 7 | BD140: 12 | BE140: 11 | BF140: 30 | BG140: 10 | BH140: 11 | BI140: 18 | BJ140: 39 | BK140: 8 | BL140: 10 | BM140: 11 | BN140: 29 | BO140: 160 | BP140: 408 | BQ140: 3 | BR140: 5 | BS140: 4 | BT140: 12 | BU140: 4 | BV140: 7 | BW140: 5 | BX140: 16 | BY140: ناجحة | BZ140: و منقولة للصف الثانى | CA140: 0 | CB140: 6 | CC140: 6/3 | CU140: 0 | CV140: 0
A141: 132 | B141: 257 | C141: ام كلثوم عبدالنبى سيد احمد | D141: 21/2 | E141: 2006-02-09 | F141: 22 - 07 - 15 | I141: بنات | J141: خدمات | K141: صباحى | M141: 632 | N141: 10 | O141: 9 | P141: 14 | Q141: 33 | R141: 6 | S141: 16 | T141: 17 | U141: 39 | V141: 5 | W141: 12 | X141: 7 | Y141: 24 | Z141: 5 | AA141: 3 | AB141: 12 | AC141: 4 | AD141: 5 | AE141: 5 | AF141: 22 | AG141: 12 | AH141: 34 | AI141: 5 | AJ141: 20 | AK141: 20 | AL141: 45 | AM141: 7 | AN141: 14 | AO141: 17 | AP141: 38 | AQ141: 10 | AR141: 19 | AS141: 20 | AT141: 49 | AU141: 6 | AV141: 12 | AW141: 9 | AX141: 27 | AY141: 6 | AZ141: 18 | BA141: 20 | BB141: 44 | BC141: 5 | BD141: 16 | BE141: 14 | BF141: 35 | BG141: 10 | BH141: 8 | BI141: 13 | BJ141: 31 | BK141: 10 | BL141: 17 | BM141: 15 | BN141: 42 | BO141: 177 | BP141: 441 | BQ141: 4 | BR141: 5 | BS141: 6 | BT141: 15 | BU141: 3 | BV141: 8 | BW141: 7 | BX141: 18 | BY141: ناجحة | BZ141: و منقولة للصف الثانى | CA141: 0 | CB141: 6 | CC141: 6/3 | CU141: 0 | CV141: 0
A142: 133 | B142: 258 | C142: ام هاشم حسين عباس بكرى | D142: 22/2 | E142: 2006-02-10 | F142: 21 - 07 - 15 | I142: بنات | J142: خدمات | K142: صباحى | M142: 633 | N142: 10 | O142: 15 | P142: 9 | Q142: 34 | R142: 5 | S142: 12 | T142: 15 | U142: 32 | V142: 5 | W142: 6 | X142: 11 | Y142: 22 | Z142: 4 | AA142: 4 | AB142: 7 | AC142: 8 | AD142: 8 | AE142: 4 | AF142: 19 | AG142: 16 | AH142: 35 | AI142: 10 | AJ142: 12 | AK142: 12 | AL142: 34 | AM142: 6 | AN142: 20 | AO142: 10 | AP142: 36 | AQ142: 9 | AR142: 16 | AS142: 14 | AT142: 39 | AU142: 5 | AV142: 10 | AW142: 14 | AX142: 29 | AY142: 9 | AZ142: 16 | BA142: 11 | BB142: 36 | BC142: 8 | BD142: 12 | BE142: 20 | BF142: 40 | BG142: 6 | BH142: 9 | BI142: 18 | BJ142: 33 | BK142: 8 | BL142: 16 | BM142: 14 | BN142: 38 | BO142: 159 | BP142: 408 | BQ142: 3 | BR142: 5 | BS142: 4 | BT142: 12 | BU142: 3 | BV142: 8 | BW142: 7 | BX142: 18 | BY142: ناجحة | BZ142: و منقولة للصف الثانى | CA142: 0 | CB142: 6 | CC142: 6/3 | CU142: 0 | CV142: 0
A143: 134 | B143: 259 | C143: امل ابوالحسن سيد على | D143: 21/2 | E143: 2006-02-11 | F143: 20 - 07 - 15 | I143: بنات | J143: خدمات | K143: صباحى | M143: 634 | N143: 9 | O143: 16 | P143: 15 | Q143: 40 | R143: 8 | S143: 15 | T143: 13 | U143: 36 | V143: 3 | W143: 6 | X143: 12 | Y143: 21 | Z143: 4 | AA143: 3 | AB143: 5 | AC143: 4 | AD143: 9 | AE143: 6 | AF143: 18 | AG143: 13 | AH143: 31 | AI143: 7 | AJ143: 16 | AK143: 17 | AL143: 40 | AM143: 9 | AN143: 20 | AO143: 13 | AP143: 42 | AQ143: 9 | AR143: 14 | AS143: 18 | AT143: 41 | AU143: 8 | AV143: 14 | AW143: 15 | AX143: 37 | AY143: 9 | AZ143: 11 | BA143: 19 | BB143: 39 | BC143: 5 | BD143: 18 | BE143: 20 | BF143: 43 | BG143: 10 | BH143: 12 | BI143: 15 | BJ143: 37 | BK143: 6 | BL143: 16 | BM143: 13 | BN143: 35 | BO143: 167 | BP143: 442 | BQ143: 3 | BR143: 8 | BS143: 4 | BT143: 15 | BU143: 4 | BV143: 8 | BW143: 7 | BX143: 19 | BY143: ناجحة | BZ143: و منقولة للصف الثانى | CA143: 0 | CB143: 6 | CC143: 6/3 | CU143: 0 | CV143: 0
A144: 135 | B144: 260 | C144: امل سيد السعدى الطاهر | D144: 22/2 | E144: 2006-02-12 | F144: 19 - 07 - 15 | I144: بنات | J144: خدمات | K144: صباحى | M144: 635 | N144: 5 | O144: 15 | P144: 20 | Q144: 40 | R144: 8 | S144: 12 | T144: 10 | U144: 30 | V144: 5 | W144: 6 | X144: 11 | Y144: 22 | Z144: 4 | AA144: 4 | AB144: 11 | AC144: 6 | AD144: 6 | AE144: 7 | AF144: 21 | AG144: 17 | AH144: 38 | AI144: 9 | AJ144: 16 | AK144: 11 | AL144: 36 | AM144: 7 | AN144: 16 | AO144: 16 | AP144: 39 | AQ144: 5 | AR144: 10 | AS144: 16 | AT144: 31 | AU144: 8 | AV144: 14 | AW144: 14 | AX144: 36 | AY144: 9 | AZ144: 13 | BA144: 9 | BB144: 31 | BC144: 8 | BD144: 16 | BE144: 8 | BF144: 32 | BG144: 9 | BH144: 13 | BI144: 19 | BJ144: 41 | BK144: 7 | BL144: 9 | BM144: 8 | BN144: 24 | BO144: 157 | BP144: 400 | BQ144: 4 | BR144: 7 | BS144: 7 | BT144: 18 | BU144: 3 | BV144: 4 | BW144: 6 | BX144: 13 | BY144: دورثان | BZ144: فى : ادارة مخازن - | CA144: 1 | CB144: 6 | CC144: 6/3 | CQ144: ادارة مخازن - | CU144: 0 | CV144: 1
A145: 136 | B145: 261 | C145: امنيه محمد على محمود | D145: 21/2 | E145: 2006-02-13 | F145: 18 - 07 - 15 | I145: بنات | J145: خدمات | K145: صباحى | M145: 636 | N145: 6 | O145: 16 | P145: 20 | Q145: 42 | R145: 6 | S145: 10 | T145: 20 | U145: 36 | V145: 3 | W145: 8 | X145: 12 | Y145: 23 | Z145: 3 | AA145: 3 | AB145: 10 | AC145: 4 | AD145: 5 | AE145: 4 | AF145: 18 | AG145: 11 | AH145: 29 | AI145: 10 | AJ145: 8 | AK145: 13 | AL145: 31 | AM145: 5 | AN145: 17 | AO145: 12 | AP145: 34 | AQ145: 6 | AR145: 20 | AS145: 17 | AT145: 43 | AU145: 8 | AV145: 14 | AW145: 12 | AX145: 34 | AY145: 7 | AZ145: 11 | BA145: 15 | BB145: 33 | BC145: 5 | BD145: 18 | BE145: 16 | BF145: 39 | BG145: 10 | BH145: 11 | BI145: 9 | BJ145: 30 | BK145: 7 | BL145: 13 | BM145: 8 | BN145: 28 | BO145: 160 | BP145: 402 | BQ145: 4 | BR145: 5 | BS145: 8 | BT145: 17 | BU145: 4 | BV145: 4 | BW145: 5 | BX145: 13 | BY145: ناجحة | BZ145: و منقولة للصف الثانى | CA145: 0 | CB145: 6 | CC145: 6/3 | CU145: 0 | CV145: 0
A146: 137 | B146: 262 | C146: اميره على احمد محمد | D146: 21/2 | E146: 2006-02-14 | F146: 17 - 07 - 15 | I146: بنات | J146: خدمات | K146: صباحى | M146: 637 | N146: 9 | O146: 19 | P146: 17 | Q146: 45 | R146: 8 | S146: 15 | T146: 20 | U146: 43 | V146: 5 | W146: 10 | X146: 8 | Y146: 23 | Z146: 5 | AA146: 3 | AB146: 9 | AC146: 5 | AD146: 6 | AE146: 5 | AF146: 20 | AG146: 13 | AH146: 33 | AI146: 8 | AJ146: 17 | AK146: 19 | AL146: 44 | AM146: 6 | AN146: 13 | AO146: 14 | AP146: 33 | AQ146: 10 | AR146: 11 | AS146: 8 | AT146: 29 | AU146: 10 | AV146: 16 | AW146: 14 | AX146: 40 | AY146: 10 | AZ146: 11 | BA146: 9 | BB146: 30 | BC146: 6 | BD146: 13 | BE146: 15 | BF146: 34 | BG146: 7 | BH146: 19 | BI146: 10 | BJ146: 36 | BK146: 6 | BL146: 13 | BM146: 13 | BN146: 32 | BO146: 171 | BP146: 422 | BQ146: 4 | BR146: 4 | BS146: 8 | BT146: 16 | BU146: 4 | BV146: 8 | BW146: 6 | BX146: 18 | BY146: ناجحة | BZ146: و منقولة للصف الثانى | CA146: 0 | CB146: 6 | CC146: 6/3 | CU146: 0 | CV146: 0
A147: 138 | B147: 263 | C147: اميمه بسطاوى مكى محمود | D147: 21/2 | E147: 2006-02-15 | F147: 16 - 07 - 15 | I147: بنات | J147: خدمات | K147: صباحى | M147: 638 | N147: 7 | O147: 18 | P147: 8 | Q147: 33 | R147: 5 | S147: 15 | T147: 11 | U147: 31 | V147: 6 | W147: 6 | X147: 8 | Y147: 20 | Z147: 6 | AA147: 4 | AB147: 8 | AC147: 6 | AD147: 6 | AE147: 5 | AF147: 20 | AG147: 15 | AH147: 35 | AI147: 8 | AJ147: 13 | AK147: 12 | AL147: 33 | AM147: 6 | AN147: 12 | AO147: 20 | AP147: 38 | AQ147: 6 | AR147: 14 | AS147: 8 | AT147: 28 | AU147: 7 | AV147: 19 | AW147: 17 | AX147: 43 | AY147: 9 | AZ147: 8 | BA147: 20 | BB147: 37 | BC147: 6 | BD147: 10 | BE147: 19 | BF147: 35 | BG147: 10 | BH147: 14 | BI147: 10 | BJ147: 34 | BK147: 6 | BL147: 14 | BM147: 10 | BN147: 30 | BO147: 157 | BP147: 397 | BQ147: 3 | BR147: 4 | BS147: 4 | BT147: 11 | BU147: 4 | BV147: 7 | BW147: 6 | BX147: 17 | BY147: ناجحة | BZ147: و منقولة للصف الثانى | CA147: 0 | CB147: 6 | CC147: 6/3 | CU147: 0 | CV147: 0
A148: 139 | B148: 264 | C148: ايات ناصر عباس حامد | D148: 21/2 | E148: 2006-02-16 | F148: 15 - 07 - 15 | I148: بنات | J148: خدمات | K148: صباحى | M148: 639 | N148: 8 | O148: 9 | P148: 15 | Q148: 32 | R148: 7 | S148: 10 | T148: 14 | U148: 31 | V148: 6 | W148: 7 | X148: 5 | Y148: 18 | Z148: 4 | AA148: 4 | AB148: 8 | AC148: 5 | AD148: 10 | AE148: 8 | AF148: 22 | AG148: 17 | AH148: 39 | AI148: 5 | AJ148: 19 | AK148: 19 | AL148: 43 | AM148: 10 | AN148: 15 | AO148: 14 | AP148: 39 | AQ148: 6 | AR148: 17 | AS148: 8 | AT148: 31 | AU148: 7 | AV148: 10 | AW148: 10 | AX148: 27 | AY148: 5 | AZ148: 18 | BA148: 16 | BB148: 39 | BC148: 10 | BD148: 16 | BE148: 8 | BF148: 34 | BG148: 10 | BH148: 15 | BI148: 11 | BJ148: 36 | BK148: 6 | BL148: 19 | BM148: 10 | BN148: 35 | BO148: 168 | BP148: 404 | BQ148: 3 | BR148: 4 | BS148: 5 | BT148: 12 | BU148: 3 | BV148: 8 | BW148: 4 | BX148: 15 | BY148: ناجحة | BZ148: و منقولة للصف الثانى | CA148: 0 | CB148: 6 | CC148: 6/3 | CU148: 0 | CV148: 0
A149: 140 | B149: 265 | C149: ايمان ربيع عبدالرحيم | D149: 21/2 | E149: 2006-02-17 | F149: 14 - 07 - 15 | I149: بنات | J149: خدمات | K149: صباحى | M149: 640 | N149: 9 | O149: 19 | P149: 17 | Q149: 45 | R149: 7 | S149: 16 | T149: 20 | U149: 43 | V149: 6 | W149: 9 | X149: 11 | Y149: 26 | Z149: 3 | AA149: 4 | AB149: 5 | AC149: 4 | AD149: 11 | AE149: 8 | AF149: 19 | AG149: 16 | AH149: 35 | AI149: 6 | AJ149: 10 | AK149: 17 | AL149: 33 | AM149: 8 | AN149: 12 | AO149: 9 | AP149: 29 | AQ149: 5 | AR149: 17 | AS149: 20 | AT149: 42 | AU149: 8 | AV149: 17 | AW149: 14 | AX149: 39 | AY149: 9 | AZ149: 8 | BA149: 10 | BB149: 27 | BC149: 6 | BD149: 16 | BE149: 10 | BF149: 32 | BG149: 9 | BH149: 9 | BI149: 11 | BJ149: 29 | BK149: 6 | BL149: 12 | BM149: 20 | BN149: 38 | BO149: 154 | BP149: 418 | BQ149: 4 | BR149: 6 | BS149: 4 | BT149: 14 | BU149: 3 | BV149: 8 | BW149: 5 | BX149: 16 | BY149: ناجحة | BZ149: و منقولة للصف الثانى | CA149: 0 | CB149: 6 | CC149: 6/3 | CU149: 0 | CV149: 0
A150: 141 | B150: 266 | C150: ايمان سيد احمد حسانين | D150: 22/2 | E150: 2006-02-18 | F150: 13 - 07 - 15 | I150: بنات | J150: خدمات | K150: صباحى | M150: 641 | N150: 9 | O150: 16 | P150: 16 | Q150: 41 | R150: 9 | S150: 12 | T150: 9 | U150: 30 | V150: 6 | W150: 6 | X150: 9 | Y150: 21 | Z150: 4 | AA150: 3 | AB150: 11 | AC150: 5 | AD150: 5 | AE150: 8 | AF150: 20 | AG150: 16 | AH150: 36 | AI150: 9 | AJ150: 17 | AK150: 13 | AL150: 39 | AM150: 6 | AN150: 16 | AO150: 12 | AP150: 34 | AQ150: 7 | AR150: 12 | AS150: 12 | AT150: 31 | AU150: 9 | AV150: 11 | AW150: 12 | AX150: 32 | AY150: 9 | AZ150: 17 | BA150: 15 | BB150: 41 | BC150: 10 | BD150: 20 | BE150: 20 | BF150: 50 | BG150: 5 | BH150: 9 | BI150: 9 | BJ150: 23 | BK150: 7 | BL150: 14 | BM150: 14 | BN150: 35 | BO150: 166 | BP150: 413 | BQ150: 4 | BR150: 7 | BS150: 7 | BT150: 18 | BU150: 3 | BV150: 8 | BW150: 7 | BX150: 18 | BY150: دورثان | BZ150: فى : ادارة مشروعات - | CA150: 1 | CB150: 6 | CC150: 6/3 | CP150: ادارة مشروعات - | CU150: 0 | CV150: 1
A151: 142 | B151: 267 | C151: ايه ادريس صديق حسين | D151: 22/2 | E151: 2006-02-19 | F151: 12 - 07 - 15 | I151: بنات | J151: خدمات | K151: صباحى | M151: 642 | N151: 6 | O151: 14 | P151: 10 | Q151: 30 | R151: 5 | S151: 11 | T151: 13 | U151: 29 | V151: 3 | W151: 7 | X151: 10 | Y151: 20 | Z151: 5 | AA151: 4 | AB151: 11 | AC151: 5 | AD151: 5 | AE151: 7 | AF151: 21 | AG151: 16 | AH151: 37 | AI151: 10 | AJ151: 8 | AK151: 20 | AL151: 38 | AM151: 10 | AN151: 11 | AO151: 13 | AP151: 34 | AQ151: 5 | AR151: 10 | AS151: 10 | AT151: 25 | AU151: 9 | AV151: 9 | AW151: 18 | AX151: 36 | AY151: 7 | AZ151: 13 | BA151: 12 | BB151: 32 | BC151: 10 | BD151: 14 | BE151: 14 | BF151: 38 | BG151: 9 | BH151: 17 | BI151: 18 | BJ151: 44 | BK151: 10 | BL151: 20 | BM151: 11 | BN151: 41 | BO151: 150 | BP151: 404 | BQ151: 3 | BR151: 4 | BS151: 7 | BT151: 14 | BU151: 4 | BV151: 8 | BW151: 8 | BX151: 20 | BY151: ناجحة | BZ151: و منقولة للصف الثانى | CA151: 0 | CB151: 6 | CC151: 6/3 | CU151: 0 | CV151: 0
A152: 143 | B152: 268 | C152: ايه سيد حسين عثمان | D152: 22/2 | E152: 2006-02-20 | F152: 11 - 07 - 15 | I152: بنات | J152: خدمات | K152: صباحى | M152: 643 | N152: 6 | O152: 8 | P152: 11 | Q152: 25 | R152: 6 | S152: 19 | T152: 8 | U152: 33 | V152: 4 | W152: 6 | X152: 7 | Y152: 17 | Z152: 4 | AA152: 3 | AB152: 11 | AC152: 6 | AD152: 10 | AE152: 5 | AF152: 25 | AG152: 14 | AH152: 39 | AI152: 7 | AJ152: 11 | AK152: 12 | AL152: 30 | AM152: 7 | AN152: 16 | AO152: 11 | AP152: 34 | AQ152: 7 | AR152: 8 | AS152: 20 | AT152: 35 | AU152: 7 | AV152: 18 | AW152: 11 | AX152: 36 | AY152: 6 | AZ152: 11 | BA152: 8 | BB152: 25 | BC152: 6 | BD152: 16 | BE152: 9 | BF152: 31 | BG152: 5 | BH152: 9 | BI152: 15 | BJ152: 29 | BK152: 5 | BL152: 19 | BM152: 16 | BN152: 40 | BO152: 158 | BP152: 374 | BQ152: 3 | BR152: 6 | BS152: 7 | BT152: 16 | BU152: 3 | BV152: 6 | BW152: 6 | BX152: 15 | BY152: ناجحة | BZ152: و منقولة للصف الثانى | CA152: 0 | CB152: 6 | CC152: 6/3 | CU152: 0 | CV152: 0
A153: 144 | B153: 269 | C153: جيهان نصرى موسى بطرس | D153: 22/2 | E153: 2006-02-21 | F153: 10 - 07 - 15 | G153: مسيحية | I153: بنات | J153: خدمات | K153: صباحى | M153: 644 | N153: 8 | O153: 17 | P153: 8 | Q153: 33 | R153: 5 | S153: 11 | T153: 14 | U153: 30 | V153: 5 | W153: 8 | X153: 10 | Y153: 23 | Z153: 6 | AA153: 3 | AB153: 6 | AC153: 4 | AD153: 7 | AE153: 4 | AF153: 19 | AG153: 11 | AH153: 30 | AI153: 9 | AJ153: 8 | AK153: 11 | AL153: 28 | AM153: 8 | AN153: 19 | AO153: 11 | AP153: 38 | AQ153: 10 | AR153: 18 | AS153: 12 | AT153: 40 | AU153: 5 | AV153: 15 | AW153: 11 | AX153: 31 | AY153: 7 | AZ153: 8 | BA153: 14 | BB153: 29 | BC153: 8 | BD153: 9 | BE153: 9 | BF153: 26 | BG153: 8 | BH153: 14 | BI153: 11 | BJ153: 33 | BK153: 9 | BL153: 13 | BM153: 13 | BN153: 35 | BO153: 150 | BP153: 376 | BQ153: 3 | BR153: 5 | BS153: 5 | BT153: 13 | BU153: 3 | BV153: 7 | BW153: 8 | BX153: 18 | BY153: ناجحة | BZ153: و منقولة للصف الثانى | CA153: 0 | CB153: 6 | CC153: 6/3 | CU153: 0 | CV153: 0
A154: 145 | B154: 270 | C154: حليمه زين العابدين حسن سعيد | D154: 21/2 | E154: 2006-02-22 | F154: 09 - 07 - 15 | I154: بنات | J154: خدمات | K154: صباحى | M154: 645 | N154: 10 | O154: 19 | P154: 20 | Q154: 49 | R154: 10 | S154: 15 | T154: 15 | U154: 40 | V154: 3 | W154: 10 | X154: 6 | Y154: 19 | Z154: 5 | AA154: 4 | AB154: 8 | AC154: 6 | AD154: 11 | AE154: 6 | AF154: 24 | AG154: 16 | AH154: 40 | AI154: 5 | AJ154: 18 | AK154: 10 | AL154: 33 | AM154: 10 | AN154: 13 | AO154: 19 | AP154: 42 | AQ154: 8 | AR154: 16 | AS154: 15 | AT154: 39 | AU154: 7 | AV154: 16 | AW154: 17 | AX154: 40 | AY154: 5 | AZ154: 15 | BA154: 10 | BB154: 30 | BC154: 7 | BD154: 13 | BE154: 12 | BF154: 32 | BG154: 5 | BH154: 19 | BI154: 13 | BJ154: 37 | BK154: 5 | BL154: 15 | BM154: 10 | BN154: 30 | BO154: 183 | BP154: 431 | BQ154: 4 | BR154: 6 | BS154: 4 | BT154: 14 | BU154: 3 | BV154: 7 | BW154: 4 | BX154: 14 | BY154: ناجحة | BZ154: و منقولة للصف الثانى | CA154: 0 | CB154: 6 | CC154: 6/3 | CU154: 0 | CV154: 0
A155: 146 | B155: 271 | C155: حنان عبدالحميد يس مرسى | D155: 21/2 | E155: 2006-02-23 | F155: 08 - 07 - 15 | I155: بنات | J155: خدمات | K155: صباحى | M155: 646 | N155: 7 | O155: 10 | P155: 14 | Q155: 31 | R155: 7 | S155: 10 | T155: 13 | U155: 30 | V155: 5 | W155: 10 | X155: 7 | Y155: 22 | Z155: 6 | AA155: 3 | AB155: 12 | AC155: 7 | AD155: 11 | AE155: 6 | AF155: 29 | AG155: 16 | AH155: 45 | AI155: 7 | AJ155: 8 | AK155: 10 | AL155: 25 | AM155: 9 | AN155: 17 | AO155: 16 | AP155: 42 | AQ155: 10 | AR155: 14 | AS155: 8 | AT155: 32 | AU155: 10 | AV155: 19 | AW155: 15 | AX155: 44 | AY155: 6 | AZ155: 19 | BA155: 11 | BB155: 36 | BC155: 9 | BD155: 11 | BE155: 9 | BF155: 29 | BG155: 10 | BH155: 19 | BI155: 11 | BJ155: 40 | BK155: 8 | BL155: 20 | BM155: 20 | BN155: 48 | BO155: 176 | BP155: 424 | BQ155: 4 | BR155: 4 | BS155: 4 | BT155: 12 | BU155: 4 | BV155: 5 | BW155: 5 | BX155: 14 | BY155: ناجحة | BZ155: و منقولة للصف الثانى | CA155: 0 | CB155: 7 | CC155: 7/3 | CU155: 0 | CV155: 0
A156: 147 | B156: 272 | C156: خلود حسان طلب | D156: 22/2 | E156: 2006-02-24 | F156: 07 - 07 - 15 | I156: بنات | J156: خدمات | K156: صباحى | M156: 647 | N156: 9 | O156: 9 | P156: 15 | Q156: 33 | R156: 7 | S156: 20 | T156: 8 | U156: 35 | V156: 3 | W156: 6 | X156: 8 | Y156: 17 | Z156: 5 | AA156: 4 | AB156: 12 | AC156: 5 | AD156: 8 | AE156: 5 | AF156: 25 | AG156: 14 | AH156: 39 | AI156: 10 | AJ156: 8 | AK156: 9 | AL156: 27 | AM156: 8 | AN156: 9 | AO156: 10 | AP156: 27 | AQ156: 6 | AR156: 16 | AS156: 15 | AT156: 37 | AU156: 7 | AV156: 11 | AW156: 17 | AX156: 35 | AY156: 7 | AZ156: 18 | BA156: 14 | BB156: 39 | BC156: 8 | BD156: 8 | BE156: 14 | BF156: 30 | BG156: 10 | BH156: 13 | BI156: 19 | BJ156: 42 | BK156: 5 | BL156: 19 | BM156: 11 | BN156: 35 | BO156: 154 | BP156: 396 | BQ156: 3 | BR156: 4 | BS156: 7 | BT156: 14 | BU156: 3 | BV156: 5 | BW156: 4 | BX156: 12 | BY156: ناجحة | BZ156: و منقولة للصف الثانى | CA156: 0 | CB156: 7 | CC156: 7/3 | CU156: 0 | CV156: 0
A157: 148 | B157: 273 | C157: خلود يوسف محمد ابراهيم | D157: 22/2 | E157: 2006-02-25 | F157: 06 - 07 - 15 | I157: بنات | J157: خدمات | K157: صباحى | L157: باقية | M157: 648 | N157: 5 | O157: 10 | P157: 19 | Q157: 34 | R157: 7 | S157: 8 | T157: 10 | U157: 25 | V157: 4 | W157: 11 | X157: 11 | Y157: 26 | Z157: 4 | AA157: 4 | AB157: 9 | AC157: 6 | AD157: 7 | AE157: 4 | AF157: 20 | AG157: 14 | AH157: 34 | AI157: 8 | AJ157: 16 | AK157: 8 | AL157: 32 | AM157: 10 | AN157: 16 | AO157: 10 | AP157: 36 | AQ157: 8 | AR157: 20 | AS157: 16 | AT157: 44 | AU157: 10 | AV157: 19 | AW157: 9 | AX157: 38 | AY157: 5 | AZ157: 14 | BA157: 20 | BB157: 39 | BC157: 5 | BD157: 8 | BE157: 15 | BF157: 28 | BG157: 9 | BH157: 8 | BI157: 14 | BJ157: 31 | BK157: 10 | BL157: 16 | BM157: 16 | BN157: 42 | BO157: 161 | BP157: 409 | BQ157: 4 | BR157: 8 | BS157: 5 | BT157: 17 | BU157: 4 | BV157: 5 | BW157: 8 | BX157: 17 | BY157: ناجحة | BZ157: و منقولة للصف الثانى | CA157: 0 | CB157: 7 | CC157: 7/3 | CU157: 0 | CV157: 0
A158: 149 | B158: 274 | C158: داليا احمد عوض الله عبدالدايم | D158: 22/2 | E158: 2006-02-26 | F158: 05 - 07 - 15 | I158: بنات | J158: خدمات | K158: صباحى | M158: 649 | N158: 7 | O158: 19 | P158: 11 | Q158: 37 | R158: 6 | S158: 17 | T158: 16 | U158: 39 | V158: 3 | W158: 12 | X158: 12 | Y158: 27 | Z158: 6 | AA158: 4 | AB158: 12 | AC158: 6 | AD158: 11 | AE158: 5 | AF158: 29 | AG158: 15 | AH158: 44 | AI158: 10 | AJ158: 8 | AK158: 19 | AL158: 37 | AM158: 6 | AN158: 9 | AO158: 12 | AP158: 27 | AQ158: 6 | AR158: 16 | AS158: 20 | AT158: 42 | AU158: 9 | AV158: 18 | AW158: 20 | AX158: 47 | AY158: 5 | AZ158: 20 | BA158: 18 | BB158: 43 | BC158: 6 | BD158: 11 | BE158: 10 | BF158: 27 | BG158: 7 | BH158: 19 | BI158: 12 | BJ158: 38 | BK158: 7 | BL158: 9 | BM158: 11 | BN158: 27 | BO158: 176 | BP158: 435 | BQ158: 4 | BR158: 7 | BS158: 5 | BT158: 16 | BU158: 4 | BV158: 6 | BW158: 5 | BX158: 15 | BY158: ناجحة | BZ158: و منقولة للصف الثانى | CA158: 0 | CB158: 7 | CC158: 7/3 | CU158: 0 | CV158: 0
A159: 150 | B159: 275 | C159: داليا ادريس محمد جادالكريم | D159: 22/2 | E159: 2006-02-27 | F159: 04 - 07 - 15 | I159: بنات | J159: خدمات | K159: صباحى | M159: 650 | N159: 5 | O159: 9 | P159: 14 | Q159: 28 | R159: 8 | S159: 19 | T159: 15 | U159: 42 | V159: 6 | W159: 12 | X159: 5 | Y159: 23 | Z159: 3 | AA159: 4 | AB159: 7 | AC159: 4 | AD159: 7 | AE159: 8 | AF159: 17 | AG159: 16 | AH159: 33 | AI159: 9 | AJ159: 15 | AK159: 19 | AL159: 43 | AM159: 8 | AN159: 16 | AO159: 15 | AP159: 39 | AQ159: 6 | AR159: 18 | AS159: 18 | AT159: 42 | AU159: 6 | AV159: 16 | AW159: 14 | AX159: 36 | AY159: 8 | AZ159: 19 | BA159: 8 | BB159: 35 | BC159: 7 | BD159: 18 | BE159: 17 | BF159: 42 | BG159: 8 | BH159: 13 | BI159: 14 | BJ159: 35 | BK159: 7 | BL159: 16 | BM159: 20 | BN159: 43 | BO159: 182 | BP159: 441 | BQ159: 4 | BR159: 4 | BS159: 6 | BT159: 14 | BU159: 3 | BV159: 7 | BW159: 6 | BX159: 16 | BY159: ناجحة | BZ159: و منقولة للصف الثانى | CA159: 0 | CB159: 7 | CC159: 7/3 | CU159: 0 | CV159: 0
A160: 151 | B160: 276 | C160: داليا حمزه محمد عبدالله | D160: 21/2 | E160: 2006-02-28 | F160: 03 - 07 - 15 | I160: بنات | J160: خدمات | K160: صباحى | M160: 651 | N160: 8 | O160: 13 | P160: 11 | Q160: 32 | R160: 5 | S160: 17 | T160: 19 | U160: 41 | V160: 6 | W160: 7 | X160: 8 | Y160: 21 | Z160: 3 | AA160: 4 | AB160: 7 | AC160: 5 | AD160: 5 | AE160: 8 | AF160: 15 | AG160: 17 | AH160: 32 | AI160: 8 | AJ160: 18 | AK160: 10 | AL160: 36 | AM160: 6 | AN160: 14 | AO160: 11 | AP160: 31 | AQ160: 10 | AR160: 19 | AS160: 15 | AT160: 44 | AU160: 5 | AV160: 9 | AW160: 17 | AX160: 31 | AY160: 5 | AZ160: 13 | BA160: 16 | BB160: 34 | BC160: 8 | BD160: 17 | BE160: 13 | BF160: 38 | BG160: 8 | BH160: 8 | BI160: 15 | BJ160: 31 | BK160: 6 | BL160: 17 | BM160: 16 | BN160: 39 | BO160: 164 | BP160: 410 | BQ160: 3 | BR160: 4 | BS160: 6 | BT160: 13 | BU160: 3 | BV160: 5 | BW160: 8 | BX160: 16 | BY160: ناجحة | BZ160: و منقولة للصف الثانى | CA160: 0 | CB160: 7 | CC160: 7/3 | CU160: 0 | CV160: 0
A161: 152 | B161: 277 | C161: دعاء احمد سيد احمد | D161: 22/2 | E161: 2006-03-01 | F161: 00 - 07 - 15 | I161: بنات | J161: خدمات | K161: صباحى | M161: 652 | N161: 7 | O161: 10 | P161: 10 | Q161: 27 | R161: 10 | S161: 10 | T161: 10 | U161: 30 | V161: 5 | W161: 9 | X161: 8 | Y161: 22 | Z161: 6 | AA161: 4 | AB161: 9 | AC161: 7 | AD161: 11 | AE161: 8 | AF161: 26 | AG161: 19 | AH161: 45 | AI161: 9 | AJ161: 11 | AK161: 13 | AL161: 33 | AM161: 8 | AN161: 10 | AO161: 16 | AP161: 34 | AQ161: 8 | AR161: 16 | AS161: 17 | AT161: 41 | AU161: 8 | AV161: 18 | AW161: 19 | AX161: 45 | AY161: 6 | AZ161: 8 | BA161: 17 | BB161: 31 | BC161: 8 | BD161: 12 | BE161: 17 | BF161: 37 | BG161: 9 | BH161: 12 | BI161: 15 | BJ161: 36 | BK161: 9 | BL161: 19 | BM161: 10 | BN161: 38 | BO161: 151 | BP161: 419 | BQ161: 4 | BR161: 5 | BS161: 6 | BT161: 15 | BU161: 3 | BV161: 7 | BW161: 8 | BX161: 18 | BY161: ناجحة | BZ161: و منقولة للصف الثانى | CA161: 0 | CB161: 7 | CC161: 7/3 | CU161: 0 | CV161: 0
A162: 153 | B162: 278 | C162: دعاء اشرف سعيد خليفه | D162: 21/2 | E162: 2006-03-02 | F162: 29 - 06 - 15 | I162: بنات | J162: خدمات | K162: صباحى | M162: 653 | N162: 9 | O162: 20 | P162: 16 | Q162: 45 | R162: 8 | S162: 11 | T162: 14 | U162: 33 | V162: 4 | W162: 8 | X162: 8 | Y162: 20 | Z162: 3 | AA162: 3 | AB162: 9 | AC162: 6 | AD162: 5 | AE162: 6 | AF162: 17 | AG162: 15 | AH162: 32 | AI162: 7 | AJ162: 9 | AK162: 16 | AL162: 32 | AM162: 10 | AN162: 19 | AO162: 12 | AP162: 41 | AQ162: 6 | AR162: 13 | AS162: 18 | AT162: 37 | AU162: 6 | AV162: 10 | AW162: 13 | AX162: 29 | AY162: 9 | AZ162: 11 | BA162: 11 | BB162: 31 | BC162: 10 | BD162: 16 | BE162: 18 | BF162: 44 | BG162: 5 | BH162: 9 | BI162: 13 | BJ162: 27 | BK162: 5 | BL162: 17 | BM162: 17 | BN162: 39 | BO162: 158 | BP162: 410 | BQ162: 4 | BR162: 8 | BS162: 6 | BT162: 18 | BU162: 3 | BV162: 6 | BW162: 8 | BX162: 17 | BY162: ناجحة | BZ162: و منقولة للصف الثانى | CA162: 0 | CB162: 7 | CC162: 7/3 | CU162: 0 | CV162: 0
A163: 154 | B163: 279 | C163: دنيا احمد عبادى ابراهيم | D163: 21/2 | E163: 2006-03-03 | F163: 28 - 06 - 15 | I163: بنات | J163: خدمات | K163: صباحى | M163: 654 | N163: 8 | O163: 10 | P163: 13 | Q163: 31 | R163: 7 | S163: 10 | T163: 20 | U163: 37 | V163: 6 | W163: 12 | X163: 11 | Y163: 29 | Z163: 4 | AA163: 4 | AB163: 12 | AC163: 4 | AD163: 6 | AE163: 6 | AF163: 22 | AG163: 14 | AH163: 36 | AI163: 8 | AJ163: 13 | AK163: 17 | AL163: 38 | AM163: 5 | AN163: 13 | AO163: 17 | AP163: 35 | AQ163: 8 | AR163: 11 | AS163: 13 | AT163: 32 | AU163: 7 | AV163: 18 | AW163: 10 | AX163: 35 | AY163: 5 | AZ163: 14 | BA163: 9 | BB163: 28 | BC163: 10 | BD163: 15 | BE163: 16 | BF163: 41 | BG163: 8 | BH163: 11 | BI163: 8 | BJ163: 27 | BK163: 10 | BL163: 13 | BM163: 15 | BN163: 38 | BO163: 156 | BP163: 407 | BQ163: 3 | BR163: 6 | BS163: 8 | BT163: 17 | BU163: 3 | BV163: 7 | BW163: 8 | BX163: 18 | BY163: ناجحة | BZ163: و منقولة للصف الثانى | CA163: 0 | CB163: 7 | CC163: 7/3 | CU163: 0 | CV163: 0
A164: 155 | B164: 280 | C164: دنيا محمود البدرى محمد | D164: 22/2 | E164: 2006-03-04 | F164: 27 - 06 - 15 | I164: بنات | J164: خدمات | K164: صباحى | M164: 655 | N164: 9 | O164: 16 | P164: 16 | Q164: 41 | R164: 6 | S164: 9 | T164: 15 | U164: 30 | V164: 6 | W164: 12 | X164: 6 | Y164: 24 | Z164: 3 | AA164: 4 | AB164: 12 | AC164: 8 | AD164: 5 | AE164: 4 | AF164: 20 | AG164: 16 | AH164: 36 | AI164: 8 | AJ164: 10 | AK164: 20 | AL164: 38 | AM164: 6 | AN164: 17 | AO164: 11 | AP164: 34 | AQ164: 10 | AR164: 13 | AS164: 13 | AT164: 36 | AU164: 8 | AV164: 9 | AW164: 13 | AX164: 30 | AY164: 6 | AZ164: 14 | BA164: 20 | BB164: 40 | BC164: 8 | BD164: 8 | BE164: 9 | BF164: 25 | BG164: 10 | BH164: 11 | BI164: 20 | BJ164: 41 | BK164: 7 | BL164: 11 | BM164: 15 | BN164: 33 | BO164: 150 | BP164: 408 | BQ164: 4 | BR164: 5 | BS164: 7 | BT164: 16 | BU164: 4 | BV164: 5 | BW164: 5 | BX164: 14 | BY164: ناجحة | BZ164: و منقولة للصف الثانى | CA164: 0 | CB164: 7 | CC164: 7/3 | CU164: 0 | CV164: 0
A165: 156 | B165: 281 | C165: راندا محمود حمدنا الله ابراهيم | D165: 22/2 | E165: 2006-03-05 | F165: 26 - 06 - 15 | I165: بنات | J165: خدمات | K165: صباحى | M165: 656 | N165: 7 | O165: 20 | P165: 19 | Q165: 46 | R165: 7 | S165: 10 | T165: 18 | U165: 35 | V165: 4 | W165: 10 | X165: 10 | Y165: 24 | Z165: 3 | AA165: 3 | AB165: 6 | AC165: 5 | AD165: 10 | AE165: 4 | AF165: 19 | AG165: 12 | AH165: 31 | AI165: 5 | AJ165: 13 | AK165: 9 | AL165: 27 | AM165: 8 | AN165: 19 | AO165: 20 | AP165: 47 | AQ165: 6 | AR165: 19 | AS165: 15 | AT165: 40 | AU165: 10 | AV165: 19 | AW165: 16 | AX165: 45 | AY165: 10 | AZ165: 20 | BA165: 16 | BB165: 46 | BC165: 5 | BD165: 18 | BE165: 14 | BF165: 37 | BG165: 9 | BH165: 17 | BI165: 18 | BJ165: 44 | BK165: 5 | BL165: 18 | BM165: 16 | BN165: 39 | BO165: 194 | BP165: 461 | BQ165: 4 | BR165: 8 | BS165: 5 | BT165: 17 | BU165: 3 | BV165: 5 | BW165: 8 | BX165: 16 | BY165: ناجحة | BZ165: و منقولة للصف الثانى | CA165: 0 | CB165: 7 | CC165: 7/3 | CU165: 0 | CV165: 0
A166: 157 | B166: 282 | C166: رحاب بدرى عبدالله احمد | D166: 22/2 | E166: 2006-03-06 | F166: 25 - 06 - 15 | I166: بنات | J166: خدمات | K166: صباحى | M166: 657 | N166: 9 | O166: 14 | P166: 14 | Q166: 37 | R166: 9 | S166: 17 | T166: 12 | U166: 38 | V166: 6 | W166: 9 | X166: 10 | Y166: 25 | Z166: 3 | AA166: 3 | AB166: 5 | AC166: 5 | AD166: 9 | AE166: 7 | AF166: 17 | AG166: 15 | AH166: 32 | AI166: 5 | AJ166: 19 | AK166: 20 | AL166: 44 | AM166: 7 | AN166: 12 | AO166: 9 | AP166: 28 | AQ166: 5 | AR166: 15 | AS166: 15 | AT166: 35 | AU166: 8 | AV166: 15 | AW166: 15 | AX166: 38 | AY166: 10 | AZ166: 20 | BA166: 8 | BB166: 38 | BC166: 5 | BD166: 15 | BE166: 9 | BF166: 29 | BG166: 5 | BH166: 17 | BI166: 10 | BJ166: 32 | BK166: 5 | BL166: 20 | BM166: 14 | BN166: 39 | BO166: 183 | BP166: 415 | BQ166: 3 | BR166: 4 | BS166: 8 | BT166: 15 | BU166: 3 | BV166: 7 | BW166: 4 | BX166: 14 | BY166: ناجحة | BZ166: و منقولة للصف الثانى | CA166: 0 | CB166: 7 | CC166: 7/3 | CU166: 0 | CV166: 0
A167: 158 | B167: 283 | C167: رحمه محمود عبدالفتاح عبدالكريم | D167: 22/2 | E167: 2006-03-07 | F167: 24 - 06 - 15 | I167: بنات | J167: خدمات | K167: صباحى | M167: 658 | N167: 8 | O167: 8 | P167: 13 | Q167: 29 | R167: 8 | S167: 17 | T167: 11 | U167: 36 | V167: 4 | W167: 5 | X167: 10 | Y167: 19 | Z167: 6 | AA167: 3 | AB167: 10 | AC167: 7 | AD167: 9 | AE167: 6 | AF167: 25 | AG167: 16 | AH167: 41 | AI167: 7 | AJ167: 13 | AK167: 20 | AL167: 40 | AM167: 6 | AN167: 14 | AO167: 19 | AP167: 39 | AQ167: 6 | AR167: 20 | AS167: 18 | AT167: 44 | AU167: 5 | AV167: 16 | AW167: 18 | AX167: 39 | AY167: 10 | AZ167: 14 | BA167: 17 | BB167: 41 | BC167: 8 | BD167: 17 | BE167: 18 | BF167: 43 | BG167: 5 | BH167: 8 | BI167: 12 | BJ167: 25 | BK167: 8 | BL167: 14 | BM167: 15 | BN167: 37 | BO167: 163 | BP167: 433 | BQ167: 4 | BR167: 6 | BS167: 6 | BT167: 16 | BU167: 4 | BV167: 8 | BW167: 8 | BX167: 20 | BY167: ناجحة | BZ167: و منقولة للصف الثانى | CA167: 0 | CB167: 7 | CC167: 7/3 | CU167: 0 | CV167: 0
A168: 159 | B168: 284 | C168: رقيه محمد عباس محمود | D168: 21/2 | E168: 2006-03-08 | F168: 23 - 06 - 15 | I168: بنات | J168: خدمات | K168: صباحى | M168: 659 | N168: 7 | O168: 20 | P168: 9 | Q168: 36 | R168: 10 | S168: 19 | T168: 16 | U168: 45 | V168: 5 | W168: 5 | X168: 7 | Y168: 17 | Z168: 4 | AA168: 4 | AB168: 6 | AC168: 4 | AD168: 5 | AE168: 4 | AF168: 15 | AG168: 12 | AH168: 27 | AI168: 5 | AJ168: 18 | AK168: 12 | AL168: 35 | AM168: 9 | AN168: 18 | AO168: 20 | AP168: 47 | AQ168: 8 | AR168: 12 | AS168: 11 | AT168: 31 | AU168: 5 | AV168: 20 | AW168: 12 | AX168: 37 | AY168: 9 | AZ168: 14 | BA168: 11 | BB168: 34 | BC168: 10 | BD168: 9 | BE168: 13 | BF168: 32 | BG168: 10 | BH168: 10 | BI168: 14 | BJ168: 34 | BK168: 9 | BL168: 17 | BM168: 14 | BN168: 40 | BO168: 172 | BP168: 415 | BQ168: 4 | BR168: 7 | BS168: 4 | BT168: 15 | BU168: 3 | BV168: 5 | BW168: 5 | BX168: 13 | BY168: ناجحة | BZ168: و منقولة للصف الثانى | CA168: 0 | CB168: 7 | CC168: 7/3 | CU168: 0 | CV168: 0
A169: 160 | B169: 285 | C169: روان خالد عبدالعظيم محمد | D169: 21/2 | E169: 2006-03-09 | F169: 22 - 06 - 15 | I169: بنات | J169: خدمات | K169: صباحى | M169: 660 | N169: 10 | O169: 8 | P169: 17 | Q169: 35 | R169: 7 | S169: 19 | T169: 12 | U169: 38 | V169: 3 | W169: 5 | X169: 9 | Y169: 17 | Z169: 3 | AA169: 4 | AB169: 10 | AC169: 4 | AD169: 8 | AE169: 4 | AF169: 21 | AG169: 12 | AH169: 33 | AI169: 6 | AJ169: 19 | AK169: 16 | AL169: 41 | AM169: 10 | AN169: 12 | AO169: 11 | AP169: 33 | AQ169: 5 | AR169: 15 | AS169: 15 | AT169: 35 | AU169: 5 | AV169: 10 | AW169: 14 | AX169: 29 | AY169: 7 | AZ169: 18 | BA169: 14 | BB169: 39 | BC169: 6 | BD169: 12 | BE169: 8 | BF169: 26 | BG169: 9 | BH169: 19 | BI169: 14 | BJ169: 42 | BK169: 5 | BL169: 12 | BM169: 16 | BN169: 33 | BO169: 163 | BP169: 401 | BQ169: 4 | BR169: 7 | BS169: 7 | BT169: 18 | BU169: 3 | BV169: 8 | BW169: 6 | BX169: 17 | BY169: ناجحة | BZ169: و منقولة للصف الثانى | CA169: 0 | CB169: 7 | CC169: 7/3 | CU169: 0 | CV169: 0
A170: 161 | B170: 286 | C170: زينب عبدالمنعم محمود سلمان | D170: 22/2 | E170: 2006-03-10 | F170: 21 - 06 - 15 | I170: بنات | J170: خدمات | K170: صباحى | M170: 661 | N170: 6 | O170: 9 | P170: 11 | Q170: 26 | R170: 10 | S170: 9 | T170: 11 | U170: 30 | V170: 5 | W170: 6 | X170: 7 | Y170: 18 | Z170: 6 | AA170: 3 | AB170: 11 | AC170: 7 | AD170: 8 | AE170: 5 | AF170: 25 | AG170: 15 | AH170: 40 | AI170: 5 | AJ170: 14 | AK170: 9 | AL170: 28 | AM170: 9 | AN170: 13 | AO170: 16 | AP170: 38 | AQ170: 5 | AR170: 12 | AS170: 10 | AT170: 27 | AU170: 7 | AV170: 19 | AW170: 20 | AX170: 46 | AY170: 8 | AZ170: 11 | BA170: 10 | BB170: 29 | BC170: 5 | BD170: 9 | BE170: 16 | BF170: 30 | BG170: 9 | BH170: 17 | BI170: 11 | BJ170: 37 | BK170: 7 | BL170: 16 | BM170: 20 | BN170: 43 | BO170: 153 | BP170: 392 | BQ170: 3 | BR170: 7 | BS170: 6 | BT170: 16 | BU170: 3 | BV170: 4 | BW170: 6 | BX170: 13 | BY170: ناجحة | BZ170: و منقولة للصف الثانى | CA170: 0 | CB170: 7 | CC170: 7/3 | CU170: 0 | CV170: 0
A171: 162 | B171: 287 | C171: زينب اسماعيل محمود سيد | D171: 22/2 | E171: 2006-03-11 | F171: 20 - 06 - 15 | I171: بنات | J171: خدمات | K171: صباحى | M171: 662 | N171: 7 | O171: 12 | P171: 19 | Q171: 38 | R171: 8 | S171: 16 | T171: 15 | U171: 39 | V171: 6 | W171: 8 | X171: 6 | Y171: 20 | Z171: 3 | AA171: 4 | AB171: 7 | AC171: 4 | AD171: 12 | AE171: 5 | AF171: 22 | AG171: 13 | AH171: 35 | AI171: 9 | AJ171: 18 | AK171: 8 | AL171: 35 | AM171: 6 | AN171: 12 | AO171: 10 | AP171: 28 | AQ171: 7 | AR171: 13 | AS171: 9 | AT171: 29 | AU171: 10 | AV171: 11 | AW171: 8 | AX171: 29 | AY171: 8 | AZ171: 13 | BA171: 16 | BB171: 37 | BC171: 9 | BD171: 10 | BE171: 12 | BF171: 31 | BG171: 5 | BH171: 12 | BI171: 18 | BJ171: 35 | BK171: 6 | BL171: 9 | BM171: 9 | BN171: 24 | BO171: 145 | BP171: 380 | BQ171: 3 | BR171: 4 | BS171: 6 | BT171: 13 | BU171: 3 | BV171: 5 | BW171: 6 | BX171: 14 | BY171: دورثان | BZ171: فى : ادارة مخازن - | CA171: 1 | CB171: 7 | CC171: 7/3 | CQ171: ادارة مخازن - | CU171: 0 | CV171: 1
A172: 163 | B172: 288 | C172: زينب شاذلى عبده احمد | D172: 21/2 | E172: 2006-03-12 | F172: 19 - 06 - 15 | I172: بنات | J172: خدمات | K172: صباحى | M172: 663 | N172: 9 | O172: 15 | P172: 15 | Q172: 39 | R172: 7 | S172: 18 | T172: 11 | U172: 36 | V172: 5 | W172: 11 | X172: 12 | Y172: 28 | Z172: 6 | AA172: 3 | AB172: 5 | AC172: 8 | AD172: 9 | AE172: 4 | AF172: 20 | AG172: 15 | AH172: 35 | AI172: 10 | AJ172: 16 | AK172: 8 | AL172: 34 | AM172: 9 | AN172: 12 | AO172: 16 | AP172: 37 | AQ172: 10 | AR172: 16 | AS172: 14 | AT172: 40 | AU172: 5 | AV172: 19 | AW172: 15 | AX172: 39 | AY172: 8 | AZ172: 17 | BA172: 16 | BB172: 41 | BC172: 5 | BD172: 16 | BE172: 10 | BF172: 31 | BG172: 6 | BH172: 17 | BI172: 11 | BJ172: 34 | BK172: 6 | BL172: 10 | BM172: 19 | BN172: 35 | BO172: 180 | BP172: 429 | BQ172: 3 | BR172: 8 | BS172: 7 | BT172: 18 | BU172: 3 | BV172: 6 | BW172: 7 | BX172: 16 | BY172: ناجحة | BZ172: و منقولة للصف الثانى | CA172: 0 | CB172: 7 | CC172: 7/3 | CU172: 0 | CV172: 0
A173: 164 | B173: 289 | C173: زينب عبدالفراج محمد احمد | D173: 22/2 | E173: 2006-03-13 | F173: 18 - 06 - 15 | I173: بنات | J173: خدمات | K173: صباحى | M173: 664 | N173: 6 | O173: 13 | P173: 9 | Q173: 28 | R173: 10 | S173: 12 | T173: 15 | U173: 37 | V173: 3 | W173: 5 | X173: 11 | Y173: 19 | Z173: 4 | AA173: 4 | AB173: 7 | AC173: 7 | AD173: 7 | AE173: 4 | AF173: 18 | AG173: 15 | AH173: 33 | AI173: 7 | AJ173: 16 | AK173: 19 | AL173: 42 | AM173: 8 | AN173: 19 | AO173: 16 | AP173: 43 | AQ173: 6 | AR173: 13 | AS173: 10 | AT173: 29 | AU173: 10 | AV173: 18 | AW173: 13 | AX173: 41 | AY173: 6 | AZ173: 11 | BA173: 15 | BB173: 32 | BC173: 6 | BD173: 13 | BE173: 14 | BF173: 33 | BG173: 6 | BH173: 20 | BI173: 20 | BJ173: 46 | BK173: 5 | BL173: 8 | BM173: 20 | BN173: 33 | BO173: 162 | BP173: 416 | BQ173: 3 | BR173: 4 | BS173: 8 | BT173: 15 | BU173: 4 | BV173: 6 | BW173: 5 | BX173: 15 | BY173: ناجحة | BZ173: و منقولة للصف الثانى | CA173: 0 | CB173: 7 | CC173: 7/3 | CU173: 0 | CV173: 0
A174: 165 | B174: 290 | C174: زينب على احمد عبدالمعطى | D174: 21/2 | E174: 2006-03-14 | F174: 17 - 06 - 15 | I174: بنات | J174: خدمات | K174: صباحى | M174: 665 | N174: 10 | O174: 18 | P174: 19 | Q174: 47 | R174: 5 | S174: 14 | T174: 16 | U174: 35 | V174: 3 | W174: 8 | X174: 9 | Y174: 20 | Z174: 6 | AA174: 3 | AB174: 11 | AC174: 6 | AD174: 10 | AE174: 8 | AF174: 27 | AG174: 17 | AH174: 44 | AI174: 8 | AJ174: 9 | AK174: 13 | AL174: 30 | AM174: 6 | AN174: 18 | AO174: 16 | AP174: 40 | AQ174: 9 | AR174: 14 | AS174: 11 | AT174: 34 | AU174: 6 | AV174: 9 | AW174: 12 | AX174: 27 | AY174: 9 | AZ174: 10 | BA174: 17 | BB174: 36 | BC174: 9 | BD174: 14 | BE174: 8 | BF174: 31 | BG174: 9 | BH174: 13 | BI174: 14 | BJ174: 36 | BK174: 7 | BL174: 11 | BM174: 19 | BN174: 37 | BO174: 155 | BP174: 417 | BQ174: 4 | BR174: 6 | BS174: 7 | BT174: 17 | BU174: 4 | BV174: 8 | BW174: 5 | BX174: 17 | BY174: ناجحة | BZ174: و منقولة للصف الثانى | CA174: 0 | CB174: 7 | CC174: 7/3 | CU174: 0 | CV174: 0
A175: 166 | B175: 291 | C175: زينب محمود بدرى احمد | D175: 22/2 | E175: 2006-03-15 | F175: 16 - 06 - 15 | I175: بنات | J175: خدمات | K175: صباحى | L175: باقية | M175: 666 | N175: 9 | O175: 16 | P175: 12 | Q175: 37 | R175: 6 | S175: 8 | T175: 20 | U175: 34 | V175: 3 | W175: 9 | X175: 8 | Y175: 20 | Z175: 5 | AA175: 4 | AB175: 5 | AC175: 6 | AD175: 8 | AE175: 6 | AF175: 18 | AG175: 16 | AH175: 34 | AI175: 8 | AJ175: 14 | AK175: 10 | AL175: 32 | AM175: 8 | AN175: 10 | AO175: 19 | AP175: 37 | AQ175: 5 | AR175: 16 | AS175: 11 | AT175: 32 | AU175: 5 | AV175: 19 | AW175: 12 | AX175: 36 | AY175: 6 | AZ175: 8 | BA175: 8 | BB175: 22 | BC175: 8 | BD175: 19 | BE175: 8 | BF175: 35 | BG175: 10 | BH175: 20 | BI175: 12 | BJ175: 42 | BK175: 9 | BL175: 14 | BM175: 14 | BN175: 37 | BO175: 164 | BP175: 398 | BQ175: 4 | BR175: 6 | BS175: 6 | BT175: 16 | BU175: 4 | BV175: 5 | BW175: 4 | BX175: 13 | BY175: دورثان | BZ175: فى : سكرتارية عربية - | CA175: 1 | CB175: 8 | CC175: 8/3 | CN175: سكرتارية عربية - | CU175: 0 | CV175: 1
A176: 167 | B176: 292 | C176: سعاد محمد توفيق شحات | D176: 21/2 | E176: 2006-03-16 | F176: 15 - 06 - 15 | I176: بنات | J176: خدمات | K176: صباحى | M176: 667 | N176: 7 | O176: 9 | P176: 10 | Q176: 26 | R176: 9 | S176: 18 | T176: 20 | U176: 47 | V176: 4 | W176: 10 | X176: 11 | Y176: 25 | Z176: 6 | AA176: 3 | AB176: 8 | AC176: 6 | AD176: 10 | AE176: 4 | AF176: 24 | AG176: 13 | AH176: 37 | AI176: 7 | AJ176: 18 | AK176: 15 | AL176: 40 | AM176: 6 | AN176: 16 | AO176: 13 | AP176: 35 | AQ176: 8 | AR176: 9 | AS176: 18 | AT176: 35 | AU176: 10 | AV176: 15 | AW176: 16 | AX176: 41 | AY176: 7 | AZ176: 19 | BA176: 10 | BB176: 36 | BC176: 9 | BD176: 18 | BE176: 14 | BF176: 41 | BG176: 7 | BH176: 17 | BI176: 11 | BJ176: 35 | BK176: 10 | BL176: 9 | BM176: 19 | BN176: 38 | BO176: 172 | BP176: 436 | BQ176: 3 | BR176: 8 | BS176: 6 | BT176: 17 | BU176: 3 | BV176: 4 | BW176: 8 | BX176: 15 | BY176: ناجحة | BZ176: و منقولة للصف الثانى | CA176: 0 | CB176: 8 | CC176: 8/3 | CU176: 0 | CV176: 0
A177: 168 | B177: 293 | C177: شريفه عمران ابراهيم احمد | D177: 22/2 | E177: 2006-03-17 | F177: 14 - 06 - 15 | I177: بنات | J177: خدمات | K177: صباحى | M177: 668 | N177: 9 | O177: 16 | P177: 16 | Q177: 41 | R177: 9 | S177: 10 | T177: 20 | U177: 39 | V177: 4 | W177: 9 | X177: 11 | Y177: 24 | Z177: 3 | AA177: 4 | AB177: 5 | AC177: 7 | AD177: 5 | AE177: 4 | AF177: 13 | AG177: 15 | AH177: 28 | AI177: 5 | AJ177: 12 | AK177: 12 | AL177: 29 | AM177: 6 | AN177: 16 | AO177: 20 | AP177: 42 | AQ177: 6 | AR177: 14 | AS177: 16 | AT177: 36 | AU177: 8 | AV177: 8 | AW177: 10 | AX177: 26 | AY177: 9 | AZ177: 15 | BA177: 10 | BB177: 34 | BC177: 8 | BD177: 14 | BE177: 19 | BF177: 41 | BG177: 9 | BH177: 13 | BI177: 20 | BJ177: 42 | BK177: 5 | BL177: 13 | BM177: 18 | BN177: 36 | BO177: 152 | BP177: 418 | BQ177: 3 | BR177: 6 | BS177: 6 | BT177: 15 | BU177: 3 | BV177: 5 | BW177: 6 | BX177: 14 | BY177: دورثان | BZ177: فى : حاسب الى - | CA177: 1 | CB177: 8 | CC177: 8/3 | CI177: حاسب الى - | CU177: 0 | CV177: 1
A178: 169 | B178: 294 | C178: شيماء محمد عبدالفتاح علوانى | D178: 21/2 | E178: 2006-03-18 | F178: 13 - 06 - 15 | I178: بنات | J178: خدمات | K178: صباحى | M178: 669 | N178: 8 | O178: 20 | P178: 10 | Q178: 38 | R178: 5 | S178: 8 | T178: 13 | U178: 26 | V178: 3 | W178: 5 | X178: 9 | Y178: 17 | Z178: 6 | AA178: 4 | AB178: 9 | AC178: 4 | AD178: 10 | AE178: 4 | AF178: 25 | AG178: 12 | AH178: 37 | AI178: 5 | AJ178: 10 | AK178: 11 | AL178: 26 | AM178: 7 | AN178: 11 | AO178: 12 | AP178: 30 | AQ178: 5 | AR178: 18 | AS178: 17 | AT178: 40 | AU178: 7 | AV178: 18 | AW178: 9 | AX178: 34 | AY178: 8 | AZ178: 8 | BA178: 12 | BB178: 28 | BC178: 7 | BD178: 19 | BE178: 14 | BF178: 40 | BG178: 5 | BH178: 16 | BI178: 18 | BJ178: 39 | BK178: 9 | BL178: 10 | BM178: 8 | BN178: 27 | BO178: 156 | BP178: 382 | BQ178: 4 | BR178: 6 | BS178: 5 | BT178: 15 | BU178: 3 | BV178: 7 | BW178: 5 | BX178: 15 | BY178: ناجحة | BZ178: و منقولة للصف الثانى | CA178: 0 | CB178: 8 | CC178: 8/3 | CU178: 0 | CV178: 0
A179: 170 | B179: 295 | C179: شيماء محمود عباس محمود | D179: 22/2 | E179: 2006-03-19 | F179: 12 - 06 - 15 | I179: بنات | J179: خدمات | K179: صباحى | M179: 670 | N179: 10 | O179: 16 | P179: 18 | Q179: 44 | R179: 8 | S179: 17 | T179: 17 | U179: 42 | V179: 3 | W179: 10 | X179: 5 | Y179: 18 | Z179: 4 | AA179: 3 | AB179: 7 | AC179: 5 | AD179: 7 | AE179: 5 | AF179: 18 | AG179: 13 | AH179: 31 | AI179: 5 | AJ179: 10 | AK179: 17 | AL179: 32 | AM179: 9 | AN179: 19 | AO179: 16 | AP179: 44 | AQ179: 6 | AR179: 17 | AS179: 12 | AT179: 35 | AU179: 7 | AV179: 20 | AW179: 20 | AX179: 47 | AY179: 10 | AZ179: 20 | BA179: 14 | BB179: 44 | BC179: 7 | BD179: 11 | BE179: 18 | BF179: 36 | BG179: 10 | BH179: 17 | BI179: 12 | BJ179: 39 | BK179: 10 | BL179: 20 | BM179: 12 | BN179: 42 | BO179: 189 | BP179: 454 | BQ179: 3 | BR179: 4 | BS179: 4 | BT179: 11 | BU179: 3 | BV179: 6 | BW179: 6 | BX179: 15 | BY179: ناجحة | BZ179: و منقولة للصف الثانى | CA179: 0 | CB179: 8 | CC179: 8/3 | CU179: 0 | CV179: 0
A180: 171 | B180: 296 | C180: عبير كرم نور الدين محمود | D180: 22/2 | E180: 2006-03-20 | F180: 11 - 06 - 15 | I180: بنات | J180: خدمات | K180: صباحى | M180: 671 | N180: 10 | O180: 14 | P180: 17 | Q180: 41 | R180: 6 | S180: 14 | T180: 13 | U180: 33 | V180: 5 | W180: 5 | X180: 12 | Y180: 22 | Z180: 3 | AA180: 4 | AB180: 12 | AC180: 7 | AD180: 10 | AE180: 5 | AF180: 25 | AG180: 16 | AH180: 41 | AI180: 9 | AJ180: 18 | AK180: 16 | AL180: 43 | AM180: 7 | AN180: 20 | AO180: 15 | AP180: 42 | AQ180: 10 | AR180: 14 | AS180: 17 | AT180: 41 | AU180: 6 | AV180: 9 | AW180: 10 | AX180: 25 | AY180: 7 | AZ180: 9 | BA180: 12 | BB180: 28 | BC180: 8 | BD180: 14 | BE180: 11 | BF180: 33 | BG180: 10 | BH180: 16 | BI180: 9 | BJ180: 35 | BK180: 7 | BL180: 18 | BM180: 12 | BN180: 37 | BO180: 170 | BP180: 421 | BQ180: 3 | BR180: 6 | BS180: 8 | BT180: 17 | BU180: 3 | BV180: 5 | BW180: 7 | BX180: 15 | BY180: ناجحة | BZ180: و منقولة للصف الثانى | CA180: 0 | CB180: 8 | CC180: 8/3 | CU180: 0 | CV180: 0
A181: 172 | B181: 297 | C181: علا رمضان صابر سيد | D181: 21/2 | E181: 2006-03-21 | F181: 10 - 06 - 15 | I181: بنات | J181: خدمات | K181: صباحى | M181: 672 | N181: 7 | O181: 17 | P181: 15 | Q181: 39 | R181: 7 | S181: 16 | T181: 19 | U181: 42 | V181: 3 | W181: 10 | X181: 10 | Y181: 23 | Z181: 6 | AA181: 3 | AB181: 12 | AC181: 8 | AD181: 10 | AE181: 4 | AF181: 28 | AG181: 15 | AH181: 43 | AI181: 5 | AJ181: 12 | AK181: 19 | AL181: 36 | AM181: 7 | AN181: 19 | AO181: 17 | AP181: 43 | AQ181: 7 | AR181: 14 | AS181: 15 | AT181: 36 | AU181: 10 | AV181: 19 | AW181: 8 | AX181: 37 | AY181: 8 | AZ181: 15 | BA181: 18 | BB181: 41 | BC181: 5 | BD181: 20 | BE181: 19 | BF181: 44 | BG181: 8 | BH181: 13 | BI181: 9 | BJ181: 30 | BK181: 8 | BL181: 16 | BM181: 19 | BN181: 43 | BO181: 191 | BP181: 457 | BQ181: 4 | BR181: 4 | BS181: 4 | BT181: 12 | BU181: 3 | BV181: 4 | BW181: 6 | BX181: 13 | BY181: ناجحة | BZ181: و منقولة للصف الثانى | CA181: 0 | CB181: 8 | CC181: 8/3 | CU181: 0 | CV181: 0
A182: 173 | B182: 298 | C182: غاده رجب مهلل مهدى | D182: 21/2 | E182: 2006-03-22 | F182: 09 - 06 - 15 | I182: بنات | J182: خدمات | K182: صباحى | M182: 673 | N182: 9 | O182: 10 | P182: 15 | Q182: 34 | R182: 8 | S182: 14 | T182: 14 | U182: 36 | V182: 3 | W182: 6 | X182: 8 | Y182: 17 | Z182: 6 | AA182: 4 | AB182: 11 | AC182: 6 | AD182: 9 | AE182: 7 | AF182: 26 | AG182: 17 | AH182: 43 | AI182: 7 | AJ182: 8 | AK182: 19 | AL182: 34 | AM182: 10 | AN182: 13 | AO182: 12 | AP182: 35 | AQ182: 10 | AR182: 19 | AS182: 19 | AT182: 48 | AU182: 7 | AV182: 20 | AW182: 8 | AX182: 35 | AY182: 9 | AZ182: 20 | BA182: 8 | BB182: 37 | BC182: 9 | BD182: 10 | BE182: 12 | BF182: 31 | BG182: 9 | BH182: 15 | BI182: 12 | BJ182: 36 | BK182: 8 | BL182: 20 | BM182: 10 | BN182: 38 | BO182: 172 | BP182: 424 | BQ182: 4 | BR182: 7 | BS182: 4 | BT182: 15 | BU182: 4 | BV182: 8 | BW182: 7 | BX182: 19 | BY182: ناجحة | BZ182: و منقولة للصف الثانى | CA182: 0 | CB182: 8 | CC182: 8/3 | CU182: 0 | CV182: 0
A183: 174 | B183: 299 | C183: فاطمه شاذلى حسن ابراهيم | D183: 22/2 | E183: 2006-03-23 | F183: 08 - 06 - 15 | I183: بنات | J183: خدمات | K183: صباحى | M183: 674 | N183: 9 | O183: 10 | P183: 8 | Q183: 27 | R183: 8 | S183: 10 | T183: 11 | U183: 29 | V183: 6 | W183: 11 | X183: 9 | Y183: 26 | Z183: 5 | AA183: 4 | AB183: 12 | AC183: 4 | AD183: 7 | AE183: 8 | AF183: 24 | AG183: 16 | AH183: 40 | AI183: 5 | AJ183: 19 | AK183: 15 | AL183: 39 | AM183: 8 | AN183: 17 | AO183: 12 | AP183: 37 | AQ183: 10 | AR183: 15 | AS183: 19 | AT183: 44 | AU183: 9 | AV183: 8 | AW183: 19 | AX183: 36 | AY183: 7 | AZ183: 16 | BA183: 19 | BB183: 42 | BC183: 7 | BD183: 9 | BE183: 9 | BF183: 25 | BG183: 7 | BH183: 8 | BI183: 18 | BJ183: 33 | BK183: 6 | BL183: 8 | BM183: 8 | BN183: 22 | BO183: 147 | BP183: 400 | BQ183: 3 | BR183: 7 | BS183: 6 | BT183: 16 | BU183: 4 | BV183: 7 | BW183: 5 | BX183: 16 | BY183: دورثان | BZ183: فى : ادارة مخازن - | CA183: 1 | CB183: 8 | CC183: 8/3 | CQ183: ادارة مخازن - | CU183: 0 | CV183: 1
A184: 175 | B184: 300 | C184: فاطمه طايع السيد مصطفى | D184: 22/2 | E184: 2006-03-24 | F184: 07 - 06 - 15 | I184: بنات | J184: خدمات | K184: صباحى | M184: 675 | N184: 5 | O184: 18 | P184: 15 | Q184: 38 | R184: 7 | S184: 8 | T184: 9 | U184: 24 | V184: 5 | W184: 5 | X184: 7 | Y184: 17 | Z184: 4 | AA184: 3 | AB184: 5 | AC184: 4 | AD184: 11 | AE184: 7 | AF184: 20 | AG184: 14 | AH184: 34 | AI184: 10 | AJ184: 11 | AK184: 9 | AL184: 30 | AM184: 6 | AN184: 14 | AO184: 14 | AP184: 34 | AQ184: 10 | AR184: 19 | AS184: 17 | AT184: 46 | AU184: 6 | AV184: 17 | AW184: 11 | AX184: 34 | AY184: 9 | AZ184: 8 | BA184: 10 | BB184: 27 | BC184: 8 | BD184: 8 | BE184: 19 | BF184: 35 | BG184: 9 | BH184: 17 | BI184: 16 | BJ184: 42 | BK184: 5 | BL184: 18 | BM184: 17 | BN184: 40 | BO184: 152 | BP184: 401 | BQ184: 4 | BR184: 4 | BS184: 7 | BT184: 15 | BU184: 4 | BV184: 4 | BW184: 8 | BX184: 16 | BY184: دورثان | BZ184: فى : لغة انجليزية - | CA184: 1 | CB184: 8 | CC184: 8/3 | CG184: لغة انجليزية - | CU184: 0 | CV184: 1
A185: 176 | B185: 301 | C185: فاطمه محمد سعدى محمد | D185: 21/2 | E185: 2006-03-25 | F185: 06 - 06 - 15 | I185: بنات | J185: خدمات | K185: صباحى | M185: 676 | N185: 6 | O185: 19 | P185: 10 | Q185: 35 | R185: 10 | S185: 16 | T185: 19 | U185: 45 | V185: 4 | W185: 12 | X185: 5 | Y185: 21 | Z185: 3 | AA185: 3 | AB185: 12 | AC185: 6 | AD185: 7 | AE185: 7 | AF185: 22 | AG185: 16 | AH185: 38 | AI185: 6 | AJ185: 18 | AK185: 17 | AL185: 41 | AM185: 8 | AN185: 16 | AO185: 16 | AP185: 40 | AQ185: 6 | AR185: 12 | AS185: 8 | AT185: 26 | AU185: 7 | AV185: 8 | AW185: 20 | AX185: 35 | AY185: 10 | AZ185: 18 | BA185: 17 | BB185: 45 | BC185: 8 | BD185: 8 | BE185: 14 | BF185: 30 | BG185: 6 | BH185: 10 | BI185: 17 | BJ185: 33 | BK185: 10 | BL185: 8 | BM185: 16 | BN185: 34 | BO185: 163 | BP185: 423 | BQ185: 3 | BR185: 5 | BS185: 5 | BT185: 13 | BU185: 4 | BV185: 7 | BW185: 8 | BX185: 19 | BY185: ناجحة | BZ185: و منقولة للصف الثانى | CA185: 0 | CB185: 8 | CC185: 8/3 | CU185: 0 | CV185: 0
A186: 177 | B186: 302 | C186: فاطمه مصطفى محمد ادريس | D186: 21/2 | E186: 2006-03-26 | F186: 05 - 06 - 15 | I186: بنات | J186: خدمات | K186: صباحى | L186: باقية | M186: 677 | N186: 9 | O186: 13 | P186: 14 | Q186: 36 | R186: 10 | S186: 10 | T186: 20 | U186: 40 | V186: 6 | W186: 6 | X186: 5 | Y186: 17 | Z186: 4 | AA186: 3 | AB186: 12 | AC186: 8 | AD186: 9 | AE186: 7 | AF186: 25 | AG186: 18 | AH186: 43 | AI186: 9 | AJ186: 14 | AK186: 14 | AL186: 37 | AM186: 6 | AN186: 10 | AO186: 20 | AP186: 36 | AQ186: 7 | AR186: 16 | AS186: 19 | AT186: 42 | AU186: 7 | AV186: 8 | AW186: 14 | AX186: 29 | AY186: 5 | AZ186: 12 | BA186: 20 | BB186: 37 | BC186: 10 | BD186: 16 | BE186: 9 | BF186: 35 | BG186: 8 | BH186: 13 | BI186: 18 | BJ186: 39 | BK186: 10 | BL186: 9 | BM186: 15 | BN186: 34 | BO186: 147 | BP186: 425 | BQ186: 3 | BR186: 5 | BS186: 6 | BT186: 14 | BU186: 4 | BV186: 8 | BW186: 4 | BX186: 16 | BY186: ناجحة | BZ186: و منقولة للصف الثانى | CA186: 0 | CB186: 8 | CC186: 8/3 | CU186: 0 | CV186: 0
A187: 178 | B187: 303 | C187: ماجده محمود احمد موسى | D187: 22/2 | E187: 2006-03-27 | F187: 04 - 06 - 15 | I187: بنات | J187: خدمات | K187: صباحى | M187: 678 | N187: 5 | O187: 20 | P187: 13 | Q187: 38 | R187: 9 | S187: 15 | T187: 20 | U187: 44 | V187: 4 | W187: 7 | X187: 8 | Y187: 19 | Z187: 5 | AA187: 3 | AB187: 7 | AC187: 5 | AD187: 10 | AE187: 5 | AF187: 22 | AG187: 13 | AH187: 35 | AI187: 8 | AJ187: 13 | AK187: 18 | AL187: 39 | AM187: 5 | AN187: 12 | AO187: 8 | AP187: 25 | AQ187: 7 | AR187: 19 | AS187: 17 | AT187: 43 | AU187: 7 | AV187: 12 | AW187: 15 | AX187: 34 | AY187: 8 | AZ187: 8 | BA187: 19 | BB187: 35 | BC187: 7 | BD187: 10 | BE187: 10 | BF187: 27 | BG187: 9 | BH187: 20 | BI187: 14 | BJ187: 43 | BK187: 9 | BL187: 16 | BM187: 20 | BN187: 45 | BO187: 164 | BP187: 427 | BQ187: 4 | BR187: 8 | BS187: 6 | BT187: 18 | BU187: 4 | BV187: 4 | BW187: 7 | BX187: 15 | BY187: ناجحة | BZ187: و منقولة للصف الثانى | CA187: 0 | CB187: 8 | CC187: 8/3 | CU187: 0 | CV187: 0
A188: 179 | B188: 304 | C188: مروه عبدالكريم احمد محمد | D188: 21/2 | E188: 2006-03-28 | F188: 03 - 06 - 15 | I188: بنات | J188: خدمات | K188: صباحى | M188: 681 | N188: 7 | O188: 18 | P188: 11 | Q188: 36 | R188: 7 | S188: 16 | T188: 19 | U188: 42 | V188: 6 | W188: 11 | X188: 5 | Y188: 22 | Z188: 5 | AA188: 3 | AB188: 8 | AC188: 5 | AD188: 12 | AE188: 8 | AF188: 25 | AG188: 16 | AH188: 41 | AI188: 5 | AJ188: 16 | AK188: 11 | AL188: 32 | AM188: 7 | AN188: 8 | AO188: 13 | AP188: 28 | AQ188: 8 | AR188: 16 | AS188: 12 | AT188: 36 | AU188: 9 | AV188: 8 | AW188: 11 | AX188: 28 | AY188: 7 | AZ188: 11 | BA188: 16 | BB188: 34 | BC188: 7 | BD188: 11 | BE188: 10 | BF188: 28 | BG188: 6 | BH188: 20 | BI188: 19 | BJ188: 45 | BK188: 7 | BL188: 15 | BM188: 15 | BN188: 37 | BO188: 163 | BP188: 409 | BQ188: 4 | BR188: 5 | BS188: 7 | BT188: 16 | BU188: 3 | BV188: 8 | BW188: 6 | BX188: 17 | BY188: ناجحة | BZ188: و منقولة للصف الثانى | CA188: 0 | CB188: 8 | CC188: 8/3 | CU188: 0 | CV188: 0
A189: 180 | B189: 305 | C189: مروه محمود محمد جابر | D189: 22/2 | E189: 2006-03-29 | F189: 02 - 06 - 15 | I189: بنات | J189: خدمات | K189: صباحى | M189: 682 | N189: 9 | O189: 18 | P189: 12 | Q189: 39 | R189: 10 | S189: 17 | T189: 16 | U189: 43 | V189: 4 | W189: 8 | X189: 7 | Y189: 19 | Z189: 5 | AA189: 3 | AB189: 5 | AC189: 8 | AD189: 6 | AE189: 5 | AF189: 16 | AG189: 16 | AH189: 32 | AI189: 9 | AJ189: 19 | AK189: 19 | AL189: 47 | AM189: 10 | AN189: 10 | AO189: 17 | AP189: 37 | AQ189: 7 | AR189: 12 | AS189: 9 | AT189: 28 | AU189: 7 | AV189: 17 | AW189: 18 | AX189: 42 | AY189: 9 | AZ189: 20 | BA189: 14 | BB189: 43 | BC189: 5 | BD189: 11 | BE189: 15 | BF189: 31 | BG189: 9 | BH189: 18 | BI189: 18 | BJ189: 45 | BK189: 10 | BL189: 15 | BM189: 15 | BN189: 40 | BO189: 178 | BP189: 446 | BQ189: 4 | BR189: 8 | BS189: 6 | BT189: 18 | BU189: 3 | BV189: 7 | BW189: 4 | BX189: 14 | BY189: ناجحة | BZ189: و منقولة للصف الثانى | CA189: 0 | CB189: 8 | CC189: 8/3 | CU189: 0 | CV189: 0
A190: 181 | B190: 306 | C190: مريم ابوعبيده حسن محمد | D190: 22/2 | E190: 2006-03-30 | F190: 01 - 06 - 15 | I190: بنات | J190: خدمات | K190: صباحى | M190: 683 | N190: 6 | O190: 16 | P190: 9 | Q190: 31 | R190: 7 | S190: 8 | T190: 8 | U190: 23 | V190: 6 | W190: 9 | X190: 12 | Y190: 27 | Z190: 5 | AA190: 4 | AB190: 9 | AC190: 8 | AD190: 6 | AE190: 5 | AF190: 20 | AG190: 17 | AH190: 37 | AI190: 7 | AJ190: 16 | AK190: 12 | AL190: 35 | AM190: 5 | AN190: 11 | AO190: 8 | AP190: 24 | AQ190: 8 | AR190: 18 | AS190: 12 | AT190: 38 | AU190: 9 | AV190: 9 | AW190: 12 | AX190: 30 | AY190: 7 | AZ190: 17 | BA190: 18 | BB190: 42 | BC190: 9 | BD190: 12 | BE190: 13 | BF190: 34 | BG190: 5 | BH190: 9 | BI190: 5 | BJ190: 19 | BK190: 5 | BL190: 17 | BM190: 9 | BN190: 31 | BO190: 159 | BP190: 371 | BQ190: 4 | BR190: 5 | BS190: 7 | BT190: 16 | BU190: 3 | BV190: 4 | BW190: 8 | BX190: 15 | BY190: راسبة | BZ190: و لها حق الاعادة | CA190: 3 | CB190: 8 | CC190: 8/3 | CG190: لغة انجليزية - | CK190: احصاء - | CP190: ادارة مشروعات - | CU190: 0 | CV190: 3
A191: 182 | B191: 307 | C191: مريم هدرا جرجس عبده | D191: 21/2 | E191: 2006-03-31 | F191: 00 - 06 - 15 | G191: مسيحية | I191: بنات | J191: خدمات | K191: صباحى | M191: 684 | N191: 6 | O191: 17 | P191: 18 | Q191: 41 | R191: 5 | S191: 8 | T191: 14 | U191: 27 | V191: 6 | W191: 6 | X191: 11 | Y191: 23 | Z191: 4 | AA191: 3 | AB191: 7 | AC191: 5 | AD191: 8 | AE191: 6 | AF191: 19 | AG191: 14 | AH191: 33 | AI191: 9 | AJ191: 13 | AK191: 19 | AL191: 41 | AM191: 9 | AN191: 16 | AO191: 19 | AP191: 44 | AQ191: 5 | AR191: 19 | AS191: 17 | AT191: 41 | AU191: 10 | AV191: 20 | AW191: 15 | AX191: 45 | AY191: 8 | AZ191: 17 | BA191: 19 | BB191: 44 | BC191: 7 | BD191: 18 | BE191: 19 | BF191: 44 | BG191: 8 | BH191: 19 | BI191: 11 | BJ191: 38 | BK191: 7 | BL191: 19 | BM191: 13 | BN191: 39 | BO191: 184 | BP191: 460 | BQ191: 4 | BR191: 7 | BS191: 8 | BT191: 19 | BU191: 3 | BV191: 7 | BW191: 4 | BX191: 14 | BY191: ناجحة | BZ191: و منقولة للصف الثانى | CA191: 0 | CB191: 8 | CC191: 8/3 | CU191: 0 | CV191: 0
A192: 183 | B192: 308 | C192: مها ابوالوفاء عبدالسلام احمد | D192: 21/2 | E192: 2006-04-01 | F192: 00 - 06 - 15 | I192: بنات | J192: خدمات | K192: صباحى | M192: 685 | N192: 5 | O192: 8 | P192: 8 | Q192: 21 | R192: 5 | S192: 10 | T192: 10 | U192: 25 | V192: 3 | W192: 10 | X192: 7 | Y192: 20 | Z192: 4 | AA192: 3 | AB192: 10 | AC192: 4 | AD192: 12 | AE192: 5 | AF192: 26 | AG192: 12 | AH192: 38 | AI192: 8 | AJ192: 20 | AK192: 17 | AL192: 45 | AM192: 6 | AN192: 14 | AO192: 20 | AP192: 40 | AQ192: 9 | AR192: 16 | AS192: 12 | AT192: 37 | AU192: 7 | AV192: 9 | AW192: 18 | AX192: 34 | AY192: 5 | AZ192: 18 | BA192: 12 | BB192: 35 | BC192: 5 | BD192: 16 | BE192: 14 | BF192: 35 | BG192: 10 | BH192: 16 | BI192: 9 | BJ192: 35 | BK192: 7 | BL192: 19 | BM192: 15 | BN192: 41 | BO192: 170 | BP192: 406 | BQ192: 3 | BR192: 6 | BS192: 5 | BT192: 14 | BU192: 4 | BV192: 6 | BW192: 8 | BX192: 18 | BY192: دورثان | BZ192: فى : لغة عربية - | CA192: 1 | CB192: 9 | CC192: 9/3 | CF192: لغة عربية - | CU192: 0 | CV192: 1
A193: 184 | B193: 309 | C193: مها محمد بخيت مصطفى | D193: 22/2 | E193: 2006-04-02 | F193: 29 - 05 - 15 | I193: بنات | J193: خدمات | K193: صباحى | M193: 686 | N193: 7 | O193: 18 | P193: 8 | Q193: 33 | R193: 5 | S193: 9 | T193: 8 | U193: 22 | V193: 5 | W193: 8 | X193: 7 | Y193: 20 | Z193: 6 | AA193: 3 | AB193: 8 | AC193: 8 | AD193: 12 | AE193: 4 | AF193: 26 | AG193: 15 | AH193: 41 | AI193: 9 | AJ193: 15 | AK193: 8 | AL193: 32 | AM193: 5 | AN193: 8 | AO193: 16 | AP193: 29 | AQ193: 10 | AR193: 9 | AS193: 17 | AT193: 36 | AU193: 7 | AV193: 11 | AW193: 9 | AX193: 27 | AY193: 6 | AZ193: 12 | BA193: 14 | BB193: 32 | BC193: 7 | BD193: 9 | BE193: 14 | BF193: 30 | BG193: 8 | BH193: 20 | BI193: 17 | BJ193: 45 | BK193: 7 | BL193: 8 | BM193: 12 | BN193: 27 | BO193: 143 | BP193: 374 | BQ193: 4 | BR193: 5 | BS193: 6 | BT193: 15 | BU193: 3 | BV193: 5 | BW193: 6 | BX193: 14 | BY193: دورثان | BZ193: فى : لغة انجليزية - | CA193: 1 | CB193: 9 | CC193: 9/3 | CG193: لغة انجليزية - | CU193: 0 | CV193: 1
A194: 185 | B194: 310 | C194: ميار عادل محمد الضوى | D194: 22/2 | E194: 2006-04-03 | F194: 28 - 05 - 15 | I194: بنات | J194: خدمات | K194: صباحى | M194: 687 | N194: 8 | O194: 16 | P194: 10 | Q194: 34 | R194: 5 | S194: 20 | T194: 16 | U194: 41 | V194: 4 | W194: 5 | X194: 5 | Y194: 14 | Z194: 6 | AA194: 3 | AB194: 5 | AC194: 5 | AD194: 12 | AE194: 4 | AF194: 23 | AG194: 12 | AH194: 35 | AI194: 6 | AJ194: 13 | AK194: 8 | AL194: 27 | AM194: 7 | AN194: 12 | AO194: 8 | AP194: 27 | AQ194: 5 | AR194: 17 | AS194: 11 | AT194: 33 | AU194: 7 | AV194: 20 | AW194: 17 | AX194: 44 | AY194: 5 | AZ194: 18 | BA194: 9 | BB194: 32 | BC194: 9 | BD194: 13 | BE194: 12 | BF194: 34 | BG194: 7 | BH194: 19 | BI194: 19 | BJ194: 45 | BK194: 10 | BL194: 8 | BM194: 17 | BN194: 35 | BO194: 171 | BP194: 401 | BQ194: 3 | BR194: 6 | BS194: 7 | BT194: 16 | BU194: 4 | BV194: 8 | BW194: 8 | BX194: 20 | BY194: ناجحة | BZ194: و منقولة للصف الثانى | CA194: 0 | CB194: 9 | CC194: 9/3 | CU194: 0 | CV194: 0
A195: 186 | B195: 311 | C195: نانسى محمود سعيد عبادى | D195: 22/2 | E195: 2006-04-04 | F195: 27 - 05 - 15 | I195: بنات | J195: خدمات | K195: صباحى | M195: 688 | N195: 7 | O195: 9 | P195: 18 | Q195: 34 | R195: 5 | S195: 18 | T195: 16 | U195: 39 | V195: 6 | W195: 7 | X195: 12 | Y195: 25 | Z195: 4 | AA195: 3 | AB195: 5 | AC195: 5 | AD195: 6 | AE195: 4 | AF195: 15 | AG195: 12 | AH195: 27 | AI195: 6 | AJ195: 20 | AK195: 12 | AL195: 38 | AM195: 7 | AN195: 12 | AO195: 10 | AP195: 29 | AQ195: 6 | AR195: 10 | AS195: 18 | AT195: 34 | AU195: 7 | AV195: 9 | AW195: 16 | AX195: 32 | AY195: 9 | AZ195: 19 | BA195: 12 | BB195: 40 | BC195: 7 | BD195: 17 | BE195: 9 | BF195: 33 | BG195: 6 | BH195: 19 | BI195: 14 | BJ195: 39 | BK195: 10 | BL195: 16 | BM195: 8 | BN195: 34 | BO195: 166 | BP195: 404 | BQ195: 4 | BR195: 4 | BS195: 5 | BT195: 13 | BU195: 3 | BV195: 8 | BW195: 5 | BX195: 16 | BY195: ناجحة | BZ195: و منقولة للصف الثانى | CA195: 0 | CB195: 9 | CC195: 9/3 | CU195: 0 | CV195: 0
A196: 187 | B196: 312 | C196: ندى عبدالراضى محمود عبدالراضى | D196: 22/2 | E196: 2006-04-05 | F196: 26 - 05 - 15 | I196: بنات | J196: خدمات | K196: صباحى | M196: 689 | N196: 7 | O196: 14 | P196: 9 | Q196: 30 | R196: 6 | S196: 9 | T196: 14 | U196: 29 | V196: 3 | W196: 10 | X196: 5 | Y196: 18 | Z196: 6 | AA196: 3 | AB196: 7 | AC196: 4 | AD196: 6 | AE196: 5 | AF196: 19 | AG196: 12 | AH196: 31 | AI196: 6 | AJ196: 20 | AK196: 17 | AL196: 43 | AM196: 6 | AN196: 18 | AO196: 17 | AP196: 41 | AQ196: 7 | AR196: 18 | AS196: 13 | AT196: 38 | AU196: 9 | AV196: 19 | AW196: 20 | AX196: 48 | AY196: 10 | AZ196: 13 | BA196: 10 | BB196: 33 | BC196: 5 | BD196: 13 | BE196: 10 | BF196: 28 | BG196: 6 | BH196: 8 | BI196: 11 | BJ196: 25 | BK196: 9 | BL196: 14 | BM196: 13 | BN196: 36 | BO196: 167 | BP196: 400 | BQ196: 3 | BR196: 5 | BS196: 6 | BT196: 14 | BU196: 4 | BV196: 4 | BW196: 5 | BX196: 13 | BY196: ناجحة | BZ196: و منقولة للصف الثانى | CA196: 0 | CB196: 9 | CC196: 9/3 | CU196: 0 | CV196: 0
A197: 188 | B197: 313 | C197: ندى عبدالناصر خليل احمد | D197: 21/2 | E197: 2006-04-06 | F197: 25 - 05 - 15 | I197: بنات | J197: خدمات | K197: صباحى | M197: 690 | N197: 7 | O197: 12 | P197: 8 | Q197: 27 | R197: 9 | S197: 14 | T197: 14 | U197: 37 | V197: 3 | W197: 5 | X197: 12 | Y197: 20 | Z197: 4 | AA197: 3 | AB197: 5 | AC197: 7 | AD197: 8 | AE197: 5 | AF197: 17 | AG197: 15 | AH197: 32 | AI197: 6 | AJ197: 17 | AK197: 10 | AL197: 33 | AM197: 5 | AN197: 14 | AO197: 15 | AP197: 34 | AQ197: 7 | AR197: 17 | AS197: 12 | AT197: 36 | AU197: 9 | AV197: 14 | AW197: 13 | AX197: 36 | AY197: 6 | AZ197: 8 | BA197: 11 | BB197: 25 | BC197: 5 | BD197: 9 | BE197: 15 | BF197: 29 | BG197: 10 | BH197: 19 | BI197: 18 | BJ197: 47 | BK197: 10 | BL197: 8 | BM197: 12 | BN197: 30 | BO197: 149 | BP197: 386 | BQ197: 3 | BR197: 5 | BS197: 4 | BT197: 12 | BU197: 4 | BV197: 5 | BW197: 7 | BX197: 16 | BY197: ناجحة | BZ197: و منقولة للصف الثانى | CA197: 0 | CB197: 9 | CC197: 9/3 | CU197: 0 | CV197: 0
A198: 189 | B198: 314 | C198: نرمين ركابى خليفه حفنى | D198: 22/2 | E198: 2006-04-07 | F198: 24 - 05 - 15 | I198: بنات | J198: خدمات | K198: صباحى | M198: 691 | N198: 7 | O198: 20 | P198: 20 | Q198: 47 | R198: 5 | S198: 9 | T198: 11 | U198: 25 | V198: 5 | W198: 9 | X198: 9 | Y198: 23 | Z198: 5 | AA198: 4 | AB198: 5 | AC198: 8 | AD198: 5 | AE198: 7 | AF198: 15 | AG198: 19 | AH198: 34 | AI198: 5 | AJ198: 20 | AK198: 10 | AL198: 35 | AM198: 10 | AN198: 11 | AO198: 12 | AP198: 33 | AQ198: 10 | AR198: 15 | AS198: 17 | AT198: 42 | AU198: 6 | AV198: 17 | AW198: 11 | AX198: 34 | AY198: 5 | AZ198: 18 | BA198: 9 | BB198: 32 | BC198: 6 | BD198: 17 | BE198: 15 | BF198: 38 | BG198: 8 | BH198: 8 | BI198: 14 | BJ198: 30 | BK198: 7 | BL198: 12 | BM198: 18 | BN198: 37 | BO198: 169 | BP198: 410 | BQ198: 4 | BR198: 6 | BS198: 5 | BT198: 15 | BU198: 4 | BV198: 7 | BW198: 7 | BX198: 18 | BY198: ناجحة | BZ198: و منقولة للصف الثانى | CA198: 0 | CB198: 9 | CC198: 9/3 | CU198: 0 | CV198: 0
A199: 190 | B199: 315 | C199: نفيسه ناصر ابراهيم ايوب | D199: 22/2 | E199: 2006-04-08 | F199: 23 - 05 - 15 | I199: بنات | J199: خدمات | K199: صباحى | M199: 692 | N199: 8 | O199: 8 | P199: 15 | Q199: 31 | R199: 7 | S199: 16 | T199: 12 | U199: 35 | V199: 5 | W199: 8 | X199: 11 | Y199: 24 | Z199: 3 | AA199: 3 | AB199: 8 | AC199: 5 | AD199: 8 | AE199: 5 | AF199: 19 | AG199: 13 | AH199: 32 | AI199: 10 | AJ199: 15 | AK199: 8 | AL199: 33 | AM199: 6 | AN199: 16 | AO199: 11 | AP199: 33 | AQ199: 5 | AR199: 17 | AS199: 10 | AT199: 32 | AU199: 5 | AV199: 17 | AW199: 13 | AX199: 35 | AY199: 10 | AZ199: 12 | BA199: 11 | BB199: 33 | BC199: 8 | BD199: 8 | BE199: 15 | BF199: 31 | BG199: 6 | BH199: 9 | BI199: 19 | BJ199: 34 | BK199: 7 | BL199: 18 | BM199: 10 | BN199: 35 | BO199: 157 | BP199: 388 | BQ199: 3 | BR199: 4 | BS199: 8 | BT199: 15 | BU199: 4 | BV199: 6 | BW199: 6 | BX199: 16 | BY199: ناجحة | BZ199: و منقولة للصف الثانى | CA199: 0 | CB199: 9 | CC199: 9/3 | CU199: 0 | CV199: 0
A200: 191 | B200: 316 | C200: نهله عويس سيد محمد | D200: 22/2 | E200: 2006-04-09 | F200: 22 - 05 - 15 | I200: بنات | J200: خدمات | K200: صباحى | M200: 693 | N200: 7 | O200: 9 | P200: 12 | Q200: 28 | R200: 10 | S200: 19 | T200: 20 | U200: 49 | V200: 5 | W200: 12 | X200: 9 | Y200: 26 | Z200: 4 | AA200: 3 | AB200: 11 | AC200: 4 | AD200: 7 | AE200: 6 | AF200: 22 | AG200: 13 | AH200: 35 | AI200: 7 | AJ200: 16 | AK200: 14 | AL200: 37 | AM200: 8 | AN200: 14 | AO200: 19 | AP200: 41 | AQ200: 7 | AR200: 12 | AS200: 8 | AT200: 27 | AU200: 6 | AV200: 17 | AW200: 11 | AX200: 34 | AY200: 6 | AZ200: 15 | BA200: 9 | BB200: 30 | BC200: 7 | BD200: 20 | BE200: 17 | BF200: 44 | BG200: 9 | BH200: 10 | BI200: 17 | BJ200: 36 | BK200: 5 | BL200: 8 | BM200: 20 | BN200: 33 | BO200: 167 | BP200: 420 | BQ200: 4 | BR200: 6 | BS200: 6 | BT200: 16 | BU200: 4 | BV200: 4 | BW200: 7 | BX200: 15 | BY200: ناجحة | BZ200: و منقولة للصف الثانى | CA200: 0 | CB200: 9 | CC200: 9/3 | CU200: 0 | CV200: 0
... 146 more rows

Sheet شعبة التسويق
B1: بسم الله الرحمن الرحيم | AA1: شيت كنترول للعام الدراسى | AJ1: =الرئيسية!$Q$2 -> 2019/2018 | CB1: راسبة
C2: ="ادارة" & " " &الرئيسية!E1 -> ادارة ….................. | AD2: الصف الثانى - | AH2: شعبة التسويق | CB2: راسب
C3: ="مدرسة"&" " &الرئيسية!E2 -> مدرسة ….................. | AE3: الشيت العام | CJ3: اكتب اسماء المواد كما ستظهر فى الشهادة
A5: مسلسل | B5: البيانات الاساسية | M5: السرى | N5: لغة عربية | R5: لغة انجليزية | V5: لغة فرنسية | Z5: حاسب آلى | AI5: اعمال وساطة | AM5: دعاية واعلان | AQ5: اقتصاد | AU5: سكرتارية اجنبية | AY5: رياضة مالية | BC5: سوق اوراق مالية | BG5: محاسبة مالية | BK5: تسويق | BO5: مجموع نصف العام | BP5: مجموع كلى | BQ5: تربية دينية | BU5: مواطنة وحقوق انسان | BY5: نتيجة | BZ5: مواد الرسوب | CA5: عدد المواد | CB5: اللجنة و مقرها | CF5: لغة عربية | CG5: لغة انجليزية | CH5: لغة فرنسية | CI5: حاسب آلى | CJ5: اعمال وساطة | CK5: دعاية واعلان | CL5: اقتصاد | CM5: سكرتارية اجنبية | CN5: رياضة مالية | CO5: سوق اوراق مالية | CP5: محاسبة مالية | CQ5: تسويق | CR5: مجموع كلى | CS5: تربية دينية | CT5: مواطنة وحقوق انسان | CU5: مواد لا تستوجب الرسوب | CV5: مواد الرســــوب
B6: رقم جلوس | C6: الاســــــــــــــم | D6: الفصــــــــــل | E6: تاريخ الميلاد | F6: سن الطالب في تاريخ | G6: الجنسية | H6: الديانة | I6: النوع | J6: الفئة | K6: الفترة | L6: الحالــــــــة | N6: اعمال السنة | O6: نصف العام | P6: آخر العام | Q6: المجموع | R6: اعمال السنة | S6: نصف العام | T6: آخر العام | U6: المجموع | V6: اعمال السنة | W6: نصف العام | X6: آخر العام | Y6: المجموع | Z6: اعمال السنة | AB6: نصف العام | AD6: آخر العام | AF6: مجموع تحريرى | AG6: مجموع عملى | AH6: مجموع حاسب | AI6: اعمال السنة | AJ6: نصف العام | AK6: آخر العام | AL6: المجموع | AM6: اعمال السنة | AN6: نصف العام | AO6: آخر العام | AP6: المجموع | AQ6: اعمال السنة | AR6: نصف العام | AS6: آخر العام | AT6: المجموع | AU6: اعمال السنة | AV6: نصف العام | AW6: آخر العام | AX6: المجموع | AY6: اعمال السنة | AZ6: نصف العام | BA6: آخر العام | BB6: المجموع | BC6: اعمال السنة | BD6: نصف العام | BE6: آخر العام | BF6: المجموع | BG6: اعمال السنة | BH6: نصف العام | BI6: آخر العام | BJ6: المجموع | BK6: اعمال السنة | BL6: نصف العام | BM6: آخر العام | BN6: المجموع | BQ6: اعمال السنة | BR6: نصف العام | BS6: آخر العام | BT6: المجموع | BU6: اعمال السنة | BV6: نصف العام | BW6: آخر العام | BX6: المجموع | CF6: تفريغ مـــــواد الرسوب - تفريغ مـــــواد الرسوب - تفريغ مـــــواد الرسوب - تفريغ مـــــواد الرسوب
Z7: تحريرى | AA7: عملى | AB7: تحريرى | AC7: عملى | AD7: تحريرى | AE7: عملى
F8: =الرئيسية!$E$9 -> 2021-10-01 | M8: عظمى | N8: 10 | O8: 20 | P8: 20 | Q8: 50 | R8: 10 | S8: 20 | T8: 20 | U8: 50 | V8: 6 | W8: 12 | X8: 12 | Y8: 30 | Z8: 6 | AA8: 4 | AB8: 12 | AC8: 8 | AD8: 12 | AE8: 8 | AF8: 30 | AG8: 20 | AH8: 50 | AI8: 10 | AJ8: 20 | AK8: 20 | AL8: 50 | AM8: 10 | AN8: 20 | AO8: 20 | AP8: 50 | AQ8: 10 | AR8: 20 | AS8: 20 | AT8: 50 | AU8: 10 | AV8: 20 | AW8: 20 | AX8: 50 | AY8: 10 | AZ8: 20 | BA8: 20 | BB8: 50 | BC8: 10 | BD8: 20 | BE8: 20 | BF8: 50 | BG8: 10 | BH8: 20 | BI8: 20 | BJ8: 50 | BK8: 10 | BL8: 20 | BM8: 20 | BN8: 50 | BO8: 232 | BP8: 580 | BQ8: 4 | BR8: 8 | BS8: 8 | BT8: 20 | BU8: 4 | BV8: 8 | BW8: 8 | BX8: 20 | CB8: لجنة | CC8: مقر | CU8: دين و مواطنة | CV8: باقى المواد
M9: صغرى | N9: 0 | O9: 0 | P9: 5 | Q9: 25 | R9: 0 | S9: 0 | T9: 5 | U9: 25 | V9: 0 | W9: 0 | X9: 3 | Y9: 9 | Z9: 0 | AA9: 0 | AB9: 0 | AC9: 0 | AD9: 3 | AE9: 2 | AF9: 15 | AG9: 10 | AH9: 25 | AI9: 0 | AJ9: 0 | AK9: 5 | AL9: 25 | AM9: 0 | AN9: 0 | AO9: 5 | AP9: 25 | AQ9: 0 | AR9: 0 | AS9: 5 | AT9: 25 | AU9: 0 | AV9: 0 | AW9: 5 | AX9: 25 | AY9: 0 | AZ9: 0 | BA9: 5 | BB9: 25 | BC9: 0 | BD9: 0 | BE9: 5 | BF9: 25 | BG9: 0 | BH9: 0 | BI9: 5 | BJ9: 25 | BK9: 0 | BL9: 0 | BM9: 5 | BN9: 25 | BO9: 0 | BP9: 290 | BQ9: 0 | BR9: 0 | BS9: 2 | BT9: 10 | BU9: 0 | BV9: 0 | BW9: 2 | BX9: 10
A10: 1 | B10: 351 | C10: اسراء محمد بدرى سلامة | D10: 7/2 | I10: بنات | J10: انتظام | K10: صباحى | M10: 1251 | N10: 9 | O10: 11 | P10: 19 | Q10: =IF($C10="","",IF(P10="غ","غ",SUM(N10,O10,P10))) -> 39 | R10: 9 | S10: 10 | T10: 13 | U10: =IF($C10="","",IF(T10="غ","غ",SUM(R10,S10,T10))) -> 32 | V10: 3 | W10: 9 | X10: 6 | Y10: =IF($C10="","",IF(X10="غ","غ",SUM(V10,W10,X10))) -> 18 | Z10: 6 | AA10: 3 | AB10: 6 | AC10: 7 | AD10: 6 | AE10: 7 | AF10: =IF($C10="","",IF(AD10="غ","غ",SUM(Z10,AB10,AD10))) -> 18 | AG10: =IF($C10="","",IF(AE10="غ","غ",SUM(AA10,AC10,AE10))) -> 17 | AH10: =IF($C10="","",IF(OR(AF10="غ",AG10="غ"),"غ",SUM(AF10,AG10))) -> 35 | AI10: 6 | AJ10: 9 | AK10: 10 | AL10: =IF($C10="","",IF(AK10="غ","غ",SUM(AI10,AJ10,AK10))) -> 25 | AM10: 8 | AN10: 15 | AO10: 10 | AP10: =IF($C10="","",IF(AO10="غ","غ",SUM(AM10,AN10,AO10))) -> 33 | AQ10: 7 | AR10: 17 | AS10: 12 | AT10: =IF($C10="","",IF(AS10="غ","غ",SUM(AQ10,AR10,AS10))) -> 36 | AU10: 8 | AV10: 9 | AW10: 13 | AX10: =IF($C10="","",IF(AW10="غ","غ",SUM(AU10,AV10,AW10))) -> 30 | AY10: 9 | AZ10: 17 | BA10: 19 | BB10: =IF($C10="","",IF(BA10="غ","غ",SUM(AY10,AZ10,BA10))) -> 45 | BC10: 8 | BD10: 9 | BE10: 16 | BF10: =IF($C10="","",IF(BE10="غ","غ",SUM(BC10,BD10,BE10))) -> 33 | BG10: 5 | BH10: 10 | BI10: 11 | BJ10: =IF($C10="","",IF(BI10="غ","غ",SUM(BG10,BH10,BI10))) -> 26 | BK10: 8 | BL10: 11 | BM10: 8 | BN10: =IF($C10="","",IF(BM10="غ","غ",SUM(BK10,BL10,BM10))) -> 27 | BO10: =IF($C10="","",SUM(O10,S10,W10,AJ10,AN10,AR10,AV10,AZ10,BD10,BH10,BL10,AB10,AC10)) -> 140 | BP10: =IF($C10="","",SUM(Q10,U10,Y10,AL10,AP10,AT10,AX10,BB10,BF10,BJ10,BN10,AH10)) -> 379 | BQ10: 4 | BR10: 6 | BS10: 5 | BT10: =IF($C10="","",IF(BS10="غ","غ",SUM(BQ10,BR10,BS10))) -> 15 | BU10: 3 | BV10: 7 | BW10: 5 | BX10: =IF($C10="","",IF(BW10="غ","غ",SUM(BU10,BV10,BW10))) -> 15 | BY10: =IF(I10="","",IF(I10="بنات",IF(CA10=0,"ناجحة",IF(CV10>2,"راسبة","دورثان")),IF(I10="بنين",IF(CA10=0,"ناجح",IF(CV10>2,"راسب","دورثان"))))) -> ناجحة | BZ10: =IF(AND($L10="باقية",$BY10="راسبة"),"وليس لها حق الاعادة",IF(AND($L10<>"باقية",$BY10="راسبة"),"و لها حق الاعادة",IF(AND($L10="باقى",$BY10="راسب"),"وليس له حق الاعادة",IF(AND($L10<>"باقى",$BY10="راسب"),"و له حق الاعادة",IF($BY10="ناجحة","و منقولة للصف الثانى",IF($BY10="ناجح","و منقول للصف الثانى",IF($BY10="دورثان","فى : "&CONCATENATE(CF10,CG10,CH10,CI10,CJ10,CK10,CL10,CM10,CN10,CO10,CP10,CQ10,CS10,CT10,CR10),CONCATENATE(CF10,CG10,CH10,CI10,CJ10,CK10,CL10,CM10,CN10,CO10,CP10,CQ10,CS10,CT10,CR10)))))))) -> و منقولة للصف الثانى | CA10: =IFERROR(CU10+CV10,"") -> 0 | CB10: 10 | CC10: 10/3 | CF10: =IF($C10="","",IF(OR(P10<$P$9,P10="غ",Q10<$Q$9),$CF$5&" - ","")) ->  | CG10: =IF($C10="","",IF(OR(T10<$T$9,T10="غ",U10<$U$9),$CG$5&" - ","")) ->  | CH10: =IF($C10="","",IF(OR(X10<$X$9,X10="غ",Y10<$Y$9),CH$5&" - ","")) ->  | CI10: =IF($C10="","",IF(OR(AF10<$AF$9,AF10="غ",AG10<$AG$9,AG10="غ",AH10<$AH$9),CI$5&" - ","")) ->  | CJ10: =IF($C10="","",IF(OR(AK10<$AK$9,AK10="غ",AL10<$AL$9),CJ$5&" - ","")) ->  | CK10: =IF($C10="","",IF(OR(AO10<$AO$9,AO10="غ",AP10<$AP$9),CK$5&" - ","")) ->  | CL10: =IF($C10="","",IF(OR(AS10<$AS$9,AS10="غ",AT10<$AT$9),CL$5&" - ","")) ->  | CM10: =IF($C10="","",IF(OR(AW10<$AW$9,AW10="غ",AX10<$AX$9),CM$5&" - ","")) ->  | CN10: =IF($C10="","",IF(OR(BA10<$BA$9,BA10="غ",BB10<$BB$9),CN$5&" - ","")) ->  | CO10: =IF($C10="","",IF(OR(BE10<$BE$9,BE10="غ",BF10<$BF$9),CO$5&" - ","")) ->  | CP10: =IF($C10="","",IF(OR(BI10<$BI$9,BI10="غ",BJ10<$BJ$9),CP$5&" - ","")) ->  | CQ10: =IF($C10="","",IF(OR(BM10<$BM$9,BM10="غ",BN10<$BN$9),CQ$5&" - ","")) ->  | CR10: =IF($C10="","",IF(BP10<$BP$9,CR$5,"")) ->  | CS10: =IF($C10="","",IF(OR(BS10<$BS$9,BS10="غ",BT10<$BT$9),CS$5&" - ","")) ->  | CT10: =IF($C10="","",IF(OR(BW10<$BW$9,BW10="غ",BX10<$BX$9),CT$5&" - ","")) ->  | CU10: =IF($C10="","",COUNTIF($CR10:$CT10,"?*")) -> 0 | CV10: =IF($C10="","",COUNTIF($CF10:$CQ10,"?*")) -> 0
A11: 2 | B11: 352 | C11: اسراء محمود محمد ابراهيم | D11: 8/2 | I11: بنات | J11: انتظام | K11: صباحى | M11: 1252 | N11: 8 | O11: 14 | P11: 17 | Q11: 39 | R11: 8 | S11: 10 | T11: 8 | U11: 26 | V11: 4 | W11: 11 | X11: 5 | Y11: 20 | Z11: 5 | AA11: 3 | AB11: 5 | AC11: 6 | AD11: 9 | AE11: 5 | AF11: 19 | AG11: 14 | AH11: 33 | AI11: 6 | AJ11: 14 | AK11: 17 | AL11: 37 | AM11: 8 | AN11: 12 | AO11: 14 | AP11: 34 | AQ11: 7 | AR11: 16 | AS11: 8 | AT11: 31 | AU11: 7 | AV11: 17 | AW11: 16 | AX11: 40 | AY11: 9 | AZ11: 19 | BA11: 16 | BB11: 44 | BC11: 7 | BD11: 11 | BE11: 19 | BF11: 37 | BG11: 10 | BH11: 9 | BI11: 20 | BJ11: 39 | BK11: 7 | BL11: 18 | BM11: 20 | BN11: 45 | BO11: 162 | BP11: 425 | BQ11: 3 | BR11: 7 | BS11: 6 | BT11: 16 | BU11: 4 | BV11: 6 | BW11: 8 | BX11: 18 | BY11: ناجحة | BZ11: =IF(AND($L11="باقية",$BY11="راسبة"),"وليس لها حق الاعادة",IF(AND($L11<>"باقية",$BY11="راسبة"),"و لها حق الاعادة",IF(AND($L11="باقى",$BY11="راسب"),"وليس له حق الاعادة",IF(AND($L11<>"باقى",$BY11="راسب"),"و له حق الاعادة",IF($BY11="ناجحة","و منقولة للصف الثانى",IF($BY11="ناجح","و منقول للصف الثانى",IF($BY11="دورثان","فى : "&CONCATENATE(CF11,CG11,CH11,CI11,CJ11,CK11,CL11,CM11,CN11,CO11,CP11,CQ11,CS11,CT11,CR11),CONCATENATE(CF11,CG11,CH11,CI11,CJ11,CK11,CL11,CM11,CN11,CO11,CP11,CQ11,CS11,CT11,CR11)))))))) -> و منقولة للصف الثانى | CA11: 0 | CB11: 10 | CC11: 10/3 | CU11: 0 | CV11: 0
A12: 3 | B12: 353 | C12: اسراءغريب محمد احمد | D12: 6/2 | I12: بنات | J12: انتظام | K12: صباحى | M12: 1253 | N12: 10 | O12: 19 | P12: 20 | Q12: 49 | R12: 10 | S12: 20 | T12: 16 | U12: 46 | V12: 3 | W12: 5 | X12: 9 | Y12: 17 | Z12: 4 | AA12: 4 | AB12: 6 | AC12: 8 | AD12: 11 | AE12: 7 | AF12: 21 | AG12: 19 | AH12: 40 | AI12: 10 | AJ12: 13 | AK12: 14 | AL12: 37 | AM12: 7 | AN12: 15 | AO12: 18 | AP12: 40 | AQ12: 7 | AR12: 15 | AS12: 11 | AT12: 33 | AU12: 7 | AV12: 16 | AW12: 9 | AX12: 32 | AY12: 8 | AZ12: 13 | BA12: 14 | BB12: 35 | BC12: 7 | BD12: 11 | BE12: 20 | BF12: 38 | BG12: 9 | BH12: 19 | BI12: 16 | BJ12: 44 | BK12: 8 | BL12: 11 | BM12: 10 | BN12: 29 | BO12: 171 | BP12: 440 | BQ12: 4 | BR12: 7 | BS12: 6 | BT12: 17 | BU12: 4 | BV12: 7 | BW12: 4 | BX12: 15 | BY12: ناجحة | BZ12: و منقولة للصف الثانى | CA12: 0 | CB12: 10 | CC12: 10/3 | CU12: 0 | CV12: 0
A13: 4 | B13: 354 | C13: اسماء احمد سيد ابو المجد | D13: 8/2 | I13: بنات | J13: انتظام | K13: صباحى | M13: 1254 | N13: 9 | O13: 8 | P13: 15 | Q13: 32 | R13: 5 | S13: 14 | T13: 13 | U13: 32 | V13: 5 | W13: 11 | X13: 10 | Y13: 26 | Z13: 3 | AA13: 3 | AB13: 8 | AC13: 6 | AD13: 9 | AE13: 7 | AF13: 20 | AG13: 16 | AH13: 36 | AI13: 8 | AJ13: 17 | AK13: 9 | AL13: 34 | AM13: 10 | AN13: 13 | AO13: 12 | AP13: 35 | AQ13: 9 | AR13: 11 | AS13: 19 | AT13: 39 | AU13: 6 | AV13: 8 | AW13: 19 | AX13: 33 | AY13: 8 | AZ13: 17 | BA13: 12 | BB13: 37 | BC13: 10 | BD13: 16 | BE13: 16 | BF13: 42 | BG13: 5 | BH13: 13 | BI13: 8 | BJ13: 26 | BK13: 9 | BL13: 12 | BM13: 16 | BN13: 37 | BO13: 154 | BP13: 409 | BQ13: 4 | BR13: 4 | BS13: 6 | BT13: 14 | BU13: 3 | BV13: 4 | BW13: 7 | BX13: 14 | BY13: ناجحة | BZ13: و منقولة للصف الثانى | CA13: 0 | CB13: 10 | CC13: 10/3 | CU13: 0 | CV13: 0
A14: 5 | B14: 355 | C14: اسماء جمال نوبى شحات | D14: 6/2 | I14: بنات | J14: انتظام | K14: صباحى | M14: 1255 | N14: 10 | O14: 11 | P14: 18 | Q14: 39 | R14: 5 | S14: 11 | T14: 13 | U14: 29 | V14: 3 | W14: 11 | X14: 6 | Y14: 20 | Z14: 5 | AA14: 3 | AB14: 12 | AC14: 5 | AD14: 6 | AE14: 6 | AF14: 23 | AG14: 14 | AH14: 37 | AI14: 5 | AJ14: 10 | AK14: 9 | AL14: 24 | AM14: 10 | AN14: 14 | AO14: 20 | AP14: 44 | AQ14: 9 | AR14: 18 | AS14: 20 | AT14: 47 | AU14: 8 | AV14: 13 | AW14: 19 | AX14: 40 | AY14: 9 | AZ14: 12 | BA14: 14 | BB14: 35 | BC14: 6 | BD14: 17 | BE14: 14 | BF14: 37 | BG14: 6 | BH14: 10 | BI14: 9 | BJ14: 25 | BK14: 10 | BL14: 19 | BM14: 10 | BN14: 39 | BO14: 163 | BP14: 416 | BQ14: 4 | BR14: 4 | BS14: 5 | BT14: 13 | BU14: 3 | BV14: 4 | BW14: 5 | BX14: 12 | BY14: دورثان | BZ14: فى : اعمال وساطة - | CA14: 1 | CB14: 10 | CC14: 10/3 | CJ14: اعمال وساطة - | CU14: 0 | CV14: 1
A15: 6 | B15: 356 | C15: اسماء صبرى احمد الامين | D15: 7/2 | I15: بنات | J15: انتظام | K15: صباحى | M15: 1256 | N15: 6 | O15: 20 | P15: 18 | Q15: 44 | R15: 6 | S15: 8 | T15: 19 | U15: 33 | V15: 5 | W15: 5 | X15: 7 | Y15: 17 | Z15: 3 | AA15: 3 | AB15: 11 | AC15: 5 | AD15: 5 | AE15: 5 | AF15: 19 | AG15: 13 | AH15: 32 | AI15: 8 | AJ15: 19 | AK15: 9 | AL15: 36 | AM15: 8 | AN15: 11 | AO15: 8 | AP15: 27 | AQ15: 7 | AR15: 19 | AS15: 15 | AT15: 41 | AU15: 7 | AV15: 15 | AW15: 9 | AX15: 31 | AY15: 9 | AZ15: 8 | BA15: 17 | BB15: 34 | BC15: 7 | BD15: 9 | BE15: 17 | BF15: 33 | BG15: 7 | BH15: 11 | BI15: 8 | BJ15: 26 | BK15: 9 | BL15: 8 | BM15: 10 | BN15: 27 | BO15: 149 | BP15: 381 | BQ15: 3 | BR15: 8 | BS15: 4 | BT15: 15 | BU15: 3 | BV15: 7 | BW15: 4 | BX15: 14 | BY15: ناجحة | BZ15: و منقولة للصف الثانى | CA15: 0 | CB15: 10 | CC15: 10/3 | CU15: 0 | CV15: 0
A16: 7 | B16: 357 | C16: اسماء محسوب سيد محمد | D16: 6/2 | I16: بنات | J16: انتظام | K16: صباحى | M16: 1257 | N16: 5 | O16: 12 | P16: 12 | Q16: 29 | R16: 5 | S16: 20 | T16: 8 | U16: 33 | V16: 4 | W16: 10 | X16: 10 | Y16: 24 | Z16: 5 | AA16: 3 | AB16: 7 | AC16: 7 | AD16: 7 | AE16: 4 | AF16: 19 | AG16: 14 | AH16: 33 | AI16: 6 | AJ16: 15 | AK16: 15 | AL16: 36 | AM16: 5 | AN16: 15 | AO16: 16 | AP16: 36 | AQ16: 7 | AR16: 20 | AS16: 15 | AT16: 42 | AU16: 6 | AV16: 9 | AW16: 18 | AX16: 33 | AY16: 9 | AZ16: 17 | BA16: 11 | BB16: 37 | BC16: 8 | BD16: 8 | BE16: 13 | BF16: 29 | BG16: 10 | BH16: 19 | BI16: 12 | BJ16: 41 | BK16: 10 | BL16: 16 | BM16: 14 | BN16: 40 | BO16: 175 | BP16: 413 | BQ16: 4 | BR16: 8 | BS16: 4 | BT16: 16 | BU16: 4 | BV16: 4 | BW16: 6 | BX16: 14 | BY16: ناجحة | BZ16: و منقولة للصف الثانى | CA16: 0 | CB16: 10 | CC16: 10/3 | CU16: 0 | CV16: 0
A17: 8 | B17: 358 | C17: الشيماء محمود عباس محمد | D17: 8/2 | I17: بنات | J17: انتظام | K17: صباحى | M17: 1258 | N17: 9 | O17: 14 | P17: 14 | Q17: 37 | R17: 6 | S17: 8 | T17: 13 | U17: 27 | V17: 6 | W17: 8 | X17: 11 | Y17: 25 | Z17: 4 | AA17: 3 | AB17: 8 | AC17: 5 | AD17: 6 | AE17: 4 | AF17: 18 | AG17: 12 | AH17: 30 | AI17: 6 | AJ17: 8 | AK17: 8 | AL17: 22 | AM17: 8 | AN17: 14 | AO17: 13 | AP17: 35 | AQ17: 9 | AR17: 10 | AS17: 19 | AT17: 38 | AU17: 9 | AV17: 19 | AW17: 18 | AX17: 46 | AY17: 10 | AZ17: 15 | BA17: 14 | BB17: 39 | BC17: 5 | BD17: 13 | BE17: 11 | BF17: 29 | BG17: 7 | BH17: 11 | BI17: 17 | BJ17: 35 | BK17: 8 | BL17: 13 | BM17: 18 | BN17: 39 | BO17: 146 | BP17: 402 | BQ17: 3 | BR17: 6 | BS17: 7 | BT17: 16 | BU17: 4 | BV17: 6 | BW17: 4 | BX17: 14 | BY17: دورثان | BZ17: فى : اعمال وساطة - | CA17: 1 | CB17: 10 | CC17: 10/3 | CJ17: اعمال وساطة - | CU17: 0 | CV17: 1
A18: 9 | B18: 359 | C18: امال محمود سيد ابو المجد | D18: 7/2 | I18: بنات | J18: انتظام | K18: صباحى | M18: 1259 | N18: 7 | O18: 20 | P18: 20 | Q18: 47 | R18: 6 | S18: 12 | T18: 18 | U18: 36 | V18: 3 | W18: 5 | X18: 8 | Y18: 16 | Z18: 5 | AA18: 4 | AB18: 10 | AC18: 4 | AD18: 6 | AE18: 5 | AF18: 21 | AG18: 13 | AH18: 34 | AI18: 5 | AJ18: 12 | AK18: 11 | AL18: 28 | AM18: 8 | AN18: 17 | AO18: 12 | AP18: 37 | AQ18: 6 | AR18: 9 | AS18: 10 | AT18: 25 | AU18: 8 | AV18: 18 | AW18: 14 | AX18: 40 | AY18: 6 | AZ18: 10 | BA18: 17 | BB18: 33 | BC18: 6 | BD18: 10 | BE18: 12 | BF18: 28 | BG18: 10 | BH18: 20 | BI18: 9 | BJ18: 39 | BK18: 9 | BL18: 20 | BM18: 12 | BN18: 41 | BO18: 167 | BP18: 404 | BQ18: 4 | BR18: 5 | BS18: 4 | BT18: 13 | BU18: 4 | BV18: 8 | BW18: 6 | BX18: 18 | BY18: ناجحة | BZ18: و منقولة للصف الثانى | CA18: 0 | CB18: 10 | CC18: 10/3 | CU18: 0 | CV18: 0
A19: 10 | B19: 360 | C19: امانى يحيى محمد احمد | D19: 7/2 | I19: بنات | J19: انتظام | K19: صباحى | M19: 1260 | N19: 7 | O19: 17 | P19: 9 | Q19: 33 | R19: 6 | S19: 13 | T19: 17 | U19: 36 | V19: 5 | W19: 6 | X19: 5 | Y19: 16 | Z19: 5 | AA19: 4 | AB19: 11 | AC19: 7 | AD19: 11 | AE19: 5 | AF19: 27 | AG19: 16 | AH19: 43 | AI19: 8 | AJ19: 14 | AK19: 17 | AL19: 39 | AM19: 7 | AN19: 10 | AO19: 14 | AP19: 31 | AQ19: 5 | AR19: 12 | AS19: 10 | AT19: 27 | AU19: 6 | AV19: 8 | AW19: 10 | AX19: 24 | AY19: 8 | AZ19: 15 | BA19: 16 | BB19: 39 | BC19: 7 | BD19: 11 | BE19: 8 | BF19: 26 | BG19: 10 | BH19: 8 | BI19: 12 | BJ19: 30 | BK19: 9 | BL19: 17 | BM19: 9 | BN19: 35 | BO19: 149 | BP19: 379 | BQ19: 4 | BR19: 4 | BS19: 7 | BT19: 15 | BU19: 3 | BV19: 4 | BW19: 5 | BX19: 12 | BY19: دورثان | BZ19: فى : سكرتارية اجنبية - | CA19: 1 | CB19: 10 | CC19: 10/3 | CM19: سكرتارية اجنبية - | CU19: 0 | CV19: 1
A20: 11 | B20: 361 | C20: امل عبد الحميد شحاتة احمد | D20: 8/2 | I20: بنات | J20: انتظام | K20: صباحى | M20: 1261 | N20: 6 | O20: 18 | P20: 20 | Q20: 44 | R20: 8 | S20: 20 | T20: 8 | U20: 36 | V20: 4 | W20: 6 | X20: 7 | Y20: 17 | Z20: 4 | AA20: 4 | AB20: 10 | AC20: 6 | AD20: 5 | AE20: 7 | AF20: 19 | AG20: 17 | AH20: 36 | AI20: 7 | AJ20: 14 | AK20: 9 | AL20: 30 | AM20: 5 | AN20: 18 | AO20: 9 | AP20: 32 | AQ20: 9 | AR20: 18 | AS20: 14 | AT20: 41 | AU20: 9 | AV20: 10 | AW20: 9 | AX20: 28 | AY20: 9 | AZ20: 18 | BA20: 14 | BB20: 41 | BC20: 6 | BD20: 9 | BE20: 13 | BF20: 28 | BG20: 9 | BH20: 11 | BI20: 14 | BJ20: 34 | BK20: 6 | BL20: 15 | BM20: 17 | BN20: 38 | BO20: 173 | BP20: 405 | BQ20: 4 | BR20: 7 | BS20: 5 | BT20: 16 | BU20: 3 | BV20: 8 | BW20: 6 | BX20: 17 | BY20: ناجحة | BZ20: و منقولة للصف الثانى | CA20: 0 | CB20: 10 | CC20: 10/3 | CU20: 0 | CV20: 0
A21: 12 | B21: 362 | C21: امنيه يوسف احمد ابراهيم | D21: 8/2 | I21: بنات | J21: انتظام | K21: صباحى | M21: 1262 | N21: 9 | O21: 14 | P21: 8 | Q21: 31 | R21: 5 | S21: 12 | T21: 13 | U21: 30 | V21: 4 | W21: 7 | X21: 9 | Y21: 20 | Z21: 5 | AA21: 3 | AB21: 9 | AC21: 7 | AD21: 10 | AE21: 8 | AF21: 24 | AG21: 18 | AH21: 42 | AI21: 5 | AJ21: 12 | AK21: 11 | AL21: 28 | AM21: 5 | AN21: 14 | AO21: 10 | AP21: 29 | AQ21: 7 | AR21: 10 | AS21: 8 | AT21: 25 | AU21: 10 | AV21: 9 | AW21: 17 | AX21: 36 | AY21: 6 | AZ21: 14 | BA21: 16 | BB21: 36 | BC21: 8 | BD21: 14 | BE21: 18 | BF21: 40 | BG21: 10 | BH21: 19 | BI21: 11 | BJ21: 40 | BK21: 5 | BL21: 20 | BM21: 20 | BN21: 45 | BO21: 161 | BP21: 402 | BQ21: 3 | BR21: 6 | BS21: 5 | BT21: 14 | BU21: 3 | BV21: 6 | BW21: 4 | BX21: 13 | BY21: ناجحة | BZ21: و منقولة للصف الثانى | CA21: 0 | CB21: 10 | CC21: 10/3 | CU21: 0 | CV21: 0
A22: 13 | B22: 363 | C22: اميرة جمال يوسف محمد | D22: 7/2 | I22: بنات | J22: انتظام | K22: صباحى | M22: 1263 | N22: 8 | O22: 16 | P22: 16 | Q22: 40 | R22: 8 | S22: 9 | T22: 20 | U22: 37 | V22: 3 | W22: 11 | X22: 5 | Y22: 19 | Z22: 3 | AA22: 4 | AB22: 11 | AC22: 7 | AD22: 8 | AE22: 6 | AF22: 22 | AG22: 17 | AH22: 39 | AI22: 8 | AJ22: 15 | AK22: 13 | AL22: 36 | AM22: 6 | AN22: 12 | AO22: 17 | AP22: 35 | AQ22: 8 | AR22: 9 | AS22: 8 | AT22: 25 | AU22: 6 | AV22: 8 | AW22: 10 | AX22: 24 | AY22: 7 | AZ22: 17 | BA22: 19 | BB22: 43 | BC22: 7 | BD22: 11 | BE22: 15 | BF22: 33 | BG22: 9 | BH22: 19 | BI22: 15 | BJ22: 43 | BK22: 7 | BL22: 15 | BM22: 16 | BN22: 38 | BO22: 160 | BP22: 412 | BQ22: 3 | BR22: 8 | BS22: 5 | BT22: 16 | BU22: 3 | BV22: 5 | BW22: 5 | BX22: 13 | BY22: دورثان | BZ22: فى : سكرتارية اجنبية - | CA22: 1 | CB22: 10 | CC22: 10/3 | CM22: سكرتارية اجنبية - | CU22: 0 | CV22: 1
A23: 14 | B23: 364 | C23: اميرة حسين مصطفى محمد | D23: 8/2 | I23: بنات | J23: انتظام | K23: صباحى | M23: 1264 | N23: 9 | O23: 15 | P23: 8 | Q23: 32 | R23: 7 | S23: 9 | T23: 9 | U23: 25 | V23: 6 | W23: 5 | X23: 8 | Y23: 19 | Z23: 4 | AA23: 4 | AB23: 5 | AC23: 8 | AD23: 10 | AE23: 4 | AF23: 19 | AG23: 16 | AH23: 35 | AI23: 10 | AJ23: 12 | AK23: 19 | AL23: 41 | AM23: 9 | AN23: 13 | AO23: 8 | AP23: 30 | AQ23: 6 | AR23: 10 | AS23: 10 | AT23: 26 | AU23: 8 | AV23: 9 | AW23: 12 | AX23: 29 | AY23: 8 | AZ23: 14 | BA23: 16 | BB23: 38 | BC23: 7 | BD23: 12 | BE23: 9 | BF23: 28 | BG23: 9 | BH23: 14 | BI23: 14 | BJ23: 37 | BK23: 7 | BL23: 9 | BM23: 20 | BN23: 36 | BO23: 135 | BP23: 376 | BQ23: 3 | BR23: 5 | BS23: 5 | BT23: 13 | BU23: 3 | BV23: 4 | BW23: 7 | BX23: 14 | BY23: ناجحة | BZ23: و منقولة للصف الثانى | CA23: 0 | CB23: 10 | CC23: 10/3 | CU23: 0 | CV23: 0
A24: 15 | B24: 365 | C24: اميرة رمضان جابر موسى | D24: 7/2 | I24: بنات | J24: انتظام | K24: صباحى | M24: 1265 | N24: 6 | O24: 19 | P24: 19 | Q24: 44 | R24: 6 | S24: 19 | T24: 19 | U24: 44 | V24: 4 | W24: 10 | X24: 11 | Y24: 25 | Z24: 4 | AA24: 4 | AB24: 8 | AC24: 7 | AD24: 6 | AE24: 4 | AF24: 18 | AG24: 15 | AH24: 33 | AI24: 10 | AJ24: 12 | AK24: 11 | AL24: 33 | AM24: 7 | AN24: 9 | AO24: 11 | AP24: 27 | AQ24: 5 | AR24: 20 | AS24: 10 | AT24: 35 | AU24: 7 | AV24: 19 | AW24: 14 | AX24: 40 | AY24: 9 | AZ24: 13 | BA24: 9 | BB24: 31 | BC24: 6 | BD24: 20 | BE24: 11 | BF24: 37 | BG24: 5 | BH24: 9 | BI24: 13 | BJ24: 27 | BK24: 6 | BL24: 12 | BM24: 18 | BN24: 36 | BO24: 177 | BP24: 412 | BQ24: 3 | BR24: 6 | BS24: 7 | BT24: 16 | BU24: 3 | BV24: 5 | BW24: 6 | BX24: 14 | BY24: ناجحة | BZ24: و منقولة للصف الثانى | CA24: 0 | CB24: 10 | CC24: 10/3 | CU24: 0 | CV24: 0
A25: 16 | B25: 366 | C25: اميرة عامر مدبولى الضوى | D25: 6/2 | I25: بنات | J25: انتظام | K25: صباحى | M25: 1266 | N25: 6 | O25: 19 | P25: 20 | Q25: 45 | R25: 7 | S25: 11 | T25: 18 | U25: 36 | V25: 4 | W25: 11 | X25: 10 | Y25: 25 | Z25: 6 | AA25: 4 | AB25: 8 | AC25: 8 | AD25: 6 | AE25: 5 | AF25: 20 | AG25: 17 | AH25: 37 | AI25: 10 | AJ25: 17 | AK25: 20 | AL25: 47 | AM25: 5 | AN25: 14 | AO25: 20 | AP25: 39 | AQ25: 10 | AR25: 10 | AS25: 18 | AT25: 38 | AU25: 8 | AV25: 20 | AW25: 16 | AX25: 44 | AY25: 8 | AZ25: 16 | BA25: 17 | BB25: 41 | BC25: 10 | BD25: 9 | BE25: 8 | BF25: 27 | BG25: 5 | BH25: 13 | BI25: 19 | BJ25: 37 | BK25: 5 | BL25: 11 | BM25: 13 | BN25: 29 | BO25: 167 | BP25: 445 | BQ25: 3 | BR25: 4 | BS25: 5 | BT25: 12 | BU25: 3 | BV25: 7 | BW25: 6 | BX25: 16 | BY25: ناجحة | BZ25: و منقولة للصف الثانى | CA25: 0 | CB25: 10 | CC25: 10/3 | CU25: 0 | CV25: 0
A26: 17 | B26: 367 | C26: اميرة عدلى سعدى إبراهيم | D26: 8/2 | I26: بنات | J26: انتظام | K26: صباحى | M26: 1267 | N26: 10 | O26: 11 | P26: 16 | Q26: 37 | R26: 9 | S26: 20 | T26: 16 | U26: 45 | V26: 4 | W26: 5 | X26: 10 | Y26: 19 | Z26: 3 | AA26: 3 | AB26: 10 | AC26: 4 | AD26: 7 | AE26: 6 | AF26: 20 | AG26: 13 | AH26: 33 | AI26: 9 | AJ26: 19 | AK26: 19 | AL26: 47 | AM26: 7 | AN26: 16 | AO26: 8 | AP26: 31 | AQ26: 6 | AR26: 15 | AS26: 14 | AT26: 35 | AU26: 8 | AV26: 14 | AW26: 20 | AX26: 42 | AY26: 8 | AZ26: 17 | BA26: 20 | BB26: 45 | BC26: 10 | BD26: 15 | BE26: 15 | BF26: 40 | BG26: 7 | BH26: 15 | BI26: 9 | BJ26: 31 | BK26: 5 | BL26: 19 | BM26: 8 | BN26: 32 | BO26: 180 | BP26: 437 | BQ26: 4 | BR26: 4 | BS26: 7 | BT26: 15 | BU26: 3 | BV26: 4 | BW26: 5 | BX26: 12 | BY26: ناجحة | BZ26: و منقولة للصف الثانى | CA26: 0 | CB26: 10 | CC26: 10/3 | CU26: 0 | CV26: 0
A27: 18 | B27: 368 | C27: اميرة قرنى سيد جودة | D27: 8/2 | I27: بنات | J27: انتظام | K27: صباحى | M27: 1268 | N27: 5 | O27: 11 | P27: 11 | Q27: 27 | R27: 9 | S27: 8 | T27: 14 | U27: 31 | V27: 4 | W27: 12 | X27: 10 | Y27: 26 | Z27: 5 | AA27: 3 | AB27: 6 | AC27: 6 | AD27: 7 | AE27: 5 | AF27: 18 | AG27: 14 | AH27: 32 | AI27: 8 | AJ27: 14 | AK27: 15 | AL27: 37 | AM27: 6 | AN27: 14 | AO27: 15 | AP27: 35 | AQ27: 9 | AR27: 19 | AS27: 16 | AT27: 44 | AU27: 7 | AV27: 20 | AW27: 19 | AX27: 46 | AY27: 9 | AZ27: 14 | BA27: 18 | BB27: 41 | BC27: 9 | BD27: 13 | BE27: 13 | BF27: 35 | BG27: 9 | BH27: 19 | BI27: 13 | BJ27: 41 | BK27: 6 | BL27: 8 | BM27: 17 | BN27: 31 | BO27: 164 | BP27: 426 | BQ27: 4 | BR27: 4 | BS27: 5 | BT27: 13 | BU27: 3 | BV27: 5 | BW27: 8 | BX27: 16 | BY27: ناجحة | BZ27: و منقولة للصف الثانى | CA27: 0 | CB27: 10 | CC27: 10/3 | CU27: 0 | CV27: 0
A28: 19 | B28: 369 | C28: اميرة محمود محمد على | D28: 7/2 | I28: بنات | J28: انتظام | K28: صباحى | M28: 1269 | N28: 10 | O28: 20 | P28: 17 | Q28: 47 | R28: 8 | S28: 19 | T28: 20 | U28: 47 | V28: 5 | W28: 7 | X28: 11 | Y28: 23 | Z28: 6 | AA28: 4 | AB28: 10 | AC28: 6 | AD28: 9 | AE28: 6 | AF28: 25 | AG28: 16 | AH28: 41 | AI28: 6 | AJ28: 20 | AK28: 16 | AL28: 42 | AM28: 9 | AN28: 13 | AO28: 12 | AP28: 34 | AQ28: 7 | AR28: 9 | AS28: 19 | AT28: 35 | AU28: 9 | AV28: 12 | AW28: 14 | AX28: 35 | AY28: 7 | AZ28: 8 | BA28: 12 | BB28: 27 | BC28: 5 | BD28: 20 | BE28: 20 | BF28: 45 | BG28: 8 | BH28: 12 | BI28: 12 | BJ28: 32 | BK28: 8 | BL28: 13 | BM28: 12 | BN28: 33 | BO28: 169 | BP28: 441 | BQ28: 4 | BR28: 6 | BS28: 7 | BT28: 17 | BU28: 3 | BV28: 7 | BW28: 4 | BX28: 14 | BY28: ناجحة | BZ28: و منقولة للصف الثانى | CA28: 0 | CB28: 10 | CC28: 10/3 | CU28: 0 | CV28: 0
A29: 20 | B29: 370 | C29: اميره عبدالسيد احمد الرشيدى | D29: 7/2 | I29: بنات | J29: انتظام | K29: صباحى | M29: 1270 | N29: 5 | O29: 9 | P29: 11 | Q29: 25 | R29: 10 | S29: 8 | T29: 15 | U29: 33 | V29: 6 | W29: 10 | X29: 11 | Y29: 27 | Z29: 6 | AA29: 4 | AB29: 5 | AC29: 5 | AD29: 8 | AE29: 7 | AF29: 19 | AG29: 16 | AH29: 35 | AI29: 5 | AJ29: 16 | AK29: 16 | AL29: 37 | AM29: 9 | AN29: 14 | AO29: 19 | AP29: 42 | AQ29: 7 | AR29: 13 | AS29: 12 | AT29: 32 | AU29: 8 | AV29: 18 | AW29: 19 | AX29: 45 | AY29: 7 | AZ29: 8 | BA29: 20 | BB29: 35 | BC29: 5 | BD29: 20 | BE29: 16 | BF29: 41 | BG29: 9 | BH29: 9 | BI29: 19 | BJ29: 37 | BK29: 7 | BL29: 15 | BM29: 18 | BN29: 40 | BO29: 150 | BP29: 429 | BQ29: 4 | BR29: 5 | BS29: 6 | BT29: 15 | BU29: 3 | BV29: 8 | BW29: 5 | BX29: 16 | BY29: ناجحة | BZ29: و منقولة للصف الثانى | CA29: 0 | CB29: 10 | CC29: 10/3 | CU29: 0 | CV29: 0
A30: 21 | B30: 371 | C30: اميمة فؤاد السيد البدرى | D30: 6/2 | I30: بنات | J30: انتظام | K30: صباحى | M30: 1271 | N30: 5 | O30: 17 | P30: 11 | Q30: 33 | R30: 8 | S30: 8 | T30: 12 | U30: 28 | V30: 4 | W30: 7 | X30: 12 | Y30: 23 | Z30: 4 | AA30: 4 | AB30: 5 | AC30: 7 | AD30: 8 | AE30: 7 | AF30: 17 | AG30: 18 | AH30: 35 | AI30: 6 | AJ30: 15 | AK30: 9 | AL30: 30 | AM30: 10 | AN30: 20 | AO30: 8 | AP30: 38 | AQ30: 9 | AR30: 12 | AS30: 8 | AT30: 29 | AU30: 8 | AV30: 10 | AW30: 14 | AX30: 32 | AY30: 8 | AZ30: 13 | BA30: 12 | BB30: 33 | BC30: 10 | BD30: 16 | BE30: 11 | BF30: 37 | BG30: 10 | BH30: 20 | BI30: 18 | BJ30: 48 | BK30: 7 | BL30: 12 | BM30: 13 | BN30: 32 | BO30: 162 | BP30: 398 | BQ30: 4 | BR30: 5 | BS30: 6 | BT30: 15 | BU30: 4 | BV30: 6 | BW30: 5 | BX30: 15 | BY30: ناجحة | BZ30: و منقولة للصف الثانى | CA30: 0 | CB30: 10 | CC30: 10/3 | CU30: 0 | CV30: 0
A31: 22 | B31: 372 | C31: انعام مجدى رضوان خليل | D31: 8/2 | I31: بنات | J31: انتظام | K31: صباحى | M31: 1272 | N31: 8 | O31: 16 | P31: 10 | Q31: 34 | R31: 10 | S31: 9 | T31: 14 | U31: 33 | V31: 4 | W31: 6 | X31: 10 | Y31: 20 | Z31: 4 | AA31: 3 | AB31: 8 | AC31: 8 | AD31: 11 | AE31: 8 | AF31: 23 | AG31: 19 | AH31: 42 | AI31: 5 | AJ31: 19 | AK31: 19 | AL31: 43 | AM31: 9 | AN31: 8 | AO31: 10 | AP31: 27 | AQ31: 8 | AR31: 10 | AS31: 13 | AT31: 31 | AU31: 6 | AV31: 19 | AW31: 20 | AX31: 45 | AY31: 10 | AZ31: 18 | BA31: 14 | BB31: 42 | BC31: 7 | BD31: 14 | BE31: 19 | BF31: 40 | BG31: 5 | BH31: 10 | BI31: 17 | BJ31: 32 | BK31: 10 | BL31: 13 | BM31: 17 | BN31: 40 | BO31: 158 | BP31: 429 | BQ31: 3 | BR31: 8 | BS31: 4 | BT31: 15 | BU31: 3 | BV31: 5 | BW31: 6 | BX31: 14 | BY31: ناجحة | BZ31: و منقولة للصف الثانى | CA31: 0 | CB31: 11 | CC31: 1/2 | CU31: 0 | CV31: 0
A32: 23 | B32: 373 | C32: ايمان احمد سيد نور الدين | D32: 7/2 | I32: بنات | J32: انتظام | K32: صباحى | M32: 1273 | N32: 6 | O32: 17 | P32: 14 | Q32: 37 | R32: 6 | S32: 16 | T32: 13 | U32: 35 | V32: 3 | W32: 12 | X32: 10 | Y32: 25 | Z32: 3 | AA32: 4 | AB32: 7 | AC32: 4 | AD32: 8 | AE32: 5 | AF32: 18 | AG32: 13 | AH32: 31 | AI32: 10 | AJ32: 10 | AK32: 15 | AL32: 35 | AM32: 7 | AN32: 16 | AO32: 13 | AP32: 36 | AQ32: 7 | AR32: 20 | AS32: 13 | AT32: 40 | AU32: 10 | AV32: 12 | AW32: 13 | AX32: 35 | AY32: 10 | AZ32: 14 | BA32: 11 | BB32: 35 | BC32: 5 | BD32: 16 | BE32: 18 | BF32: 39 | BG32: 10 | BH32: 15 | BI32: 8 | BJ32: 33 | BK32: 10 | BL32: 18 | BM32: 10 | BN32: 38 | BO32: 177 | BP32: 419 | BQ32: 3 | BR32: 7 | BS32: 6 | BT32: 16 | BU32: 3 | BV32: 8 | BW32: 4 | BX32: 15 | BY32: ناجحة | BZ32: و منقولة للصف الثانى | CA32: 0 | CB32: 11 | CC32: 1/2 | CU32: 0 | CV32: 0
A33: 24 | B33: 374 | C33: ايمان احمد شحاتة احمد | D33: 7/2 | I33: بنات | J33: انتظام | K33: صباحى | M33: 1274 | N33: 7 | O33: 18 | P33: 9 | Q33: 34 | R33: 7 | S33: 12 | T33: 15 | U33: 34 | V33: 3 | W33: 7 | X33: 10 | Y33: 20 | Z33: 5 | AA33: 3 | AB33: 8 | AC33: 4 | AD33: 9 | AE33: 5 | AF33: 22 | AG33: 12 | AH33: 34 | AI33: 7 | AJ33: 9 | AK33: 12 | AL33: 28 | AM33: 9 | AN33: 16 | AO33: 16 | AP33: 41 | AQ33: 6 | AR33: 14 | AS33: 14 | AT33: 34 | AU33: 9 | AV33: 16 | AW33: 8 | AX33: 33 | AY33: 6 | AZ33: 13 | BA33: 15 | BB33: 34 | BC33: 6 | BD33: 20 | BE33: 10 | BF33: 36 | BG33: 7 | BH33: 11 | BI33: 20 | BJ33: 38 | BK33: 6 | BL33: 20 | BM33: 19 | BN33: 45 | BO33: 168 | BP33: 411 | BQ33: 3 | BR33: 6 | BS33: 5 | BT33: 14 | BU33: 3 | BV33: 8 | BW33: 7 | BX33: 18 | BY33: ناجحة | BZ33: و منقولة للصف الثانى | CA33: 0 | CB33: 11 | CC33: 1/2 | CU33: 0 | CV33: 0
A34: 25 | B34: 375 | C34: ايمان احمد صادق محمد | D34: 7/2 | I34: بنات | J34: انتظام | K34: صباحى | M34: 1275 | N34: 7 | O34: 8 | P34: 11 | Q34: 26 | R34: 8 | S34: 12 | T34: 19 | U34: 39 | V34: 6 | W34: 6 | X34: 5 | Y34: 17 | Z34: 4 | AA34: 3 | AB34: 7 | AC34: 8 | AD34: 5 | AE34: 7 | AF34: 16 | AG34: 18 | AH34: 34 | AI34: 5 | AJ34: 18 | AK34: 11 | AL34: 34 | AM34: 7 | AN34: 13 | AO34: 11 | AP34: 31 | AQ34: 6 | AR34: 12 | AS34: 13 | AT34: 31 | AU34: 5 | AV34: 10 | AW34: 19 | AX34: 34 | AY34: 8 | AZ34: 9 | BA34: 19 | BB34: 36 | BC34: 10 | BD34: 13 | BE34: 11 | BF34: 34 | BG34: 8 | BH34: 12 | BI34: 8 | BJ34: 28 | BK34: 8 | BL34: 9 | BM34: 16 | BN34: 33 | BO34: 137 | BP34: 377 | BQ34: 3 | BR34: 4 | BS34: 7 | BT34: 14 | BU34: 3 | BV34: 6 | BW34: 5 | BX34: 14 | BY34: ناجحة | BZ34: و منقولة للصف الثانى | CA34: 0 | CB34: 11 | CC34: 1/2 | CU34: 0 | CV34: 0
A35: 26 | B35: 376 | C35: ايمان حامد محمود محمد | D35: 6/2 | I35: بنات | J35: انتظام | K35: صباحى | M35: 1276 | N35: 6 | O35: 19 | P35: 11 | Q35: 36 | R35: 6 | S35: 14 | T35: 20 | U35: 40 | V35: 6 | W35: 7 | X35: 12 | Y35: 25 | Z35: 6 | AA35: 4 | AB35: 10 | AC35: 8 | AD35: 8 | AE35: 7 | AF35: 24 | AG35: 19 | AH35: 43 | AI35: 8 | AJ35: 11 | AK35: 20 | AL35: 39 | AM35: 7 | AN35: 19 | AO35: 17 | AP35: 43 | AQ35: 5 | AR35: 19 | AS35: 14 | AT35: 38 | AU35: 8 | AV35: 9 | AW35: 8 | AX35: 25 | AY35: 8 | AZ35: 10 | BA35: 8 | BB35: 26 | BC35: 5 | BD35: 16 | BE35: 16 | BF35: 37 | BG35: 7 | BH35: 9 | BI35: 17 | BJ35: 33 | BK35: 10 | BL35: 9 | BM35: 9 | BN35: 28 | BO35: 160 | BP35: 413 | BQ35: 4 | BR35: 6 | BS35: 4 | BT35: 14 | BU35: 3 | BV35: 6 | BW35: 7 | BX35: 16 | BY35: ناجحة | BZ35: و منقولة للصف الثانى | CA35: 0 | CB35: 11 | CC35: 1/2 | CU35: 0 | CV35: 0
A36: 27 | B36: 377 | C36: ايمان غريب توفيق محمد | D36: 6/2 | I36: بنات | J36: انتظام | K36: صباحى | M36: 1277 | N36: 10 | O36: 19 | P36: 16 | Q36: 45 | R36: 5 | S36: 13 | T36: 10 | U36: 28 | V36: 3 | W36: 6 | X36: 9 | Y36: 18 | Z36: 4 | AA36: 4 | AB36: 11 | AC36: 7 | AD36: 6 | AE36: 7 | AF36: 21 | AG36: 18 | AH36: 39 | AI36: 10 | AJ36: 12 | AK36: 12 | AL36: 34 | AM36: 7 | AN36: 19 | AO36: 19 | AP36: 45 | AQ36: 7 | AR36: 13 | AS36: 17 | AT36: 37 | AU36: 9 | AV36: 9 | AW36: 12 | AX36: 30 | AY36: 9 | AZ36: 16 | BA36: 16 | BB36: 41 | BC36: 9 | BD36: 19 | BE36: 16 | BF36: 44 | BG36: 6 | BH36: 15 | BI36: 11 | BJ36: 32 | BK36: 7 | BL36: 17 | BM36: 16 | BN36: 40 | BO36: 176 | BP36: 433 | BQ36: 3 | BR36: 6 | BS36: 6 | BT36: 15 | BU36: 4 | BV36: 6 | BW36: 4 | BX36: 14 | BY36: ناجحة | BZ36: و منقولة للصف الثانى | CA36: 0 | CB36: 11 | CC36: 1/2 | CU36: 0 | CV36: 0
A37: 28 | B37: 378 | C37: ايمان محمد عبدالجواد محمد | D37: 6/2 | I37: بنات | J37: انتظام | K37: صباحى | M37: 1278 | N37: 8 | O37: 18 | P37: 17 | Q37: 43 | R37: 6 | S37: 18 | T37: 14 | U37: 38 | V37: 5 | W37: 5 | X37: 7 | Y37: 17 | Z37: 5 | AA37: 4 | AB37: 7 | AC37: 8 | AD37: 12 | AE37: 5 | AF37: 24 | AG37: 17 | AH37: 41 | AI37: 8 | AJ37: 15 | AK37: 18 | AL37: 41 | AM37: 8 | AN37: 15 | AO37: 17 | AP37: 40 | AQ37: 8 | AR37: 19 | AS37: 9 | AT37: 36 | AU37: 10 | AV37: 10 | AW37: 20 | AX37: 40 | AY37: 8 | AZ37: 10 | BA37: 19 | BB37: 37 | BC37: 5 | BD37: 17 | BE37: 11 | BF37: 33 | BG37: 7 | BH37: 16 | BI37: 8 | BJ37: 31 | BK37: 6 | BL37: 19 | BM37: 8 | BN37: 33 | BO37: 177 | BP37: 430 | BQ37: 3 | BR37: 5 | BS37: 7 | BT37: 15 | BU37: 4 | BV37: 7 | BW37: 5 | BX37: 16 | BY37: ناجحة | BZ37: و منقولة للصف الثانى | CA37: 0 | CB37: 11 | CC37: 1/2 | CU37: 0 | CV37: 0
A38: 29 | B38: 379 | C38: ايمان محمد مصطفى محمد | D38: 8/2 | I38: بنات | J38: انتظام | K38: صباحى | M38: 1279 | N38: 10 | O38: 19 | P38: 18 | Q38: 47 | R38: 6 | S38: 18 | T38: 13 | U38: 37 | V38: 3 | W38: 8 | X38: 7 | Y38: 18 | Z38: 6 | AA38: 3 | AB38: 9 | AC38: 4 | AD38: 8 | AE38: 8 | AF38: 23 | AG38: 15 | AH38: 38 | AI38: 6 | AJ38: 20 | AK38: 15 | AL38: 41 | AM38: 9 | AN38: 9 | AO38: 12 | AP38: 30 | AQ38: 5 | AR38: 11 | AS38: 9 | AT38: 25 | AU38: 6 | AV38: 16 | AW38: 9 | AX38: 31 | AY38: 6 | AZ38: 19 | BA38: 17 | BB38: 42 | BC38: 8 | BD38: 17 | BE38: 18 | BF38: 43 | BG38: 6 | BH38: 13 | BI38: 12 | BJ38: 31 | BK38: 10 | BL38: 19 | BM38: 18 | BN38: 47 | BO38: 182 | BP38: 430 | BQ38: 4 | BR38: 5 | BS38: 5 | BT38: 14 | BU38: 3 | BV38: 4 | BW38: 4 | BX38: 11 | BY38: ناجحة | BZ38: و منقولة للصف الثانى | CA38: 0 | CB38: 11 | CC38: 1/2 | CU38: 0 | CV38: 0
A39: 30 | B39: 380 | C39: ايمان محمود احمد صالح | D39: 7/2 | I39: بنات | J39: انتظام | K39: صباحى | M39: 1280 | N39: 9 | O39: 19 | P39: 20 | Q39: 48 | R39: 5 | S39: 15 | T39: 18 | U39: 38 | V39: 6 | W39: 9 | X39: 11 | Y39: 26 | Z39: 4 | AA39: 4 | AB39: 12 | AC39: 8 | AD39: 7 | AE39: 8 | AF39: 23 | AG39: 20 | AH39: 43 | AI39: 8 | AJ39: 14 | AK39: 18 | AL39: 40 | AM39: 10 | AN39: 19 | AO39: 12 | AP39: 41 | AQ39: 6 | AR39: 19 | AS39: 8 | AT39: 33 | AU39: 10 | AV39: 16 | AW39: 8 | AX39: 34 | AY39: 9 | AZ39: 8 | BA39: 15 | BB39: 32 | BC39: 8 | BD39: 18 | BE39: 14 | BF39: 40 | BG39: 5 | BH39: 14 | BI39: 11 | BJ39: 30 | BK39: 8 | BL39: 19 | BM39: 11 | BN39: 38 | BO39: 190 | BP39: 443 | BQ39: 4 | BR39: 7 | BS39: 8 | BT39: 19 | BU39: 4 | BV39: 8 | BW39: 7 | BX39: 19 | BY39: ناجحة | BZ39: و منقولة للصف الثانى | CA39: 0 | CB39: 11 | CC39: 1/2 | CU39: 0 | CV39: 0
A40: 31 | B40: 381 | C40: ايمان ناصر رجب محمود | D40: 8/2 | I40: بنات | J40: انتظام | K40: صباحى | M40: 1281 | N40: 10 | O40: 11 | P40: 18 | Q40: 39 | R40: 10 | S40: 8 | T40: 20 | U40: 38 | V40: 3 | W40: 6 | X40: 11 | Y40: 20 | Z40: 5 | AA40: 4 | AB40: 12 | AC40: 6 | AD40: 8 | AE40: 6 | AF40: 25 | AG40: 16 | AH40: 41 | AI40: 9 | AJ40: 8 | AK40: 17 | AL40: 34 | AM40: 7 | AN40: 13 | AO40: 11 | AP40: 31 | AQ40: 9 | AR40: 9 | AS40: 10 | AT40: 28 | AU40: 9 | AV40: 13 | AW40: 14 | AX40: 36 | AY40: 6 | AZ40: 12 | BA40: 14 | BB40: 32 | BC40: 5 | BD40: 12 | BE40: 10 | BF40: 27 | BG40: 8 | BH40: 17 | BI40: 9 | BJ40: 34 | BK40: 5 | BL40: 12 | BM40: 12 | BN40: 29 | BO40: 139 | BP40: 389 | BQ40: 3 | BR40: 8 | BS40: 5 | BT40: 16 | BU40: 3 | BV40: 5 | BW40: 5 | BX40: 13 | BY40: ناجحة | BZ40: و منقولة للصف الثانى | CA40: 0 | CB40: 11 | CC40: 1/2 | CU40: 0 | CV40: 0
A41: 32 | B41: 382 | C41: ايه احمد محمد احمدسعيد | D41: 7/2 | I41: بنات | J41: انتظام | K41: صباحى | M41: 1282 | N41: 7 | O41: 10 | P41: 9 | Q41: 26 | R41: 9 | S41: 11 | T41: 8 | U41: 28 | V41: 6 | W41: 7 | X41: 12 | Y41: 25 | Z41: 6 | AA41: 4 | AB41: 7 | AC41: 5 | AD41: 8 | AE41: 8 | AF41: 21 | AG41: 17 | AH41: 38 | AI41: 6 | AJ41: 12 | AK41: 14 | AL41: 32 | AM41: 7 | AN41: 9 | AO41: 10 | AP41: 26 | AQ41: 8 | AR41: 17 | AS41: 12 | AT41: 37 | AU41: 8 | AV41: 9 | AW41: 11 | AX41: 28 | AY41: 6 | AZ41: 19 | BA41: 18 | BB41: 43 | BC41: 9 | BD41: 20 | BE41: 14 | BF41: 43 | BG41: 7 | BH41: 16 | BI41: 15 | BJ41: 38 | BK41: 9 | BL41: 10 | BM41: 16 | BN41: 35 | BO41: 152 | BP41: 399 | BQ41: 4 | BR41: 7 | BS41: 6 | BT41: 17 | BU41: 4 | BV41: 6 | BW41: 6 | BX41: 16 | BY41: ناجحة | BZ41: و منقولة للصف الثانى | CA41: 0 | CB41: 11 | CC41: 1/2 | CU41: 0 | CV41: 0
A42: 33 | B42: 383 | C42: آلاء فوزى عبد العزيز محمد | D42: 7/2 | I42: بنات | J42: انتظام | K42: صباحى | M42: 1283 | N42: 8 | O42: 20 | P42: 8 | Q42: 36 | R42: 10 | S42: 11 | T42: 17 | U42: 38 | V42: 6 | W42: 8 | X42: 9 | Y42: 23 | Z42: 4 | AA42: 3 | AB42: 9 | AC42: 8 | AD42: 7 | AE42: 7 | AF42: 20 | AG42: 18 | AH42: 38 | AI42: 7 | AJ42: 18 | AK42: 17 | AL42: 42 | AM42: 7 | AN42: 9 | AO42: 19 | AP42: 35 | AQ42: 9 | AR42: 19 | AS42: 14 | AT42: 42 | AU42: 8 | AV42: 9 | AW42: 10 | AX42: 27 | AY42: 8 | AZ42: 14 | BA42: 17 | BB42: 39 | BC42: 7 | BD42: 19 | BE42: 13 | BF42: 39 | BG42: 5 | BH42: 16 | BI42: 15 | BJ42: 36 | BK42: 6 | BL42: 9 | BM42: 8 | BN42: 23 | BO42: 169 | BP42: 418 | BQ42: 3 | BR42: 8 | BS42: 5 | BT42: 16 | BU42: 4 | BV42: 8 | BW42: 7 | BX42: 19 | BY42: دورثان | BZ42: فى : تسويق - | CA42: 1 | CB42: 11 | CC42: 1/2 | CQ42: تسويق - | CU42: 0 | CV42: 1
A43: 34 | B43: 384 | C43: آمنة محمود يسن خليل | D43: 8/2 | I43: بنات | J43: انتظام | K43: صباحى | M43: 1284 | N43: 6 | O43: 16 | P43: 19 | Q43: 41 | R43: 8 | S43: 9 | T43: 19 | U43: 36 | V43: 5 | W43: 6 | X43: 5 | Y43: 16 | Z43: 4 | AA43: 3 | AB43: 10 | AC43: 7 | AD43: 6 | AE43: 6 | AF43: 20 | AG43: 16 | AH43: 36 | AI43: 10 | AJ43: 14 | AK43: 9 | AL43: 33 | AM43: 5 | AN43: 18 | AO43: 16 | AP43: 39 | AQ43: 8 | AR43: 19 | AS43: 10 | AT43: 37 | AU43: 10 | AV43: 9 | AW43: 20 | AX43: 39 | AY43: 10 | AZ43: 15 | BA43: 10 | BB43: 35 | BC43: 8 | BD43: 16 | BE43: 20 | BF43: 44 | BG43: 6 | BH43: 20 | BI43: 11 | BJ43: 37 | BK43: 6 | BL43: 19 | BM43: 15 | BN43: 40 | BO43: 178 | BP43: 433 | BQ43: 4 | BR43: 4 | BS43: 7 | BT43: 15 | BU43: 3 | BV43: 4 | BW43: 8 | BX43: 15 | BY43: ناجحة | BZ43: و منقولة للصف الثانى | CA43: 0 | CB43: 11 | CC43: 1/2 | CU43: 0 | CV43: 0
A44: 35 | B44: 385 | C44: آية احمد سلطان محمد | D44: 8/2 | I44: بنات | J44: انتظام | K44: صباحى | M44: 1285 | N44: 6 | O44: 18 | P44: 16 | Q44: 40 | R44: 6 | S44: 13 | T44: 20 | U44: 39 | V44: 5 | W44: 8 | X44: 6 | Y44: 19 | Z44: 6 | AA44: 3 | AB44: 9 | AC44: 6 | AD44: 10 | AE44: 4 | AF44: 25 | AG44: 13 | AH44: 38 | AI44: 5 | AJ44: 9 | AK44: 9 | AL44: 23 | AM44: 6 | AN44: 12 | AO44: 8 | AP44: 26 | AQ44: 6 | AR44: 19 | AS44: 14 | AT44: 39 | AU44: 6 | AV44: 19 | AW44: 20 | AX44: 45 | AY44: 8 | AZ44: 11 | BA44: 18 | BB44: 37 | BC44: 10 | BD44: 16 | BE44: 14 | BF44: 40 | BG44: 7 | BH44: 8 | BI44: 10 | BJ44: 25 | BK44: 8 | BL44: 15 | BM44: 17 | BN44: 40 | BO44: 163 | BP44: 411 | BQ44: 4 | BR44: 7 | BS44: 5 | BT44: 16 | BU44: 3 | BV44: 5 | BW44: 6 | BX44: 14 | BY44: دورثان | BZ44: فى : اعمال وساطة - | CA44: 1 | CB44: 11 | CC44: 1/2 | CJ44: اعمال وساطة - | CU44: 0 | CV44: 1
A45: 36 | B45: 386 | C45: آية جابر نجم الدين عبد الكريم | D45: 8/2 | I45: بنات | J45: انتظام | K45: صباحى | M45: 1286 | N45: 10 | O45: 19 | P45: 18 | Q45: 47 | R45: 9 | S45: 15 | T45: 16 | U45: 40 | V45: 4 | W45: 11 | X45: 7 | Y45: 22 | Z45: 6 | AA45: 4 | AB45: 7 | AC45: 4 | AD45: 10 | AE45: 5 | AF45: 23 | AG45: 13 | AH45: 36 | AI45: 8 | AJ45: 9 | AK45: 15 | AL45: 32 | AM45: 6 | AN45: 17 | AO45: 8 | AP45: 31 | AQ45: 5 | AR45: 16 | AS45: 13 | AT45: 34 | AU45: 6 | AV45: 12 | AW45: 15 | AX45: 33 | AY45: 9 | AZ45: 16 | BA45: 15 | BB45: 40 | BC45: 10 | BD45: 16 | BE45: 13 | BF45: 39 | BG45: 7 | BH45: 19 | BI45: 12 | BJ45: 38 | BK45: 8 | BL45: 18 | BM45: 17 | BN45: 43 | BO45: 179 | BP45: 435 | BQ45: 4 | BR45: 4 | BS45: 5 | BT45: 13 | BU45: 4 | BV45: 7 | BW45: 6 | BX45: 17 | BY45: ناجحة | BZ45: و منقولة للصف الثانى | CA45: 0 | CB45: 11 | CC45: 1/2 | CU45: 0 | CV45: 0
A46: 37 | B46: 387 | C46: آية جمال محمد امين | D46: 6/2 | I46: بنات | J46: انتظام | K46: صباحى | M46: 1287 | N46: 9 | O46: 11 | P46: 14 | Q46: 34 | R46: 6 | S46: 20 | T46: 13 | U46: 39 | V46: 5 | W46: 8 | X46: 10 | Y46: 23 | Z46: 5 | AA46: 4 | AB46: 6 | AC46: 5 | AD46: 11 | AE46: 5 | AF46: 22 | AG46: 14 | AH46: 36 | AI46: 10 | AJ46: 9 | AK46: 19 | AL46: 38 | AM46: 10 | AN46: 13 | AO46: 17 | AP46: 40 | AQ46: 5 | AR46: 17 | AS46: 11 | AT46: 33 | AU46: 8 | AV46: 9 | AW46: 11 | AX46: 28 | AY46: 8 | AZ46: 8 | BA46: 8 | BB46: 24 | BC46: 10 | BD46: 12 | BE46: 20 | BF46: 42 | BG46: 5 | BH46: 12 | BI46: 10 | BJ46: 27 | BK46: 8 | BL46: 18 | BM46: 15 | BN46: 41 | BO46: 148 | BP46: 405 | BQ46: 4 | BR46: 4 | BS46: 5 | BT46: 13 | BU46: 3 | BV46: 4 | BW46: 5 | BX46: 12 | BY46: دورثان | BZ46: فى : رياضة مالية - | CA46: 1 | CB46: 11 | CC46: 1/2 | CN46: رياضة مالية - | CU46: 0 | CV46: 1
A47: 38 | B47: 388 | C47: آية حسانى محمد حسانى | D47: 7/2 | I47: بنات | J47: انتظام | K47: صباحى | M47: 1288 | N47: 8 | O47: 17 | P47: 16 | Q47: 41 | R47: 6 | S47: 10 | T47: 10 | U47: 26 | V47: 3 | W47: 11 | X47: 12 | Y47: 26 | Z47: 4 | AA47: 3 | AB47: 12 | AC47: 6 | AD47: 5 | AE47: 5 | AF47: 21 | AG47: 14 | AH47: 35 | AI47: 7 | AJ47: 19 | AK47: 18 | AL47: 44 | AM47: 10 | AN47: 9 | AO47: 20 | AP47: 39 | AQ47: 10 | AR47: 8 | AS47: 9 | AT47: 27 | AU47: 7 | AV47: 12 | AW47: 14 | AX47: 33 | AY47: 6 | AZ47: 8 | BA47: 19 | BB47: 33 | BC47: 5 | BD47: 15 | BE47: 20 | BF47: 40 | BG47: 7 | BH47: 11 | BI47: 12 | BJ47: 30 | BK47: 6 | BL47: 14 | BM47: 17 | BN47: 37 | BO47: 152 | BP47: 411 | BQ47: 4 | BR47: 7 | BS47: 7 | BT47: 18 | BU47: 3 | BV47: 8 | BW47: 8 | BX47: 19 | BY47: ناجحة | BZ47: و منقولة للصف الثانى | CA47: 0 | CB47: 11 | CC47: 1/2 | CU47: 0 | CV47: 0
A48: 39 | B48: 389 | C48: آية سيد الامير على | D48: 8/2 | I48: بنات | J48: انتظام | K48: صباحى | M48: 1289 | N48: 7 | O48: 18 | P48: 12 | Q48: 37 | R48: 10 | S48: 12 | T48: 9 | U48: 31 | V48: 6 | W48: 12 | X48: 6 | Y48: 24 | Z48: 3 | AA48: 3 | AB48: 12 | AC48: 6 | AD48: 6 | AE48: 8 | AF48: 21 | AG48: 17 | AH48: 38 | AI48: 10 | AJ48: 18 | AK48: 10 | AL48: 38 | AM48: 8 | AN48: 14 | AO48: 18 | AP48: 40 | AQ48: 5 | AR48: 8 | AS48: 8 | AT48: 21 | AU48: 9 | AV48: 15 | AW48: 8 | AX48: 32 | AY48: 7 | AZ48: 11 | BA48: 20 | BB48: 38 | BC48: 7 | BD48: 12 | BE48: 12 | BF48: 31 | BG48: 8 | BH48: 11 | BI48: 17 | BJ48: 36 | BK48: 8 | BL48: 20 | BM48: 13 | BN48: 41 | BO48: 169 | BP48: 407 | BQ48: 4 | BR48: 5 | BS48: 8 | BT48: 17 | BU48: 3 | BV48: 7 | BW48: 5 | BX48: 15 | BY48: دورثان | BZ48: فى : اقتصاد - | CA48: 1 | CB48: 11 | CC48: 1/2 | CL48: اقتصاد - | CU48: 0 | CV48: 1
A49: 40 | B49: 390 | C49: آية محمود محمد محمود | D49: 6/2 | I49: بنات | J49: انتظام | K49: صباحى | M49: 1290 | N49: 10 | O49: 18 | P49: 9 | Q49: 37 | R49: 10 | S49: 8 | T49: 8 | U49: 26 | V49: 5 | W49: 5 | X49: 5 | Y49: 15 | Z49: 3 | AA49: 4 | AB49: 6 | AC49: 4 | AD49: 7 | AE49: 6 | AF49: 16 | AG49: 14 | AH49: 30 | AI49: 8 | AJ49: 8 | AK49: 18 | AL49: 34 | AM49: 6 | AN49: 8 | AO49: 11 | AP49: 25 | AQ49: 8 | AR49: 18 | AS49: 12 | AT49: 38 | AU49: 6 | AV49: 9 | AW49: 8 | AX49: 23 | AY49: 10 | AZ49: 10 | BA49: 13 | BB49: 33 | BC49: 6 | BD49: 15 | BE49: 14 | BF49: 35 | BG49: 10 | BH49: 8 | BI49: 15 | BJ49: 33 | BK49: 6 | BL49: 8 | BM49: 13 | BN49: 27 | BO49: 125 | BP49: 356 | BQ49: 4 | BR49: 7 | BS49: 5 | BT49: 16 | BU49: 3 | BV49: 6 | BW49: 4 | BX49: 13 | BY49: دورثان | BZ49: فى : سكرتارية اجنبية - | CA49: 1 | CB49: 11 | CC49: 1/2 | CM49: سكرتارية اجنبية - | CU49: 0 | CV49: 1
A50: 41 | B50: 391 | C50: بسمة عطيتو عبده عبدالله | D50: 8/2 | I50: بنات | J50: انتظام | K50: صباحى | M50: 1291 | N50: 5 | O50: 14 | P50: 9 | Q50: 28 | R50: 8 | S50: 15 | T50: 14 | U50: 37 | V50: 6 | W50: 8 | X50: 8 | Y50: 22 | Z50: 3 | AA50: 3 | AB50: 5 | AC50: 7 | AD50: 12 | AE50: 4 | AF50: 20 | AG50: 14 | AH50: 34 | AI50: 8 | AJ50: 11 | AK50: 20 | AL50: 39 | AM50: 6 | AN50: 18 | AO50: 12 | AP50: 36 | AQ50: 8 | AR50: 11 | AS50: 16 | AT50: 35 | AU50: 7 | AV50: 20 | AW50: 15 | AX50: 42 | AY50: 5 | AZ50: 17 | BA50: 8 | BB50: 30 | BC50: 10 | BD50: 8 | BE50: 18 | BF50: 36 | BG50: 5 | BH50: 8 | BI50: 9 | BJ50: 22 | BK50: 6 | BL50: 11 | BM50: 9 | BN50: 26 | BO50: 153 | BP50: 387 | BQ50: 4 | BR50: 8 | BS50: 7 | BT50: 19 | BU50: 4 | BV50: 7 | BW50: 5 | BX50: 16 | BY50: دورثان | BZ50: فى : محاسبة مالية - | CA50: 1 | CB50: 11 | CC50: 1/2 | CP50: محاسبة مالية - | CU50: 0 | CV50: 1
A51: 42 | B51: 392 | C51: بسنت عادل فؤاد يعقوب | D51: 7/2 | I51: بنات | J51: انتظام | K51: صباحى | M51: 1292 | N51: 10 | O51: 20 | P51: 12 | Q51: 42 | R51: 5 | S51: 16 | T51: 17 | U51: 38 | V51: 4 | W51: 8 | X51: 8 | Y51: 20 | Z51: 6 | AA51: 3 | AB51: 11 | AC51: 6 | AD51: 8 | AE51: 8 | AF51: 25 | AG51: 17 | AH51: 42 | AI51: 7 | AJ51: 20 | AK51: 18 | AL51: 45 | AM51: 7 | AN51: 16 | AO51: 11 | AP51: 34 | AQ51: 6 | AR51: 19 | AS51: 9 | AT51: 34 | AU51: 6 | AV51: 10 | AW51: 9 | AX51: 25 | AY51: 6 | AZ51: 14 | BA51: 17 | BB51: 37 | BC51: 8 | BD51: 18 | BE51: 9 | BF51: 35 | BG51: 5 | BH51: 20 | BI51: 9 | BJ51: 34 | BK51: 7 | BL51: 16 | BM51: 20 | BN51: 43 | BO51: 194 | BP51: 429 | BQ51: 3 | BR51: 6 | BS51: 5 | BT51: 14 | BU51: 3 | BV51: 8 | BW51: 5 | BX51: 16 | BY51: ناجحة | BZ51: و منقولة للصف الثانى | CA51: 0 | CB51: 11 | CC51: 1/2 | CU51: 0 | CV51: 0
A52: 43 | B52: 393 | C52: بسيطه محمد صبرى احمد | D52: 7/2 | I52: بنات | J52: انتظام | K52: صباحى | M52: 1293 | N52: 10 | O52: 8 | P52: 20 | Q52: 38 | R52: 10 | S52: 17 | T52: 9 | U52: 36 | V52: 6 | W52: 9 | X52: 8 | Y52: 23 | Z52: 5 | AA52: 4 | AB52: 8 | AC52: 5 | AD52: 11 | AE52: 6 | AF52: 24 | AG52: 15 | AH52: 39 | AI52: 5 | AJ52: 19 | AK52: 18 | AL52: 42 | AM52: 8 | AN52: 13 | AO52: 17 | AP52: 38 | AQ52: 8 | AR52: 15 | AS52: 9 | AT52: 32 | AU52: 6 | AV52: 10 | AW52: 20 | AX52: 36 | AY52: 9 | AZ52: 19 | BA52: 15 | BB52: 43 | BC52: 10 | BD52: 9 | BE52: 20 | BF52: 39 | BG52: 8 | BH52: 20 | BI52: 12 | BJ52: 40 | BK52: 6 | BL52: 11 | BM52: 16 | BN52: 33 | BO52: 163 | BP52: 439 | BQ52: 4 | BR52: 6 | BS52: 5 | BT52: 15 | BU52: 4 | BV52: 5 | BW52: 8 | BX52: 17 | BY52: ناجحة | BZ52: و منقولة للصف الثانى | CA52: 0 | CB52: 12 | CC52: 2/2 | CU52: 0 | CV52: 0
A53: 44 | B53: 394 | C53: تهانى محمد على احمد | D53: 7/2 | I53: بنات | J53: انتظام | K53: صباحى | M53: 1294 | N53: 8 | O53: 10 | P53: 16 | Q53: 34 | R53: 5 | S53: 16 | T53: 11 | U53: 32 | V53: 4 | W53: 8 | X53: 5 | Y53: 17 | Z53: 5 | AA53: 3 | AB53: 5 | AC53: 6 | AD53: 11 | AE53: 4 | AF53: 21 | AG53: 13 | AH53: 34 | AI53: 9 | AJ53: 20 | AK53: 9 | AL53: 38 | AM53: 8 | AN53: 13 | AO53: 19 | AP53: 40 | AQ53: 5 | AR53: 13 | AS53: 18 | AT53: 36 | AU53: 6 | AV53: 10 | AW53: 18 | AX53: 34 | AY53: 5 | AZ53: 17 | BA53: 14 | BB53: 36 | BC53: 9 | BD53: 13 | BE53: 11 | BF53: 33 | BG53: 9 | BH53: 13 | BI53: 18 | BJ53: 40 | BK53: 6 | BL53: 20 | BM53: 12 | BN53: 38 | BO53: 164 | BP53: 412 | BQ53: 4 | BR53: 4 | BS53: 8 | BT53: 16 | BU53: 4 | BV53: 5 | BW53: 7 | BX53: 16 | BY53: ناجحة | BZ53: و منقولة للصف الثانى | CA53: 0 | CB53: 12 | CC53: 2/2 | CU53: 0 | CV53: 0
A54: 45 | B54: 395 | C54: جهاد مصطفى يونس محمد | D54: 8/2 | I54: بنات | J54: انتظام | K54: صباحى | M54: 1295 | N54: 10 | O54: 8 | P54: 12 | Q54: 30 | R54: 7 | S54: 15 | T54: 12 | U54: 34 | V54: 5 | W54: 11 | X54: 8 | Y54: 24 | Z54: 6 | AA54: 4 | AB54: 6 | AC54: 8 | AD54: 10 | AE54: 7 | AF54: 22 | AG54: 19 | AH54: 41 | AI54: 5 | AJ54: 8 | AK54: 9 | AL54: 22 | AM54: 8 | AN54: 16 | AO54: 20 | AP54: 44 | AQ54: 8 | AR54: 18 | AS54: 17 | AT54: 43 | AU54: 10 | AV54: 18 | AW54: 13 | AX54: 41 | AY54: 6 | AZ54: 11 | BA54: 8 | BB54: 25 | BC54: 10 | BD54: 11 | BE54: 18 | BF54: 39 | BG54: 5 | BH54: 13 | BI54: 8 | BJ54: 26 | BK54: 10 | BL54: 18 | BM54: 9 | BN54: 37 | BO54: 161 | BP54: 406 | BQ54: 4 | BR54: 4 | BS54: 4 | BT54: 12 | BU54: 3 | BV54: 7 | BW54: 6 | BX54: 16 | BY54: دورثان | BZ54: فى : اعمال وساطة - | CA54: 1 | CB54: 12 | CC54: 2/2 | CJ54: اعمال وساطة - | CU54: 0 | CV54: 1
A55: 46 | B55: 396 | C55: حياه حمدى محمد عبدالمجيد | D55: 8/2 | I55: بنات | J55: انتظام | K55: صباحى | M55: 1296 | N55: 8 | O55: 15 | P55: 16 | Q55: 39 | R55: 8 | S55: 19 | T55: 9 | U55: 36 | V55: 6 | W55: 12 | X55: 8 | Y55: 26 | Z55: 4 | AA55: 3 | AB55: 12 | AC55: 7 | AD55: 9 | AE55: 6 | AF55: 25 | AG55: 16 | AH55: 41 | AI55: 10 | AJ55: 14 | AK55: 18 | AL55: 42 | AM55: 5 | AN55: 13 | AO55: 11 | AP55: 29 | AQ55: 7 | AR55: 18 | AS55: 13 | AT55: 38 | AU55: 7 | AV55: 18 | AW55: 19 | AX55: 44 | AY55: 7 | AZ55: 20 | BA55: 20 | BB55: 47 | BC55: 6 | BD55: 18 | BE55: 18 | BF55: 42 | BG55: 8 | BH55: 18 | BI55: 11 | BJ55: 37 | BK55: 6 | BL55: 17 | BM55: 10 | BN55: 33 | BO55: 201 | BP55: 454 | BQ55: 3 | BR55: 8 | BS55: 5 | BT55: 16 | BU55: 4 | BV55: 4 | BW55: 5 | BX55: 13 | BY55: ناجحة | BZ55: و منقولة للصف الثانى | CA55: 0 | CB55: 12 | CC55: 2/2 | CU55: 0 | CV55: 0
A56: 47 | B56: 397 | C56: خلود خالد حسان طلب | D56: 7/2 | I56: بنات | J56: انتظام | K56: صباحى | M56: 1297 | N56: 5 | O56: 11 | P56: 9 | Q56: 25 | R56: 8 | S56: 14 | T56: 15 | U56: 37 | V56: 6 | W56: 8 | X56: 8 | Y56: 22 | Z56: 3 | AA56: 3 | AB56: 7 | AC56: 6 | AD56: 10 | AE56: 4 | AF56: 20 | AG56: 13 | AH56: 33 | AI56: 8 | AJ56: 18 | AK56: 8 | AL56: 34 | AM56: 6 | AN56: 16 | AO56: 12 | AP56: 34 | AQ56: 9 | AR56: 20 | AS56: 18 | AT56: 47 | AU56: 9 | AV56: 18 | AW56: 14 | AX56: 41 | AY56: 10 | AZ56: 12 | BA56: 10 | BB56: 32 | BC56: 6 | BD56: 17 | BE56: 10 | BF56: 33 | BG56: 10 | BH56: 12 | BI56: 18 | BJ56: 40 | BK56: 10 | BL56: 18 | BM56: 10 | BN56: 38 | BO56: 177 | BP56: 416 | BQ56: 3 | BR56: 7 | BS56: 5 | BT56: 15 | BU56: 3 | BV56: 4 | BW56: 8 | BX56: 15 | BY56: ناجحة | BZ56: و منقولة للصف الثانى | CA56: 0 | CB56: 12 | CC56: 2/2 | CU56: 0 | CV56: 0
A57: 48 | B57: 398 | C57: خلود خالد سيد حسن | D57: 7/2 | I57: بنات | J57: انتظام | K57: صباحى | M57: 1298 | N57: 7 | O57: 9 | P57: 20 | Q57: 36 | R57: 10 | S57: 16 | T57: 19 | U57: 45 | V57: 4 | W57: 7 | X57: 11 | Y57: 22 | Z57: 3 | AA57: 3 | AB57: 9 | AC57: 7 | AD57: 10 | AE57: 8 | AF57: 22 | AG57: 18 | AH57: 40 | AI57: 9 | AJ57: 11 | AK57: 10 | AL57: 30 | AM57: 10 | AN57: 19 | AO57: 19 | AP57: 48 | AQ57: 5 | AR57: 8 | AS57: 12 | AT57: 25 | AU57: 10 | AV57: 9 | AW57: 16 | AX57: 35 | AY57: 6 | AZ57: 18 | BA57: 15 | BB57: 39 | BC57: 10 | BD57: 19 | BE57: 12 | BF57: 41 | BG57: 6 | BH57: 15 | BI57: 18 | BJ57: 39 | BK57: 9 | BL57: 19 | BM57: 11 | BN57: 39 | BO57: 166 | BP57: 439 | BQ57: 4 | BR57: 7 | BS57: 8 | BT57: 19 | BU57: 3 | BV57: 7 | BW57: 7 | BX57: 17 | BY57: ناجحة | BZ57: و منقولة للصف الثانى | CA57: 0 | CB57: 12 | CC57: 2/2 | CU57: 0 | CV57: 0
A58: 49 | B58: 399 | C58: دنيا بغدادى عبد الراضى بغدادى | D58: 7/2 | I58: بنات | J58: انتظام | K58: صباحى | M58: 1299 | N58: 7 | O58: 20 | P58: 12 | Q58: 39 | R58: 6 | S58: 12 | T58: 16 | U58: 34 | V58: 4 | W58: 12 | X58: 5 | Y58: 21 | Z58: 3 | AA58: 3 | AB58: 8 | AC58: 7 | AD58: 6 | AE58: 8 | AF58: 17 | AG58: 18 | AH58: 35 | AI58: 5 | AJ58: 13 | AK58: 19 | AL58: 37 | AM58: 8 | AN58: 17 | AO58: 10 | AP58: 35 | AQ58: 8 | AR58: 11 | AS58: 20 | AT58: 39 | AU58: 6 | AV58: 16 | AW58: 8 | AX58: 30 | AY58: 6 | AZ58: 10 | BA58: 18 | BB58: 34 | BC58: 7 | BD58: 16 | BE58: 11 | BF58: 34 | BG58: 8 | BH58: 18 | BI58: 13 | BJ58: 39 | BK58: 9 | BL58: 8 | BM58: 12 | BN58: 29 | BO58: 168 | BP58: 406 | BQ58: 4 | BR58: 6 | BS58: 8 | BT58: 18 | BU58: 3 | BV58: 8 | BW58: 7 | BX58: 18 | BY58: ناجحة | BZ58: و منقولة للصف الثانى | CA58: 0 | CB58: 12 | CC58: 2/2 | CU58: 0 | CV58: 0
A59: 50 | B59: 400 | C59: دنيا حسن زكى محمد | D59: 8/2 | I59: بنات | J59: انتظام | K59: صباحى | M59: 1300 | N59: 8 | O59: 12 | P59: 10 | Q59: 30 | R59: 10 | S59: 12 | T59: 9 | U59: 31 | V59: 3 | W59: 11 | X59: 5 | Y59: 19 | Z59: 6 | AA59: 4 | AB59: 12 | AC59: 6 | AD59: 8 | AE59: 8 | AF59: 26 | AG59: 18 | AH59: 44 | AI59: 5 | AJ59: 12 | AK59: 15 | AL59: 32 | AM59: 8 | AN59: 19 | AO59: 15 | AP59: 42 | AQ59: 7 | AR59: 13 | AS59: 19 | AT59: 39 | AU59: 8 | AV59: 17 | AW59: 14 | AX59: 39 | AY59: 7 | AZ59: 10 | BA59: 18 | BB59: 35 | BC59: 9 | BD59: 16 | BE59: 16 | BF59: 41 | BG59: 7 | BH59: 12 | BI59: 10 | BJ59: 29 | BK59: 9 | BL59: 9 | BM59: 17 | BN59: 35 | BO59: 161 | BP59: 416 | BQ59: 4 | BR59: 5 | BS59: 6 | BT59: 15 | BU59: 3 | BV59: 4 | BW59: 6 | BX59: 13 | BY59: ناجحة | BZ59: و منقولة للصف الثانى | CA59: 0 | CB59: 12 | CC59: 2/2 | CU59: 0 | CV59: 0
A60: 51 | B60: 401 | C60: دينا حمدنا الله شاذلى محمود | D60: 6/2 | I60: بنات | J60: انتظام | K60: صباحى | M60: 1301 | N60: 9 | O60: 20 | P60: 14 | Q60: 43 | R60: 6 | S60: 13 | T60: 13 | U60: 32 | V60: 4 | W60: 12 | X60: 8 | Y60: 24 | Z60: 4 | AA60: 4 | AB60: 9 | AC60: 8 | AD60: 9 | AE60: 6 | AF60: 22 | AG60: 18 | AH60: 40 | AI60: 8 | AJ60: 18 | AK60: 18 | AL60: 44 | AM60: 5 | AN60: 17 | AO60: 15 | AP60: 37 | AQ60: 7 | AR60: 13 | AS60: 9 | AT60: 29 | AU60: 6 | AV60: 15 | AW60: 17 | AX60: 38 | AY60: 8 | AZ60: 16 | BA60: 10 | BB60: 34 | BC60: 6 | BD60: 17 | BE60: 17 | BF60: 40 | BG60: 9 | BH60: 16 | BI60: 19 | BJ60: 44 | BK60: 10 | BL60: 9 | BM60: 17 | BN60: 36 | BO60: 183 | BP60: 441 | BQ60: 3 | BR60: 7 | BS60: 7 | BT60: 17 | BU60: 4 | BV60: 7 | BW60: 4 | BX60: 15 | BY60: ناجحة | BZ60: و منقولة للصف الثانى | CA60: 0 | CB60: 12 | CC60: 2/2 | CU60: 0 | CV60: 0
A61: 52 | B61: 402 | C61: رانيا على عبد الحفيظ حامد | D61: 7/2 | I61: بنات | J61: انتظام | K61: صباحى | M61: 1302 | N61: 10 | O61: 8 | P61: 16 | Q61: 34 | R61: 6 | S61: 15 | T61: 13 | U61: 34 | V61: 5 | W61: 10 | X61: 7 | Y61: 22 | Z61: 3 | AA61: 4 | AB61: 8 | AC61: 7 | AD61: 12 | AE61: 5 | AF61: 23 | AG61: 16 | AH61: 39 | AI61: 6 | AJ61: 20 | AK61: 14 | AL61: 40 | AM61: 9 | AN61: 12 | AO61: 17 | AP61: 38 | AQ61: 9 | AR61: 20 | AS61: 20 | AT61: 49 | AU61: 8 | AV61: 12 | AW61: 13 | AX61: 33 | AY61: 5 | AZ61: 17 | BA61: 13 | BB61: 35 | BC61: 7 | BD61: 17 | BE61: 16 | BF61: 40 | BG61: 10 | BH61: 10 | BI61: 18 | BJ61: 38 | BK61: 10 | BL61: 19 | BM61: 17 | BN61: 46 | BO61: 175 | BP61: 448 | BQ61: 3 | BR61: 5 | BS61: 6 | BT61: 14 | BU61: 3 | BV61: 5 | BW61: 5 | BX61: 13 | BY61: ناجحة | BZ61: و منقولة للصف الثانى | CA61: 0 | CB61: 12 | CC61: 2/2 | CU61: 0 | CV61: 0
A62: 53 | B62: 403 | C62: رانيا يوسف على احمد | D62: 6/2 | I62: بنات | J62: انتظام | K62: صباحى | M62: 1303 | N62: 5 | O62: 13 | P62: 19 | Q62: 37 | R62: 10 | S62: 9 | T62: 17 | U62: 36 | V62: 3 | W62: 5 | X62: 6 | Y62: 14 | Z62: 5 | AA62: 4 | AB62: 8 | AC62: 5 | AD62: 9 | AE62: 4 | AF62: 22 | AG62: 13 | AH62: 35 | AI62: 8 | AJ62: 14 | AK62: 13 | AL62: 35 | AM62: 6 | AN62: 9 | AO62: 18 | AP62: 33 | AQ62: 10 | AR62: 12 | AS62: 19 | AT62: 41 | AU62: 6 | AV62: 20 | AW62: 18 | AX62: 44 | AY62: 9 | AZ62: 16 | BA62: 14 | BB62: 39 | BC62: 5 | BD62: 10 | BE62: 8 | BF62: 23 | BG62: 10 | BH62: 13 | BI62: 18 | BJ62: 41 | BK62: 8 | BL62: 17 | BM62: 17 | BN62: 42 | BO62: 151 | BP62: 420 | BQ62: 3 | BR62: 4 | BS62: 8 | BT62: 15 | BU62: 3 | BV62: 6 | BW62: 6 | BX62: 15 | BY62: دورثان | BZ62: فى : سوق اوراق مالية - | CA62: 1 | CB62: 12 | CC62: 2/2 | CO62: سوق اوراق مالية - | CU62: 0 | CV62: 1
A63: 54 | B63: 404 | C63: رحاب عامر فراج مصطفى | D63: 8/2 | I63: بنات | J63: انتظام | K63: صباحى | M63: 1304 | N63: 5 | O63: 12 | P63: 15 | Q63: 32 | R63: 10 | S63: 16 | T63: 17 | U63: 43 | V63: 5 | W63: 7 | X63: 12 | Y63: 24 | Z63: 4 | AA63: 4 | AB63: 11 | AC63: 5 | AD63: 12 | AE63: 6 | AF63: 27 | AG63: 15 | AH63: 42 | AI63: 10 | AJ63: 17 | AK63: 9 | AL63: 36 | AM63: 6 | AN63: 8 | AO63: 12 | AP63: 26 | AQ63: 7 | AR63: 9 | AS63: 20 | AT63: 36 | AU63: 10 | AV63: 14 | AW63: 18 | AX63: 42 | AY63: 6 | AZ63: 16 | BA63: 20 | BB63: 42 | BC63: 8 | BD63: 19 | BE63: 15 | BF63: 42 | BG63: 9 | BH63: 10 | BI63: 8 | BJ63: 27 | BK63: 9 | BL63: 19 | BM63: 13 | BN63: 41 | BO63: 163 | BP63: 433 | BQ63: 4 | BR63: 8 | BS63: 5 | BT63: 17 | BU63: 3 | BV63: 6 | BW63: 8 | BX63: 17 | BY63: ناجحة | BZ63: و منقولة للصف الثانى | CA63: 0 | CB63: 12 | CC63: 2/2 | CU63: 0 | CV63: 0
A64: 55 | B64: 405 | C64: رحمة خالد حسين جعفر صالح | D64: 8/2 | I64: بنات | J64: انتظام | K64: صباحى | M64: 1305 | N64: 8 | O64: 14 | P64: 14 | Q64: 36 | R64: 5 | S64: 14 | T64: 19 | U64: 38 | V64: 5 | W64: 6 | X64: 9 | Y64: 20 | Z64: 4 | AA64: 4 | AB64: 7 | AC64: 4 | AD64: 5 | AE64: 7 | AF64: 16 | AG64: 15 | AH64: 31 | AI64: 9 | AJ64: 19 | AK64: 14 | AL64: 42 | AM64: 9 | AN64: 17 | AO64: 18 | AP64: 44 | AQ64: 5 | AR64: 15 | AS64: 10 | AT64: 30 | AU64: 5 | AV64: 19 | AW64: 20 | AX64: 44 | AY64: 10 | AZ64: 9 | BA64: 14 | BB64: 33 | BC64: 9 | BD64: 11 | BE64: 14 | BF64: 34 | BG64: 5 | BH64: 15 | BI64: 9 | BJ64: 29 | BK64: 6 | BL64: 16 | BM64: 9 | BN64: 31 | BO64: 166 | BP64: 412 | BQ64: 4 | BR64: 4 | BS64: 6 | BT64: 14 | BU64: 4 | BV64: 5 | BW64: 5 | BX64: 14 | BY64: ناجحة | BZ64: و منقولة للصف الثانى | CA64: 0 | CB64: 12 | CC64: 2/2 | CU64: 0 | CV64: 0
A65: 56 | B65: 406 | C65: رشا حسين موسى محمد | D65: 7/2 | I65: بنات | J65: انتظام | K65: صباحى | M65: 1306 | N65: 5 | O65: 19 | P65: 9 | Q65: 33 | R65: 6 | S65: 14 | T65: 14 | U65: 34 | V65: 3 | W65: 9 | X65: 12 | Y65: 24 | Z65: 6 | AA65: 3 | AB65: 5 | AC65: 5 | AD65: 9 | AE65: 8 | AF65: 20 | AG65: 16 | AH65: 36 | AI65: 8 | AJ65: 12 | AK65: 20 | AL65: 40 | AM65: 7 | AN65: 9 | AO65: 15 | AP65: 31 | AQ65: 10 | AR65: 20 | AS65: 16 | AT65: 46 | AU65: 10 | AV65: 10 | AW65: 10 | AX65: 30 | AY65: 10 | AZ65: 17 | BA65: 9 | BB65: 36 | BC65: 8 | BD65: 15 | BE65: 20 | BF65: 43 | BG65: 7 | BH65: 18 | BI65: 12 | BJ65: 37 | BK65: 5 | BL65: 19 | BM65: 11 | BN65: 35 | BO65: 172 | BP65: 425 | BQ65: 3 | BR65: 8 | BS65: 6 | BT65: 17 | BU65: 3 | BV65: 5 | BW65: 8 | BX65: 16 | BY65: ناجحة | BZ65: و منقولة للصف الثانى | CA65: 0 | CB65: 12 | CC65: 2/2 | CU65: 0 | CV65: 0
A66: 57 | B66: 407 | C66: روضة رمضان مصطفى حفنى | D66: 6/2 | I66: بنات | J66: انتظام | K66: صباحى | M66: 1307 | N66: 5 | O66: 8 | P66: 8 | Q66: 21 | R66: 9 | S66: 16 | T66: 13 | U66: 38 | V66: 3 | W66: 8 | X66: 9 | Y66: 20 | Z66: 3 | AA66: 4 | AB66: 9 | AC66: 5 | AD66: 6 | AE66: 8 | AF66: 18 | AG66: 17 | AH66: 35 | AI66: 8 | AJ66: 12 | AK66: 18 | AL66: 38 | AM66: 10 | AN66: 20 | AO66: 17 | AP66: 47 | AQ66: 8 | AR66: 13 | AS66: 15 | AT66: 36 | AU66: 10 | AV66: 10 | AW66: 11 | AX66: 31 | AY66: 5 | AZ66: 11 | BA66: 19 | BB66: 35 | BC66: 6 | BD66: 18 | BE66: 14 | BF66: 38 | BG66: 5 | BH66: 20 | BI66: 15 | BJ66: 40 | BK66: 10 | BL66: 16 | BM66: 12 | BN66: 38 | BO66: 166 | BP66: 417 | BQ66: 3 | BR66: 8 | BS66: 8 | BT66: 19 | BU66: 4 | BV66: 4 | BW66: 8 | BX66: 16 | BY66: دورثان | BZ66: فى : لغة عربية - | CA66: 1 | CB66: 12 | CC66: 2/2 | CF66: لغة عربية - | CU66: 0 | CV66: 1
A67: 58 | B67: 408 | C67: ريهام عاطف محمود اسماعيل | D67: 6/2 | I67: بنات | J67: انتظام | K67: صباحى | M67: 1308 | N67: 5 | O67: 10 | P67: 18 | Q67: 33 | R67: 6 | S67: 13 | T67: 9 | U67: 28 | V67: 3 | W67: 7 | X67: 9 | Y67: 19 | Z67: 6 | AA67: 4 | AB67: 12 | AC67: 8 | AD67: 8 | AE67: 4 | AF67: 26 | AG67: 16 | AH67: 42 | AI67: 10 | AJ67: 17 | AK67: 16 | AL67: 43 | AM67: 7 | AN67: 12 | AO67: 14 | AP67: 33 | AQ67: 5 | AR67: 14 | AS67: 18 | AT67: 37 | AU67: 6 | AV67: 8 | AW67: 12 | AX67: 26 | AY67: 8 | AZ67: 13 | BA67: 17 | BB67: 38 | BC67: 7 | BD67: 8 | BE67: 12 | BF67: 27 | BG67: 8 | BH67: 8 | BI67: 17 | BJ67: 33 | BK67: 5 | BL67: 16 | BM67: 15 | BN67: 36 | BO67: 146 | BP67: 395 | BQ67: 3 | BR67: 8 | BS67: 4 | BT67: 15 | BU67: 4 | BV67: 4 | BW67: 5 | BX67: 13 | BY67: ناجحة | BZ67: و منقولة للصف الثانى | CA67: 0 | CB67: 12 | CC67: 2/2 | CU67: 0 | CV67: 0
A68: 59 | B68: 409 | C68: ريهام على قرنى احمد | D68: 7/2 | I68: بنات | J68: انتظام | K68: صباحى | M68: 1309 | N68: 9 | O68: 8 | P68: 8 | Q68: 25 | R68: 7 | S68: 9 | T68: 11 | U68: 27 | V68: 4 | W68: 8 | X68: 5 | Y68: 17 | Z68: 6 | AA68: 4 | AB68: 10 | AC68: 8 | AD68: 7 | AE68: 6 | AF68: 23 | AG68: 18 | AH68: 41 | AI68: 6 | AJ68: 20 | AK68: 18 | AL68: 44 | AM68: 10 | AN68: 20 | AO68: 17 | AP68: 47 | AQ68: 10 | AR68: 11 | AS68: 12 | AT68: 33 | AU68: 7 | AV68: 17 | AW68: 19 | AX68: 43 | AY68: 9 | AZ68: 11 | BA68: 19 | BB68: 39 | BC68: 5 | BD68: 15 | BE68: 12 | BF68: 32 | BG68: 7 | BH68: 10 | BI68: 19 | BJ68: 36 | BK68: 8 | BL68: 13 | BM68: 17 | BN68: 38 | BO68: 160 | BP68: 422 | BQ68: 4 | BR68: 5 | BS68: 5 | BT68: 14 | BU68: 3 | BV68: 6 | BW68: 5 | BX68: 14 | BY68: ناجحة | BZ68: و منقولة للصف الثانى | CA68: 0 | CB68: 12 | CC68: 2/2 | CU68: 0 | CV68: 0
A69: 60 | B69: 410 | C69: زينب صابر مصطفى محمد | D69: 6/2 | I69: بنات | J69: انتظام | K69: صباحى | M69: 1310 | N69: 8 | O69: 19 | P69: 15 | Q69: 42 | R69: 6 | S69: 10 | T69: 15 | U69: 31 | V69: 3 | W69: 5 | X69: 9 | Y69: 17 | Z69: 3 | AA69: 4 | AB69: 8 | AC69: 5 | AD69: 8 | AE69: 8 | AF69: 19 | AG69: 17 | AH69: 36 | AI69: 10 | AJ69: 13 | AK69: 18 | AL69: 41 | AM69: 7 | AN69: 9 | AO69: 14 | AP69: 30 | AQ69: 10 | AR69: 11 | AS69: 17 | AT69: 38 | AU69: 10 | AV69: 12 | AW69: 13 | AX69: 35 | AY69: 7 | AZ69: 17 | BA69: 8 | BB69: 32 | BC69: 5 | BD69: 20 | BE69: 9 | BF69: 34 | BG69: 8 | BH69: 12 | BI69: 9 | BJ69: 29 | BK69: 10 | BL69: 8 | BM69: 8 | BN69: 26 | BO69: 149 | BP69: 391 | BQ69: 3 | BR69: 4 | BS69: 6 | BT69: 13 | BU69: 4 | BV69: 5 | BW69: 6 | BX69: 15 | BY69: ناجحة | BZ69: و منقولة للصف الثانى | CA69: 0 | CB69: 12 | CC69: 2/2 | CU69: 0 | CV69: 0
A70: 61 | B70: 411 | C70: زينب عبدالراضى محمد احمد | D70: 6/2 | I70: بنات | J70: انتظام | K70: صباحى | M70: 1311 | N70: 9 | O70: 13 | P70: 13 | Q70: 35 | R70: 6 | S70: 15 | T70: 17 | U70: 38 | V70: 5 | W70: 8 | X70: 6 | Y70: 19 | Z70: 3 | AA70: 3 | AB70: 7 | AC70: 8 | AD70: 12 | AE70: 4 | AF70: 22 | AG70: 15 | AH70: 37 | AI70: 7 | AJ70: 13 | AK70: 11 | AL70: 31 | AM70: 5 | AN70: 10 | AO70: 9 | AP70: 24 | AQ70: 8 | AR70: 16 | AS70: 13 | AT70: 37 | AU70: 10 | AV70: 8 | AW70: 20 | AX70: 38 | AY70: 7 | AZ70: 11 | BA70: 18 | BB70: 36 | BC70: 5 | BD70: 18 | BE70: 14 | BF70: 37 | BG70: 10 | BH70: 17 | BI70: 13 | BJ70: 40 | BK70: 10 | BL70: 16 | BM70: 15 | BN70: 41 | BO70: 160 | BP70: 413 | BQ70: 4 | BR70: 8 | BS70: 4 | BT70: 16 | BU70: 4 | BV70: 5 | BW70: 5 | BX70: 14 | BY70: دورثان | BZ70: فى : دعاية واعلان - | CA70: 1 | CB70: 12 | CC70: 2/2 | CK70: دعاية واعلان - | CU70: 0 | CV70: 1
A71: 62 | B71: 412 | C71: زينب عطية هاشم نصار | D71: 6/2 | I71: بنات | J71: انتظام | K71: صباحى | M71: 1312 | N71: 7 | O71: 15 | P71: 10 | Q71: 32 | R71: 7 | S71: 15 | T71: 12 | U71: 34 | V71: 4 | W71: 12 | X71: 9 | Y71: 25 | Z71: 4 | AA71: 4 | AB71: 11 | AC71: 6 | AD71: 6 | AE71: 6 | AF71: 21 | AG71: 16 | AH71: 37 | AI71: 5 | AJ71: 8 | AK71: 9 | AL71: 22 | AM71: 8 | AN71: 8 | AO71: 17 | AP71: 33 | AQ71: 6 | AR71: 18 | AS71: 12 | AT71: 36 | AU71: 9 | AV71: 9 | AW71: 16 | AX71: 34 | AY71: 6 | AZ71: 16 | BA71: 19 | BB71: 41 | BC71: 5 | BD71: 12 | BE71: 19 | BF71: 36 | BG71: 7 | BH71: 9 | BI71: 8 | BJ71: 24 | BK71: 10 | BL71: 13 | BM71: 9 | BN71: 32 | BO71: 152 | BP71: 386 | BQ71: 4 | BR71: 4 | BS71: 4 | BT71: 12 | BU71: 3 | BV71: 8 | BW71: 7 | BX71: 18 | BY71: دورثان | BZ71: فى : اعمال وساطة - محاسبة مالية - | CA71: 2 | CB71: 12 | CC71: 2/2 | CJ71: اعمال وساطة - | CP71: محاسبة مالية - | CU71: 0 | CV71: 2
A72: 63 | B72: 413 | C72: سارة محمد ياسين محمود | D72: 7/2 | I72: بنات | J72: انتظام | K72: صباحى | M72: 1313 | N72: 6 | O72: 13 | P72: 15 | Q72: 34 | R72: 10 | S72: 8 | T72: 9 | U72: 27 | V72: 5 | W72: 7 | X72: 7 | Y72: 19 | Z72: 4 | AA72: 4 | AB72: 6 | AC72: 4 | AD72: 12 | AE72: 5 | AF72: 22 | AG72: 13 | AH72: 35 | AI72: 10 | AJ72: 15 | AK72: 11 | AL72: 36 | AM72: 6 | AN72: 20 | AO72: 12 | AP72: 38 | AQ72: 5 | AR72: 17 | AS72: 11 | AT72: 33 | AU72: 9 | AV72: 18 | AW72: 18 | AX72: 45 | AY72: 6 | AZ72: 10 | BA72: 11 | BB72: 27 | BC72: 10 | BD72: 20 | BE72: 9 | BF72: 39 | BG72: 5 | BH72: 20 | BI72: 13 | BJ72: 38 | BK72: 7 | BL72: 14 | BM72: 20 | BN72: 41 | BO72: 172 | BP72: 412 | BQ72: 4 | BR72: 7 | BS72: 4 | BT72: 15 | BU72: 4 | BV72: 4 | BW72: 4 | BX72: 12 | BY72: ناجحة | BZ72: و منقولة للصف الثانى | CA72: 0 | CB72: 12 | CC72: 2/2 | CU72: 0 | CV72: 0
A73: 64 | B73: 414 | C73: ساره حسن محمد نصر | D73: 8/2 | I73: بنات | J73: انتظام | K73: صباحى | M73: 1314 | N73: 9 | O73: 14 | P73: 12 | Q73: 35 | R73: 7 | S73: 17 | T73: 9 | U73: 33 | V73: 3 | W73: 6 | X73: 7 | Y73: 16 | Z73: 3 | AA73: 4 | AB73: 12 | AC73: 7 | AD73: 11 | AE73: 7 | AF73: 26 | AG73: 18 | AH73: 44 | AI73: 8 | AJ73: 15 | AK73: 13 | AL73: 36 | AM73: 10 | AN73: 20 | AO73: 19 | AP73: 49 | AQ73: 10 | AR73: 14 | AS73: 11 | AT73: 35 | AU73: 7 | AV73: 18 | AW73: 11 | AX73: 36 | AY73: 9 | AZ73: 13 | BA73: 20 | BB73: 42 | BC73: 9 | BD73: 17 | BE73: 9 | BF73: 35 | BG73: 5 | BH73: 13 | BI73: 20 | BJ73: 38 | BK73: 6 | BL73: 8 | BM73: 12 | BN73: 26 | BO73: 174 | BP73: 425 | BQ73: 4 | BR73: 8 | BS73: 4 | BT73: 16 | BU73: 3 | BV73: 5 | BW73: 6 | BX73: 14 | BY73: ناجحة | BZ73: و منقولة للصف الثانى | CA73: 0 | CB73: 13 | CC73: 3/2 | CU73: 0 | CV73: 0
A74: 65 | B74: 415 | C74: سحر احمد محمد ناصر | D74: 8/2 | I74: بنات | J74: انتظام | K74: صباحى | M74: 1315 | N74: 6 | O74: 18 | P74: 15 | Q74: =IF($C74="","",IF(P74="غ","غ",SUM(N74,O74,P74))) -> 39 | R74: 6 | S74: 14 | T74: 17 | U74: =IF($C74="","",IF(T74="غ","غ",SUM(R74,S74,T74))) -> 37 | V74: 5 | W74: 5 | X74: 9 | Y74: =IF($C74="","",IF(X74="غ","غ",SUM(V74,W74,X74))) -> 19 | Z74: 3 | AA74: 4 | AB74: 11 | AC74: 4 | AD74: 12 | AE74: 4 | AF74: =IF($C74="","",IF(AD74="غ","غ",SUM(Z74,AB74,AD74))) -> 26 | AG74: =IF($C74="","",IF(AE74="غ","غ",SUM(AA74,AC74,AE74))) -> 12 | AH74: =IF($C74="","",IF(OR(AF74="غ",AG74="غ"),"غ",SUM(AF74,AG74))) -> 38 | AI74: 6 | AJ74: 11 | AK74: 16 | AL74: =IF($C74="","",IF(AK74="غ","غ",SUM(AI74,AJ74,AK74))) -> 33 | AM74: 7 | AN74: 15 | AO74: 12 | AP74: =IF($C74="","",IF(AO74="غ","غ",SUM(AM74,AN74,AO74))) -> 34 | AQ74: 7 | AR74: 15 | AS74: 17 | AT74: =IF($C74="","",IF(AS74="غ","غ",SUM(AQ74,AR74,AS74))) -> 39 | AU74: 6 | AV74: 15 | AW74: 8 | AX74: =IF($C74="","",IF(AW74="غ","غ",SUM(AU74,AV74,AW74))) -> 29 | AY74: 8 | AZ74: 8 | BA74: 18 | BB74: =IF($C74="","",IF(BA74="غ","غ",SUM(AY74,AZ74,BA74))) -> 34 | BC74: 8 | BD74: 9 | BE74: 16 | BF74: =IF($C74="","",IF(BE74="غ","غ",SUM(BC74,BD74,BE74))) -> 33 | BG74: 5 | BH74: 15 | BI74: 15 | BJ74: =IF($C74="","",IF(BI74="غ","غ",SUM(BG74,BH74,BI74))) -> 35 | BK74: 10 | BL74: 11 | BM74: 10 | BN74: =IF($C74="","",IF(BM74="غ","غ",SUM(BK74,BL74,BM74))) -> 31 | BO74: =IF($C74="","",SUM(O74,S74,W74,AJ74,AN74,AR74,AV74,AZ74,BD74,BH74,BL74,AB74,AC74)) -> 151 | BP74: =IF($C74="","",SUM(Q74,U74,Y74,AL74,AP74,AT74,AX74,BB74,BF74,BJ74,BN74,AH74)) -> 401 | BQ74: 4 | BR74: 7 | BS74: 5 | BT74: =IF($C74="","",IF(BS74="غ","غ",SUM(BQ74,BR74,BS74))) -> 16 | BU74: 3 | BV74: 8 | BW74: 8 | BX74: =IF($C74="","",IF(BW74="غ","غ",SUM(BU74,BV74,BW74))) -> 19 | BY74: =IF(I74="","",IF(I74="بنات",IF(CA74=0,"ناجحة",IF(CV74>2,"راسبة","دورثان")),IF(I74="بنين",IF(CA74=0,"ناجح",IF(CV74>2,"راسب","دورثان"))))) -> ناجحة | BZ74: و منقولة للصف الثانى | CA74: =IFERROR(CU74+CV74,"") -> 0 | CB74: 13 | CC74: 3/2 | CF74: =IF($C74="","",IF(OR(P74<$P$9,P74="غ",Q74<$Q$9),$CF$5&" - ","")) ->  | CG74: =IF($C74="","",IF(OR(T74<$T$9,T74="غ",U74<$U$9),$CG$5&" - ","")) ->  | CH74: =IF($C74="","",IF(OR(X74<$X$9,X74="غ",Y74<$Y$9),CH$5&" - ","")) ->  | CI74: =IF($C74="","",IF(OR(AF74<$AF$9,AF74="غ",AG74<$AG$9,AG74="غ",AH74<$AH$9),CI$5&" - ","")) ->  | CJ74: =IF($C74="","",IF(OR(AK74<$AK$9,AK74="غ",AL74<$AL$9),CJ$5&" - ","")) ->  | CK74: =IF($C74="","",IF(OR(AO74<$AO$9,AO74="غ",AP74<$AP$9),CK$5&" - ","")) ->  | CL74: =IF($C74="","",IF(OR(AS74<$AS$9,AS74="غ",AT74<$AT$9),CL$5&" - ","")) ->  | CM74: =IF($C74="","",IF(OR(AW74<$AW$9,AW74="غ",AX74<$AX$9),CM$5&" - ","")) ->  | CN74: =IF($C74="","",IF(OR(BA74<$BA$9,BA74="غ",BB74<$BB$9),CN$5&" - ","")) ->  | CO74: =IF($C74="","",IF(OR(BE74<$BE$9,BE74="غ",BF74<$BF$9),CO$5&" - ","")) ->  | CP74: =IF($C74="","",IF(OR(BI74<$BI$9,BI74="غ",BJ74<$BJ$9),CP$5&" - ","")) ->  | CQ74: =IF($C74="","",IF(OR(BM74<$BM$9,BM74="غ",BN74<$BN$9),CQ$5&" - ","")) ->  | CR74: =IF($C74="","",IF(BP74<$BP$9,CR$5,"")) ->  | CS74: =IF($C74="","",IF(OR(BS74<$BS$9,BS74="غ",BT74<$BT$9),CS$5&" - ","")) ->  | CT74: =IF($C74="","",IF(OR(BW74<$BW$9,BW74="غ",BX74<$BX$9),CT$5&" - ","")) ->  | CU74: =IF($C74="","",COUNTIF($CR74:$CT74,"?*")) -> 0 | CV74: =IF($C74="","",COUNTIF($CF74:$CQ74,"?*")) -> 0
A75: 66 | B75: 416 | C75: سلمة مهدى حامد محمود | D75: 8/2 | I75: بنات | J75: انتظام | K75: صباحى | M75: 1316 | N75: 8 | O75: 18 | P75: 14 | Q75: 40 | R75: 9 | S75: 20 | T75: 11 | U75: 40 | V75: 4 | W75: 11 | X75: 8 | Y75: 23 | Z75: 3 | AA75: 4 | AB75: 12 | AC75: 4 | AD75: 7 | AE75: 8 | AF75: 22 | AG75: 16 | AH75: 38 | AI75: 6 | AJ75: 20 | AK75: 12 | AL75: 38 | AM75: 6 | AN75: 18 | AO75: 13 | AP75: 37 | AQ75: 5 | AR75: 18 | AS75: 13 | AT75: 36 | AU75: 8 | AV75: 10 | AW75: 12 | AX75: 30 | AY75: 5 | AZ75: 9 | BA75: 16 | BB75: 30 | BC75: 8 | BD75: 13 | BE75: 16 | BF75: 37 | BG75: 10 | BH75: 15 | BI75: 18 | BJ75: 43 | BK75: 8 | BL75: 16 | BM75: 20 | BN75: 44 | BO75: 184 | BP75: 436 | BQ75: 3 | BR75: 6 | BS75: 8 | BT75: 17 | BU75: 3 | BV75: 8 | BW75: 5 | BX75: 16 | BY75: ناجحة | BZ75: =IF(AND($L75="باقية",$BY75="راسبة"),"وليس لها حق الاعادة",IF(AND($L75<>"باقية",$BY75="راسبة"),"و لها حق الاعادة",IF(AND($L75="باقى",$BY75="راسب"),"وليس له حق الاعادة",IF(AND($L75<>"باقى",$BY75="راسب"),"و له حق الاعادة",IF($BY75="ناجحة","و منقولة للصف الثانى",IF($BY75="ناجح","و منقول للصف الثانى",IF($BY75="دورثان","فى : "&CONCATENATE(CF75,CG75,CH75,CI75,CJ75,CK75,CL75,CM75,CN75,CO75,CP75,CQ75,CS75,CT75,CR75),CONCATENATE(CF75,CG75,CH75,CI75,CJ75,CK75,CL75,CM75,CN75,CO75,CP75,CQ75,CS75,CT75,CR75)))))))) -> و منقولة للصف الثانى | CA75: 0 | CB75: 13 | CC75: 3/2 | CU75: 0 | CV75: 0
